{"text_format":"3","workbook":"xlsx","n_sheets":29,"sheets":["Cover","Information Please Read","Risk Assessment","Staff Health ","General","Climbing Wall","Zipline","Go-Kart","Mini-Golf","Team Building","Initiatives","Air rifles","Archery","Orienteering","Reflector Trail","Burma Trail","Waterslide","Aerojump","Trampolines","Fire pit","Gaga Dodgeball","Maypole","Playground","Outdoor Games","Indoor Games Room","Disk-Golf","SlackLine","Drop Box Lists","Sheet1"],"not_rendered":{"images":3,"macros":1,"defined_names":28},"read":"whole","date_system":"1900"}

{"sheet":"Cover","index":0,"n_rows":27,"n_cols":1,"rows_kept":27}
{"$rows_empty":8}
["HAZARD/RISK REGISTER FOR: Woodend Christian Camp Practical Activities"]
[]
["Last review date: 24 January 2023"]
[]
["Safety Coordinator is: Cody Blackler"]
[]
["Woodend Christian Camp Health and Safety Policies and procedures can be viewed on the Pdrive and at request."]
["All staff, client and students have a responsibility to protect themselves and others from harm."]
[]
[]
["If you cannot eliminate the hazard, then you minimise risks to health and safety, so far as is reasonably practicable, by doing 1 or more of the following:"]
["(a) Substituting (wholly or partly) the hazard giving rise to the risk with something that gives rise to a lesser risk"]
["(b) Implementing engineering controls"]
[]
["If a risk then remains, managers must minimise the remaining risk, so far as is reasonably practicable, by implementing administrative controls."]
[]
["If a risk then remains, managers must minimise the remaining risk, so far as is reasonably practicable, by ensuring the provision and use of suitable personal protective equipment."]
[]
["This document is considered policy and reviewed at least annually by WCC Safety Coordinator or as advised through hazard reporting form"]

{"sheet":"Information Please Read","index":1,"n_rows":0,"n_cols":0,"rows_kept":0}

{"sheet":"Risk Assessment","index":2,"n_rows":17,"n_cols":10,"rows_kept":17,"hidden":true,"merged":[[0,0,1,5],[2,0,4,0],[2,1,2,5],[11,8,11,9]]}
["RISK RATING TABLE"]
[]
["Likelihood of injury or harm to health","Consequences of injury or harm to health"]
[null,"Insignificant","Moderate","Significant","Major","Extreme","Guide to determining likelihood."]
[null,"no injuries"," Moderate first aid and/ or medical treatment","Significant first aid and/ or medical treatment","Serious Harm caused","Fatalites"]
["Very likely",5,10,15,20,25,"Very Likely = A known issue. Probability between 50% & 100% per year."]
["Likely",4,8,12,16,20,"Likely = Has occurred at WCC. Probability between 20% &50% per year."]
["Moderate",3,6,9,12,15,"Moderate = Occurs in industry annually. Probability between 10% & 20% per year."]
["Unlikely",2,4,6,8,10,"Unlikely = Has occurred in industry. Probability between 1% & 10% per year."]
["Highly unlikely (rare)",1,2,3,4,5,"Highly unlikely (rare) = May occur in exceptional circumstances. Probability < 1% per year."]
[]
[{"$nulls":8},"Overall Risk Ratings"]
[{"$nulls":9},"Extreme Risk"]
[{"$nulls":9},"Major Risk"]
[{"$nulls":9},"Significant Risk"]
[{"$nulls":9},"Moderate Risk"]
[{"$nulls":9},"Insignificant Risk"]

{"sheet":"Staff Health ","index":3,"n_rows":33,"n_cols":9,"rows_kept":33,"merged":[[11,0,11,4]]}
{"$rows_empty":9}
[" HAZARD and RISK REGISTER ",null," WCC Practical Activities"]
["Refer to Hazard/Risk Management Procedure"]
[]
["Developed by: Matthew Smith Date: 25 May 2022"]
[" Approved by: Cody Blackler      Date: 11 August 2022"]
["Reviewed by:  Cody Blackler and Matthew Smith Date: 11 August 2022 "]
[]
[]
["(1) Identify all hazards, then determine a risk rating."]
["(2) Eliminate the risk. If not reasonably practicable then"]
["(3) Minimise the risk as far as reasonably practicable."]
["(4) Reassess and determine the residual risk"]
[]
["Where or what task?","Hazard and Harm?","Likelihood \n(Choose from drop list in cell)","Consequence \n(Choose from drop list in cell)","Rating","Action required to Eliminate (E) or Minimise (M). \n (controls, administration controls, personal protective equipment.)","Revised Likelihood","Revised Consequence","Residual Rating"]
["All tasks","Over-use syndrome","Moderate","Moderate",{"$f":"VLOOKUP(C24,'Risk Assessment'!$A$4:$F$10,MATCH(D24,'Risk Assessment'!$A$4:$F$4,0),FALSE)","v":6},"M: Early referral procedure in place. Staff to notify discomfort\nM: Appropriate and well fitting equipment provided. ","Unlikely","Moderate",{"$f":"VLOOKUP(G24,'Risk Assessment'!$A$4:$F$10,MATCH(H24,'Risk Assessment'!$A$4:$F$4,0),FALSE)","v":4}]
["All tasks","Melanoma","Moderate","Extreme",{"$f":"VLOOKUP(C25,'Risk Assessment'!$A$4:$F$10,MATCH(D25,'Risk Assessment'!$A$4:$F$4,0),FALSE)","v":15},"M: Sun smart principles applied\nM: PPE provided by WCC for Staff (sunblock, hats etc)","Highly unlikely (rare)","Extreme",{"$f":"VLOOKUP(G25,'Risk Assessment'!$A$4:$F$10,MATCH(H25,'Risk Assessment'!$A$4:$F$4,0),FALSE)","v":5}]
["All tasks","hearing damage","Likely","Major",{"$f":"VLOOKUP(C26,'Risk Assessment'!$A$4:$F$10,MATCH(D26,'Risk Assessment'!$A$4:$F$4,0),FALSE)","v":16},"M: PPE available for use (Ear muffs, ear plugs)","Unlikely","Significant",{"$f":"VLOOKUP(G26,'Risk Assessment'!$A$4:$F$10,MATCH(H26,'Risk Assessment'!$A$4:$F$4,0),FALSE)","v":6}]
["All tasks","eye damage","Moderate","Major",{"$f":"VLOOKUP(C27,'Risk Assessment'!$A$4:$F$10,MATCH(D27,'Risk Assessment'!$A$4:$F$4,0),FALSE)","v":12},"M: PPE available for use (Saftey glasses)","Highly unlikely (rare)","Significant",{"$f":"VLOOKUP(G27,'Risk Assessment'!$A$4:$F$10,MATCH(H27,'Risk Assessment'!$A$4:$F$4,0),FALSE)","v":3}]
["All tasks","stress","Likely","Significant",{"$f":"VLOOKUP(C28,'Risk Assessment'!$A$4:$F$10,MATCH(D28,'Risk Assessment'!$A$4:$F$4,0),FALSE)","v":12},"M: staff to be aware of signs and symptoms and to discuss with superior staff member if assistance required ","Moderate","Moderate",{"$f":"VLOOKUP(G28,'Risk Assessment'!$A$4:$F$10,MATCH(H28,'Risk Assessment'!$A$4:$F$4,0),FALSE)","v":6}]
[{"$nulls":4},{"$f":"VLOOKUP(C29,'Risk Assessment'!$A$4:$F$10,MATCH(D29,'Risk Assessment'!$A$4:$F$4,0),FALSE)","v":{"$error":"#N/A"}},{"$nulls":3},{"$f":"VLOOKUP(G29,'Risk Assessment'!$A$4:$F$10,MATCH(H29,'Risk Assessment'!$A$4:$F$4,0),FALSE)","v":{"$error":"#N/A"}}]
[{"$nulls":4},{"$f":"VLOOKUP(C30,'Risk Assessment'!$A$4:$F$10,MATCH(D30,'Risk Assessment'!$A$4:$F$4,0),FALSE)","v":{"$error":"#N/A"}},{"$nulls":3},{"$f":"VLOOKUP(G30,'Risk Assessment'!$A$4:$F$10,MATCH(H30,'Risk Assessment'!$A$4:$F$4,0),FALSE)","v":{"$error":"#N/A"}}]
[{"$nulls":4},{"$f":"VLOOKUP(C31,'Risk Assessment'!$A$4:$F$10,MATCH(D31,'Risk Assessment'!$A$4:$F$4,0),FALSE)","v":{"$error":"#N/A"}},{"$nulls":3},{"$f":"VLOOKUP(G31,'Risk Assessment'!$A$4:$F$10,MATCH(H31,'Risk Assessment'!$A$4:$F$4,0),FALSE)","v":{"$error":"#N/A"}}]
[{"$nulls":4},{"$f":"VLOOKUP(C32,'Risk Assessment'!$A$4:$F$10,MATCH(D32,'Risk Assessment'!$A$4:$F$4,0),FALSE)","v":{"$error":"#N/A"}},{"$nulls":3},{"$f":"VLOOKUP(G32,'Risk Assessment'!$A$4:$F$10,MATCH(H32,'Risk Assessment'!$A$4:$F$4,0),FALSE)","v":{"$error":"#N/A"}}]
[{"$nulls":4},{"$f":"VLOOKUP(C33,'Risk Assessment'!$A$4:$F$10,MATCH(D33,'Risk Assessment'!$A$4:$F$4,0),FALSE)","v":{"$error":"#N/A"}},{"$nulls":3},{"$f":"VLOOKUP(G33,'Risk Assessment'!$A$4:$F$10,MATCH(H33,'Risk Assessment'!$A$4:$F$4,0),FALSE)","v":{"$error":"#N/A"}}]

{"sheet":"General","index":4,"n_rows":77,"n_cols":9,"rows_kept":77}
{"$rows_empty":9}
[" HAZARD and RISK REGISTER ",null," WCC Practical Activities"]
["Refer to Hazard/Risk Management Procedure"]
[]
["Developed by: Matthew Smith Date: 29 June 2022."]
[" Approved by: Cody Blackler   Date:  11 August 2022"]
["Reviewed by: Cody Blackler and Matthew Smith  Date: 11 August 2022"]
[]
["(1) Identify all hazards, then determine a risk rating."]
["(2) Eliminate the risk. If not reasonably practicable then"]
["(3) Minimise the risk as far as reasonably practicable."]
["(4) Reassess and determine the residual risk"]
[]
["Where or what task?","Hazard and Harm?","Likelihood \n(Choose from drop list in cell)","Consequence \n(Choose from drop list in cell)","Rating","Action required to Eliminate (E) or Minimise (M). \n (controls, administration controls, personal protective equipment.)","Revised Likelihood","Revised Consequence","Residual Rating"]
["All areas","tree fall ","Moderate","Extreme",{"$f":"VLOOKUP(C23,'Risk Assessment'!$A$4:$F$10,MATCH(D23,'Risk Assessment'!$A$4:$F$4,0),FALSE)","v":15},"M: trees are monitored following high winds\nM: staff to be watchful of trees in high wind","Highly unlikely (rare)","Extreme",{"$f":"VLOOKUP(G23,'Risk Assessment'!$A$4:$F$10,MATCH(H23,'Risk Assessment'!$A$4:$F$4,0),FALSE)","v":5}]
["Outdoor areas","exposure","Unlikely","Extreme",{"$f":"VLOOKUP(C24,'Risk Assessment'!$A$4:$F$10,MATCH(D24,'Risk Assessment'!$A$4:$F$4,0),FALSE)","v":10},"M: Staff to recognise signs and symptoms of exposure illnesses (Heatstroke, Hypothermia, Hyperthermia and heat exhaustion)\nM: Advise clients of appropriate clothing for the activity and weather\nE: activity to be closed when exposure risk can not be effectivly managed (either through lack of appropriate client clothing or continually deteriorating weather. Note staff are expected to carry apropriate clothing for work in all conditions)","Highly unlikely (rare)","Extreme",{"$f":"VLOOKUP(G24,'Risk Assessment'!$A$4:$F$10,MATCH(H24,'Risk Assessment'!$A$4:$F$4,0),FALSE)","v":5}]
["Outdoor areas","sunburn","Very likely","Moderate",{"$f":"VLOOKUP(C25,'Risk Assessment'!$A$4:$F$10,MATCH(D25,'Risk Assessment'!$A$4:$F$4,0),FALSE)","v":10},"M: Sunsmart principles applied.\nM: Advise clients to wear sunhats and apply sunblock","Unlikely","Moderate",{"$f":"VLOOKUP(G25,'Risk Assessment'!$A$4:$F$10,MATCH(H25,'Risk Assessment'!$A$4:$F$4,0),FALSE)","v":4}]
["carpark","hit by vehicle","Very likely","Extreme",{"$f":"VLOOKUP(C26,'Risk Assessment'!$A$4:$F$10,MATCH(D26,'Risk Assessment'!$A$4:$F$4,0),FALSE)","v":25},"M: groups are briefed to not loiter in carpark\nM: staff,residents and guests are strongly advised to drive carefully in carpark\nM: speed sign and speed bumps\nM: gates kept closed at all times","Highly unlikely (rare)","Extreme",{"$f":"VLOOKUP(G26,'Risk Assessment'!$A$4:$F$10,MATCH(H26,'Risk Assessment'!$A$4:$F$4,0),FALSE)","v":5}]
["All areas","under runners","Likely","Moderate",{"$f":"VLOOKUP(C27,'Risk Assessment'!$A$4:$F$10,MATCH(D27,'Risk Assessment'!$A$4:$F$4,0),FALSE)","v":8},"M: underrunners to be filled in when found \nM: Staff to keep a look out for new underrunners","Moderate","Moderate",{"$f":"VLOOKUP(G27,'Risk Assessment'!$A$4:$F$10,MATCH(H27,'Risk Assessment'!$A$4:$F$4,0),FALSE)","v":6}]
[{"$nulls":4},{"$f":"VLOOKUP(C28,'Risk Assessment'!$A$4:$F$10,MATCH(D28,'Risk Assessment'!$A$4:$F$4,0),FALSE)","v":{"$error":"#N/A"}},{"$nulls":3},{"$f":"VLOOKUP(G28,'Risk Assessment'!$A$4:$F$10,MATCH(H28,'Risk Assessment'!$A$4:$F$4,0),FALSE)","v":{"$error":"#N/A"}}]
[{"$nulls":4},{"$f":"VLOOKUP(C29,'Risk Assessment'!$A$4:$F$10,MATCH(D29,'Risk Assessment'!$A$4:$F$4,0),FALSE)","v":{"$error":"#N/A"}},{"$nulls":3},{"$f":"VLOOKUP(G29,'Risk Assessment'!$A$4:$F$10,MATCH(H29,'Risk Assessment'!$A$4:$F$4,0),FALSE)","v":{"$error":"#N/A"}}]
[{"$nulls":4},{"$f":"VLOOKUP(C30,'Risk Assessment'!$A$4:$F$10,MATCH(D30,'Risk Assessment'!$A$4:$F$4,0),FALSE)","v":{"$error":"#N/A"}},{"$nulls":3},{"$f":"VLOOKUP(G30,'Risk Assessment'!$A$4:$F$10,MATCH(H30,'Risk Assessment'!$A$4:$F$4,0),FALSE)","v":{"$error":"#N/A"}}]
[{"$nulls":4},{"$f":"VLOOKUP(C31,'Risk Assessment'!$A$4:$F$10,MATCH(D31,'Risk Assessment'!$A$4:$F$4,0),FALSE)","v":{"$error":"#N/A"}},{"$nulls":3},{"$f":"VLOOKUP(G31,'Risk Assessment'!$A$4:$F$10,MATCH(H31,'Risk Assessment'!$A$4:$F$4,0),FALSE)","v":{"$error":"#N/A"}}]
[{"$nulls":4},{"$f":"VLOOKUP(C32,'Risk Assessment'!$A$4:$F$10,MATCH(D32,'Risk Assessment'!$A$4:$F$4,0),FALSE)","v":{"$error":"#N/A"}},{"$nulls":3},{"$f":"VLOOKUP(G32,'Risk Assessment'!$A$4:$F$10,MATCH(H32,'Risk Assessment'!$A$4:$F$4,0),FALSE)","v":{"$error":"#N/A"}}]
[{"$nulls":4},{"$f":"VLOOKUP(C33,'Risk Assessment'!$A$4:$F$10,MATCH(D33,'Risk Assessment'!$A$4:$F$4,0),FALSE)","v":{"$error":"#N/A"}},{"$nulls":3},{"$f":"VLOOKUP(G33,'Risk Assessment'!$A$4:$F$10,MATCH(H33,'Risk Assessment'!$A$4:$F$4,0),FALSE)","v":{"$error":"#N/A"}}]
[{"$nulls":4},{"$f":"VLOOKUP(C34,'Risk Assessment'!$A$4:$F$10,MATCH(D34,'Risk Assessment'!$A$4:$F$4,0),FALSE)","v":{"$error":"#N/A"}},{"$nulls":3},{"$f":"VLOOKUP(G34,'Risk Assessment'!$A$4:$F$10,MATCH(H34,'Risk Assessment'!$A$4:$F$4,0),FALSE)","v":{"$error":"#N/A"}}]
[{"$nulls":4},{"$f":"VLOOKUP(C35,'Risk Assessment'!$A$4:$F$10,MATCH(D35,'Risk Assessment'!$A$4:$F$4,0),FALSE)","v":{"$error":"#N/A"}},{"$nulls":3},{"$f":"VLOOKUP(G35,'Risk Assessment'!$A$4:$F$10,MATCH(H35,'Risk Assessment'!$A$4:$F$4,0),FALSE)","v":{"$error":"#N/A"}}]
[{"$nulls":4},{"$f":"VLOOKUP(C36,'Risk Assessment'!$A$4:$F$10,MATCH(D36,'Risk Assessment'!$A$4:$F$4,0),FALSE)","v":{"$error":"#N/A"}},{"$nulls":3},{"$f":"VLOOKUP(G36,'Risk Assessment'!$A$4:$F$10,MATCH(H36,'Risk Assessment'!$A$4:$F$4,0),FALSE)","v":{"$error":"#N/A"}}]
[{"$nulls":4},{"$f":"VLOOKUP(C37,'Risk Assessment'!$A$4:$F$10,MATCH(D37,'Risk Assessment'!$A$4:$F$4,0),FALSE)","v":{"$error":"#N/A"}},{"$nulls":3},{"$f":"VLOOKUP(G37,'Risk Assessment'!$A$4:$F$10,MATCH(H37,'Risk Assessment'!$A$4:$F$4,0),FALSE)","v":{"$error":"#N/A"}}]
[{"$nulls":4},{"$f":"VLOOKUP(C38,'Risk Assessment'!$A$4:$F$10,MATCH(D38,'Risk Assessment'!$A$4:$F$4,0),FALSE)","v":{"$error":"#N/A"}},{"$nulls":3},{"$f":"VLOOKUP(G38,'Risk Assessment'!$A$4:$F$10,MATCH(H38,'Risk Assessment'!$A$4:$F$4,0),FALSE)","v":{"$error":"#N/A"}}]
[{"$nulls":4},{"$f":"VLOOKUP(C39,'Risk Assessment'!$A$4:$F$10,MATCH(D39,'Risk Assessment'!$A$4:$F$4,0),FALSE)","v":{"$error":"#N/A"}},{"$nulls":3},{"$f":"VLOOKUP(G39,'Risk Assessment'!$A$4:$F$10,MATCH(H39,'Risk Assessment'!$A$4:$F$4,0),FALSE)","v":{"$error":"#N/A"}}]
[{"$nulls":4},{"$f":"VLOOKUP(C40,'Risk Assessment'!$A$4:$F$10,MATCH(D40,'Risk Assessment'!$A$4:$F$4,0),FALSE)","v":{"$error":"#N/A"}},{"$nulls":3},{"$f":"VLOOKUP(G40,'Risk Assessment'!$A$4:$F$10,MATCH(H40,'Risk Assessment'!$A$4:$F$4,0),FALSE)","v":{"$error":"#N/A"}}]
[{"$nulls":4},{"$f":"VLOOKUP(C41,'Risk Assessment'!$A$4:$F$10,MATCH(D41,'Risk Assessment'!$A$4:$F$4,0),FALSE)","v":{"$error":"#N/A"}},{"$nulls":3},{"$f":"VLOOKUP(G41,'Risk Assessment'!$A$4:$F$10,MATCH(H41,'Risk Assessment'!$A$4:$F$4,0),FALSE)","v":{"$error":"#N/A"}}]
[{"$nulls":4},{"$f":"VLOOKUP(C42,'Risk Assessment'!$A$4:$F$10,MATCH(D42,'Risk Assessment'!$A$4:$F$4,0),FALSE)","v":{"$error":"#N/A"}},{"$nulls":3},{"$f":"VLOOKUP(G42,'Risk Assessment'!$A$4:$F$10,MATCH(H42,'Risk Assessment'!$A$4:$F$4,0),FALSE)","v":{"$error":"#N/A"}}]
[{"$nulls":4},{"$f":"VLOOKUP(C43,'Risk Assessment'!$A$4:$F$10,MATCH(D43,'Risk Assessment'!$A$4:$F$4,0),FALSE)","v":{"$error":"#N/A"}},{"$nulls":3},{"$f":"VLOOKUP(G43,'Risk Assessment'!$A$4:$F$10,MATCH(H43,'Risk Assessment'!$A$4:$F$4,0),FALSE)","v":{"$error":"#N/A"}}]
[{"$nulls":4},{"$f":"VLOOKUP(C44,'Risk Assessment'!$A$4:$F$10,MATCH(D44,'Risk Assessment'!$A$4:$F$4,0),FALSE)","v":{"$error":"#N/A"}},{"$nulls":3},{"$f":"VLOOKUP(G44,'Risk Assessment'!$A$4:$F$10,MATCH(H44,'Risk Assessment'!$A$4:$F$4,0),FALSE)","v":{"$error":"#N/A"}}]
[{"$nulls":4},{"$f":"VLOOKUP(C45,'Risk Assessment'!$A$4:$F$10,MATCH(D45,'Risk Assessment'!$A$4:$F$4,0),FALSE)","v":{"$error":"#N/A"}},{"$nulls":3},{"$f":"VLOOKUP(G45,'Risk Assessment'!$A$4:$F$10,MATCH(H45,'Risk Assessment'!$A$4:$F$4,0),FALSE)","v":{"$error":"#N/A"}}]
[{"$nulls":4},{"$f":"VLOOKUP(C46,'Risk Assessment'!$A$4:$F$10,MATCH(D46,'Risk Assessment'!$A$4:$F$4,0),FALSE)","v":{"$error":"#N/A"}},{"$nulls":3},{"$f":"VLOOKUP(G46,'Risk Assessment'!$A$4:$F$10,MATCH(H46,'Risk Assessment'!$A$4:$F$4,0),FALSE)","v":{"$error":"#N/A"}}]
[{"$nulls":4},{"$f":"VLOOKUP(C47,'Risk Assessment'!$A$4:$F$10,MATCH(D47,'Risk Assessment'!$A$4:$F$4,0),FALSE)","v":{"$error":"#N/A"}},{"$nulls":3},{"$f":"VLOOKUP(G47,'Risk Assessment'!$A$4:$F$10,MATCH(H47,'Risk Assessment'!$A$4:$F$4,0),FALSE)","v":{"$error":"#N/A"}}]
[{"$nulls":4},{"$f":"VLOOKUP(C48,'Risk Assessment'!$A$4:$F$10,MATCH(D48,'Risk Assessment'!$A$4:$F$4,0),FALSE)","v":{"$error":"#N/A"}},{"$nulls":3},{"$f":"VLOOKUP(G48,'Risk Assessment'!$A$4:$F$10,MATCH(H48,'Risk Assessment'!$A$4:$F$4,0),FALSE)","v":{"$error":"#N/A"}}]
[{"$nulls":4},{"$f":"VLOOKUP(C49,'Risk Assessment'!$A$4:$F$10,MATCH(D49,'Risk Assessment'!$A$4:$F$4,0),FALSE)","v":{"$error":"#N/A"}},{"$nulls":3},{"$f":"VLOOKUP(G49,'Risk Assessment'!$A$4:$F$10,MATCH(H49,'Risk Assessment'!$A$4:$F$4,0),FALSE)","v":{"$error":"#N/A"}}]
[{"$nulls":4},{"$f":"VLOOKUP(C50,'Risk Assessment'!$A$4:$F$10,MATCH(D50,'Risk Assessment'!$A$4:$F$4,0),FALSE)","v":{"$error":"#N/A"}},{"$nulls":3},{"$f":"VLOOKUP(G50,'Risk Assessment'!$A$4:$F$10,MATCH(H50,'Risk Assessment'!$A$4:$F$4,0),FALSE)","v":{"$error":"#N/A"}}]
[{"$nulls":4},{"$f":"VLOOKUP(C51,'Risk Assessment'!$A$4:$F$10,MATCH(D51,'Risk Assessment'!$A$4:$F$4,0),FALSE)","v":{"$error":"#N/A"}},{"$nulls":3},{"$f":"VLOOKUP(G51,'Risk Assessment'!$A$4:$F$10,MATCH(H51,'Risk Assessment'!$A$4:$F$4,0),FALSE)","v":{"$error":"#N/A"}}]
[{"$nulls":4},{"$f":"VLOOKUP(C52,'Risk Assessment'!$A$4:$F$10,MATCH(D52,'Risk Assessment'!$A$4:$F$4,0),FALSE)","v":{"$error":"#N/A"}},{"$nulls":3},{"$f":"VLOOKUP(G52,'Risk Assessment'!$A$4:$F$10,MATCH(H52,'Risk Assessment'!$A$4:$F$4,0),FALSE)","v":{"$error":"#N/A"}}]
[{"$nulls":4},{"$f":"VLOOKUP(C53,'Risk Assessment'!$A$4:$F$10,MATCH(D53,'Risk Assessment'!$A$4:$F$4,0),FALSE)","v":{"$error":"#N/A"}},{"$nulls":3},{"$f":"VLOOKUP(G53,'Risk Assessment'!$A$4:$F$10,MATCH(H53,'Risk Assessment'!$A$4:$F$4,0),FALSE)","v":{"$error":"#N/A"}}]
[{"$nulls":4},{"$f":"VLOOKUP(C54,'Risk Assessment'!$A$4:$F$10,MATCH(D54,'Risk Assessment'!$A$4:$F$4,0),FALSE)","v":{"$error":"#N/A"}},{"$nulls":3},{"$f":"VLOOKUP(G54,'Risk Assessment'!$A$4:$F$10,MATCH(H54,'Risk Assessment'!$A$4:$F$4,0),FALSE)","v":{"$error":"#N/A"}}]
[{"$nulls":4},{"$f":"VLOOKUP(C55,'Risk Assessment'!$A$4:$F$10,MATCH(D55,'Risk Assessment'!$A$4:$F$4,0),FALSE)","v":{"$error":"#N/A"}},{"$nulls":3},{"$f":"VLOOKUP(G55,'Risk Assessment'!$A$4:$F$10,MATCH(H55,'Risk Assessment'!$A$4:$F$4,0),FALSE)","v":{"$error":"#N/A"}}]
[{"$nulls":4},{"$f":"VLOOKUP(C56,'Risk Assessment'!$A$4:$F$10,MATCH(D56,'Risk Assessment'!$A$4:$F$4,0),FALSE)","v":{"$error":"#N/A"}},{"$nulls":3},{"$f":"VLOOKUP(G56,'Risk Assessment'!$A$4:$F$10,MATCH(H56,'Risk Assessment'!$A$4:$F$4,0),FALSE)","v":{"$error":"#N/A"}}]
[{"$nulls":4},{"$f":"VLOOKUP(C57,'Risk Assessment'!$A$4:$F$10,MATCH(D57,'Risk Assessment'!$A$4:$F$4,0),FALSE)","v":{"$error":"#N/A"}},{"$nulls":3},{"$f":"VLOOKUP(G57,'Risk Assessment'!$A$4:$F$10,MATCH(H57,'Risk Assessment'!$A$4:$F$4,0),FALSE)","v":{"$error":"#N/A"}}]
[{"$nulls":4},{"$f":"VLOOKUP(C58,'Risk Assessment'!$A$4:$F$10,MATCH(D58,'Risk Assessment'!$A$4:$F$4,0),FALSE)","v":{"$error":"#N/A"}},{"$nulls":3},{"$f":"VLOOKUP(G58,'Risk Assessment'!$A$4:$F$10,MATCH(H58,'Risk Assessment'!$A$4:$F$4,0),FALSE)","v":{"$error":"#N/A"}}]
[{"$nulls":4},{"$f":"VLOOKUP(C59,'Risk Assessment'!$A$4:$F$10,MATCH(D59,'Risk Assessment'!$A$4:$F$4,0),FALSE)","v":{"$error":"#N/A"}},{"$nulls":3},{"$f":"VLOOKUP(G59,'Risk Assessment'!$A$4:$F$10,MATCH(H59,'Risk Assessment'!$A$4:$F$4,0),FALSE)","v":{"$error":"#N/A"}}]
[{"$nulls":4},{"$f":"VLOOKUP(C60,'Risk Assessment'!$A$4:$F$10,MATCH(D60,'Risk Assessment'!$A$4:$F$4,0),FALSE)","v":{"$error":"#N/A"}},{"$nulls":3},{"$f":"VLOOKUP(G60,'Risk Assessment'!$A$4:$F$10,MATCH(H60,'Risk Assessment'!$A$4:$F$4,0),FALSE)","v":{"$error":"#N/A"}}]
[{"$nulls":4},{"$f":"VLOOKUP(C61,'Risk Assessment'!$A$4:$F$10,MATCH(D61,'Risk Assessment'!$A$4:$F$4,0),FALSE)","v":{"$error":"#N/A"}},{"$nulls":3},{"$f":"VLOOKUP(G61,'Risk Assessment'!$A$4:$F$10,MATCH(H61,'Risk Assessment'!$A$4:$F$4,0),FALSE)","v":{"$error":"#N/A"}}]
[{"$nulls":4},{"$f":"VLOOKUP(C62,'Risk Assessment'!$A$4:$F$10,MATCH(D62,'Risk Assessment'!$A$4:$F$4,0),FALSE)","v":{"$error":"#N/A"}},{"$nulls":3},{"$f":"VLOOKUP(G62,'Risk Assessment'!$A$4:$F$10,MATCH(H62,'Risk Assessment'!$A$4:$F$4,0),FALSE)","v":{"$error":"#N/A"}}]
[{"$nulls":4},{"$f":"VLOOKUP(C63,'Risk Assessment'!$A$4:$F$10,MATCH(D63,'Risk Assessment'!$A$4:$F$4,0),FALSE)","v":{"$error":"#N/A"}},{"$nulls":3},{"$f":"VLOOKUP(G63,'Risk Assessment'!$A$4:$F$10,MATCH(H63,'Risk Assessment'!$A$4:$F$4,0),FALSE)","v":{"$error":"#N/A"}}]
[{"$nulls":4},{"$f":"VLOOKUP(C64,'Risk Assessment'!$A$4:$F$10,MATCH(D64,'Risk Assessment'!$A$4:$F$4,0),FALSE)","v":{"$error":"#N/A"}},{"$nulls":3},{"$f":"VLOOKUP(G64,'Risk Assessment'!$A$4:$F$10,MATCH(H64,'Risk Assessment'!$A$4:$F$4,0),FALSE)","v":{"$error":"#N/A"}}]
[{"$nulls":4},{"$f":"VLOOKUP(C65,'Risk Assessment'!$A$4:$F$10,MATCH(D65,'Risk Assessment'!$A$4:$F$4,0),FALSE)","v":{"$error":"#N/A"}},{"$nulls":3},{"$f":"VLOOKUP(G65,'Risk Assessment'!$A$4:$F$10,MATCH(H65,'Risk Assessment'!$A$4:$F$4,0),FALSE)","v":{"$error":"#N/A"}}]
[{"$nulls":4},{"$f":"VLOOKUP(C66,'Risk Assessment'!$A$4:$F$10,MATCH(D66,'Risk Assessment'!$A$4:$F$4,0),FALSE)","v":{"$error":"#N/A"}},{"$nulls":3},{"$f":"VLOOKUP(G66,'Risk Assessment'!$A$4:$F$10,MATCH(H66,'Risk Assessment'!$A$4:$F$4,0),FALSE)","v":{"$error":"#N/A"}}]
[{"$nulls":4},{"$f":"VLOOKUP(C67,'Risk Assessment'!$A$4:$F$10,MATCH(D67,'Risk Assessment'!$A$4:$F$4,0),FALSE)","v":{"$error":"#N/A"}},{"$nulls":3},{"$f":"VLOOKUP(G67,'Risk Assessment'!$A$4:$F$10,MATCH(H67,'Risk Assessment'!$A$4:$F$4,0),FALSE)","v":{"$error":"#N/A"}}]
[{"$nulls":4},{"$f":"VLOOKUP(C68,'Risk Assessment'!$A$4:$F$10,MATCH(D68,'Risk Assessment'!$A$4:$F$4,0),FALSE)","v":{"$error":"#N/A"}},{"$nulls":3},{"$f":"VLOOKUP(G68,'Risk Assessment'!$A$4:$F$10,MATCH(H68,'Risk Assessment'!$A$4:$F$4,0),FALSE)","v":{"$error":"#N/A"}}]
[{"$nulls":4},{"$f":"VLOOKUP(C69,'Risk Assessment'!$A$4:$F$10,MATCH(D69,'Risk Assessment'!$A$4:$F$4,0),FALSE)","v":{"$error":"#N/A"}},{"$nulls":3},{"$f":"VLOOKUP(G69,'Risk Assessment'!$A$4:$F$10,MATCH(H69,'Risk Assessment'!$A$4:$F$4,0),FALSE)","v":{"$error":"#N/A"}}]
[{"$nulls":4},{"$f":"VLOOKUP(C70,'Risk Assessment'!$A$4:$F$10,MATCH(D70,'Risk Assessment'!$A$4:$F$4,0),FALSE)","v":{"$error":"#N/A"}},{"$nulls":3},{"$f":"VLOOKUP(G70,'Risk Assessment'!$A$4:$F$10,MATCH(H70,'Risk Assessment'!$A$4:$F$4,0),FALSE)","v":{"$error":"#N/A"}}]
[{"$nulls":4},{"$f":"VLOOKUP(C71,'Risk Assessment'!$A$4:$F$10,MATCH(D71,'Risk Assessment'!$A$4:$F$4,0),FALSE)","v":{"$error":"#N/A"}},{"$nulls":3},{"$f":"VLOOKUP(G71,'Risk Assessment'!$A$4:$F$10,MATCH(H71,'Risk Assessment'!$A$4:$F$4,0),FALSE)","v":{"$error":"#N/A"}}]
[{"$nulls":4},{"$f":"VLOOKUP(C72,'Risk Assessment'!$A$4:$F$10,MATCH(D72,'Risk Assessment'!$A$4:$F$4,0),FALSE)","v":{"$error":"#N/A"}},{"$nulls":3},{"$f":"VLOOKUP(G72,'Risk Assessment'!$A$4:$F$10,MATCH(H72,'Risk Assessment'!$A$4:$F$4,0),FALSE)","v":{"$error":"#N/A"}}]
[{"$nulls":4},{"$f":"VLOOKUP(C73,'Risk Assessment'!$A$4:$F$10,MATCH(D73,'Risk Assessment'!$A$4:$F$4,0),FALSE)","v":{"$error":"#N/A"}},{"$nulls":3},{"$f":"VLOOKUP(G73,'Risk Assessment'!$A$4:$F$10,MATCH(H73,'Risk Assessment'!$A$4:$F$4,0),FALSE)","v":{"$error":"#N/A"}}]
[{"$nulls":4},{"$f":"VLOOKUP(C74,'Risk Assessment'!$A$4:$F$10,MATCH(D74,'Risk Assessment'!$A$4:$F$4,0),FALSE)","v":{"$error":"#N/A"}},{"$nulls":3},{"$f":"VLOOKUP(G74,'Risk Assessment'!$A$4:$F$10,MATCH(H74,'Risk Assessment'!$A$4:$F$4,0),FALSE)","v":{"$error":"#N/A"}}]
[{"$nulls":4},{"$f":"VLOOKUP(C75,'Risk Assessment'!$A$4:$F$10,MATCH(D75,'Risk Assessment'!$A$4:$F$4,0),FALSE)","v":{"$error":"#N/A"}},{"$nulls":3},{"$f":"VLOOKUP(G75,'Risk Assessment'!$A$4:$F$10,MATCH(H75,'Risk Assessment'!$A$4:$F$4,0),FALSE)","v":{"$error":"#N/A"}}]
[{"$nulls":4},{"$f":"VLOOKUP(C76,'Risk Assessment'!$A$4:$F$10,MATCH(D76,'Risk Assessment'!$A$4:$F$4,0),FALSE)","v":{"$error":"#N/A"}},{"$nulls":3},{"$f":"VLOOKUP(G76,'Risk Assessment'!$A$4:$F$10,MATCH(H76,'Risk Assessment'!$A$4:$F$4,0),FALSE)","v":{"$error":"#N/A"}}]
[{"$nulls":4},{"$f":"VLOOKUP(C77,'Risk Assessment'!$A$4:$F$10,MATCH(D77,'Risk Assessment'!$A$4:$F$4,0),FALSE)","v":{"$error":"#N/A"}},{"$nulls":3},{"$f":"VLOOKUP(G77,'Risk Assessment'!$A$4:$F$10,MATCH(H77,'Risk Assessment'!$A$4:$F$4,0),FALSE)","v":{"$error":"#N/A"}}]

{"sheet":"Climbing Wall","index":5,"n_rows":77,"n_cols":9,"rows_kept":77}
{"$rows_empty":9}
[" HAZARD and RISK REGISTER ",null," WCC Practical Activities"]
["Refer to Hazard/Risk Management Procedure"]
[]
["Developed by: Matthew Smith Date: 25 May 2022."]
[" Approved by: Cody Blackler   Date: 26 July 2022"]
["Reviewed by: Cody Blackler and Matthew Smith  Date: 11 August 2022"]
[]
["(1) Identify all hazards, then determine a risk rating."]
["(2) Eliminate the risk. If not reasonably practicable then"]
["(3) Minimise the risk as far as reasonably practicable."]
["(4) Reassess and determine the residual risk"]
[]
["Where or what task?","Hazard and Harm?","Likelihood \n(Choose from drop list in cell)","Consequence \n(Choose from drop list in cell)","Rating","Action required to Eliminate (E) or Minimise (M). \n (controls, administration controls, personal protective equipment.)","Revised Likelihood","Revised Consequence","Residual Rating"]
["Climbing, Inspection","Fall from height: Incorrect attachment ","Very likely","Extreme",{"$f":"VLOOKUP(C23,'Risk Assessment'!$A$4:$F$10,MATCH(D23,'Risk Assessment'!$A$4:$F$4,0),FALSE)","v":25},"M: Harness, knot, carabiner, rope must be checked by instructor before leaving the ground.","Highly unlikely (rare)","Extreme",{"$f":"VLOOKUP(G23,'Risk Assessment'!$A$4:$F$10,MATCH(H23,'Risk Assessment'!$A$4:$F$4,0),FALSE)","v":5}]
["Climbing, Inspection","Fall from height: Faulty anchor points","Unlikely","Extreme",{"$f":"VLOOKUP(C24,'Risk Assessment'!$A$4:$F$10,MATCH(D24,'Risk Assessment'!$A$4:$F$4,0),FALSE)","v":10},"M: wall and associated parts checked every 3 months by WCC staff\nM: wall and associated parts checked by Technical advisor annually or bi-annually by manufacturer","Highly unlikely (rare)","Extreme",{"$f":"VLOOKUP(G24,'Risk Assessment'!$A$4:$F$10,MATCH(H24,'Risk Assessment'!$A$4:$F$4,0),FALSE)","v":5}]
["Climbing, Inspection","Fall from height: belayer inattention","Likely","Extreme",{"$f":"VLOOKUP(C25,'Risk Assessment'!$A$4:$F$10,MATCH(D25,'Risk Assessment'!$A$4:$F$4,0),FALSE)","v":20},"M: belayers to monitored by instructor\nM: belayers backed up by multiple belayers as deemed appropriate by instructor (Refer to SOP)","Highly unlikely (rare)","Extreme",{"$f":"VLOOKUP(G25,'Risk Assessment'!$A$4:$F$10,MATCH(H25,'Risk Assessment'!$A$4:$F$4,0),FALSE)","v":5}]
["Climbing ","Fall from height: Instructor inattention","Unlikely","Extreme",{"$f":"VLOOKUP(C26,'Risk Assessment'!$A$4:$F$10,MATCH(D26,'Risk Assessment'!$A$4:$F$4,0),FALSE)","v":10},"M: instructors to only operate a number of climbs that they are competent and confident to run\nM: instructors to instruct for no more than 2 hours at a time\nM: instructors are trained and signed off as competent before runnning activity without supervision","Highly unlikely (rare)","Extreme",{"$f":"VLOOKUP(G26,'Risk Assessment'!$A$4:$F$10,MATCH(H26,'Risk Assessment'!$A$4:$F$4,0),FALSE)","v":5}]
["Climbing ","Fall from height: climbing unattached ","Very likely","Extreme",{"$f":"VLOOKUP(C27,'Risk Assessment'!$A$4:$F$10,MATCH(D27,'Risk Assessment'!$A$4:$F$4,0),FALSE)","v":25},"E: Wall closed when instructor not present \nE: Signage to state wall is a \"no go\" zone wihtout instructor\nE: all attendies breifed upon arival to camp regarding all activities and where they can and cant go with or without Instructors or Adults/Leaders\nE: wall physically closed off by cover being attached to lower section of climing wall when not in use","Highly unlikely (rare)","Extreme",{"$f":"VLOOKUP(G27,'Risk Assessment'!$A$4:$F$10,MATCH(H27,'Risk Assessment'!$A$4:$F$4,0),FALSE)","v":5}]
["Climbing ","Fall from height: climbing unsupervised","Very likely","Extreme",{"$f":"VLOOKUP(C28,'Risk Assessment'!$A$4:$F$10,MATCH(D28,'Risk Assessment'!$A$4:$F$4,0),FALSE)","v":25},"E: Wall closed when instructor not present \nE: Signage to state wall is a \"no go\" zone wihtout instructor\nE: all attendies breifed upon arival to camp regarding all activities and where they can and cant go with or without Instructors or Adults/Leaders\nE: wall physically closed off by cover being attached to lower section of climing wall when not in use","Highly unlikely (rare)","Extreme",{"$f":"VLOOKUP(G28,'Risk Assessment'!$A$4:$F$10,MATCH(H28,'Risk Assessment'!$A$4:$F$4,0),FALSE)","v":5}]
["Climbing, Inspection","Fall from height: structural failure of belay device","Unlikely","Extreme",{"$f":"VLOOKUP(C29,'Risk Assessment'!$A$4:$F$10,MATCH(D29,'Risk Assessment'!$A$4:$F$4,0),FALSE)","v":10},"M: rixitrix checked in 3 monthly checks by WCC staff\nM: rixitrix checked annually by Technical advisor or bi-annually by wall manufacturer\nM: visual check done by instructor while setting up before each use \nM: in cases where rixitrix is substituted for another belay device, ensure all other belay devices are inspected in annual hardware inspection, retire as necessary","Highly unlikely (rare)","Extreme",{"$f":"VLOOKUP(G29,'Risk Assessment'!$A$4:$F$10,MATCH(H29,'Risk Assessment'!$A$4:$F$4,0),FALSE)","v":5}]
["Climbing, Inspection","Fall from height: rope failure","Moderate","Extreme",{"$f":"VLOOKUP(C30,'Risk Assessment'!$A$4:$F$10,MATCH(D30,'Risk Assessment'!$A$4:$F$4,0),FALSE)","v":15},"M: ropes inspected anually\nM: Records of rope age recorded and ropes retired as required\nM: only current ropes to be used on wall\nM: ropes checked for damage before use","Highly unlikely (rare)","Extreme",{"$f":"VLOOKUP(G30,'Risk Assessment'!$A$4:$F$10,MATCH(H30,'Risk Assessment'!$A$4:$F$4,0),FALSE)","v":5}]
["Climbing, Inspection","Fall from height: carabiner (or other hardware) failure ","Unlikely","Extreme",{"$f":"VLOOKUP(C31,'Risk Assessment'!$A$4:$F$10,MATCH(D31,'Risk Assessment'!$A$4:$F$4,0),FALSE)","v":10},"M: Records of hardware age recorded and retired as required \nM: hardware inspected anually \nM: hardware visually inspected before use\nM: all hardware is backed up ","Highly unlikely (rare)","Extreme",{"$f":"VLOOKUP(G31,'Risk Assessment'!$A$4:$F$10,MATCH(H31,'Risk Assessment'!$A$4:$F$4,0),FALSE)","v":5}]
["Climbing, Inspection","Fall from height: harness failure","Moderate","Extreme",{"$f":"VLOOKUP(C32,'Risk Assessment'!$A$4:$F$10,MATCH(D32,'Risk Assessment'!$A$4:$F$4,0),FALSE)","v":15},"M: Instruct students how to put on a harness \nM: Check harnesses before climbing \nM: Check and reset harnesses after each use \nM: Records of harnesses age recorded and retired as required\nM: Harnesses inspected anually","Highly unlikely (rare)","Extreme",{"$f":"VLOOKUP(G32,'Risk Assessment'!$A$4:$F$10,MATCH(H32,'Risk Assessment'!$A$4:$F$4,0),FALSE)","v":5}]
["Climbing, Inspection","Fall: loose holds ","Likely","Significant",{"$f":"VLOOKUP(C33,'Risk Assessment'!$A$4:$F$10,MATCH(D33,'Risk Assessment'!$A$4:$F$4,0),FALSE)","v":12},"M: Belay rope kept tight at all times \nM: if holds move then they are noted and tightened before next group ","Unlikely","Moderate",{"$f":"VLOOKUP(G33,'Risk Assessment'!$A$4:$F$10,MATCH(H33,'Risk Assessment'!$A$4:$F$4,0),FALSE)","v":4}]
["Climbing, Inspection","Fall: dirty holds","Unlikely","Significant",{"$f":"VLOOKUP(C34,'Risk Assessment'!$A$4:$F$10,MATCH(D34,'Risk Assessment'!$A$4:$F$4,0),FALSE)","v":6},"M: Belay rope kept tight at all times\nE: clean or replace dirty holds","Highly unlikely (rare)","Moderate",{"$f":"VLOOKUP(G34,'Risk Assessment'!$A$4:$F$10,MATCH(H34,'Risk Assessment'!$A$4:$F$4,0),FALSE)","v":2}]
["Climbing ","Fall: loose/inapropriate footware ","Moderate","Moderate",{"$f":"VLOOKUP(C35,'Risk Assessment'!$A$4:$F$10,MATCH(D35,'Risk Assessment'!$A$4:$F$4,0),FALSE)","v":6},"E: Check clients wear appropriate footware for climbing","Highly unlikely (rare)","Moderate",{"$f":"VLOOKUP(G35,'Risk Assessment'!$A$4:$F$10,MATCH(H35,'Risk Assessment'!$A$4:$F$4,0),FALSE)","v":2}]
["Climbing, Inspection ","Fall from height: belay rope not tight enough/unable to be pulled tight","Likely","Extreme",{"$f":"VLOOKUP(C36,'Risk Assessment'!$A$4:$F$10,MATCH(D36,'Risk Assessment'!$A$4:$F$4,0),FALSE)","v":20},"M: belayers to be monitored by instructor and adult/leader(s)\nM: instructor to check rope not jammed or twisted before attaching climber ","Highly unlikely (rare)","Extreme",{"$f":"VLOOKUP(G36,'Risk Assessment'!$A$4:$F$10,MATCH(H36,'Risk Assessment'!$A$4:$F$4,0),FALSE)","v":5}]
["Climbing, Instructing, Inspection","Injury: falling object  ","Unlikely","Significant",{"$f":"VLOOKUP(C37,'Risk Assessment'!$A$4:$F$10,MATCH(D37,'Risk Assessment'!$A$4:$F$4,0),FALSE)","v":6},"M: everyone on wall or on matted area below wall must wear a helmet\nM: all climbers to remove items from pockets\nM: items that must be carried must be secured in zip pocket or teathered \nM: wall holds checked every 3 months and holds tightened if movement is noticed. ","Highly unlikely (rare)","Moderate",{"$f":"VLOOKUP(G37,'Risk Assessment'!$A$4:$F$10,MATCH(H37,'Risk Assessment'!$A$4:$F$4,0),FALSE)","v":2}]
["Climbing","Injury: fingers caught in lead points used to attach climbing wall cover","Likely","Significant",{"$f":"VLOOKUP(C38,'Risk Assessment'!$A$4:$F$10,MATCH(D38,'Risk Assessment'!$A$4:$F$4,0),FALSE)","v":12},"M: Brief students not to put fingers in lead points\nM: remove unnecessary lead points","Highly unlikely (rare)","Significant",{"$f":"VLOOKUP(G38,'Risk Assessment'!$A$4:$F$10,MATCH(H38,'Risk Assessment'!$A$4:$F$4,0),FALSE)","v":3}]
["Climbing ","Injury: broken/sharp edges on holds or other parts of wall ","Very likely","Significant",{"$f":"VLOOKUP(C39,'Risk Assessment'!$A$4:$F$10,MATCH(D39,'Risk Assessment'!$A$4:$F$4,0),FALSE)","v":15},"M: wall is inspected every 3 months\nM: Broken holds are removed from the wall \nE: Climb not used until sharp edge is resolved","Highly unlikely (rare)","Insignificant",{"$f":"VLOOKUP(G39,'Risk Assessment'!$A$4:$F$10,MATCH(H39,'Risk Assessment'!$A$4:$F$4,0),FALSE)","v":1}]
["Climbing, Inspection","injury: grazing from coarse surface on wall or holds","Very likely","Insignificant",{"$f":"VLOOKUP(C40,'Risk Assessment'!$A$4:$F$10,MATCH(D40,'Risk Assessment'!$A$4:$F$4,0),FALSE)","v":5},"M: Brief students to be careful of wall surface when falling ","Likely","Insignificant",{"$f":"VLOOKUP(G40,'Risk Assessment'!$A$4:$F$10,MATCH(H40,'Risk Assessment'!$A$4:$F$4,0),FALSE)","v":4}]
["Climbing, Belaying, Inspection","injury: loose items caught or tangled","Unlikely","Extreme",{"$f":"VLOOKUP(C41,'Risk Assessment'!$A$4:$F$10,MATCH(D41,'Risk Assessment'!$A$4:$F$4,0),FALSE)","v":10},"E: loose items to be removed before climbing or belaying\nM: Jewlery to be tucked inside clothing or removed before climbing","Highly unlikely (rare)","Extreme",{"$f":"VLOOKUP(G41,'Risk Assessment'!$A$4:$F$10,MATCH(H41,'Risk Assessment'!$A$4:$F$4,0),FALSE)","v":5}]
["Climbing, Belaying","Injury: rope caught around body","Unlikely","Extreme",{"$f":"VLOOKUP(C42,'Risk Assessment'!$A$4:$F$10,MATCH(D42,'Risk Assessment'!$A$4:$F$4,0),FALSE)","v":10},"M: instuct belayers and climbers not to wrap the rope around body \nM: rope to be kept tight so as no slack can get tangled ","Highly unlikely (rare)","Extreme",{"$f":"VLOOKUP(G42,'Risk Assessment'!$A$4:$F$10,MATCH(H42,'Risk Assessment'!$A$4:$F$4,0),FALSE)","v":5}]
["Climbing, Belaying","Injury: rope burn ","Very likely","Moderate",{"$f":"VLOOKUP(C43,'Risk Assessment'!$A$4:$F$10,MATCH(D43,'Risk Assessment'!$A$4:$F$4,0),FALSE)","v":10},"M: Instruct belayers not to slide the rope through the hands\nM: Instruct climbers not to grab rope while being lowered","Moderate","Moderate",{"$f":"VLOOKUP(G43,'Risk Assessment'!$A$4:$F$10,MATCH(H43,'Risk Assessment'!$A$4:$F$4,0),FALSE)","v":6}]
["All Tasks","illness: sunburn","Very likely","Moderate",{"$f":"VLOOKUP(C44,'Risk Assessment'!$A$4:$F$10,MATCH(D44,'Risk Assessment'!$A$4:$F$4,0),FALSE)","v":10},"M: Sunsmart principles applied.\nM: Advise clients to wear sunhats and apply sunblock","Unlikely","Moderate",{"$f":"VLOOKUP(G44,'Risk Assessment'!$A$4:$F$10,MATCH(H44,'Risk Assessment'!$A$4:$F$4,0),FALSE)","v":4}]
["All Tasks","illness: exposure ","Unlikely","Extreme",{"$f":"VLOOKUP(C45,'Risk Assessment'!$A$4:$F$10,MATCH(D45,'Risk Assessment'!$A$4:$F$4,0),FALSE)","v":10},"M: Staff to recognise signs and symptoms of exposure illnesses (Heatstroke, Hypothermia, Hyperthermia and heat exhaustion)\nM: Advise clients of appropriate clothing for the activity and weather\nE: activity to be closed when exposure risk can not be effectivly managed (either through lack of appropriate client clothing or continually deteriorating weather. Note staff are expected to carry apropriate clothing for work in all conditions)","Highly unlikely (rare)","Extreme",{"$f":"VLOOKUP(G45,'Risk Assessment'!$A$4:$F$10,MATCH(H45,'Risk Assessment'!$A$4:$F$4,0),FALSE)","v":5}]
["Climbing, Inspection","illness: suspension trauma ","Unlikely","Extreme",{"$f":"VLOOKUP(C46,'Risk Assessment'!$A$4:$F$10,MATCH(D46,'Risk Assessment'!$A$4:$F$4,0),FALSE)","v":10},"M: Staff to recognise signs and symptoms of suspension trauma and understand appropriate first aid required\nM: anyone displaying symptoms to be brought down and harness removed \nM: staff to be mindful of time clients are suspended in harness","Highly unlikely (rare)","Extreme",{"$f":"VLOOKUP(G46,'Risk Assessment'!$A$4:$F$10,MATCH(H46,'Risk Assessment'!$A$4:$F$4,0),FALSE)","v":5}]
["Climbing","stress: forced to climb","Likely","Moderate",{"$f":"VLOOKUP(C47,'Risk Assessment'!$A$4:$F$10,MATCH(D47,'Risk Assessment'!$A$4:$F$4,0),FALSE)","v":8},"E: Challenge by choice: clients who do not wish to climb or do not wish to climb to the top must be allowed to not climb or to only climb part way. \nM: mild encoragement to try is ok however clients must make the choice themselves\nM: staff to encorage challenge by choice principles and encorage others in group (teachers, parents, peers, and other figures of authority within group) to do so as well\nE: Staff retain the ability to remove people from climbing group either temporarily or for the remainder of session for pressuring other clients, (Note: be mindful of using challenge by choice principles here too)","Highly unlikely (rare)","Insignificant",{"$f":"VLOOKUP(G47,'Risk Assessment'!$A$4:$F$10,MATCH(H47,'Risk Assessment'!$A$4:$F$4,0),FALSE)","v":1}]
["Climbing, Belaying, Observing ","injury: overexertion","Very likely","Moderate",{"$f":"VLOOKUP(C48,'Risk Assessment'!$A$4:$F$10,MATCH(D48,'Risk Assessment'!$A$4:$F$4,0),FALSE)","v":10},"M: Staff to monitor for signs and symptoms of overexertion and encourage clients to self manage \nM: Staff to encourage clients to rest as necessary ","Moderate","Moderate",{"$f":"VLOOKUP(G48,'Risk Assessment'!$A$4:$F$10,MATCH(H48,'Risk Assessment'!$A$4:$F$4,0),FALSE)","v":6}]
["Climbing","stress: stuck on wall","Likely","Significant",{"$f":"VLOOKUP(C49,'Risk Assessment'!$A$4:$F$10,MATCH(D49,'Risk Assessment'!$A$4:$F$4,0),FALSE)","v":12},"M: Instructor to explain safety systems and activity clearly in brief so as clients understand safety features.\nM: belayers to suggest possible moves\nM: encourage student to come down\nM: Instructors trained in rescue procedures\nM: Instructors talk through coming down","Unlikely","Significant",{"$f":"VLOOKUP(G49,'Risk Assessment'!$A$4:$F$10,MATCH(H49,'Risk Assessment'!$A$4:$F$4,0),FALSE)","v":6}]
["Climbing, Inspection","injury: limb caught in artificial crack right of climb 2","Unlikely","Major",{"$f":"VLOOKUP(C50,'Risk Assessment'!$A$4:$F$10,MATCH(D50,'Risk Assessment'!$A$4:$F$4,0),FALSE)","v":8},"M: instructors to encourage clients to be carefull when using crack as a hold\nM: instructors to be competent and confident with rescue procedures ","Highly unlikely (rare)","Major",{"$f":"VLOOKUP(G50,'Risk Assessment'!$A$4:$F$10,MATCH(H50,'Risk Assessment'!$A$4:$F$4,0),FALSE)","v":4}]
["Climbing ","injury: climber falling on another climber ","Likely","Major",{"$f":"VLOOKUP(C51,'Risk Assessment'!$A$4:$F$10,MATCH(D51,'Risk Assessment'!$A$4:$F$4,0),FALSE)","v":16},"E: One climber on each route at a time\nE: Climbs set so as to deter from climbing incorrect route \nE: Climbs colour co-ordinated so climbers can be told what colours to use and not use\nE: Climbs to stay appropriatly beneath pully for toprope so as to reduce potential of swing when climbers let go of wall ","Highly unlikely (rare)","Insignificant",{"$f":"VLOOKUP(G51,'Risk Assessment'!$A$4:$F$10,MATCH(H51,'Risk Assessment'!$A$4:$F$4,0),FALSE)","v":1}]
["Climbing ","injury: climber stepping on other climber ","Likely","Moderate",{"$f":"VLOOKUP(C52,'Risk Assessment'!$A$4:$F$10,MATCH(D52,'Risk Assessment'!$A$4:$F$4,0),FALSE)","v":8},"E: One climber on each route at a time\nE: Climbs set so as to deter from climbing incorrect route \nE: Climbs colour co-ordinated so climbers can be told what colours to use and not use\nE: Climbs to stay appropriatly beneath pully for toprope so as to reduce potential of swing when climbers let go of wall ","Highly unlikely (rare)","Insignificant",{"$f":"VLOOKUP(G52,'Risk Assessment'!$A$4:$F$10,MATCH(H52,'Risk Assessment'!$A$4:$F$4,0),FALSE)","v":1}]
["All Tasks","ground anchor structual failure","Unlikely","Extreme",{"$f":"VLOOKUP(C53,'Risk Assessment'!$A$4:$F$10,MATCH(D53,'Risk Assessment'!$A$4:$F$4,0),FALSE)","v":10},"M: Wall and associated parts (including ground anchors) checked every 3 months\nM: Wall and associated parts (including ground anchors) checked annually by technical advisor or bi-annually by wall manufacturer","Highly unlikely (rare)","Extreme",{"$f":"VLOOKUP(G53,'Risk Assessment'!$A$4:$F$10,MATCH(H53,'Risk Assessment'!$A$4:$F$4,0),FALSE)","v":5}]
["Climbing","swinging out and hitting wall when swinging back in","Very likely","Moderate",{"$f":"VLOOKUP(C54,'Risk Assessment'!$A$4:$F$10,MATCH(D54,'Risk Assessment'!$A$4:$F$4,0),FALSE)","v":10},"M: instruct users to watch out for the wall as they swing\nM: Instruct users to 'bounce' off wall with feet as they decend","Likely","Insignificant",{"$f":"VLOOKUP(G54,'Risk Assessment'!$A$4:$F$10,MATCH(H54,'Risk Assessment'!$A$4:$F$4,0),FALSE)","v":4}]
[{"$nulls":4},{"$f":"VLOOKUP(C55,'Risk Assessment'!$A$4:$F$10,MATCH(D55,'Risk Assessment'!$A$4:$F$4,0),FALSE)","v":{"$error":"#N/A"}},{"$nulls":3},{"$f":"VLOOKUP(G55,'Risk Assessment'!$A$4:$F$10,MATCH(H55,'Risk Assessment'!$A$4:$F$4,0),FALSE)","v":{"$error":"#N/A"}}]
[{"$nulls":4},{"$f":"VLOOKUP(C56,'Risk Assessment'!$A$4:$F$10,MATCH(D56,'Risk Assessment'!$A$4:$F$4,0),FALSE)","v":{"$error":"#N/A"}},{"$nulls":3},{"$f":"VLOOKUP(G56,'Risk Assessment'!$A$4:$F$10,MATCH(H56,'Risk Assessment'!$A$4:$F$4,0),FALSE)","v":{"$error":"#N/A"}}]
[{"$nulls":4},{"$f":"VLOOKUP(C57,'Risk Assessment'!$A$4:$F$10,MATCH(D57,'Risk Assessment'!$A$4:$F$4,0),FALSE)","v":{"$error":"#N/A"}},{"$nulls":3},{"$f":"VLOOKUP(G57,'Risk Assessment'!$A$4:$F$10,MATCH(H57,'Risk Assessment'!$A$4:$F$4,0),FALSE)","v":{"$error":"#N/A"}}]
[{"$nulls":4},{"$f":"VLOOKUP(C58,'Risk Assessment'!$A$4:$F$10,MATCH(D58,'Risk Assessment'!$A$4:$F$4,0),FALSE)","v":{"$error":"#N/A"}},{"$nulls":3},{"$f":"VLOOKUP(G58,'Risk Assessment'!$A$4:$F$10,MATCH(H58,'Risk Assessment'!$A$4:$F$4,0),FALSE)","v":{"$error":"#N/A"}}]
[{"$nulls":4},{"$f":"VLOOKUP(C59,'Risk Assessment'!$A$4:$F$10,MATCH(D59,'Risk Assessment'!$A$4:$F$4,0),FALSE)","v":{"$error":"#N/A"}},{"$nulls":3},{"$f":"VLOOKUP(G59,'Risk Assessment'!$A$4:$F$10,MATCH(H59,'Risk Assessment'!$A$4:$F$4,0),FALSE)","v":{"$error":"#N/A"}}]
[{"$nulls":4},{"$f":"VLOOKUP(C60,'Risk Assessment'!$A$4:$F$10,MATCH(D60,'Risk Assessment'!$A$4:$F$4,0),FALSE)","v":{"$error":"#N/A"}},{"$nulls":3},{"$f":"VLOOKUP(G60,'Risk Assessment'!$A$4:$F$10,MATCH(H60,'Risk Assessment'!$A$4:$F$4,0),FALSE)","v":{"$error":"#N/A"}}]
[{"$nulls":4},{"$f":"VLOOKUP(C61,'Risk Assessment'!$A$4:$F$10,MATCH(D61,'Risk Assessment'!$A$4:$F$4,0),FALSE)","v":{"$error":"#N/A"}},{"$nulls":3},{"$f":"VLOOKUP(G61,'Risk Assessment'!$A$4:$F$10,MATCH(H61,'Risk Assessment'!$A$4:$F$4,0),FALSE)","v":{"$error":"#N/A"}}]
[{"$nulls":4},{"$f":"VLOOKUP(C62,'Risk Assessment'!$A$4:$F$10,MATCH(D62,'Risk Assessment'!$A$4:$F$4,0),FALSE)","v":{"$error":"#N/A"}},{"$nulls":3},{"$f":"VLOOKUP(G62,'Risk Assessment'!$A$4:$F$10,MATCH(H62,'Risk Assessment'!$A$4:$F$4,0),FALSE)","v":{"$error":"#N/A"}}]
[{"$nulls":4},{"$f":"VLOOKUP(C63,'Risk Assessment'!$A$4:$F$10,MATCH(D63,'Risk Assessment'!$A$4:$F$4,0),FALSE)","v":{"$error":"#N/A"}},{"$nulls":3},{"$f":"VLOOKUP(G63,'Risk Assessment'!$A$4:$F$10,MATCH(H63,'Risk Assessment'!$A$4:$F$4,0),FALSE)","v":{"$error":"#N/A"}}]
[{"$nulls":4},{"$f":"VLOOKUP(C64,'Risk Assessment'!$A$4:$F$10,MATCH(D64,'Risk Assessment'!$A$4:$F$4,0),FALSE)","v":{"$error":"#N/A"}},{"$nulls":3},{"$f":"VLOOKUP(G64,'Risk Assessment'!$A$4:$F$10,MATCH(H64,'Risk Assessment'!$A$4:$F$4,0),FALSE)","v":{"$error":"#N/A"}}]
[{"$nulls":4},{"$f":"VLOOKUP(C65,'Risk Assessment'!$A$4:$F$10,MATCH(D65,'Risk Assessment'!$A$4:$F$4,0),FALSE)","v":{"$error":"#N/A"}},{"$nulls":3},{"$f":"VLOOKUP(G65,'Risk Assessment'!$A$4:$F$10,MATCH(H65,'Risk Assessment'!$A$4:$F$4,0),FALSE)","v":{"$error":"#N/A"}}]
[{"$nulls":4},{"$f":"VLOOKUP(C66,'Risk Assessment'!$A$4:$F$10,MATCH(D66,'Risk Assessment'!$A$4:$F$4,0),FALSE)","v":{"$error":"#N/A"}},{"$nulls":3},{"$f":"VLOOKUP(G66,'Risk Assessment'!$A$4:$F$10,MATCH(H66,'Risk Assessment'!$A$4:$F$4,0),FALSE)","v":{"$error":"#N/A"}}]
[{"$nulls":4},{"$f":"VLOOKUP(C67,'Risk Assessment'!$A$4:$F$10,MATCH(D67,'Risk Assessment'!$A$4:$F$4,0),FALSE)","v":{"$error":"#N/A"}},{"$nulls":3},{"$f":"VLOOKUP(G67,'Risk Assessment'!$A$4:$F$10,MATCH(H67,'Risk Assessment'!$A$4:$F$4,0),FALSE)","v":{"$error":"#N/A"}}]
[{"$nulls":4},{"$f":"VLOOKUP(C68,'Risk Assessment'!$A$4:$F$10,MATCH(D68,'Risk Assessment'!$A$4:$F$4,0),FALSE)","v":{"$error":"#N/A"}},{"$nulls":3},{"$f":"VLOOKUP(G68,'Risk Assessment'!$A$4:$F$10,MATCH(H68,'Risk Assessment'!$A$4:$F$4,0),FALSE)","v":{"$error":"#N/A"}}]
[{"$nulls":4},{"$f":"VLOOKUP(C69,'Risk Assessment'!$A$4:$F$10,MATCH(D69,'Risk Assessment'!$A$4:$F$4,0),FALSE)","v":{"$error":"#N/A"}},{"$nulls":3},{"$f":"VLOOKUP(G69,'Risk Assessment'!$A$4:$F$10,MATCH(H69,'Risk Assessment'!$A$4:$F$4,0),FALSE)","v":{"$error":"#N/A"}}]
[{"$nulls":4},{"$f":"VLOOKUP(C70,'Risk Assessment'!$A$4:$F$10,MATCH(D70,'Risk Assessment'!$A$4:$F$4,0),FALSE)","v":{"$error":"#N/A"}},{"$nulls":3},{"$f":"VLOOKUP(G70,'Risk Assessment'!$A$4:$F$10,MATCH(H70,'Risk Assessment'!$A$4:$F$4,0),FALSE)","v":{"$error":"#N/A"}}]
[{"$nulls":4},{"$f":"VLOOKUP(C71,'Risk Assessment'!$A$4:$F$10,MATCH(D71,'Risk Assessment'!$A$4:$F$4,0),FALSE)","v":{"$error":"#N/A"}},{"$nulls":3},{"$f":"VLOOKUP(G71,'Risk Assessment'!$A$4:$F$10,MATCH(H71,'Risk Assessment'!$A$4:$F$4,0),FALSE)","v":{"$error":"#N/A"}}]
[{"$nulls":4},{"$f":"VLOOKUP(C72,'Risk Assessment'!$A$4:$F$10,MATCH(D72,'Risk Assessment'!$A$4:$F$4,0),FALSE)","v":{"$error":"#N/A"}},{"$nulls":3},{"$f":"VLOOKUP(G72,'Risk Assessment'!$A$4:$F$10,MATCH(H72,'Risk Assessment'!$A$4:$F$4,0),FALSE)","v":{"$error":"#N/A"}}]
[{"$nulls":4},{"$f":"VLOOKUP(C73,'Risk Assessment'!$A$4:$F$10,MATCH(D73,'Risk Assessment'!$A$4:$F$4,0),FALSE)","v":{"$error":"#N/A"}},{"$nulls":3},{"$f":"VLOOKUP(G73,'Risk Assessment'!$A$4:$F$10,MATCH(H73,'Risk Assessment'!$A$4:$F$4,0),FALSE)","v":{"$error":"#N/A"}}]
[{"$nulls":4},{"$f":"VLOOKUP(C74,'Risk Assessment'!$A$4:$F$10,MATCH(D74,'Risk Assessment'!$A$4:$F$4,0),FALSE)","v":{"$error":"#N/A"}},{"$nulls":3},{"$f":"VLOOKUP(G74,'Risk Assessment'!$A$4:$F$10,MATCH(H74,'Risk Assessment'!$A$4:$F$4,0),FALSE)","v":{"$error":"#N/A"}}]
[{"$nulls":4},{"$f":"VLOOKUP(C75,'Risk Assessment'!$A$4:$F$10,MATCH(D75,'Risk Assessment'!$A$4:$F$4,0),FALSE)","v":{"$error":"#N/A"}},{"$nulls":3},{"$f":"VLOOKUP(G75,'Risk Assessment'!$A$4:$F$10,MATCH(H75,'Risk Assessment'!$A$4:$F$4,0),FALSE)","v":{"$error":"#N/A"}}]
[{"$nulls":4},{"$f":"VLOOKUP(C76,'Risk Assessment'!$A$4:$F$10,MATCH(D76,'Risk Assessment'!$A$4:$F$4,0),FALSE)","v":{"$error":"#N/A"}},{"$nulls":3},{"$f":"VLOOKUP(G76,'Risk Assessment'!$A$4:$F$10,MATCH(H76,'Risk Assessment'!$A$4:$F$4,0),FALSE)","v":{"$error":"#N/A"}}]
[{"$nulls":4},{"$f":"VLOOKUP(C77,'Risk Assessment'!$A$4:$F$10,MATCH(D77,'Risk Assessment'!$A$4:$F$4,0),FALSE)","v":{"$error":"#N/A"}},{"$nulls":3},{"$f":"VLOOKUP(G77,'Risk Assessment'!$A$4:$F$10,MATCH(H77,'Risk Assessment'!$A$4:$F$4,0),FALSE)","v":{"$error":"#N/A"}}]

{"sheet":"Zipline","index":6,"n_rows":76,"n_cols":9,"rows_kept":76}
{"$rows_empty":9}
[" HAZARD and RISK REGISTER ",null," WCC Practical Activities"]
["Refer to Hazard/Risk Management Procedure"]
[]
["Developed by: Matthew Smith Date: 25 May 2022."]
[" Approved by:  Cody Blackler Date: 27 July 2022 "]
["Reviewed by: Cody Blackler and Matthew Smith  Date: 11 August 2022"]
[]
["(1) Identify all hazards, then determine a risk rating."]
["(2) Eliminate the risk. If not reasonably practicable then"]
["(3) Minimise the risk as far as reasonably practicable."]
["(4) Reassess and determine the residual risk"]
[]
["Where or what task?","Hazard and Harm?","Likelihood \n(Choose from drop list in cell)","Consequence \n(Choose from drop list in cell)","Rating","Action required to Eliminate (E) or Minimise (M). \n (controls, administration controls, personal protective equipment.)","Revised Likelihood","Revised Consequence","Residual Rating"]
["Riding Zipline, inspection","Fall from height: trolley, harness or other attachment hardware failure. ","Unlikely","Extreme",{"$f":"VLOOKUP(C23,'Risk Assessment'!$A$4:$F$10,MATCH(D23,'Risk Assessment'!$A$4:$F$4,0),FALSE)","v":10},"M: regular inspections completed\nM: unsuitable equipment tagged out  ","Highly unlikely (rare)","Extreme",{"$f":"VLOOKUP(G23,'Risk Assessment'!$A$4:$F$10,MATCH(H23,'Risk Assessment'!$A$4:$F$4,0),FALSE)","v":5}]
["Riding Zipline","Fall from height: incorect attachment ","Unlikely","Extreme",{"$f":"VLOOKUP(C24,'Risk Assessment'!$A$4:$F$10,MATCH(D24,'Risk Assessment'!$A$4:$F$4,0),FALSE)","v":10},"M: instructors are trained and signed off as comnpetent before being allowed to attach clients themselves \nM: instructors are trained to triple squeese and tug test carabiners attached to ensure they are correctly placed ","Highly unlikely (rare)","Extreme",{"$f":"VLOOKUP(G24,'Risk Assessment'!$A$4:$F$10,MATCH(H24,'Risk Assessment'!$A$4:$F$4,0),FALSE)","v":5}]
["Waiting for turn, instructing, being attached to cable, inspection","Fall from loading platform ","Moderate","Extreme",{"$f":"VLOOKUP(C25,'Risk Assessment'!$A$4:$F$10,MATCH(D25,'Risk Assessment'!$A$4:$F$4,0),FALSE)","v":15},"M: all people at top of tower to be attached to an anchor point via a tether unless attached to their zipline trolley\nM: all doing up and undoing of attachments to be done by an instructor","Highly unlikely (rare)","Extreme",{"$f":"VLOOKUP(G25,'Risk Assessment'!$A$4:$F$10,MATCH(H25,'Risk Assessment'!$A$4:$F$4,0),FALSE)","v":5}]
["Riding Zipline","Fall from height: cable failure","Unlikely","Extreme",{"$f":"VLOOKUP(C26,'Risk Assessment'!$A$4:$F$10,MATCH(D26,'Risk Assessment'!$A$4:$F$4,0),FALSE)","v":10},"M: all aspects of the zipline are regularly checked and faults reported ","Highly unlikely (rare)","Extreme",{"$f":"VLOOKUP(G26,'Risk Assessment'!$A$4:$F$10,MATCH(H26,'Risk Assessment'!$A$4:$F$4,0),FALSE)","v":5}]
["Waiting for turn, climbing tower, instructing, being attached to cable,inspection","Fall through platform","Likely","Moderate",{"$f":"VLOOKUP(C27,'Risk Assessment'!$A$4:$F$10,MATCH(D27,'Risk Assessment'!$A$4:$F$4,0),FALSE)","v":8},"M: tower regularly inspected floorboards noticed to be damaged will be replaced before use","Unlikely","Insignificant",{"$f":"VLOOKUP(G27,'Risk Assessment'!$A$4:$F$10,MATCH(H27,'Risk Assessment'!$A$4:$F$4,0),FALSE)","v":2}]
["ascending/descending tower","hitting head climbing through platforms ","Likely","Moderate",{"$f":"VLOOKUP(C28,'Risk Assessment'!$A$4:$F$10,MATCH(D28,'Risk Assessment'!$A$4:$F$4,0),FALSE)","v":8},"M: Foam padding added to points likely/possible to hit head while climbing \nM: Helmets worn climbing tower \nM: users briefed to climb carefully","Unlikely","Insignificant",{"$f":"VLOOKUP(G28,'Risk Assessment'!$A$4:$F$10,MATCH(H28,'Risk Assessment'!$A$4:$F$4,0),FALSE)","v":2}]
["Riding Zipline, inspection","collision with surrounding objects","Likely","Significant",{"$f":"VLOOKUP(C29,'Risk Assessment'!$A$4:$F$10,MATCH(D29,'Risk Assessment'!$A$4:$F$4,0),FALSE)","v":12},"M: Zipline not run in high winds (winds where tree movement becomes too close to zipline path\nM: area around zipline path roped off and signage in place to warn people to stay clear\nM: instructors to complete a visual check of the zipline path before releasing client \nM: following high winds inspection of surrounding trees is completed before zipline is to be used","Highly unlikely (rare)","Significant",{"$f":"VLOOKUP(G29,'Risk Assessment'!$A$4:$F$10,MATCH(H29,'Risk Assessment'!$A$4:$F$4,0),FALSE)","v":3}]
["Riding Zipline, inspection","trees falling on cable ","Unlikely","Extreme",{"$f":"VLOOKUP(C30,'Risk Assessment'!$A$4:$F$10,MATCH(D30,'Risk Assessment'!$A$4:$F$4,0),FALSE)","v":10},"M: trees checked for signs of damage every six months and following any high wind events \nM: Zipline not run in high winds (winds where tree movement becomes too close to zipline path","Highly unlikely (rare)","Extreme",{"$f":"VLOOKUP(G30,'Risk Assessment'!$A$4:$F$10,MATCH(H30,'Risk Assessment'!$A$4:$F$4,0),FALSE)","v":5}]
["Riding Zipline","Stress: forced to participate","Moderate","Moderate",{"$f":"VLOOKUP(C31,'Risk Assessment'!$A$4:$F$10,MATCH(D31,'Risk Assessment'!$A$4:$F$4,0),FALSE)","v":6},"E: Challenge by choice: clients who do not wish to ride the zipline must be allowed to not ride the zipline. \nM: mild encouragement to try is ok however clients must make the choice themselves\nM: staff to encourage challenge by choice principles and encourage others in group (teachers, parents, peers, and other figures of authority within group) to do so as well\nE: Staff retain the ability to remove people from zipline group either temporarily or for the remainder of session for pressuring other clients, (Note: be mindful of using challenge by choice principles here too)","Highly unlikely (rare)","Insignificant",{"$f":"VLOOKUP(G31,'Risk Assessment'!$A$4:$F$10,MATCH(H31,'Risk Assessment'!$A$4:$F$4,0),FALSE)","v":1}]
["Riding Zipline","collision with other riders","Moderate","Significant",{"$f":"VLOOKUP(C32,'Risk Assessment'!$A$4:$F$10,MATCH(D32,'Risk Assessment'!$A$4:$F$4,0),FALSE)","v":9},"E: only one rider on the zipline at a time\nM: next rider may be attached to zipline ready for their turn but must remain attached to a safety untill previous rider is detached and clear of the zipline ","Highly unlikely (rare)","Significant",{"$f":"VLOOKUP(G32,'Risk Assessment'!$A$4:$F$10,MATCH(H32,'Risk Assessment'!$A$4:$F$4,0),FALSE)","v":3}]
["ascending/descending tower, inspection","falling down stairs","Moderate","Major",{"$f":"VLOOKUP(C33,'Risk Assessment'!$A$4:$F$10,MATCH(D33,'Risk Assessment'!$A$4:$F$4,0),FALSE)","v":12},"M: users briefed to climb carefully\nM: opening to climb down stairway kept to minimal size to reduce chance of someone stepping into it unexpectedly \nM: maximum 2 people climbing tower at a time reduces chance of users distracting each other from climbing safely ","Highly unlikely (rare)","Major",{"$f":"VLOOKUP(G33,'Risk Assessment'!$A$4:$F$10,MATCH(H33,'Risk Assessment'!$A$4:$F$4,0),FALSE)","v":4}]
["All tasks","structual failure of tower","Unlikely","Extreme",{"$f":"VLOOKUP(C34,'Risk Assessment'!$A$4:$F$10,MATCH(D34,'Risk Assessment'!$A$4:$F$4,0),FALSE)","v":10},"M: structure is briefly inspected each use\nM: structure is inspected in depth every 6 months\nM: annual technical advisor inspection","Highly unlikely (rare)","Extreme",{"$f":"VLOOKUP(G34,'Risk Assessment'!$A$4:$F$10,MATCH(H34,'Risk Assessment'!$A$4:$F$4,0),FALSE)","v":5}]
["Riding Zipline, inspection","injury from impact with ground on landing","Moderate","Moderate",{"$f":"VLOOKUP(C35,'Risk Assessment'!$A$4:$F$10,MATCH(D35,'Risk Assessment'!$A$4:$F$4,0),FALSE)","v":6},"M: advise all users to try run up ramp at end untill weight is off their harness \nM: adults/people thought likley to hit ground harder are re advised at top of zipline and given advice on how to absorb the impact \nM: all users must wear close-toed shoes","Unlikely","Moderate",{"$f":"VLOOKUP(G35,'Risk Assessment'!$A$4:$F$10,MATCH(H35,'Risk Assessment'!$A$4:$F$4,0),FALSE)","v":4}]
["Riding Zipline, inspection","loose item entanglement ","Unlikely","Extreme",{"$f":"VLOOKUP(C36,'Risk Assessment'!$A$4:$F$10,MATCH(D36,'Risk Assessment'!$A$4:$F$4,0),FALSE)","v":10},"E: loose items to be removed before riding the zipline\nM: Jewllery to be tucked inside clothing or removed before riding the zipline","Highly unlikely (rare)","Extreme",{"$f":"VLOOKUP(G36,'Risk Assessment'!$A$4:$F$10,MATCH(H36,'Risk Assessment'!$A$4:$F$4,0),FALSE)","v":5}]
["Riding Zipline","suspension trauma","Unlikely","Extreme",{"$f":"VLOOKUP(C37,'Risk Assessment'!$A$4:$F$10,MATCH(D37,'Risk Assessment'!$A$4:$F$4,0),FALSE)","v":10},"M: 6 monthly emergency rescue training to ensure rescues are done in a suitable time frame","Highly unlikely (rare)","Extreme",{"$f":"VLOOKUP(G37,'Risk Assessment'!$A$4:$F$10,MATCH(H37,'Risk Assessment'!$A$4:$F$4,0),FALSE)","v":5}]
["All tasks","sunburn","Very likely","Moderate",{"$f":"VLOOKUP(C38,'Risk Assessment'!$A$4:$F$10,MATCH(D38,'Risk Assessment'!$A$4:$F$4,0),FALSE)","v":10},"M: Sunsmart principles applied.\nM: Advise clients to wear sunhats and apply sunblock","Unlikely","Moderate",{"$f":"VLOOKUP(G38,'Risk Assessment'!$A$4:$F$10,MATCH(H38,'Risk Assessment'!$A$4:$F$4,0),FALSE)","v":4}]
["All tasks","Exposure","Unlikely","Extreme",{"$f":"VLOOKUP(C39,'Risk Assessment'!$A$4:$F$10,MATCH(D39,'Risk Assessment'!$A$4:$F$4,0),FALSE)","v":10},"M: Staff to recognise signs and symptoms of exposure illnesses (Heatstroke, Hypothermia, Hyperthermia and heat exhaustion)\nM: Advise clients of appropriate clothing for the activity and weather\nE: activity to be closed when exposure risk can not be effectivly managed (either through lack of appropriate client clothing or continually deteriorating weather. Note staff are expected to carry apropriate clothing for work in all conditions)","Highly unlikely (rare)","Extreme",{"$f":"VLOOKUP(G39,'Risk Assessment'!$A$4:$F$10,MATCH(H39,'Risk Assessment'!$A$4:$F$4,0),FALSE)","v":5}]
["Spectating, assisting staff with equipment/unloading, Climbing tower","injured by dropped items","Likely","Significant",{"$f":"VLOOKUP(C40,'Risk Assessment'!$A$4:$F$10,MATCH(D40,'Risk Assessment'!$A$4:$F$4,0),FALSE)","v":12},"E:  no users to be below zipline, tower or haul rope\nE:  ensure users have emptied pockets before climbing tower","Highly unlikely (rare)","Significant",{"$f":"VLOOKUP(G40,'Risk Assessment'!$A$4:$F$10,MATCH(H40,'Risk Assessment'!$A$4:$F$4,0),FALSE)","v":3}]
["Riding Zipline, inspection","injury from touching cable or trolley while flying ","Unlikely","Major",{"$f":"VLOOKUP(C41,'Risk Assessment'!$A$4:$F$10,MATCH(D41,'Risk Assessment'!$A$4:$F$4,0),FALSE)","v":8},"E: length of attachments prevents most users from reaching cable\nM: brief any users who appear to be able to reach, not to touch trolley or cable\n","Highly unlikely (rare)","Moderate",{"$f":"VLOOKUP(G41,'Risk Assessment'!$A$4:$F$10,MATCH(H41,'Risk Assessment'!$A$4:$F$4,0),FALSE)","v":2}]
["Assisting staff unloading, instructing, being attached to cable , inspection","hitting head on cable","Likely","Moderate",{"$f":"VLOOKUP(C42,'Risk Assessment'!$A$4:$F$10,MATCH(D42,'Risk Assessment'!$A$4:$F$4,0),FALSE)","v":8},"M: all users to wear helmets\nM: brief all users/ adult/leaders to watch out for cable \nM: cable at detachment end is too low to hit people in the head easily\nM: instructors at attachment end to wear helmets and to be aware of cable ","Unlikely","Moderate",{"$f":"VLOOKUP(G42,'Risk Assessment'!$A$4:$F$10,MATCH(H42,'Risk Assessment'!$A$4:$F$4,0),FALSE)","v":4}]
["Assisting staff with gear","haul rope dropped on head ","Likely","Moderate",{"$f":"VLOOKUP(C43,'Risk Assessment'!$A$4:$F$10,MATCH(D43,'Risk Assessment'!$A$4:$F$4,0),FALSE)","v":8},"E:  rope stops above head height\nM: brief adults/leaders not to stand under haul rope","Highly unlikely (rare)","Moderate",{"$f":"VLOOKUP(G43,'Risk Assessment'!$A$4:$F$10,MATCH(H43,'Risk Assessment'!$A$4:$F$4,0),FALSE)","v":2}]
["Assisting staff with gear","Equipment dropped attached to haul rope","Likely","Major",{"$f":"VLOOKUP(C44,'Risk Assessment'!$A$4:$F$10,MATCH(D44,'Risk Assessment'!$A$4:$F$4,0),FALSE)","v":16},"M: brief adults/leaders not to stand under haul rope\nM: all equipment at top of tower is always clipped on to tower to avoid being dropped","Highly unlikely (rare)","Major",{"$f":"VLOOKUP(G44,'Risk Assessment'!$A$4:$F$10,MATCH(H44,'Risk Assessment'!$A$4:$F$4,0),FALSE)","v":4}]
["All tasks on tower","tripping over protruding screw in decking on tower ","Moderate","Major",{"$f":"VLOOKUP(C45,'Risk Assessment'!$A$4:$F$10,MATCH(D45,'Risk Assessment'!$A$4:$F$4,0),FALSE)","v":12},"M: screw to be fixed at next oportunity \nM: breif people to stay clear of screw \nM: all people to be teathered to tower ","Highly unlikely (rare)","Significant",{"$f":"VLOOKUP(G45,'Risk Assessment'!$A$4:$F$10,MATCH(H45,'Risk Assessment'!$A$4:$F$4,0),FALSE)","v":3}]
[{"$nulls":4},{"$f":"VLOOKUP(C46,'Risk Assessment'!$A$4:$F$10,MATCH(D46,'Risk Assessment'!$A$4:$F$4,0),FALSE)","v":{"$error":"#N/A"}},{"$nulls":3},{"$f":"VLOOKUP(G46,'Risk Assessment'!$A$4:$F$10,MATCH(H46,'Risk Assessment'!$A$4:$F$4,0),FALSE)","v":{"$error":"#N/A"}}]
[{"$nulls":4},{"$f":"VLOOKUP(C47,'Risk Assessment'!$A$4:$F$10,MATCH(D47,'Risk Assessment'!$A$4:$F$4,0),FALSE)","v":{"$error":"#N/A"}},{"$nulls":3},{"$f":"VLOOKUP(G47,'Risk Assessment'!$A$4:$F$10,MATCH(H47,'Risk Assessment'!$A$4:$F$4,0),FALSE)","v":{"$error":"#N/A"}}]
[{"$nulls":4},{"$f":"VLOOKUP(C48,'Risk Assessment'!$A$4:$F$10,MATCH(D48,'Risk Assessment'!$A$4:$F$4,0),FALSE)","v":{"$error":"#N/A"}},{"$nulls":3},{"$f":"VLOOKUP(G48,'Risk Assessment'!$A$4:$F$10,MATCH(H48,'Risk Assessment'!$A$4:$F$4,0),FALSE)","v":{"$error":"#N/A"}}]
[{"$nulls":4},{"$f":"VLOOKUP(C49,'Risk Assessment'!$A$4:$F$10,MATCH(D49,'Risk Assessment'!$A$4:$F$4,0),FALSE)","v":{"$error":"#N/A"}},{"$nulls":3},{"$f":"VLOOKUP(G49,'Risk Assessment'!$A$4:$F$10,MATCH(H49,'Risk Assessment'!$A$4:$F$4,0),FALSE)","v":{"$error":"#N/A"}}]
[{"$nulls":4},{"$f":"VLOOKUP(C50,'Risk Assessment'!$A$4:$F$10,MATCH(D50,'Risk Assessment'!$A$4:$F$4,0),FALSE)","v":{"$error":"#N/A"}},{"$nulls":3},{"$f":"VLOOKUP(G50,'Risk Assessment'!$A$4:$F$10,MATCH(H50,'Risk Assessment'!$A$4:$F$4,0),FALSE)","v":{"$error":"#N/A"}}]
[{"$nulls":4},{"$f":"VLOOKUP(C51,'Risk Assessment'!$A$4:$F$10,MATCH(D51,'Risk Assessment'!$A$4:$F$4,0),FALSE)","v":{"$error":"#N/A"}},{"$nulls":3},{"$f":"VLOOKUP(G51,'Risk Assessment'!$A$4:$F$10,MATCH(H51,'Risk Assessment'!$A$4:$F$4,0),FALSE)","v":{"$error":"#N/A"}}]
[{"$nulls":4},{"$f":"VLOOKUP(C52,'Risk Assessment'!$A$4:$F$10,MATCH(D52,'Risk Assessment'!$A$4:$F$4,0),FALSE)","v":{"$error":"#N/A"}},{"$nulls":3},{"$f":"VLOOKUP(G52,'Risk Assessment'!$A$4:$F$10,MATCH(H52,'Risk Assessment'!$A$4:$F$4,0),FALSE)","v":{"$error":"#N/A"}}]
[{"$nulls":4},{"$f":"VLOOKUP(C53,'Risk Assessment'!$A$4:$F$10,MATCH(D53,'Risk Assessment'!$A$4:$F$4,0),FALSE)","v":{"$error":"#N/A"}},{"$nulls":3},{"$f":"VLOOKUP(G53,'Risk Assessment'!$A$4:$F$10,MATCH(H53,'Risk Assessment'!$A$4:$F$4,0),FALSE)","v":{"$error":"#N/A"}}]
[{"$nulls":4},{"$f":"VLOOKUP(C54,'Risk Assessment'!$A$4:$F$10,MATCH(D54,'Risk Assessment'!$A$4:$F$4,0),FALSE)","v":{"$error":"#N/A"}},{"$nulls":3},{"$f":"VLOOKUP(G54,'Risk Assessment'!$A$4:$F$10,MATCH(H54,'Risk Assessment'!$A$4:$F$4,0),FALSE)","v":{"$error":"#N/A"}}]
[{"$nulls":4},{"$f":"VLOOKUP(C55,'Risk Assessment'!$A$4:$F$10,MATCH(D55,'Risk Assessment'!$A$4:$F$4,0),FALSE)","v":{"$error":"#N/A"}},{"$nulls":3},{"$f":"VLOOKUP(G55,'Risk Assessment'!$A$4:$F$10,MATCH(H55,'Risk Assessment'!$A$4:$F$4,0),FALSE)","v":{"$error":"#N/A"}}]
[{"$nulls":4},{"$f":"VLOOKUP(C56,'Risk Assessment'!$A$4:$F$10,MATCH(D56,'Risk Assessment'!$A$4:$F$4,0),FALSE)","v":{"$error":"#N/A"}},{"$nulls":3},{"$f":"VLOOKUP(G56,'Risk Assessment'!$A$4:$F$10,MATCH(H56,'Risk Assessment'!$A$4:$F$4,0),FALSE)","v":{"$error":"#N/A"}}]
[{"$nulls":4},{"$f":"VLOOKUP(C57,'Risk Assessment'!$A$4:$F$10,MATCH(D57,'Risk Assessment'!$A$4:$F$4,0),FALSE)","v":{"$error":"#N/A"}},{"$nulls":3},{"$f":"VLOOKUP(G57,'Risk Assessment'!$A$4:$F$10,MATCH(H57,'Risk Assessment'!$A$4:$F$4,0),FALSE)","v":{"$error":"#N/A"}}]
[{"$nulls":4},{"$f":"VLOOKUP(C58,'Risk Assessment'!$A$4:$F$10,MATCH(D58,'Risk Assessment'!$A$4:$F$4,0),FALSE)","v":{"$error":"#N/A"}},{"$nulls":3},{"$f":"VLOOKUP(G58,'Risk Assessment'!$A$4:$F$10,MATCH(H58,'Risk Assessment'!$A$4:$F$4,0),FALSE)","v":{"$error":"#N/A"}}]
[{"$nulls":4},{"$f":"VLOOKUP(C59,'Risk Assessment'!$A$4:$F$10,MATCH(D59,'Risk Assessment'!$A$4:$F$4,0),FALSE)","v":{"$error":"#N/A"}},{"$nulls":3},{"$f":"VLOOKUP(G59,'Risk Assessment'!$A$4:$F$10,MATCH(H59,'Risk Assessment'!$A$4:$F$4,0),FALSE)","v":{"$error":"#N/A"}}]
[{"$nulls":4},{"$f":"VLOOKUP(C60,'Risk Assessment'!$A$4:$F$10,MATCH(D60,'Risk Assessment'!$A$4:$F$4,0),FALSE)","v":{"$error":"#N/A"}},{"$nulls":3},{"$f":"VLOOKUP(G60,'Risk Assessment'!$A$4:$F$10,MATCH(H60,'Risk Assessment'!$A$4:$F$4,0),FALSE)","v":{"$error":"#N/A"}}]
[{"$nulls":4},{"$f":"VLOOKUP(C61,'Risk Assessment'!$A$4:$F$10,MATCH(D61,'Risk Assessment'!$A$4:$F$4,0),FALSE)","v":{"$error":"#N/A"}},{"$nulls":3},{"$f":"VLOOKUP(G61,'Risk Assessment'!$A$4:$F$10,MATCH(H61,'Risk Assessment'!$A$4:$F$4,0),FALSE)","v":{"$error":"#N/A"}}]
[{"$nulls":4},{"$f":"VLOOKUP(C62,'Risk Assessment'!$A$4:$F$10,MATCH(D62,'Risk Assessment'!$A$4:$F$4,0),FALSE)","v":{"$error":"#N/A"}},{"$nulls":3},{"$f":"VLOOKUP(G62,'Risk Assessment'!$A$4:$F$10,MATCH(H62,'Risk Assessment'!$A$4:$F$4,0),FALSE)","v":{"$error":"#N/A"}}]
[{"$nulls":4},{"$f":"VLOOKUP(C63,'Risk Assessment'!$A$4:$F$10,MATCH(D63,'Risk Assessment'!$A$4:$F$4,0),FALSE)","v":{"$error":"#N/A"}},{"$nulls":3},{"$f":"VLOOKUP(G63,'Risk Assessment'!$A$4:$F$10,MATCH(H63,'Risk Assessment'!$A$4:$F$4,0),FALSE)","v":{"$error":"#N/A"}}]
[{"$nulls":4},{"$f":"VLOOKUP(C64,'Risk Assessment'!$A$4:$F$10,MATCH(D64,'Risk Assessment'!$A$4:$F$4,0),FALSE)","v":{"$error":"#N/A"}},{"$nulls":3},{"$f":"VLOOKUP(G64,'Risk Assessment'!$A$4:$F$10,MATCH(H64,'Risk Assessment'!$A$4:$F$4,0),FALSE)","v":{"$error":"#N/A"}}]
[{"$nulls":4},{"$f":"VLOOKUP(C65,'Risk Assessment'!$A$4:$F$10,MATCH(D65,'Risk Assessment'!$A$4:$F$4,0),FALSE)","v":{"$error":"#N/A"}},{"$nulls":3},{"$f":"VLOOKUP(G65,'Risk Assessment'!$A$4:$F$10,MATCH(H65,'Risk Assessment'!$A$4:$F$4,0),FALSE)","v":{"$error":"#N/A"}}]
[{"$nulls":4},{"$f":"VLOOKUP(C66,'Risk Assessment'!$A$4:$F$10,MATCH(D66,'Risk Assessment'!$A$4:$F$4,0),FALSE)","v":{"$error":"#N/A"}},{"$nulls":3},{"$f":"VLOOKUP(G66,'Risk Assessment'!$A$4:$F$10,MATCH(H66,'Risk Assessment'!$A$4:$F$4,0),FALSE)","v":{"$error":"#N/A"}}]
[{"$nulls":4},{"$f":"VLOOKUP(C67,'Risk Assessment'!$A$4:$F$10,MATCH(D67,'Risk Assessment'!$A$4:$F$4,0),FALSE)","v":{"$error":"#N/A"}},{"$nulls":3},{"$f":"VLOOKUP(G67,'Risk Assessment'!$A$4:$F$10,MATCH(H67,'Risk Assessment'!$A$4:$F$4,0),FALSE)","v":{"$error":"#N/A"}}]
[{"$nulls":4},{"$f":"VLOOKUP(C68,'Risk Assessment'!$A$4:$F$10,MATCH(D68,'Risk Assessment'!$A$4:$F$4,0),FALSE)","v":{"$error":"#N/A"}},{"$nulls":3},{"$f":"VLOOKUP(G68,'Risk Assessment'!$A$4:$F$10,MATCH(H68,'Risk Assessment'!$A$4:$F$4,0),FALSE)","v":{"$error":"#N/A"}}]
[{"$nulls":4},{"$f":"VLOOKUP(C69,'Risk Assessment'!$A$4:$F$10,MATCH(D69,'Risk Assessment'!$A$4:$F$4,0),FALSE)","v":{"$error":"#N/A"}},{"$nulls":3},{"$f":"VLOOKUP(G69,'Risk Assessment'!$A$4:$F$10,MATCH(H69,'Risk Assessment'!$A$4:$F$4,0),FALSE)","v":{"$error":"#N/A"}}]
[{"$nulls":4},{"$f":"VLOOKUP(C70,'Risk Assessment'!$A$4:$F$10,MATCH(D70,'Risk Assessment'!$A$4:$F$4,0),FALSE)","v":{"$error":"#N/A"}},{"$nulls":3},{"$f":"VLOOKUP(G70,'Risk Assessment'!$A$4:$F$10,MATCH(H70,'Risk Assessment'!$A$4:$F$4,0),FALSE)","v":{"$error":"#N/A"}}]
[{"$nulls":4},{"$f":"VLOOKUP(C71,'Risk Assessment'!$A$4:$F$10,MATCH(D71,'Risk Assessment'!$A$4:$F$4,0),FALSE)","v":{"$error":"#N/A"}},{"$nulls":3},{"$f":"VLOOKUP(G71,'Risk Assessment'!$A$4:$F$10,MATCH(H71,'Risk Assessment'!$A$4:$F$4,0),FALSE)","v":{"$error":"#N/A"}}]
[{"$nulls":4},{"$f":"VLOOKUP(C72,'Risk Assessment'!$A$4:$F$10,MATCH(D72,'Risk Assessment'!$A$4:$F$4,0),FALSE)","v":{"$error":"#N/A"}},{"$nulls":3},{"$f":"VLOOKUP(G72,'Risk Assessment'!$A$4:$F$10,MATCH(H72,'Risk Assessment'!$A$4:$F$4,0),FALSE)","v":{"$error":"#N/A"}}]
[{"$nulls":4},{"$f":"VLOOKUP(C73,'Risk Assessment'!$A$4:$F$10,MATCH(D73,'Risk Assessment'!$A$4:$F$4,0),FALSE)","v":{"$error":"#N/A"}},{"$nulls":3},{"$f":"VLOOKUP(G73,'Risk Assessment'!$A$4:$F$10,MATCH(H73,'Risk Assessment'!$A$4:$F$4,0),FALSE)","v":{"$error":"#N/A"}}]
[{"$nulls":4},{"$f":"VLOOKUP(C74,'Risk Assessment'!$A$4:$F$10,MATCH(D74,'Risk Assessment'!$A$4:$F$4,0),FALSE)","v":{"$error":"#N/A"}},{"$nulls":3},{"$f":"VLOOKUP(G74,'Risk Assessment'!$A$4:$F$10,MATCH(H74,'Risk Assessment'!$A$4:$F$4,0),FALSE)","v":{"$error":"#N/A"}}]
[{"$nulls":4},{"$f":"VLOOKUP(C75,'Risk Assessment'!$A$4:$F$10,MATCH(D75,'Risk Assessment'!$A$4:$F$4,0),FALSE)","v":{"$error":"#N/A"}},{"$nulls":3},{"$f":"VLOOKUP(G75,'Risk Assessment'!$A$4:$F$10,MATCH(H75,'Risk Assessment'!$A$4:$F$4,0),FALSE)","v":{"$error":"#N/A"}}]
[{"$nulls":4},{"$f":"VLOOKUP(C76,'Risk Assessment'!$A$4:$F$10,MATCH(D76,'Risk Assessment'!$A$4:$F$4,0),FALSE)","v":{"$error":"#N/A"}},{"$nulls":3},{"$f":"VLOOKUP(G76,'Risk Assessment'!$A$4:$F$10,MATCH(H76,'Risk Assessment'!$A$4:$F$4,0),FALSE)","v":{"$error":"#N/A"}}]

{"sheet":"Go-Kart","index":7,"n_rows":77,"n_cols":9,"rows_kept":77}
{"$rows_empty":9}
[" HAZARD and RISK REGISTER ",null," WCC Practical Activities"]
["Refer to Hazard/Risk Management Procedure"]
[]
["Developed by: Matthew Smith Date: 25 May 2022."]
[" Approved by:  Cody Blackler Date: 28 July 2022"]
["Reviewed by: Cody Blackler and Matthew Smith  Date: 11 August 2022"]
[]
["(1) Identify all hazards, then determine a risk rating."]
["(2) Eliminate the risk. If not reasonably practicable then"]
["(3) Minimise the risk as far as reasonably practicable."]
["(4) Reassess and determine the residual risk"]
[]
["Where or what task?","Hazard and Harm?","Likelihood \n(Choose from drop list in cell)","Consequence \n(Choose from drop list in cell)","Rating","Action required to Eliminate (E) or Minimise (M). \n (controls, administration controls, personal protective equipment.)","Revised Likelihood","Revised Consequence","Residual Rating"]
["Spectating, Instructing, Assisting staff","person hit by go-kart","Likely","Major",{"$f":"VLOOKUP(C23,'Risk Assessment'!$A$4:$F$10,MATCH(D23,'Risk Assessment'!$A$4:$F$4,0),FALSE)","v":16},"E: All spectators to remain in grandstand or safe zones\nM: limit number of spectators in safe zones (Instructor and next driver only at finish line safe zone, up to 2 people taking photos at photographers safe zone, up to 2 adults in safe zone inside track to assist with crashes) \nE or M: Instructor to have final say on where clients may stay \nM: Tyre barrier around entire track to keep go-kart on track\nM: Instructors and assisting staff to only enter track when go-kart has stopped or once go-kart has passed to repair tyre wall (wall must be suitably repaired before go-kart is within 1/4 of total track length of repair or go-kart must stop)\nM: next driver to only enter track once invited by staff\nM: No more than one go-kart on the track at a time\nM: Any person assisting with crashes must not walk in front of go-kart\nM: Go-kart speed limited to 30 kilometers per hour (+/- 5KPH)","Highly unlikely (rare)","Major",{"$f":"VLOOKUP(G23,'Risk Assessment'!$A$4:$F$10,MATCH(H23,'Risk Assessment'!$A$4:$F$4,0),FALSE)","v":4}]
["Driving","injury from crash ","Very likely","Major",{"$f":"VLOOKUP(C24,'Risk Assessment'!$A$4:$F$10,MATCH(D24,'Risk Assessment'!$A$4:$F$4,0),FALSE)","v":20},"M: Go-kart speed limited to 30 kilometers per hour (+/- 5KPH)\nM: Tyre barrier around track to absorb impact of go-kart crash \nM: Tyre barrier checked before use and fixed following crash\nM: Driver seat belted into go-kart\nM: Driver briefed to keep limbs in go-kart and wait for instructor/assisting staff assistance during and following crash\nM: Driver is briefed that staff may remove users who are driving excessively reckless\nM: ROPS (roll over protection system) intergrated into go-kart design (roll bar behind and over driver, low center of gravity, wide base of support)\nM: No protruding objects within crash zone around track\nM: No more than one go-kart on the track at a time","Very likely","Insignificant",{"$f":"VLOOKUP(G24,'Risk Assessment'!$A$4:$F$10,MATCH(H24,'Risk Assessment'!$A$4:$F$4,0),FALSE)","v":5}]
["Driving, Instructing, Assisting staff, inspection, maintenance","injury from loose items and /or long hair getting caught","Moderate","Extreme",{"$f":"VLOOKUP(C25,'Risk Assessment'!$A$4:$F$10,MATCH(D25,'Risk Assessment'!$A$4:$F$4,0),FALSE)","v":15},"E: All loose items must be removed or secured before driving go-kart\nM: instrucors and assisting staff to remove or secure loose items are advised to be mindful of becoming tangled with go-kart when assisting with crashes or getting clients in or out of kart","Highly unlikely (rare)","Extreme",{"$f":"VLOOKUP(G25,'Risk Assessment'!$A$4:$F$10,MATCH(H25,'Risk Assessment'!$A$4:$F$4,0),FALSE)","v":5}]
["Driving, Instructing, Assisting staff, inspection, maintenance","fire ","Unlikely","Extreme",{"$f":"VLOOKUP(C26,'Risk Assessment'!$A$4:$F$10,MATCH(D26,'Risk Assessment'!$A$4:$F$4,0),FALSE)","v":10},"E: Go-kart must not be started after fuel spilt on engine untill fuel is dried up \nM: Go-kart to be filled prior to use to avoid needing to refuel once engine is hot \nM: Go-kart to only be refueled by instructor\nM: If necessary to refuel go-kart during use caution is to be taken\nM: No occupants to be in go-kart during refueling \nM: All Highly-flamable material (dry pineneedles, dry leaf litter ect) to be kept off track \nM: fire extinguisher to be available at all times when go kart is in use ","Highly unlikely (rare)","Significant",{"$f":"VLOOKUP(G26,'Risk Assessment'!$A$4:$F$10,MATCH(H26,'Risk Assessment'!$A$4:$F$4,0),FALSE)","v":3}]
["Driving, Instructing, Assisting staff, inspection, maintenance","burn from exhaust","Very likely","Significant",{"$f":"VLOOKUP(C27,'Risk Assessment'!$A$4:$F$10,MATCH(D27,'Risk Assessment'!$A$4:$F$4,0),FALSE)","v":15},"M: All instructors and assisting staff briefed not to touch exhaust \nM: drivers to keep in drivers seat or forwards of the engine when getting in and out","Unlikely","Moderate",{"$f":"VLOOKUP(G27,'Risk Assessment'!$A$4:$F$10,MATCH(H27,'Risk Assessment'!$A$4:$F$4,0),FALSE)","v":4}]
["All Tasks","Sunburn","Very likely","Moderate",{"$f":"VLOOKUP(C28,'Risk Assessment'!$A$4:$F$10,MATCH(D28,'Risk Assessment'!$A$4:$F$4,0),FALSE)","v":10},"M: Sunsmart principles applied.\nM: Advise clients to wear sunhats and apply sunblock","Unlikely","Moderate",{"$f":"VLOOKUP(G28,'Risk Assessment'!$A$4:$F$10,MATCH(H28,'Risk Assessment'!$A$4:$F$4,0),FALSE)","v":4}]
["All Tasks","exposure","Unlikely","Extreme",{"$f":"VLOOKUP(C29,'Risk Assessment'!$A$4:$F$10,MATCH(D29,'Risk Assessment'!$A$4:$F$4,0),FALSE)","v":10},"M: Staff to recognise signs and symptoms of exposure illnesses (Heatstroke, Hypothermia, Hyperthermia and heat exhaustion)\nM: Advise clients of appropriate clothing for the activity and weather\nE: activity to be closed when exposure risk can not be effectivly managed (either through lack of appropriate client clothing or continually deteriorating weather. Note staff are expected to carry apropriate clothing for work in all conditions)","Highly unlikely (rare)","Extreme",{"$f":"VLOOKUP(G29,'Risk Assessment'!$A$4:$F$10,MATCH(H29,'Risk Assessment'!$A$4:$F$4,0),FALSE)","v":5}]
["All Tasks","injury from mechanical failure","Unlikely","Moderate",{"$f":"VLOOKUP(C30,'Risk Assessment'!$A$4:$F$10,MATCH(D30,'Risk Assessment'!$A$4:$F$4,0),FALSE)","v":4},"M:  regular inspections every 3 months\nM: visual check and test driver every use","Highly unlikely (rare)","Moderate",{"$f":"VLOOKUP(G30,'Risk Assessment'!$A$4:$F$10,MATCH(H30,'Risk Assessment'!$A$4:$F$4,0),FALSE)","v":2}]
["Driving","stress: forced to participate","Unlikely","Moderate",{"$f":"VLOOKUP(C31,'Risk Assessment'!$A$4:$F$10,MATCH(D31,'Risk Assessment'!$A$4:$F$4,0),FALSE)","v":4},"E: Challenge by choice: clients who do not wish to drive the go kart must be allowed to not drive the go kart. \nM: mild encouragement to try is ok however clients must make the choice themselves\nM: staff to encourage challenge by choice principles and encourage others in group (teachers, parents, peers, and other figures of authority within group) to do so as well\nE: Staff retain the ability to remove people from go kart group either temporarily or for the remainder of session for pressuring other clients, (Note: be mindful of using challenge by choice principles here too)","Highly unlikely (rare)","Insignificant",{"$f":"VLOOKUP(G31,'Risk Assessment'!$A$4:$F$10,MATCH(H31,'Risk Assessment'!$A$4:$F$4,0),FALSE)","v":1}]
["Driving","emotional stress from crash","Moderate","Moderate",{"$f":"VLOOKUP(C32,'Risk Assessment'!$A$4:$F$10,MATCH(D32,'Risk Assessment'!$A$4:$F$4,0),FALSE)","v":6},"M: go kart is limited to 30 kilometers per hour (+/- 5KPH)\nM: debrief as necessary after a crash","Highly unlikely (rare)","Moderate",{"$f":"VLOOKUP(G32,'Risk Assessment'!$A$4:$F$10,MATCH(H32,'Risk Assessment'!$A$4:$F$4,0),FALSE)","v":2}]
["Driving ","Injury from sharp edges of steering column ","Very likely","Moderate",{"$f":"VLOOKUP(C33,'Risk Assessment'!$A$4:$F$10,MATCH(D33,'Risk Assessment'!$A$4:$F$4,0),FALSE)","v":10},"E: sharp edges to be filed off\nM: regular checks to identify sharp edges needing filing","Highly unlikely (rare)","Insignificant",{"$f":"VLOOKUP(G33,'Risk Assessment'!$A$4:$F$10,MATCH(H33,'Risk Assessment'!$A$4:$F$4,0),FALSE)","v":1}]
["Driving","Seat belt coming undone","Likely","Extreme",{"$f":"VLOOKUP(C34,'Risk Assessment'!$A$4:$F$10,MATCH(D34,'Risk Assessment'!$A$4:$F$4,0),FALSE)","v":20},"M: Seat belt checked by staff before go kart is driven \nE: seatbelt removed and replaced if faulty","Highly unlikely (rare)","Extreme",{"$f":"VLOOKUP(G34,'Risk Assessment'!$A$4:$F$10,MATCH(H34,'Risk Assessment'!$A$4:$F$4,0),FALSE)","v":5}]
[{"$nulls":4},{"$f":"VLOOKUP(C35,'Risk Assessment'!$A$4:$F$10,MATCH(D35,'Risk Assessment'!$A$4:$F$4,0),FALSE)","v":{"$error":"#N/A"}},{"$nulls":3},{"$f":"VLOOKUP(G35,'Risk Assessment'!$A$4:$F$10,MATCH(H35,'Risk Assessment'!$A$4:$F$4,0),FALSE)","v":{"$error":"#N/A"}}]
[{"$nulls":4},{"$f":"VLOOKUP(C36,'Risk Assessment'!$A$4:$F$10,MATCH(D36,'Risk Assessment'!$A$4:$F$4,0),FALSE)","v":{"$error":"#N/A"}},{"$nulls":3},{"$f":"VLOOKUP(G36,'Risk Assessment'!$A$4:$F$10,MATCH(H36,'Risk Assessment'!$A$4:$F$4,0),FALSE)","v":{"$error":"#N/A"}}]
[{"$nulls":4},{"$f":"VLOOKUP(C37,'Risk Assessment'!$A$4:$F$10,MATCH(D37,'Risk Assessment'!$A$4:$F$4,0),FALSE)","v":{"$error":"#N/A"}},{"$nulls":3},{"$f":"VLOOKUP(G37,'Risk Assessment'!$A$4:$F$10,MATCH(H37,'Risk Assessment'!$A$4:$F$4,0),FALSE)","v":{"$error":"#N/A"}}]
[{"$nulls":4},{"$f":"VLOOKUP(C38,'Risk Assessment'!$A$4:$F$10,MATCH(D38,'Risk Assessment'!$A$4:$F$4,0),FALSE)","v":{"$error":"#N/A"}},{"$nulls":3},{"$f":"VLOOKUP(G38,'Risk Assessment'!$A$4:$F$10,MATCH(H38,'Risk Assessment'!$A$4:$F$4,0),FALSE)","v":{"$error":"#N/A"}}]
[{"$nulls":4},{"$f":"VLOOKUP(C39,'Risk Assessment'!$A$4:$F$10,MATCH(D39,'Risk Assessment'!$A$4:$F$4,0),FALSE)","v":{"$error":"#N/A"}},{"$nulls":3},{"$f":"VLOOKUP(G39,'Risk Assessment'!$A$4:$F$10,MATCH(H39,'Risk Assessment'!$A$4:$F$4,0),FALSE)","v":{"$error":"#N/A"}}]
[{"$nulls":4},{"$f":"VLOOKUP(C40,'Risk Assessment'!$A$4:$F$10,MATCH(D40,'Risk Assessment'!$A$4:$F$4,0),FALSE)","v":{"$error":"#N/A"}},{"$nulls":3},{"$f":"VLOOKUP(G40,'Risk Assessment'!$A$4:$F$10,MATCH(H40,'Risk Assessment'!$A$4:$F$4,0),FALSE)","v":{"$error":"#N/A"}}]
[{"$nulls":4},{"$f":"VLOOKUP(C41,'Risk Assessment'!$A$4:$F$10,MATCH(D41,'Risk Assessment'!$A$4:$F$4,0),FALSE)","v":{"$error":"#N/A"}},{"$nulls":3},{"$f":"VLOOKUP(G41,'Risk Assessment'!$A$4:$F$10,MATCH(H41,'Risk Assessment'!$A$4:$F$4,0),FALSE)","v":{"$error":"#N/A"}}]
[{"$nulls":4},{"$f":"VLOOKUP(C42,'Risk Assessment'!$A$4:$F$10,MATCH(D42,'Risk Assessment'!$A$4:$F$4,0),FALSE)","v":{"$error":"#N/A"}},{"$nulls":3},{"$f":"VLOOKUP(G42,'Risk Assessment'!$A$4:$F$10,MATCH(H42,'Risk Assessment'!$A$4:$F$4,0),FALSE)","v":{"$error":"#N/A"}}]
[{"$nulls":4},{"$f":"VLOOKUP(C43,'Risk Assessment'!$A$4:$F$10,MATCH(D43,'Risk Assessment'!$A$4:$F$4,0),FALSE)","v":{"$error":"#N/A"}},{"$nulls":3},{"$f":"VLOOKUP(G43,'Risk Assessment'!$A$4:$F$10,MATCH(H43,'Risk Assessment'!$A$4:$F$4,0),FALSE)","v":{"$error":"#N/A"}}]
[{"$nulls":4},{"$f":"VLOOKUP(C44,'Risk Assessment'!$A$4:$F$10,MATCH(D44,'Risk Assessment'!$A$4:$F$4,0),FALSE)","v":{"$error":"#N/A"}},{"$nulls":3},{"$f":"VLOOKUP(G44,'Risk Assessment'!$A$4:$F$10,MATCH(H44,'Risk Assessment'!$A$4:$F$4,0),FALSE)","v":{"$error":"#N/A"}}]
[{"$nulls":4},{"$f":"VLOOKUP(C45,'Risk Assessment'!$A$4:$F$10,MATCH(D45,'Risk Assessment'!$A$4:$F$4,0),FALSE)","v":{"$error":"#N/A"}},{"$nulls":3},{"$f":"VLOOKUP(G45,'Risk Assessment'!$A$4:$F$10,MATCH(H45,'Risk Assessment'!$A$4:$F$4,0),FALSE)","v":{"$error":"#N/A"}}]
[{"$nulls":4},{"$f":"VLOOKUP(C46,'Risk Assessment'!$A$4:$F$10,MATCH(D46,'Risk Assessment'!$A$4:$F$4,0),FALSE)","v":{"$error":"#N/A"}},{"$nulls":3},{"$f":"VLOOKUP(G46,'Risk Assessment'!$A$4:$F$10,MATCH(H46,'Risk Assessment'!$A$4:$F$4,0),FALSE)","v":{"$error":"#N/A"}}]
[{"$nulls":4},{"$f":"VLOOKUP(C47,'Risk Assessment'!$A$4:$F$10,MATCH(D47,'Risk Assessment'!$A$4:$F$4,0),FALSE)","v":{"$error":"#N/A"}},{"$nulls":3},{"$f":"VLOOKUP(G47,'Risk Assessment'!$A$4:$F$10,MATCH(H47,'Risk Assessment'!$A$4:$F$4,0),FALSE)","v":{"$error":"#N/A"}}]
[{"$nulls":4},{"$f":"VLOOKUP(C48,'Risk Assessment'!$A$4:$F$10,MATCH(D48,'Risk Assessment'!$A$4:$F$4,0),FALSE)","v":{"$error":"#N/A"}},{"$nulls":3},{"$f":"VLOOKUP(G48,'Risk Assessment'!$A$4:$F$10,MATCH(H48,'Risk Assessment'!$A$4:$F$4,0),FALSE)","v":{"$error":"#N/A"}}]
[{"$nulls":4},{"$f":"VLOOKUP(C49,'Risk Assessment'!$A$4:$F$10,MATCH(D49,'Risk Assessment'!$A$4:$F$4,0),FALSE)","v":{"$error":"#N/A"}},{"$nulls":3},{"$f":"VLOOKUP(G49,'Risk Assessment'!$A$4:$F$10,MATCH(H49,'Risk Assessment'!$A$4:$F$4,0),FALSE)","v":{"$error":"#N/A"}}]
[{"$nulls":4},{"$f":"VLOOKUP(C50,'Risk Assessment'!$A$4:$F$10,MATCH(D50,'Risk Assessment'!$A$4:$F$4,0),FALSE)","v":{"$error":"#N/A"}},{"$nulls":3},{"$f":"VLOOKUP(G50,'Risk Assessment'!$A$4:$F$10,MATCH(H50,'Risk Assessment'!$A$4:$F$4,0),FALSE)","v":{"$error":"#N/A"}}]
[{"$nulls":4},{"$f":"VLOOKUP(C51,'Risk Assessment'!$A$4:$F$10,MATCH(D51,'Risk Assessment'!$A$4:$F$4,0),FALSE)","v":{"$error":"#N/A"}},{"$nulls":3},{"$f":"VLOOKUP(G51,'Risk Assessment'!$A$4:$F$10,MATCH(H51,'Risk Assessment'!$A$4:$F$4,0),FALSE)","v":{"$error":"#N/A"}}]
[{"$nulls":4},{"$f":"VLOOKUP(C52,'Risk Assessment'!$A$4:$F$10,MATCH(D52,'Risk Assessment'!$A$4:$F$4,0),FALSE)","v":{"$error":"#N/A"}},{"$nulls":3},{"$f":"VLOOKUP(G52,'Risk Assessment'!$A$4:$F$10,MATCH(H52,'Risk Assessment'!$A$4:$F$4,0),FALSE)","v":{"$error":"#N/A"}}]
[{"$nulls":4},{"$f":"VLOOKUP(C53,'Risk Assessment'!$A$4:$F$10,MATCH(D53,'Risk Assessment'!$A$4:$F$4,0),FALSE)","v":{"$error":"#N/A"}},{"$nulls":3},{"$f":"VLOOKUP(G53,'Risk Assessment'!$A$4:$F$10,MATCH(H53,'Risk Assessment'!$A$4:$F$4,0),FALSE)","v":{"$error":"#N/A"}}]
[{"$nulls":4},{"$f":"VLOOKUP(C54,'Risk Assessment'!$A$4:$F$10,MATCH(D54,'Risk Assessment'!$A$4:$F$4,0),FALSE)","v":{"$error":"#N/A"}},{"$nulls":3},{"$f":"VLOOKUP(G54,'Risk Assessment'!$A$4:$F$10,MATCH(H54,'Risk Assessment'!$A$4:$F$4,0),FALSE)","v":{"$error":"#N/A"}}]
[{"$nulls":4},{"$f":"VLOOKUP(C55,'Risk Assessment'!$A$4:$F$10,MATCH(D55,'Risk Assessment'!$A$4:$F$4,0),FALSE)","v":{"$error":"#N/A"}},{"$nulls":3},{"$f":"VLOOKUP(G55,'Risk Assessment'!$A$4:$F$10,MATCH(H55,'Risk Assessment'!$A$4:$F$4,0),FALSE)","v":{"$error":"#N/A"}}]
[{"$nulls":4},{"$f":"VLOOKUP(C56,'Risk Assessment'!$A$4:$F$10,MATCH(D56,'Risk Assessment'!$A$4:$F$4,0),FALSE)","v":{"$error":"#N/A"}},{"$nulls":3},{"$f":"VLOOKUP(G56,'Risk Assessment'!$A$4:$F$10,MATCH(H56,'Risk Assessment'!$A$4:$F$4,0),FALSE)","v":{"$error":"#N/A"}}]
[{"$nulls":4},{"$f":"VLOOKUP(C57,'Risk Assessment'!$A$4:$F$10,MATCH(D57,'Risk Assessment'!$A$4:$F$4,0),FALSE)","v":{"$error":"#N/A"}},{"$nulls":3},{"$f":"VLOOKUP(G57,'Risk Assessment'!$A$4:$F$10,MATCH(H57,'Risk Assessment'!$A$4:$F$4,0),FALSE)","v":{"$error":"#N/A"}}]
[{"$nulls":4},{"$f":"VLOOKUP(C58,'Risk Assessment'!$A$4:$F$10,MATCH(D58,'Risk Assessment'!$A$4:$F$4,0),FALSE)","v":{"$error":"#N/A"}},{"$nulls":3},{"$f":"VLOOKUP(G58,'Risk Assessment'!$A$4:$F$10,MATCH(H58,'Risk Assessment'!$A$4:$F$4,0),FALSE)","v":{"$error":"#N/A"}}]
[{"$nulls":4},{"$f":"VLOOKUP(C59,'Risk Assessment'!$A$4:$F$10,MATCH(D59,'Risk Assessment'!$A$4:$F$4,0),FALSE)","v":{"$error":"#N/A"}},{"$nulls":3},{"$f":"VLOOKUP(G59,'Risk Assessment'!$A$4:$F$10,MATCH(H59,'Risk Assessment'!$A$4:$F$4,0),FALSE)","v":{"$error":"#N/A"}}]
[{"$nulls":4},{"$f":"VLOOKUP(C60,'Risk Assessment'!$A$4:$F$10,MATCH(D60,'Risk Assessment'!$A$4:$F$4,0),FALSE)","v":{"$error":"#N/A"}},{"$nulls":3},{"$f":"VLOOKUP(G60,'Risk Assessment'!$A$4:$F$10,MATCH(H60,'Risk Assessment'!$A$4:$F$4,0),FALSE)","v":{"$error":"#N/A"}}]
[{"$nulls":4},{"$f":"VLOOKUP(C61,'Risk Assessment'!$A$4:$F$10,MATCH(D61,'Risk Assessment'!$A$4:$F$4,0),FALSE)","v":{"$error":"#N/A"}},{"$nulls":3},{"$f":"VLOOKUP(G61,'Risk Assessment'!$A$4:$F$10,MATCH(H61,'Risk Assessment'!$A$4:$F$4,0),FALSE)","v":{"$error":"#N/A"}}]
[{"$nulls":4},{"$f":"VLOOKUP(C62,'Risk Assessment'!$A$4:$F$10,MATCH(D62,'Risk Assessment'!$A$4:$F$4,0),FALSE)","v":{"$error":"#N/A"}},{"$nulls":3},{"$f":"VLOOKUP(G62,'Risk Assessment'!$A$4:$F$10,MATCH(H62,'Risk Assessment'!$A$4:$F$4,0),FALSE)","v":{"$error":"#N/A"}}]
[{"$nulls":4},{"$f":"VLOOKUP(C63,'Risk Assessment'!$A$4:$F$10,MATCH(D63,'Risk Assessment'!$A$4:$F$4,0),FALSE)","v":{"$error":"#N/A"}},{"$nulls":3},{"$f":"VLOOKUP(G63,'Risk Assessment'!$A$4:$F$10,MATCH(H63,'Risk Assessment'!$A$4:$F$4,0),FALSE)","v":{"$error":"#N/A"}}]
[{"$nulls":4},{"$f":"VLOOKUP(C64,'Risk Assessment'!$A$4:$F$10,MATCH(D64,'Risk Assessment'!$A$4:$F$4,0),FALSE)","v":{"$error":"#N/A"}},{"$nulls":3},{"$f":"VLOOKUP(G64,'Risk Assessment'!$A$4:$F$10,MATCH(H64,'Risk Assessment'!$A$4:$F$4,0),FALSE)","v":{"$error":"#N/A"}}]
[{"$nulls":4},{"$f":"VLOOKUP(C65,'Risk Assessment'!$A$4:$F$10,MATCH(D65,'Risk Assessment'!$A$4:$F$4,0),FALSE)","v":{"$error":"#N/A"}},{"$nulls":3},{"$f":"VLOOKUP(G65,'Risk Assessment'!$A$4:$F$10,MATCH(H65,'Risk Assessment'!$A$4:$F$4,0),FALSE)","v":{"$error":"#N/A"}}]
[{"$nulls":4},{"$f":"VLOOKUP(C66,'Risk Assessment'!$A$4:$F$10,MATCH(D66,'Risk Assessment'!$A$4:$F$4,0),FALSE)","v":{"$error":"#N/A"}},{"$nulls":3},{"$f":"VLOOKUP(G66,'Risk Assessment'!$A$4:$F$10,MATCH(H66,'Risk Assessment'!$A$4:$F$4,0),FALSE)","v":{"$error":"#N/A"}}]
[{"$nulls":4},{"$f":"VLOOKUP(C67,'Risk Assessment'!$A$4:$F$10,MATCH(D67,'Risk Assessment'!$A$4:$F$4,0),FALSE)","v":{"$error":"#N/A"}},{"$nulls":3},{"$f":"VLOOKUP(G67,'Risk Assessment'!$A$4:$F$10,MATCH(H67,'Risk Assessment'!$A$4:$F$4,0),FALSE)","v":{"$error":"#N/A"}}]
[{"$nulls":4},{"$f":"VLOOKUP(C68,'Risk Assessment'!$A$4:$F$10,MATCH(D68,'Risk Assessment'!$A$4:$F$4,0),FALSE)","v":{"$error":"#N/A"}},{"$nulls":3},{"$f":"VLOOKUP(G68,'Risk Assessment'!$A$4:$F$10,MATCH(H68,'Risk Assessment'!$A$4:$F$4,0),FALSE)","v":{"$error":"#N/A"}}]
[{"$nulls":4},{"$f":"VLOOKUP(C69,'Risk Assessment'!$A$4:$F$10,MATCH(D69,'Risk Assessment'!$A$4:$F$4,0),FALSE)","v":{"$error":"#N/A"}},{"$nulls":3},{"$f":"VLOOKUP(G69,'Risk Assessment'!$A$4:$F$10,MATCH(H69,'Risk Assessment'!$A$4:$F$4,0),FALSE)","v":{"$error":"#N/A"}}]
[{"$nulls":4},{"$f":"VLOOKUP(C70,'Risk Assessment'!$A$4:$F$10,MATCH(D70,'Risk Assessment'!$A$4:$F$4,0),FALSE)","v":{"$error":"#N/A"}},{"$nulls":3},{"$f":"VLOOKUP(G70,'Risk Assessment'!$A$4:$F$10,MATCH(H70,'Risk Assessment'!$A$4:$F$4,0),FALSE)","v":{"$error":"#N/A"}}]
[{"$nulls":4},{"$f":"VLOOKUP(C71,'Risk Assessment'!$A$4:$F$10,MATCH(D71,'Risk Assessment'!$A$4:$F$4,0),FALSE)","v":{"$error":"#N/A"}},{"$nulls":3},{"$f":"VLOOKUP(G71,'Risk Assessment'!$A$4:$F$10,MATCH(H71,'Risk Assessment'!$A$4:$F$4,0),FALSE)","v":{"$error":"#N/A"}}]
[{"$nulls":4},{"$f":"VLOOKUP(C72,'Risk Assessment'!$A$4:$F$10,MATCH(D72,'Risk Assessment'!$A$4:$F$4,0),FALSE)","v":{"$error":"#N/A"}},{"$nulls":3},{"$f":"VLOOKUP(G72,'Risk Assessment'!$A$4:$F$10,MATCH(H72,'Risk Assessment'!$A$4:$F$4,0),FALSE)","v":{"$error":"#N/A"}}]
[{"$nulls":4},{"$f":"VLOOKUP(C73,'Risk Assessment'!$A$4:$F$10,MATCH(D73,'Risk Assessment'!$A$4:$F$4,0),FALSE)","v":{"$error":"#N/A"}},{"$nulls":3},{"$f":"VLOOKUP(G73,'Risk Assessment'!$A$4:$F$10,MATCH(H73,'Risk Assessment'!$A$4:$F$4,0),FALSE)","v":{"$error":"#N/A"}}]
[{"$nulls":4},{"$f":"VLOOKUP(C74,'Risk Assessment'!$A$4:$F$10,MATCH(D74,'Risk Assessment'!$A$4:$F$4,0),FALSE)","v":{"$error":"#N/A"}},{"$nulls":3},{"$f":"VLOOKUP(G74,'Risk Assessment'!$A$4:$F$10,MATCH(H74,'Risk Assessment'!$A$4:$F$4,0),FALSE)","v":{"$error":"#N/A"}}]
[{"$nulls":4},{"$f":"VLOOKUP(C75,'Risk Assessment'!$A$4:$F$10,MATCH(D75,'Risk Assessment'!$A$4:$F$4,0),FALSE)","v":{"$error":"#N/A"}},{"$nulls":3},{"$f":"VLOOKUP(G75,'Risk Assessment'!$A$4:$F$10,MATCH(H75,'Risk Assessment'!$A$4:$F$4,0),FALSE)","v":{"$error":"#N/A"}}]
[{"$nulls":4},{"$f":"VLOOKUP(C76,'Risk Assessment'!$A$4:$F$10,MATCH(D76,'Risk Assessment'!$A$4:$F$4,0),FALSE)","v":{"$error":"#N/A"}},{"$nulls":3},{"$f":"VLOOKUP(G76,'Risk Assessment'!$A$4:$F$10,MATCH(H76,'Risk Assessment'!$A$4:$F$4,0),FALSE)","v":{"$error":"#N/A"}}]
[{"$nulls":4},{"$f":"VLOOKUP(C77,'Risk Assessment'!$A$4:$F$10,MATCH(D77,'Risk Assessment'!$A$4:$F$4,0),FALSE)","v":{"$error":"#N/A"}},null,"Highly unlikely (rare)","Extreme",{"$f":"VLOOKUP(G77,'Risk Assessment'!$A$4:$F$10,MATCH(H77,'Risk Assessment'!$A$4:$F$4,0),FALSE)","v":5}]

{"sheet":"Mini-Golf","index":8,"n_rows":77,"n_cols":9,"rows_kept":77}
{"$rows_empty":9}
[" HAZARD and RISK REGISTER ",null," WCC Practical Activities"]
["Refer to Hazard/Risk Management Procedure"]
[]
["Developed by: Matthew Smith Date: 25 May 2022."]
[" Approved by: Cody Blackler   Date: 28 July 2022"]
["Reviewed by: Cody Blackler and Matthew Smith  Date: 11 August 2022"]
[]
["(1) Identify all hazards, then determine a risk rating."]
["(2) Eliminate the risk. If not reasonably practicable then"]
["(3) Minimise the risk as far as reasonably practicable."]
["(4) Reassess and determine the residual risk"]
[]
["Where or what task?","Hazard and Harm?","Likelihood \n(Choose from drop list in cell)","Consequence \n(Choose from drop list in cell)","Rating","Action required to Eliminate (E) or Minimise (M). \n (controls, administration controls, personal protective equipment.)","Revised Likelihood","Revised Consequence","Residual Rating"]
["All tasks","hit with club","Moderate","Major",{"$f":"VLOOKUP(C23,'Risk Assessment'!$A$4:$F$10,MATCH(D23,'Risk Assessment'!$A$4:$F$4,0),FALSE)","v":12},"M: adult/leader supervision required at a ratio of 1:5 (adult/leader:children)\nM: brief users not to misuse equipment","Highly unlikely (rare)","Major",{"$f":"VLOOKUP(G23,'Risk Assessment'!$A$4:$F$10,MATCH(H23,'Risk Assessment'!$A$4:$F$4,0),FALSE)","v":4}]
["All tasks","hit with ball ","Moderate","Moderate",{"$f":"VLOOKUP(C24,'Risk Assessment'!$A$4:$F$10,MATCH(D24,'Risk Assessment'!$A$4:$F$4,0),FALSE)","v":6},"M: adult/leader supervision required at a ratio of 1:5 (adult/leader:children)\nM: brief users not to misuse equipment","Highly unlikely (rare)","Moderate",{"$f":"VLOOKUP(G24,'Risk Assessment'!$A$4:$F$10,MATCH(H24,'Risk Assessment'!$A$4:$F$4,0),FALSE)","v":2}]
["All tasks","sunburn","Very likely","Moderate",{"$f":"VLOOKUP(C25,'Risk Assessment'!$A$4:$F$10,MATCH(D25,'Risk Assessment'!$A$4:$F$4,0),FALSE)","v":10},"M: Sunsmart principles applied.\nM: Advise clients to wear sunhats and apply sunblock","Unlikely","Moderate",{"$f":"VLOOKUP(G25,'Risk Assessment'!$A$4:$F$10,MATCH(H25,'Risk Assessment'!$A$4:$F$4,0),FALSE)","v":4}]
["All tasks","exposure","Unlikely","Extreme",{"$f":"VLOOKUP(C26,'Risk Assessment'!$A$4:$F$10,MATCH(D26,'Risk Assessment'!$A$4:$F$4,0),FALSE)","v":10},"M: Staff to recognise signs and symptoms of exposure illnesses (Heatstroke, Hypothermia, Hyperthermia and heat exhaustion)\nM: Advise clients of appropriate clothing for the activity and weather\nE: activity to be closed when exposure risk can not be effectivly managed (either through lack of appropriate client clothing or continually deteriorating weather. Note staff are expected to carry apropriate clothing for work in all conditions)","Highly unlikely (rare)","Extreme",{"$f":"VLOOKUP(G26,'Risk Assessment'!$A$4:$F$10,MATCH(H26,'Risk Assessment'!$A$4:$F$4,0),FALSE)","v":5}]
["All tasks","trips, slips and falls ","Likely","Moderate",{"$f":"VLOOKUP(C27,'Risk Assessment'!$A$4:$F$10,MATCH(D27,'Risk Assessment'!$A$4:$F$4,0),FALSE)","v":8},"M: 6 monthly mini golf inspection\nM: advise users not to use minigolf in frosty conditions","Highly unlikely (rare)","Moderate",{"$f":"VLOOKUP(G27,'Risk Assessment'!$A$4:$F$10,MATCH(H27,'Risk Assessment'!$A$4:$F$4,0),FALSE)","v":2}]
[{"$nulls":4},{"$f":"VLOOKUP(C28,'Risk Assessment'!$A$4:$F$10,MATCH(D28,'Risk Assessment'!$A$4:$F$4,0),FALSE)","v":{"$error":"#N/A"}},{"$nulls":3},{"$f":"VLOOKUP(G28,'Risk Assessment'!$A$4:$F$10,MATCH(H28,'Risk Assessment'!$A$4:$F$4,0),FALSE)","v":{"$error":"#N/A"}}]
[{"$nulls":4},{"$f":"VLOOKUP(C29,'Risk Assessment'!$A$4:$F$10,MATCH(D29,'Risk Assessment'!$A$4:$F$4,0),FALSE)","v":{"$error":"#N/A"}},{"$nulls":3},{"$f":"VLOOKUP(G29,'Risk Assessment'!$A$4:$F$10,MATCH(H29,'Risk Assessment'!$A$4:$F$4,0),FALSE)","v":{"$error":"#N/A"}}]
[{"$nulls":4},{"$f":"VLOOKUP(C30,'Risk Assessment'!$A$4:$F$10,MATCH(D30,'Risk Assessment'!$A$4:$F$4,0),FALSE)","v":{"$error":"#N/A"}},{"$nulls":3},{"$f":"VLOOKUP(G30,'Risk Assessment'!$A$4:$F$10,MATCH(H30,'Risk Assessment'!$A$4:$F$4,0),FALSE)","v":{"$error":"#N/A"}}]
[{"$nulls":4},{"$f":"VLOOKUP(C31,'Risk Assessment'!$A$4:$F$10,MATCH(D31,'Risk Assessment'!$A$4:$F$4,0),FALSE)","v":{"$error":"#N/A"}},{"$nulls":3},{"$f":"VLOOKUP(G31,'Risk Assessment'!$A$4:$F$10,MATCH(H31,'Risk Assessment'!$A$4:$F$4,0),FALSE)","v":{"$error":"#N/A"}}]
[{"$nulls":4},{"$f":"VLOOKUP(C32,'Risk Assessment'!$A$4:$F$10,MATCH(D32,'Risk Assessment'!$A$4:$F$4,0),FALSE)","v":{"$error":"#N/A"}},{"$nulls":3},{"$f":"VLOOKUP(G32,'Risk Assessment'!$A$4:$F$10,MATCH(H32,'Risk Assessment'!$A$4:$F$4,0),FALSE)","v":{"$error":"#N/A"}}]
[{"$nulls":4},{"$f":"VLOOKUP(C33,'Risk Assessment'!$A$4:$F$10,MATCH(D33,'Risk Assessment'!$A$4:$F$4,0),FALSE)","v":{"$error":"#N/A"}},{"$nulls":3},{"$f":"VLOOKUP(G33,'Risk Assessment'!$A$4:$F$10,MATCH(H33,'Risk Assessment'!$A$4:$F$4,0),FALSE)","v":{"$error":"#N/A"}}]
[{"$nulls":4},{"$f":"VLOOKUP(C34,'Risk Assessment'!$A$4:$F$10,MATCH(D34,'Risk Assessment'!$A$4:$F$4,0),FALSE)","v":{"$error":"#N/A"}},{"$nulls":3},{"$f":"VLOOKUP(G34,'Risk Assessment'!$A$4:$F$10,MATCH(H34,'Risk Assessment'!$A$4:$F$4,0),FALSE)","v":{"$error":"#N/A"}}]
[{"$nulls":4},{"$f":"VLOOKUP(C35,'Risk Assessment'!$A$4:$F$10,MATCH(D35,'Risk Assessment'!$A$4:$F$4,0),FALSE)","v":{"$error":"#N/A"}},{"$nulls":3},{"$f":"VLOOKUP(G35,'Risk Assessment'!$A$4:$F$10,MATCH(H35,'Risk Assessment'!$A$4:$F$4,0),FALSE)","v":{"$error":"#N/A"}}]
[{"$nulls":4},{"$f":"VLOOKUP(C36,'Risk Assessment'!$A$4:$F$10,MATCH(D36,'Risk Assessment'!$A$4:$F$4,0),FALSE)","v":{"$error":"#N/A"}},{"$nulls":3},{"$f":"VLOOKUP(G36,'Risk Assessment'!$A$4:$F$10,MATCH(H36,'Risk Assessment'!$A$4:$F$4,0),FALSE)","v":{"$error":"#N/A"}}]
[{"$nulls":4},{"$f":"VLOOKUP(C37,'Risk Assessment'!$A$4:$F$10,MATCH(D37,'Risk Assessment'!$A$4:$F$4,0),FALSE)","v":{"$error":"#N/A"}},{"$nulls":3},{"$f":"VLOOKUP(G37,'Risk Assessment'!$A$4:$F$10,MATCH(H37,'Risk Assessment'!$A$4:$F$4,0),FALSE)","v":{"$error":"#N/A"}}]
[{"$nulls":4},{"$f":"VLOOKUP(C38,'Risk Assessment'!$A$4:$F$10,MATCH(D38,'Risk Assessment'!$A$4:$F$4,0),FALSE)","v":{"$error":"#N/A"}},{"$nulls":3},{"$f":"VLOOKUP(G38,'Risk Assessment'!$A$4:$F$10,MATCH(H38,'Risk Assessment'!$A$4:$F$4,0),FALSE)","v":{"$error":"#N/A"}}]
[{"$nulls":4},{"$f":"VLOOKUP(C39,'Risk Assessment'!$A$4:$F$10,MATCH(D39,'Risk Assessment'!$A$4:$F$4,0),FALSE)","v":{"$error":"#N/A"}},{"$nulls":3},{"$f":"VLOOKUP(G39,'Risk Assessment'!$A$4:$F$10,MATCH(H39,'Risk Assessment'!$A$4:$F$4,0),FALSE)","v":{"$error":"#N/A"}}]
[{"$nulls":4},{"$f":"VLOOKUP(C40,'Risk Assessment'!$A$4:$F$10,MATCH(D40,'Risk Assessment'!$A$4:$F$4,0),FALSE)","v":{"$error":"#N/A"}},{"$nulls":3},{"$f":"VLOOKUP(G40,'Risk Assessment'!$A$4:$F$10,MATCH(H40,'Risk Assessment'!$A$4:$F$4,0),FALSE)","v":{"$error":"#N/A"}}]
[{"$nulls":4},{"$f":"VLOOKUP(C41,'Risk Assessment'!$A$4:$F$10,MATCH(D41,'Risk Assessment'!$A$4:$F$4,0),FALSE)","v":{"$error":"#N/A"}},{"$nulls":3},{"$f":"VLOOKUP(G41,'Risk Assessment'!$A$4:$F$10,MATCH(H41,'Risk Assessment'!$A$4:$F$4,0),FALSE)","v":{"$error":"#N/A"}}]
[{"$nulls":4},{"$f":"VLOOKUP(C42,'Risk Assessment'!$A$4:$F$10,MATCH(D42,'Risk Assessment'!$A$4:$F$4,0),FALSE)","v":{"$error":"#N/A"}},{"$nulls":3},{"$f":"VLOOKUP(G42,'Risk Assessment'!$A$4:$F$10,MATCH(H42,'Risk Assessment'!$A$4:$F$4,0),FALSE)","v":{"$error":"#N/A"}}]
[{"$nulls":4},{"$f":"VLOOKUP(C43,'Risk Assessment'!$A$4:$F$10,MATCH(D43,'Risk Assessment'!$A$4:$F$4,0),FALSE)","v":{"$error":"#N/A"}},{"$nulls":3},{"$f":"VLOOKUP(G43,'Risk Assessment'!$A$4:$F$10,MATCH(H43,'Risk Assessment'!$A$4:$F$4,0),FALSE)","v":{"$error":"#N/A"}}]
[{"$nulls":4},{"$f":"VLOOKUP(C44,'Risk Assessment'!$A$4:$F$10,MATCH(D44,'Risk Assessment'!$A$4:$F$4,0),FALSE)","v":{"$error":"#N/A"}},{"$nulls":3},{"$f":"VLOOKUP(G44,'Risk Assessment'!$A$4:$F$10,MATCH(H44,'Risk Assessment'!$A$4:$F$4,0),FALSE)","v":{"$error":"#N/A"}}]
[{"$nulls":4},{"$f":"VLOOKUP(C45,'Risk Assessment'!$A$4:$F$10,MATCH(D45,'Risk Assessment'!$A$4:$F$4,0),FALSE)","v":{"$error":"#N/A"}},{"$nulls":3},{"$f":"VLOOKUP(G45,'Risk Assessment'!$A$4:$F$10,MATCH(H45,'Risk Assessment'!$A$4:$F$4,0),FALSE)","v":{"$error":"#N/A"}}]
[{"$nulls":4},{"$f":"VLOOKUP(C46,'Risk Assessment'!$A$4:$F$10,MATCH(D46,'Risk Assessment'!$A$4:$F$4,0),FALSE)","v":{"$error":"#N/A"}},{"$nulls":3},{"$f":"VLOOKUP(G46,'Risk Assessment'!$A$4:$F$10,MATCH(H46,'Risk Assessment'!$A$4:$F$4,0),FALSE)","v":{"$error":"#N/A"}}]
[{"$nulls":4},{"$f":"VLOOKUP(C47,'Risk Assessment'!$A$4:$F$10,MATCH(D47,'Risk Assessment'!$A$4:$F$4,0),FALSE)","v":{"$error":"#N/A"}},{"$nulls":3},{"$f":"VLOOKUP(G47,'Risk Assessment'!$A$4:$F$10,MATCH(H47,'Risk Assessment'!$A$4:$F$4,0),FALSE)","v":{"$error":"#N/A"}}]
[{"$nulls":4},{"$f":"VLOOKUP(C48,'Risk Assessment'!$A$4:$F$10,MATCH(D48,'Risk Assessment'!$A$4:$F$4,0),FALSE)","v":{"$error":"#N/A"}},{"$nulls":3},{"$f":"VLOOKUP(G48,'Risk Assessment'!$A$4:$F$10,MATCH(H48,'Risk Assessment'!$A$4:$F$4,0),FALSE)","v":{"$error":"#N/A"}}]
[{"$nulls":4},{"$f":"VLOOKUP(C49,'Risk Assessment'!$A$4:$F$10,MATCH(D49,'Risk Assessment'!$A$4:$F$4,0),FALSE)","v":{"$error":"#N/A"}},{"$nulls":3},{"$f":"VLOOKUP(G49,'Risk Assessment'!$A$4:$F$10,MATCH(H49,'Risk Assessment'!$A$4:$F$4,0),FALSE)","v":{"$error":"#N/A"}}]
[{"$nulls":4},{"$f":"VLOOKUP(C50,'Risk Assessment'!$A$4:$F$10,MATCH(D50,'Risk Assessment'!$A$4:$F$4,0),FALSE)","v":{"$error":"#N/A"}},{"$nulls":3},{"$f":"VLOOKUP(G50,'Risk Assessment'!$A$4:$F$10,MATCH(H50,'Risk Assessment'!$A$4:$F$4,0),FALSE)","v":{"$error":"#N/A"}}]
[{"$nulls":4},{"$f":"VLOOKUP(C51,'Risk Assessment'!$A$4:$F$10,MATCH(D51,'Risk Assessment'!$A$4:$F$4,0),FALSE)","v":{"$error":"#N/A"}},{"$nulls":3},{"$f":"VLOOKUP(G51,'Risk Assessment'!$A$4:$F$10,MATCH(H51,'Risk Assessment'!$A$4:$F$4,0),FALSE)","v":{"$error":"#N/A"}}]
[{"$nulls":4},{"$f":"VLOOKUP(C52,'Risk Assessment'!$A$4:$F$10,MATCH(D52,'Risk Assessment'!$A$4:$F$4,0),FALSE)","v":{"$error":"#N/A"}},{"$nulls":3},{"$f":"VLOOKUP(G52,'Risk Assessment'!$A$4:$F$10,MATCH(H52,'Risk Assessment'!$A$4:$F$4,0),FALSE)","v":{"$error":"#N/A"}}]
[{"$nulls":4},{"$f":"VLOOKUP(C53,'Risk Assessment'!$A$4:$F$10,MATCH(D53,'Risk Assessment'!$A$4:$F$4,0),FALSE)","v":{"$error":"#N/A"}},{"$nulls":3},{"$f":"VLOOKUP(G53,'Risk Assessment'!$A$4:$F$10,MATCH(H53,'Risk Assessment'!$A$4:$F$4,0),FALSE)","v":{"$error":"#N/A"}}]
[{"$nulls":4},{"$f":"VLOOKUP(C54,'Risk Assessment'!$A$4:$F$10,MATCH(D54,'Risk Assessment'!$A$4:$F$4,0),FALSE)","v":{"$error":"#N/A"}},{"$nulls":3},{"$f":"VLOOKUP(G54,'Risk Assessment'!$A$4:$F$10,MATCH(H54,'Risk Assessment'!$A$4:$F$4,0),FALSE)","v":{"$error":"#N/A"}}]
[{"$nulls":4},{"$f":"VLOOKUP(C55,'Risk Assessment'!$A$4:$F$10,MATCH(D55,'Risk Assessment'!$A$4:$F$4,0),FALSE)","v":{"$error":"#N/A"}},{"$nulls":3},{"$f":"VLOOKUP(G55,'Risk Assessment'!$A$4:$F$10,MATCH(H55,'Risk Assessment'!$A$4:$F$4,0),FALSE)","v":{"$error":"#N/A"}}]
[{"$nulls":4},{"$f":"VLOOKUP(C56,'Risk Assessment'!$A$4:$F$10,MATCH(D56,'Risk Assessment'!$A$4:$F$4,0),FALSE)","v":{"$error":"#N/A"}},{"$nulls":3},{"$f":"VLOOKUP(G56,'Risk Assessment'!$A$4:$F$10,MATCH(H56,'Risk Assessment'!$A$4:$F$4,0),FALSE)","v":{"$error":"#N/A"}}]
[{"$nulls":4},{"$f":"VLOOKUP(C57,'Risk Assessment'!$A$4:$F$10,MATCH(D57,'Risk Assessment'!$A$4:$F$4,0),FALSE)","v":{"$error":"#N/A"}},{"$nulls":3},{"$f":"VLOOKUP(G57,'Risk Assessment'!$A$4:$F$10,MATCH(H57,'Risk Assessment'!$A$4:$F$4,0),FALSE)","v":{"$error":"#N/A"}}]
[{"$nulls":4},{"$f":"VLOOKUP(C58,'Risk Assessment'!$A$4:$F$10,MATCH(D58,'Risk Assessment'!$A$4:$F$4,0),FALSE)","v":{"$error":"#N/A"}},{"$nulls":3},{"$f":"VLOOKUP(G58,'Risk Assessment'!$A$4:$F$10,MATCH(H58,'Risk Assessment'!$A$4:$F$4,0),FALSE)","v":{"$error":"#N/A"}}]
[{"$nulls":4},{"$f":"VLOOKUP(C59,'Risk Assessment'!$A$4:$F$10,MATCH(D59,'Risk Assessment'!$A$4:$F$4,0),FALSE)","v":{"$error":"#N/A"}},{"$nulls":3},{"$f":"VLOOKUP(G59,'Risk Assessment'!$A$4:$F$10,MATCH(H59,'Risk Assessment'!$A$4:$F$4,0),FALSE)","v":{"$error":"#N/A"}}]
[{"$nulls":4},{"$f":"VLOOKUP(C60,'Risk Assessment'!$A$4:$F$10,MATCH(D60,'Risk Assessment'!$A$4:$F$4,0),FALSE)","v":{"$error":"#N/A"}},{"$nulls":3},{"$f":"VLOOKUP(G60,'Risk Assessment'!$A$4:$F$10,MATCH(H60,'Risk Assessment'!$A$4:$F$4,0),FALSE)","v":{"$error":"#N/A"}}]
[{"$nulls":4},{"$f":"VLOOKUP(C61,'Risk Assessment'!$A$4:$F$10,MATCH(D61,'Risk Assessment'!$A$4:$F$4,0),FALSE)","v":{"$error":"#N/A"}},{"$nulls":3},{"$f":"VLOOKUP(G61,'Risk Assessment'!$A$4:$F$10,MATCH(H61,'Risk Assessment'!$A$4:$F$4,0),FALSE)","v":{"$error":"#N/A"}}]
[{"$nulls":4},{"$f":"VLOOKUP(C62,'Risk Assessment'!$A$4:$F$10,MATCH(D62,'Risk Assessment'!$A$4:$F$4,0),FALSE)","v":{"$error":"#N/A"}},{"$nulls":3},{"$f":"VLOOKUP(G62,'Risk Assessment'!$A$4:$F$10,MATCH(H62,'Risk Assessment'!$A$4:$F$4,0),FALSE)","v":{"$error":"#N/A"}}]
[{"$nulls":4},{"$f":"VLOOKUP(C63,'Risk Assessment'!$A$4:$F$10,MATCH(D63,'Risk Assessment'!$A$4:$F$4,0),FALSE)","v":{"$error":"#N/A"}},{"$nulls":3},{"$f":"VLOOKUP(G63,'Risk Assessment'!$A$4:$F$10,MATCH(H63,'Risk Assessment'!$A$4:$F$4,0),FALSE)","v":{"$error":"#N/A"}}]
[{"$nulls":4},{"$f":"VLOOKUP(C64,'Risk Assessment'!$A$4:$F$10,MATCH(D64,'Risk Assessment'!$A$4:$F$4,0),FALSE)","v":{"$error":"#N/A"}},{"$nulls":3},{"$f":"VLOOKUP(G64,'Risk Assessment'!$A$4:$F$10,MATCH(H64,'Risk Assessment'!$A$4:$F$4,0),FALSE)","v":{"$error":"#N/A"}}]
[{"$nulls":4},{"$f":"VLOOKUP(C65,'Risk Assessment'!$A$4:$F$10,MATCH(D65,'Risk Assessment'!$A$4:$F$4,0),FALSE)","v":{"$error":"#N/A"}},{"$nulls":3},{"$f":"VLOOKUP(G65,'Risk Assessment'!$A$4:$F$10,MATCH(H65,'Risk Assessment'!$A$4:$F$4,0),FALSE)","v":{"$error":"#N/A"}}]
[{"$nulls":4},{"$f":"VLOOKUP(C66,'Risk Assessment'!$A$4:$F$10,MATCH(D66,'Risk Assessment'!$A$4:$F$4,0),FALSE)","v":{"$error":"#N/A"}},{"$nulls":3},{"$f":"VLOOKUP(G66,'Risk Assessment'!$A$4:$F$10,MATCH(H66,'Risk Assessment'!$A$4:$F$4,0),FALSE)","v":{"$error":"#N/A"}}]
[{"$nulls":4},{"$f":"VLOOKUP(C67,'Risk Assessment'!$A$4:$F$10,MATCH(D67,'Risk Assessment'!$A$4:$F$4,0),FALSE)","v":{"$error":"#N/A"}},{"$nulls":3},{"$f":"VLOOKUP(G67,'Risk Assessment'!$A$4:$F$10,MATCH(H67,'Risk Assessment'!$A$4:$F$4,0),FALSE)","v":{"$error":"#N/A"}}]
[{"$nulls":4},{"$f":"VLOOKUP(C68,'Risk Assessment'!$A$4:$F$10,MATCH(D68,'Risk Assessment'!$A$4:$F$4,0),FALSE)","v":{"$error":"#N/A"}},{"$nulls":3},{"$f":"VLOOKUP(G68,'Risk Assessment'!$A$4:$F$10,MATCH(H68,'Risk Assessment'!$A$4:$F$4,0),FALSE)","v":{"$error":"#N/A"}}]
[{"$nulls":4},{"$f":"VLOOKUP(C69,'Risk Assessment'!$A$4:$F$10,MATCH(D69,'Risk Assessment'!$A$4:$F$4,0),FALSE)","v":{"$error":"#N/A"}},{"$nulls":3},{"$f":"VLOOKUP(G69,'Risk Assessment'!$A$4:$F$10,MATCH(H69,'Risk Assessment'!$A$4:$F$4,0),FALSE)","v":{"$error":"#N/A"}}]
[{"$nulls":4},{"$f":"VLOOKUP(C70,'Risk Assessment'!$A$4:$F$10,MATCH(D70,'Risk Assessment'!$A$4:$F$4,0),FALSE)","v":{"$error":"#N/A"}},{"$nulls":3},{"$f":"VLOOKUP(G70,'Risk Assessment'!$A$4:$F$10,MATCH(H70,'Risk Assessment'!$A$4:$F$4,0),FALSE)","v":{"$error":"#N/A"}}]
[{"$nulls":4},{"$f":"VLOOKUP(C71,'Risk Assessment'!$A$4:$F$10,MATCH(D71,'Risk Assessment'!$A$4:$F$4,0),FALSE)","v":{"$error":"#N/A"}},{"$nulls":3},{"$f":"VLOOKUP(G71,'Risk Assessment'!$A$4:$F$10,MATCH(H71,'Risk Assessment'!$A$4:$F$4,0),FALSE)","v":{"$error":"#N/A"}}]
[{"$nulls":4},{"$f":"VLOOKUP(C72,'Risk Assessment'!$A$4:$F$10,MATCH(D72,'Risk Assessment'!$A$4:$F$4,0),FALSE)","v":{"$error":"#N/A"}},{"$nulls":3},{"$f":"VLOOKUP(G72,'Risk Assessment'!$A$4:$F$10,MATCH(H72,'Risk Assessment'!$A$4:$F$4,0),FALSE)","v":{"$error":"#N/A"}}]
[{"$nulls":4},{"$f":"VLOOKUP(C73,'Risk Assessment'!$A$4:$F$10,MATCH(D73,'Risk Assessment'!$A$4:$F$4,0),FALSE)","v":{"$error":"#N/A"}},{"$nulls":3},{"$f":"VLOOKUP(G73,'Risk Assessment'!$A$4:$F$10,MATCH(H73,'Risk Assessment'!$A$4:$F$4,0),FALSE)","v":{"$error":"#N/A"}}]
[{"$nulls":4},{"$f":"VLOOKUP(C74,'Risk Assessment'!$A$4:$F$10,MATCH(D74,'Risk Assessment'!$A$4:$F$4,0),FALSE)","v":{"$error":"#N/A"}},{"$nulls":3},{"$f":"VLOOKUP(G74,'Risk Assessment'!$A$4:$F$10,MATCH(H74,'Risk Assessment'!$A$4:$F$4,0),FALSE)","v":{"$error":"#N/A"}}]
[{"$nulls":4},{"$f":"VLOOKUP(C75,'Risk Assessment'!$A$4:$F$10,MATCH(D75,'Risk Assessment'!$A$4:$F$4,0),FALSE)","v":{"$error":"#N/A"}},{"$nulls":3},{"$f":"VLOOKUP(G75,'Risk Assessment'!$A$4:$F$10,MATCH(H75,'Risk Assessment'!$A$4:$F$4,0),FALSE)","v":{"$error":"#N/A"}}]
[{"$nulls":4},{"$f":"VLOOKUP(C76,'Risk Assessment'!$A$4:$F$10,MATCH(D76,'Risk Assessment'!$A$4:$F$4,0),FALSE)","v":{"$error":"#N/A"}},{"$nulls":3},{"$f":"VLOOKUP(G76,'Risk Assessment'!$A$4:$F$10,MATCH(H76,'Risk Assessment'!$A$4:$F$4,0),FALSE)","v":{"$error":"#N/A"}}]
[{"$nulls":4},{"$f":"VLOOKUP(C77,'Risk Assessment'!$A$4:$F$10,MATCH(D77,'Risk Assessment'!$A$4:$F$4,0),FALSE)","v":{"$error":"#N/A"}},{"$nulls":3},{"$f":"VLOOKUP(G77,'Risk Assessment'!$A$4:$F$10,MATCH(H77,'Risk Assessment'!$A$4:$F$4,0),FALSE)","v":{"$error":"#N/A"}}]

{"sheet":"Team Building","index":9,"n_rows":77,"n_cols":9,"rows_kept":77}
{"$rows_empty":9}
[" HAZARD and RISK REGISTER ",null," WCC Practical Activities"]
["Refer to Hazard/Risk Management Procedure"]
[]
["Developed by: Matthew Smith Date: 25 May 2022."]
[" Approved by:  Cody Blackler Date: 28 July 2022 "]
["Reviewed by: Cody Blackler and Matthew Smith  Date: 11 August 2022"]
[]
["(1) Identify all hazards, then determine a risk rating."]
["(2) Eliminate the risk. If not reasonably practicable then"]
["(3) Minimise the risk as far as reasonably practicable."]
["(4) Reassess and determine the residual risk"]
[]
["Where or what task?","Hazard and Harm?","Likelihood \n(Choose from drop list in cell)","Consequence \n(Choose from drop list in cell)","Rating","Action required to Eliminate (E) or Minimise (M). \n (controls, administration controls, personal protective equipment.)","Revised Likelihood","Revised Consequence","Residual Rating"]
["Participating ","Falls","Very likely","Major",{"$f":"VLOOKUP(C23,'Risk Assessment'!$A$4:$F$10,MATCH(D23,'Risk Assessment'!$A$4:$F$4,0),FALSE)","v":20},"M: Participants are briefed on how to participate safely. \nM: Sufficient number of spotters required\nM: Spotters are briefed about safe methods of spotting","Moderate","Moderate",{"$f":"VLOOKUP(G23,'Risk Assessment'!$A$4:$F$10,MATCH(H23,'Risk Assessment'!$A$4:$F$4,0),FALSE)","v":6}]
["Participating ","Stress: forced to participate","Likely","Moderate",{"$f":"VLOOKUP(C24,'Risk Assessment'!$A$4:$F$10,MATCH(D24,'Risk Assessment'!$A$4:$F$4,0),FALSE)","v":8},"E: Challenge by choice: participants who do not wish to partake or do not wish to partake in a part of an activity must be allowed to make that choice for themsleves. \nM: mild encoragement to try is ok however clients must make the choice themselves\nM: staff to encorage challenge by choice principles and encorage others in group (teachers, parents, peers, and other figures of authority within group) to do so as well\nE: Staff retain the ability to remove people from initiatives group either temporarily or for the remainder of session for pressuring other clients, (Note: be mindful of using challenge by choice principles here too)","Highly unlikely (rare)","Insignificant",{"$f":"VLOOKUP(G24,'Risk Assessment'!$A$4:$F$10,MATCH(H24,'Risk Assessment'!$A$4:$F$4,0),FALSE)","v":1}]
["All tasks","Sunburn","Very likely","Moderate",{"$f":"VLOOKUP(C25,'Risk Assessment'!$A$4:$F$10,MATCH(D25,'Risk Assessment'!$A$4:$F$4,0),FALSE)","v":10},"M: Sunsmart principles applied.\nM: Advise clients to wear sunhats and apply sunblock","Unlikely","Moderate",{"$f":"VLOOKUP(G25,'Risk Assessment'!$A$4:$F$10,MATCH(H25,'Risk Assessment'!$A$4:$F$4,0),FALSE)","v":4}]
["All tasks","exposure","Unlikely","Extreme",{"$f":"VLOOKUP(C26,'Risk Assessment'!$A$4:$F$10,MATCH(D26,'Risk Assessment'!$A$4:$F$4,0),FALSE)","v":10},"M: Staff to recognise signs and symptoms of exposure illnesses (Heatstroke, Hypothermia, Hyperthermia and heat exhaustion)\nM: Advise clients of appropriate clothing for the activity and weather\nE: activity to be closed when exposure risk can not be effectivly managed (either through lack of appropriate client clothing or continually deteriorating weather. Note staff are expected to carry apropriate clothing for work in all conditions)","Highly unlikely (rare)","Extreme",{"$f":"VLOOKUP(G26,'Risk Assessment'!$A$4:$F$10,MATCH(H26,'Risk Assessment'!$A$4:$F$4,0),FALSE)","v":5}]
["All tasks","Slips, trips and falls","Very likely","Significant",{"$f":"VLOOKUP(C27,'Risk Assessment'!$A$4:$F$10,MATCH(D27,'Risk Assessment'!$A$4:$F$4,0),FALSE)","v":15},"M: 6 monthly inspection to ensure no excessive obstacles in surrounding area","Highly unlikely (rare)","Moderate",{"$f":"VLOOKUP(G27,'Risk Assessment'!$A$4:$F$10,MATCH(H27,'Risk Assessment'!$A$4:$F$4,0),FALSE)","v":2}]
["Participating, Instructing, Inspection","Splinters","Very likely","Insignificant",{"$f":"VLOOKUP(C28,'Risk Assessment'!$A$4:$F$10,MATCH(D28,'Risk Assessment'!$A$4:$F$4,0),FALSE)","v":5},"M: 6 monthly inspection to ensure no excessive obstacles in surrounding area","Likely","Insignificant",{"$f":"VLOOKUP(G28,'Risk Assessment'!$A$4:$F$10,MATCH(H28,'Risk Assessment'!$A$4:$F$4,0),FALSE)","v":4}]
["Participating, Instructing","kicked, hit or colided with/by another client","Very likely","Significant",{"$f":"VLOOKUP(C29,'Risk Assessment'!$A$4:$F$10,MATCH(D29,'Risk Assessment'!$A$4:$F$4,0),FALSE)","v":15},"M: brief users to be careful and considerate of others\nM: spotters to be mindful of where limbs are going and help prevent any types of collisions","Moderate","Moderate",{"$f":"VLOOKUP(G29,'Risk Assessment'!$A$4:$F$10,MATCH(H29,'Risk Assessment'!$A$4:$F$4,0),FALSE)","v":6}]
["Participating, Instructing","injury by being stepped on ","Very likely","Moderate",{"$f":"VLOOKUP(C30,'Risk Assessment'!$A$4:$F$10,MATCH(D30,'Risk Assessment'!$A$4:$F$4,0),FALSE)","v":10},"M: brief users to be careful and considerate of others\nM: spotters to be mindful of where limbs are going and help prevent any types of collisions","Moderate","Moderate",{"$f":"VLOOKUP(G30,'Risk Assessment'!$A$4:$F$10,MATCH(H30,'Risk Assessment'!$A$4:$F$4,0),FALSE)","v":6}]
["Participating","emotional stress: clients arguing/blaming each other ","Very likely","Moderate",{"$f":"VLOOKUP(C31,'Risk Assessment'!$A$4:$F$10,MATCH(D31,'Risk Assessment'!$A$4:$F$4,0),FALSE)","v":10},"M: debrief participants properly to help discuss challenges of the activity\nM: instructor to use professional judgement/discernment on adherance to success criteria","Moderate","Insignificant",{"$f":"VLOOKUP(G31,'Risk Assessment'!$A$4:$F$10,MATCH(H31,'Risk Assessment'!$A$4:$F$4,0),FALSE)","v":3}]
[{"$nulls":4},{"$f":"VLOOKUP(C32,'Risk Assessment'!$A$4:$F$10,MATCH(D32,'Risk Assessment'!$A$4:$F$4,0),FALSE)","v":{"$error":"#N/A"}},{"$nulls":3},{"$f":"VLOOKUP(G32,'Risk Assessment'!$A$4:$F$10,MATCH(H32,'Risk Assessment'!$A$4:$F$4,0),FALSE)","v":{"$error":"#N/A"}}]
[{"$nulls":4},{"$f":"VLOOKUP(C33,'Risk Assessment'!$A$4:$F$10,MATCH(D33,'Risk Assessment'!$A$4:$F$4,0),FALSE)","v":{"$error":"#N/A"}},{"$nulls":3},{"$f":"VLOOKUP(G33,'Risk Assessment'!$A$4:$F$10,MATCH(H33,'Risk Assessment'!$A$4:$F$4,0),FALSE)","v":{"$error":"#N/A"}}]
[{"$nulls":4},{"$f":"VLOOKUP(C34,'Risk Assessment'!$A$4:$F$10,MATCH(D34,'Risk Assessment'!$A$4:$F$4,0),FALSE)","v":{"$error":"#N/A"}},{"$nulls":3},{"$f":"VLOOKUP(G34,'Risk Assessment'!$A$4:$F$10,MATCH(H34,'Risk Assessment'!$A$4:$F$4,0),FALSE)","v":{"$error":"#N/A"}}]
[{"$nulls":4},{"$f":"VLOOKUP(C35,'Risk Assessment'!$A$4:$F$10,MATCH(D35,'Risk Assessment'!$A$4:$F$4,0),FALSE)","v":{"$error":"#N/A"}},{"$nulls":3},{"$f":"VLOOKUP(G35,'Risk Assessment'!$A$4:$F$10,MATCH(H35,'Risk Assessment'!$A$4:$F$4,0),FALSE)","v":{"$error":"#N/A"}}]
[{"$nulls":4},{"$f":"VLOOKUP(C36,'Risk Assessment'!$A$4:$F$10,MATCH(D36,'Risk Assessment'!$A$4:$F$4,0),FALSE)","v":{"$error":"#N/A"}},{"$nulls":3},{"$f":"VLOOKUP(G36,'Risk Assessment'!$A$4:$F$10,MATCH(H36,'Risk Assessment'!$A$4:$F$4,0),FALSE)","v":{"$error":"#N/A"}}]
[{"$nulls":4},{"$f":"VLOOKUP(C37,'Risk Assessment'!$A$4:$F$10,MATCH(D37,'Risk Assessment'!$A$4:$F$4,0),FALSE)","v":{"$error":"#N/A"}},{"$nulls":3},{"$f":"VLOOKUP(G37,'Risk Assessment'!$A$4:$F$10,MATCH(H37,'Risk Assessment'!$A$4:$F$4,0),FALSE)","v":{"$error":"#N/A"}}]
[{"$nulls":4},{"$f":"VLOOKUP(C38,'Risk Assessment'!$A$4:$F$10,MATCH(D38,'Risk Assessment'!$A$4:$F$4,0),FALSE)","v":{"$error":"#N/A"}},{"$nulls":3},{"$f":"VLOOKUP(G38,'Risk Assessment'!$A$4:$F$10,MATCH(H38,'Risk Assessment'!$A$4:$F$4,0),FALSE)","v":{"$error":"#N/A"}}]
[{"$nulls":4},{"$f":"VLOOKUP(C39,'Risk Assessment'!$A$4:$F$10,MATCH(D39,'Risk Assessment'!$A$4:$F$4,0),FALSE)","v":{"$error":"#N/A"}},{"$nulls":3},{"$f":"VLOOKUP(G39,'Risk Assessment'!$A$4:$F$10,MATCH(H39,'Risk Assessment'!$A$4:$F$4,0),FALSE)","v":{"$error":"#N/A"}}]
[{"$nulls":4},{"$f":"VLOOKUP(C40,'Risk Assessment'!$A$4:$F$10,MATCH(D40,'Risk Assessment'!$A$4:$F$4,0),FALSE)","v":{"$error":"#N/A"}},{"$nulls":3},{"$f":"VLOOKUP(G40,'Risk Assessment'!$A$4:$F$10,MATCH(H40,'Risk Assessment'!$A$4:$F$4,0),FALSE)","v":{"$error":"#N/A"}}]
[{"$nulls":4},{"$f":"VLOOKUP(C41,'Risk Assessment'!$A$4:$F$10,MATCH(D41,'Risk Assessment'!$A$4:$F$4,0),FALSE)","v":{"$error":"#N/A"}},{"$nulls":3},{"$f":"VLOOKUP(G41,'Risk Assessment'!$A$4:$F$10,MATCH(H41,'Risk Assessment'!$A$4:$F$4,0),FALSE)","v":{"$error":"#N/A"}}]
[{"$nulls":4},{"$f":"VLOOKUP(C42,'Risk Assessment'!$A$4:$F$10,MATCH(D42,'Risk Assessment'!$A$4:$F$4,0),FALSE)","v":{"$error":"#N/A"}},{"$nulls":3},{"$f":"VLOOKUP(G42,'Risk Assessment'!$A$4:$F$10,MATCH(H42,'Risk Assessment'!$A$4:$F$4,0),FALSE)","v":{"$error":"#N/A"}}]
[{"$nulls":4},{"$f":"VLOOKUP(C43,'Risk Assessment'!$A$4:$F$10,MATCH(D43,'Risk Assessment'!$A$4:$F$4,0),FALSE)","v":{"$error":"#N/A"}},{"$nulls":3},{"$f":"VLOOKUP(G43,'Risk Assessment'!$A$4:$F$10,MATCH(H43,'Risk Assessment'!$A$4:$F$4,0),FALSE)","v":{"$error":"#N/A"}}]
[{"$nulls":4},{"$f":"VLOOKUP(C44,'Risk Assessment'!$A$4:$F$10,MATCH(D44,'Risk Assessment'!$A$4:$F$4,0),FALSE)","v":{"$error":"#N/A"}},{"$nulls":3},{"$f":"VLOOKUP(G44,'Risk Assessment'!$A$4:$F$10,MATCH(H44,'Risk Assessment'!$A$4:$F$4,0),FALSE)","v":{"$error":"#N/A"}}]
[{"$nulls":4},{"$f":"VLOOKUP(C45,'Risk Assessment'!$A$4:$F$10,MATCH(D45,'Risk Assessment'!$A$4:$F$4,0),FALSE)","v":{"$error":"#N/A"}},{"$nulls":3},{"$f":"VLOOKUP(G45,'Risk Assessment'!$A$4:$F$10,MATCH(H45,'Risk Assessment'!$A$4:$F$4,0),FALSE)","v":{"$error":"#N/A"}}]
[{"$nulls":4},{"$f":"VLOOKUP(C46,'Risk Assessment'!$A$4:$F$10,MATCH(D46,'Risk Assessment'!$A$4:$F$4,0),FALSE)","v":{"$error":"#N/A"}},{"$nulls":3},{"$f":"VLOOKUP(G46,'Risk Assessment'!$A$4:$F$10,MATCH(H46,'Risk Assessment'!$A$4:$F$4,0),FALSE)","v":{"$error":"#N/A"}}]
[{"$nulls":4},{"$f":"VLOOKUP(C47,'Risk Assessment'!$A$4:$F$10,MATCH(D47,'Risk Assessment'!$A$4:$F$4,0),FALSE)","v":{"$error":"#N/A"}},{"$nulls":3},{"$f":"VLOOKUP(G47,'Risk Assessment'!$A$4:$F$10,MATCH(H47,'Risk Assessment'!$A$4:$F$4,0),FALSE)","v":{"$error":"#N/A"}}]
[{"$nulls":4},{"$f":"VLOOKUP(C48,'Risk Assessment'!$A$4:$F$10,MATCH(D48,'Risk Assessment'!$A$4:$F$4,0),FALSE)","v":{"$error":"#N/A"}},{"$nulls":3},{"$f":"VLOOKUP(G48,'Risk Assessment'!$A$4:$F$10,MATCH(H48,'Risk Assessment'!$A$4:$F$4,0),FALSE)","v":{"$error":"#N/A"}}]
[{"$nulls":4},{"$f":"VLOOKUP(C49,'Risk Assessment'!$A$4:$F$10,MATCH(D49,'Risk Assessment'!$A$4:$F$4,0),FALSE)","v":{"$error":"#N/A"}},{"$nulls":3},{"$f":"VLOOKUP(G49,'Risk Assessment'!$A$4:$F$10,MATCH(H49,'Risk Assessment'!$A$4:$F$4,0),FALSE)","v":{"$error":"#N/A"}}]
[{"$nulls":4},{"$f":"VLOOKUP(C50,'Risk Assessment'!$A$4:$F$10,MATCH(D50,'Risk Assessment'!$A$4:$F$4,0),FALSE)","v":{"$error":"#N/A"}},{"$nulls":3},{"$f":"VLOOKUP(G50,'Risk Assessment'!$A$4:$F$10,MATCH(H50,'Risk Assessment'!$A$4:$F$4,0),FALSE)","v":{"$error":"#N/A"}}]
[{"$nulls":4},{"$f":"VLOOKUP(C51,'Risk Assessment'!$A$4:$F$10,MATCH(D51,'Risk Assessment'!$A$4:$F$4,0),FALSE)","v":{"$error":"#N/A"}},{"$nulls":3},{"$f":"VLOOKUP(G51,'Risk Assessment'!$A$4:$F$10,MATCH(H51,'Risk Assessment'!$A$4:$F$4,0),FALSE)","v":{"$error":"#N/A"}}]
[{"$nulls":4},{"$f":"VLOOKUP(C52,'Risk Assessment'!$A$4:$F$10,MATCH(D52,'Risk Assessment'!$A$4:$F$4,0),FALSE)","v":{"$error":"#N/A"}},{"$nulls":3},{"$f":"VLOOKUP(G52,'Risk Assessment'!$A$4:$F$10,MATCH(H52,'Risk Assessment'!$A$4:$F$4,0),FALSE)","v":{"$error":"#N/A"}}]
[{"$nulls":4},{"$f":"VLOOKUP(C53,'Risk Assessment'!$A$4:$F$10,MATCH(D53,'Risk Assessment'!$A$4:$F$4,0),FALSE)","v":{"$error":"#N/A"}},{"$nulls":3},{"$f":"VLOOKUP(G53,'Risk Assessment'!$A$4:$F$10,MATCH(H53,'Risk Assessment'!$A$4:$F$4,0),FALSE)","v":{"$error":"#N/A"}}]
[{"$nulls":4},{"$f":"VLOOKUP(C54,'Risk Assessment'!$A$4:$F$10,MATCH(D54,'Risk Assessment'!$A$4:$F$4,0),FALSE)","v":{"$error":"#N/A"}},{"$nulls":3},{"$f":"VLOOKUP(G54,'Risk Assessment'!$A$4:$F$10,MATCH(H54,'Risk Assessment'!$A$4:$F$4,0),FALSE)","v":{"$error":"#N/A"}}]
[{"$nulls":4},{"$f":"VLOOKUP(C55,'Risk Assessment'!$A$4:$F$10,MATCH(D55,'Risk Assessment'!$A$4:$F$4,0),FALSE)","v":{"$error":"#N/A"}},{"$nulls":3},{"$f":"VLOOKUP(G55,'Risk Assessment'!$A$4:$F$10,MATCH(H55,'Risk Assessment'!$A$4:$F$4,0),FALSE)","v":{"$error":"#N/A"}}]
[{"$nulls":4},{"$f":"VLOOKUP(C56,'Risk Assessment'!$A$4:$F$10,MATCH(D56,'Risk Assessment'!$A$4:$F$4,0),FALSE)","v":{"$error":"#N/A"}},{"$nulls":3},{"$f":"VLOOKUP(G56,'Risk Assessment'!$A$4:$F$10,MATCH(H56,'Risk Assessment'!$A$4:$F$4,0),FALSE)","v":{"$error":"#N/A"}}]
[{"$nulls":4},{"$f":"VLOOKUP(C57,'Risk Assessment'!$A$4:$F$10,MATCH(D57,'Risk Assessment'!$A$4:$F$4,0),FALSE)","v":{"$error":"#N/A"}},{"$nulls":3},{"$f":"VLOOKUP(G57,'Risk Assessment'!$A$4:$F$10,MATCH(H57,'Risk Assessment'!$A$4:$F$4,0),FALSE)","v":{"$error":"#N/A"}}]
[{"$nulls":4},{"$f":"VLOOKUP(C58,'Risk Assessment'!$A$4:$F$10,MATCH(D58,'Risk Assessment'!$A$4:$F$4,0),FALSE)","v":{"$error":"#N/A"}},{"$nulls":3},{"$f":"VLOOKUP(G58,'Risk Assessment'!$A$4:$F$10,MATCH(H58,'Risk Assessment'!$A$4:$F$4,0),FALSE)","v":{"$error":"#N/A"}}]
[{"$nulls":4},{"$f":"VLOOKUP(C59,'Risk Assessment'!$A$4:$F$10,MATCH(D59,'Risk Assessment'!$A$4:$F$4,0),FALSE)","v":{"$error":"#N/A"}},{"$nulls":3},{"$f":"VLOOKUP(G59,'Risk Assessment'!$A$4:$F$10,MATCH(H59,'Risk Assessment'!$A$4:$F$4,0),FALSE)","v":{"$error":"#N/A"}}]
[{"$nulls":4},{"$f":"VLOOKUP(C60,'Risk Assessment'!$A$4:$F$10,MATCH(D60,'Risk Assessment'!$A$4:$F$4,0),FALSE)","v":{"$error":"#N/A"}},{"$nulls":3},{"$f":"VLOOKUP(G60,'Risk Assessment'!$A$4:$F$10,MATCH(H60,'Risk Assessment'!$A$4:$F$4,0),FALSE)","v":{"$error":"#N/A"}}]
[{"$nulls":4},{"$f":"VLOOKUP(C61,'Risk Assessment'!$A$4:$F$10,MATCH(D61,'Risk Assessment'!$A$4:$F$4,0),FALSE)","v":{"$error":"#N/A"}},{"$nulls":3},{"$f":"VLOOKUP(G61,'Risk Assessment'!$A$4:$F$10,MATCH(H61,'Risk Assessment'!$A$4:$F$4,0),FALSE)","v":{"$error":"#N/A"}}]
[{"$nulls":4},{"$f":"VLOOKUP(C62,'Risk Assessment'!$A$4:$F$10,MATCH(D62,'Risk Assessment'!$A$4:$F$4,0),FALSE)","v":{"$error":"#N/A"}},{"$nulls":3},{"$f":"VLOOKUP(G62,'Risk Assessment'!$A$4:$F$10,MATCH(H62,'Risk Assessment'!$A$4:$F$4,0),FALSE)","v":{"$error":"#N/A"}}]
[{"$nulls":4},{"$f":"VLOOKUP(C63,'Risk Assessment'!$A$4:$F$10,MATCH(D63,'Risk Assessment'!$A$4:$F$4,0),FALSE)","v":{"$error":"#N/A"}},{"$nulls":3},{"$f":"VLOOKUP(G63,'Risk Assessment'!$A$4:$F$10,MATCH(H63,'Risk Assessment'!$A$4:$F$4,0),FALSE)","v":{"$error":"#N/A"}}]
[{"$nulls":4},{"$f":"VLOOKUP(C64,'Risk Assessment'!$A$4:$F$10,MATCH(D64,'Risk Assessment'!$A$4:$F$4,0),FALSE)","v":{"$error":"#N/A"}},{"$nulls":3},{"$f":"VLOOKUP(G64,'Risk Assessment'!$A$4:$F$10,MATCH(H64,'Risk Assessment'!$A$4:$F$4,0),FALSE)","v":{"$error":"#N/A"}}]
[{"$nulls":4},{"$f":"VLOOKUP(C65,'Risk Assessment'!$A$4:$F$10,MATCH(D65,'Risk Assessment'!$A$4:$F$4,0),FALSE)","v":{"$error":"#N/A"}},{"$nulls":3},{"$f":"VLOOKUP(G65,'Risk Assessment'!$A$4:$F$10,MATCH(H65,'Risk Assessment'!$A$4:$F$4,0),FALSE)","v":{"$error":"#N/A"}}]
[{"$nulls":4},{"$f":"VLOOKUP(C66,'Risk Assessment'!$A$4:$F$10,MATCH(D66,'Risk Assessment'!$A$4:$F$4,0),FALSE)","v":{"$error":"#N/A"}},{"$nulls":3},{"$f":"VLOOKUP(G66,'Risk Assessment'!$A$4:$F$10,MATCH(H66,'Risk Assessment'!$A$4:$F$4,0),FALSE)","v":{"$error":"#N/A"}}]
[{"$nulls":4},{"$f":"VLOOKUP(C67,'Risk Assessment'!$A$4:$F$10,MATCH(D67,'Risk Assessment'!$A$4:$F$4,0),FALSE)","v":{"$error":"#N/A"}},{"$nulls":3},{"$f":"VLOOKUP(G67,'Risk Assessment'!$A$4:$F$10,MATCH(H67,'Risk Assessment'!$A$4:$F$4,0),FALSE)","v":{"$error":"#N/A"}}]
[{"$nulls":4},{"$f":"VLOOKUP(C68,'Risk Assessment'!$A$4:$F$10,MATCH(D68,'Risk Assessment'!$A$4:$F$4,0),FALSE)","v":{"$error":"#N/A"}},{"$nulls":3},{"$f":"VLOOKUP(G68,'Risk Assessment'!$A$4:$F$10,MATCH(H68,'Risk Assessment'!$A$4:$F$4,0),FALSE)","v":{"$error":"#N/A"}}]
[{"$nulls":4},{"$f":"VLOOKUP(C69,'Risk Assessment'!$A$4:$F$10,MATCH(D69,'Risk Assessment'!$A$4:$F$4,0),FALSE)","v":{"$error":"#N/A"}},{"$nulls":3},{"$f":"VLOOKUP(G69,'Risk Assessment'!$A$4:$F$10,MATCH(H69,'Risk Assessment'!$A$4:$F$4,0),FALSE)","v":{"$error":"#N/A"}}]
[{"$nulls":4},{"$f":"VLOOKUP(C70,'Risk Assessment'!$A$4:$F$10,MATCH(D70,'Risk Assessment'!$A$4:$F$4,0),FALSE)","v":{"$error":"#N/A"}},{"$nulls":3},{"$f":"VLOOKUP(G70,'Risk Assessment'!$A$4:$F$10,MATCH(H70,'Risk Assessment'!$A$4:$F$4,0),FALSE)","v":{"$error":"#N/A"}}]
[{"$nulls":4},{"$f":"VLOOKUP(C71,'Risk Assessment'!$A$4:$F$10,MATCH(D71,'Risk Assessment'!$A$4:$F$4,0),FALSE)","v":{"$error":"#N/A"}},{"$nulls":3},{"$f":"VLOOKUP(G71,'Risk Assessment'!$A$4:$F$10,MATCH(H71,'Risk Assessment'!$A$4:$F$4,0),FALSE)","v":{"$error":"#N/A"}}]
[{"$nulls":4},{"$f":"VLOOKUP(C72,'Risk Assessment'!$A$4:$F$10,MATCH(D72,'Risk Assessment'!$A$4:$F$4,0),FALSE)","v":{"$error":"#N/A"}},{"$nulls":3},{"$f":"VLOOKUP(G72,'Risk Assessment'!$A$4:$F$10,MATCH(H72,'Risk Assessment'!$A$4:$F$4,0),FALSE)","v":{"$error":"#N/A"}}]
[{"$nulls":4},{"$f":"VLOOKUP(C73,'Risk Assessment'!$A$4:$F$10,MATCH(D73,'Risk Assessment'!$A$4:$F$4,0),FALSE)","v":{"$error":"#N/A"}},{"$nulls":3},{"$f":"VLOOKUP(G73,'Risk Assessment'!$A$4:$F$10,MATCH(H73,'Risk Assessment'!$A$4:$F$4,0),FALSE)","v":{"$error":"#N/A"}}]
[{"$nulls":4},{"$f":"VLOOKUP(C74,'Risk Assessment'!$A$4:$F$10,MATCH(D74,'Risk Assessment'!$A$4:$F$4,0),FALSE)","v":{"$error":"#N/A"}},{"$nulls":3},{"$f":"VLOOKUP(G74,'Risk Assessment'!$A$4:$F$10,MATCH(H74,'Risk Assessment'!$A$4:$F$4,0),FALSE)","v":{"$error":"#N/A"}}]
[{"$nulls":4},{"$f":"VLOOKUP(C75,'Risk Assessment'!$A$4:$F$10,MATCH(D75,'Risk Assessment'!$A$4:$F$4,0),FALSE)","v":{"$error":"#N/A"}},{"$nulls":3},{"$f":"VLOOKUP(G75,'Risk Assessment'!$A$4:$F$10,MATCH(H75,'Risk Assessment'!$A$4:$F$4,0),FALSE)","v":{"$error":"#N/A"}}]
[{"$nulls":4},{"$f":"VLOOKUP(C76,'Risk Assessment'!$A$4:$F$10,MATCH(D76,'Risk Assessment'!$A$4:$F$4,0),FALSE)","v":{"$error":"#N/A"}},{"$nulls":3},{"$f":"VLOOKUP(G76,'Risk Assessment'!$A$4:$F$10,MATCH(H76,'Risk Assessment'!$A$4:$F$4,0),FALSE)","v":{"$error":"#N/A"}}]
[{"$nulls":4},{"$f":"VLOOKUP(C77,'Risk Assessment'!$A$4:$F$10,MATCH(D77,'Risk Assessment'!$A$4:$F$4,0),FALSE)","v":{"$error":"#N/A"}},{"$nulls":3},{"$f":"VLOOKUP(G77,'Risk Assessment'!$A$4:$F$10,MATCH(H77,'Risk Assessment'!$A$4:$F$4,0),FALSE)","v":{"$error":"#N/A"}}]

{"sheet":"Initiatives","index":10,"n_rows":77,"n_cols":9,"rows_kept":77}
{"$rows_empty":9}
[" HAZARD and RISK REGISTER ",null," WCC Practical Activities"]
["Refer to Hazard/Risk Management Procedure"]
[]
["Developed by: Matthew Smith Date: 13 February 2023"]
[" Approved by:  Cody Blackler Date: 13 February 2023"]
["Reviewed by: Cody Blackler and Matthew Smith  Date: 13 February 2023"]
[]
["(1) Identify all hazards, then determine a risk rating."]
["(2) Eliminate the risk. If not reasonably practicable then"]
["(3) Minimise the risk as far as reasonably practicable."]
["(4) Reassess and determine the residual risk"]
[]
["Where or what task?","Hazard and Harm?","Likelihood \n(Choose from drop list in cell)","Consequence \n(Choose from drop list in cell)","Rating","Action required to Eliminate (E) or Minimise (M). \n (controls, administration controls, personal protective equipment.)","Revised Likelihood","Revised Consequence","Residual Rating"]
["Participating ","Falls","Very likely","Major",{"$f":"VLOOKUP(C23,'Risk Assessment'!$A$4:$F$10,MATCH(D23,'Risk Assessment'!$A$4:$F$4,0),FALSE)","v":20},"E: hight related team building activities are not to be run by untrained instructors/leaders/adults ","Highly unlikely (rare)","Insignificant",{"$f":"VLOOKUP(G23,'Risk Assessment'!$A$4:$F$10,MATCH(H23,'Risk Assessment'!$A$4:$F$4,0),FALSE)","v":1}]
["Participating ","Stress: forced to participate","Likely","Moderate",{"$f":"VLOOKUP(C24,'Risk Assessment'!$A$4:$F$10,MATCH(D24,'Risk Assessment'!$A$4:$F$4,0),FALSE)","v":8},"E: Challenge by choice: participants who do not wish to partake or do not wish to partake in a part of an activity must be allowed to make that choice for themsleves. \nM: mild encoragement to try is ok however clients must make the choice themselves\nM: staff to encorage challenge by choice principles and encorage others in group (teachers, parents, peers, and other figures of authority within group) to do so as well\nE: adults/leaders retain the ability to remove people from initiatives group either temporarily or for the remainder of session for pressuring other clients, (Note: be mindful of using challenge by choice principles here too)","Highly unlikely (rare)","Insignificant",{"$f":"VLOOKUP(G24,'Risk Assessment'!$A$4:$F$10,MATCH(H24,'Risk Assessment'!$A$4:$F$4,0),FALSE)","v":1}]
["All tasks","Sunburn","Very likely","Moderate",{"$f":"VLOOKUP(C25,'Risk Assessment'!$A$4:$F$10,MATCH(D25,'Risk Assessment'!$A$4:$F$4,0),FALSE)","v":10},"M: Sunsmart principles applied.\nM: Advise clients to wear sunhats and apply sunblock","Unlikely","Moderate",{"$f":"VLOOKUP(G25,'Risk Assessment'!$A$4:$F$10,MATCH(H25,'Risk Assessment'!$A$4:$F$4,0),FALSE)","v":4}]
["All tasks","exposure","Unlikely","Extreme",{"$f":"VLOOKUP(C26,'Risk Assessment'!$A$4:$F$10,MATCH(D26,'Risk Assessment'!$A$4:$F$4,0),FALSE)","v":10},"M: Staff to recognise signs and symptoms of exposure illnesses (Heatstroke, Hypothermia, Hyperthermia and heat exhaustion)\nM: Advise clients of appropriate clothing for the activity and weather\nE: activity to be closed when exposure risk can not be effectivly managed (either through lack of appropriate client clothing or continually deteriorating weather. Note staff are expected to carry apropriate clothing for work in all conditions)","Highly unlikely (rare)","Extreme",{"$f":"VLOOKUP(G26,'Risk Assessment'!$A$4:$F$10,MATCH(H26,'Risk Assessment'!$A$4:$F$4,0),FALSE)","v":5}]
["All tasks","Slips, trips and falls","Very likely","Significant",{"$f":"VLOOKUP(C27,'Risk Assessment'!$A$4:$F$10,MATCH(D27,'Risk Assessment'!$A$4:$F$4,0),FALSE)","v":15},"M: 6 monthly inspection to ensure no excessive obstacles in surrounding area","Highly unlikely (rare)","Moderate",{"$f":"VLOOKUP(G27,'Risk Assessment'!$A$4:$F$10,MATCH(H27,'Risk Assessment'!$A$4:$F$4,0),FALSE)","v":2}]
["Participating, Instructing, Inspection","Splinters","Very likely","Insignificant",{"$f":"VLOOKUP(C28,'Risk Assessment'!$A$4:$F$10,MATCH(D28,'Risk Assessment'!$A$4:$F$4,0),FALSE)","v":5},"M: 6 monthly inspection to ensure no excessive obstacles in surrounding area","Likely","Insignificant",{"$f":"VLOOKUP(G28,'Risk Assessment'!$A$4:$F$10,MATCH(H28,'Risk Assessment'!$A$4:$F$4,0),FALSE)","v":4}]
["Participating, Instructing","kicked, hit or colided with/by another client","Very likely","Significant",{"$f":"VLOOKUP(C29,'Risk Assessment'!$A$4:$F$10,MATCH(D29,'Risk Assessment'!$A$4:$F$4,0),FALSE)","v":15},"M: brief users to be careful and considerate of others\nM: spotters to be mindful of where limbs are going and help prevent any types of collisions","Moderate","Moderate",{"$f":"VLOOKUP(G29,'Risk Assessment'!$A$4:$F$10,MATCH(H29,'Risk Assessment'!$A$4:$F$4,0),FALSE)","v":6}]
["Participating, Instructing","injury by being stepped on ","Very likely","Moderate",{"$f":"VLOOKUP(C30,'Risk Assessment'!$A$4:$F$10,MATCH(D30,'Risk Assessment'!$A$4:$F$4,0),FALSE)","v":10},"M: brief users to be careful and considerate of others\nM: spotters to be mindful of where limbs are going and help prevent any types of collisions","Moderate","Moderate",{"$f":"VLOOKUP(G30,'Risk Assessment'!$A$4:$F$10,MATCH(H30,'Risk Assessment'!$A$4:$F$4,0),FALSE)","v":6}]
["Participating","emotional stress: clients arguing/blaming each other ","Very likely","Moderate",{"$f":"VLOOKUP(C31,'Risk Assessment'!$A$4:$F$10,MATCH(D31,'Risk Assessment'!$A$4:$F$4,0),FALSE)","v":10},"M: debrief participants properly to help discuss challenges of the activity\nM: instructor to use professional judgement/discernment on adherance to success criteria","Moderate","Insignificant",{"$f":"VLOOKUP(G31,'Risk Assessment'!$A$4:$F$10,MATCH(H31,'Risk Assessment'!$A$4:$F$4,0),FALSE)","v":3}]
[{"$nulls":4},{"$f":"VLOOKUP(C32,'Risk Assessment'!$A$4:$F$10,MATCH(D32,'Risk Assessment'!$A$4:$F$4,0),FALSE)","v":{"$error":"#N/A"}},{"$nulls":3},{"$f":"VLOOKUP(G32,'Risk Assessment'!$A$4:$F$10,MATCH(H32,'Risk Assessment'!$A$4:$F$4,0),FALSE)","v":{"$error":"#N/A"}}]
[{"$nulls":4},{"$f":"VLOOKUP(C33,'Risk Assessment'!$A$4:$F$10,MATCH(D33,'Risk Assessment'!$A$4:$F$4,0),FALSE)","v":{"$error":"#N/A"}},{"$nulls":3},{"$f":"VLOOKUP(G33,'Risk Assessment'!$A$4:$F$10,MATCH(H33,'Risk Assessment'!$A$4:$F$4,0),FALSE)","v":{"$error":"#N/A"}}]
[{"$nulls":4},{"$f":"VLOOKUP(C34,'Risk Assessment'!$A$4:$F$10,MATCH(D34,'Risk Assessment'!$A$4:$F$4,0),FALSE)","v":{"$error":"#N/A"}},{"$nulls":3},{"$f":"VLOOKUP(G34,'Risk Assessment'!$A$4:$F$10,MATCH(H34,'Risk Assessment'!$A$4:$F$4,0),FALSE)","v":{"$error":"#N/A"}}]
[{"$nulls":4},{"$f":"VLOOKUP(C35,'Risk Assessment'!$A$4:$F$10,MATCH(D35,'Risk Assessment'!$A$4:$F$4,0),FALSE)","v":{"$error":"#N/A"}},{"$nulls":3},{"$f":"VLOOKUP(G35,'Risk Assessment'!$A$4:$F$10,MATCH(H35,'Risk Assessment'!$A$4:$F$4,0),FALSE)","v":{"$error":"#N/A"}}]
[{"$nulls":4},{"$f":"VLOOKUP(C36,'Risk Assessment'!$A$4:$F$10,MATCH(D36,'Risk Assessment'!$A$4:$F$4,0),FALSE)","v":{"$error":"#N/A"}},{"$nulls":3},{"$f":"VLOOKUP(G36,'Risk Assessment'!$A$4:$F$10,MATCH(H36,'Risk Assessment'!$A$4:$F$4,0),FALSE)","v":{"$error":"#N/A"}}]
[{"$nulls":4},{"$f":"VLOOKUP(C37,'Risk Assessment'!$A$4:$F$10,MATCH(D37,'Risk Assessment'!$A$4:$F$4,0),FALSE)","v":{"$error":"#N/A"}},{"$nulls":3},{"$f":"VLOOKUP(G37,'Risk Assessment'!$A$4:$F$10,MATCH(H37,'Risk Assessment'!$A$4:$F$4,0),FALSE)","v":{"$error":"#N/A"}}]
[{"$nulls":4},{"$f":"VLOOKUP(C38,'Risk Assessment'!$A$4:$F$10,MATCH(D38,'Risk Assessment'!$A$4:$F$4,0),FALSE)","v":{"$error":"#N/A"}},{"$nulls":3},{"$f":"VLOOKUP(G38,'Risk Assessment'!$A$4:$F$10,MATCH(H38,'Risk Assessment'!$A$4:$F$4,0),FALSE)","v":{"$error":"#N/A"}}]
[{"$nulls":4},{"$f":"VLOOKUP(C39,'Risk Assessment'!$A$4:$F$10,MATCH(D39,'Risk Assessment'!$A$4:$F$4,0),FALSE)","v":{"$error":"#N/A"}},{"$nulls":3},{"$f":"VLOOKUP(G39,'Risk Assessment'!$A$4:$F$10,MATCH(H39,'Risk Assessment'!$A$4:$F$4,0),FALSE)","v":{"$error":"#N/A"}}]
[{"$nulls":4},{"$f":"VLOOKUP(C40,'Risk Assessment'!$A$4:$F$10,MATCH(D40,'Risk Assessment'!$A$4:$F$4,0),FALSE)","v":{"$error":"#N/A"}},{"$nulls":3},{"$f":"VLOOKUP(G40,'Risk Assessment'!$A$4:$F$10,MATCH(H40,'Risk Assessment'!$A$4:$F$4,0),FALSE)","v":{"$error":"#N/A"}}]
[{"$nulls":4},{"$f":"VLOOKUP(C41,'Risk Assessment'!$A$4:$F$10,MATCH(D41,'Risk Assessment'!$A$4:$F$4,0),FALSE)","v":{"$error":"#N/A"}},{"$nulls":3},{"$f":"VLOOKUP(G41,'Risk Assessment'!$A$4:$F$10,MATCH(H41,'Risk Assessment'!$A$4:$F$4,0),FALSE)","v":{"$error":"#N/A"}}]
[{"$nulls":4},{"$f":"VLOOKUP(C42,'Risk Assessment'!$A$4:$F$10,MATCH(D42,'Risk Assessment'!$A$4:$F$4,0),FALSE)","v":{"$error":"#N/A"}},{"$nulls":3},{"$f":"VLOOKUP(G42,'Risk Assessment'!$A$4:$F$10,MATCH(H42,'Risk Assessment'!$A$4:$F$4,0),FALSE)","v":{"$error":"#N/A"}}]
[{"$nulls":4},{"$f":"VLOOKUP(C43,'Risk Assessment'!$A$4:$F$10,MATCH(D43,'Risk Assessment'!$A$4:$F$4,0),FALSE)","v":{"$error":"#N/A"}},{"$nulls":3},{"$f":"VLOOKUP(G43,'Risk Assessment'!$A$4:$F$10,MATCH(H43,'Risk Assessment'!$A$4:$F$4,0),FALSE)","v":{"$error":"#N/A"}}]
[{"$nulls":4},{"$f":"VLOOKUP(C44,'Risk Assessment'!$A$4:$F$10,MATCH(D44,'Risk Assessment'!$A$4:$F$4,0),FALSE)","v":{"$error":"#N/A"}},{"$nulls":3},{"$f":"VLOOKUP(G44,'Risk Assessment'!$A$4:$F$10,MATCH(H44,'Risk Assessment'!$A$4:$F$4,0),FALSE)","v":{"$error":"#N/A"}}]
[{"$nulls":4},{"$f":"VLOOKUP(C45,'Risk Assessment'!$A$4:$F$10,MATCH(D45,'Risk Assessment'!$A$4:$F$4,0),FALSE)","v":{"$error":"#N/A"}},{"$nulls":3},{"$f":"VLOOKUP(G45,'Risk Assessment'!$A$4:$F$10,MATCH(H45,'Risk Assessment'!$A$4:$F$4,0),FALSE)","v":{"$error":"#N/A"}}]
[{"$nulls":4},{"$f":"VLOOKUP(C46,'Risk Assessment'!$A$4:$F$10,MATCH(D46,'Risk Assessment'!$A$4:$F$4,0),FALSE)","v":{"$error":"#N/A"}},{"$nulls":3},{"$f":"VLOOKUP(G46,'Risk Assessment'!$A$4:$F$10,MATCH(H46,'Risk Assessment'!$A$4:$F$4,0),FALSE)","v":{"$error":"#N/A"}}]
[{"$nulls":4},{"$f":"VLOOKUP(C47,'Risk Assessment'!$A$4:$F$10,MATCH(D47,'Risk Assessment'!$A$4:$F$4,0),FALSE)","v":{"$error":"#N/A"}},{"$nulls":3},{"$f":"VLOOKUP(G47,'Risk Assessment'!$A$4:$F$10,MATCH(H47,'Risk Assessment'!$A$4:$F$4,0),FALSE)","v":{"$error":"#N/A"}}]
[{"$nulls":4},{"$f":"VLOOKUP(C48,'Risk Assessment'!$A$4:$F$10,MATCH(D48,'Risk Assessment'!$A$4:$F$4,0),FALSE)","v":{"$error":"#N/A"}},{"$nulls":3},{"$f":"VLOOKUP(G48,'Risk Assessment'!$A$4:$F$10,MATCH(H48,'Risk Assessment'!$A$4:$F$4,0),FALSE)","v":{"$error":"#N/A"}}]
[{"$nulls":4},{"$f":"VLOOKUP(C49,'Risk Assessment'!$A$4:$F$10,MATCH(D49,'Risk Assessment'!$A$4:$F$4,0),FALSE)","v":{"$error":"#N/A"}},{"$nulls":3},{"$f":"VLOOKUP(G49,'Risk Assessment'!$A$4:$F$10,MATCH(H49,'Risk Assessment'!$A$4:$F$4,0),FALSE)","v":{"$error":"#N/A"}}]
[{"$nulls":4},{"$f":"VLOOKUP(C50,'Risk Assessment'!$A$4:$F$10,MATCH(D50,'Risk Assessment'!$A$4:$F$4,0),FALSE)","v":{"$error":"#N/A"}},{"$nulls":3},{"$f":"VLOOKUP(G50,'Risk Assessment'!$A$4:$F$10,MATCH(H50,'Risk Assessment'!$A$4:$F$4,0),FALSE)","v":{"$error":"#N/A"}}]
[{"$nulls":4},{"$f":"VLOOKUP(C51,'Risk Assessment'!$A$4:$F$10,MATCH(D51,'Risk Assessment'!$A$4:$F$4,0),FALSE)","v":{"$error":"#N/A"}},{"$nulls":3},{"$f":"VLOOKUP(G51,'Risk Assessment'!$A$4:$F$10,MATCH(H51,'Risk Assessment'!$A$4:$F$4,0),FALSE)","v":{"$error":"#N/A"}}]
[{"$nulls":4},{"$f":"VLOOKUP(C52,'Risk Assessment'!$A$4:$F$10,MATCH(D52,'Risk Assessment'!$A$4:$F$4,0),FALSE)","v":{"$error":"#N/A"}},{"$nulls":3},{"$f":"VLOOKUP(G52,'Risk Assessment'!$A$4:$F$10,MATCH(H52,'Risk Assessment'!$A$4:$F$4,0),FALSE)","v":{"$error":"#N/A"}}]
[{"$nulls":4},{"$f":"VLOOKUP(C53,'Risk Assessment'!$A$4:$F$10,MATCH(D53,'Risk Assessment'!$A$4:$F$4,0),FALSE)","v":{"$error":"#N/A"}},{"$nulls":3},{"$f":"VLOOKUP(G53,'Risk Assessment'!$A$4:$F$10,MATCH(H53,'Risk Assessment'!$A$4:$F$4,0),FALSE)","v":{"$error":"#N/A"}}]
[{"$nulls":4},{"$f":"VLOOKUP(C54,'Risk Assessment'!$A$4:$F$10,MATCH(D54,'Risk Assessment'!$A$4:$F$4,0),FALSE)","v":{"$error":"#N/A"}},{"$nulls":3},{"$f":"VLOOKUP(G54,'Risk Assessment'!$A$4:$F$10,MATCH(H54,'Risk Assessment'!$A$4:$F$4,0),FALSE)","v":{"$error":"#N/A"}}]
[{"$nulls":4},{"$f":"VLOOKUP(C55,'Risk Assessment'!$A$4:$F$10,MATCH(D55,'Risk Assessment'!$A$4:$F$4,0),FALSE)","v":{"$error":"#N/A"}},{"$nulls":3},{"$f":"VLOOKUP(G55,'Risk Assessment'!$A$4:$F$10,MATCH(H55,'Risk Assessment'!$A$4:$F$4,0),FALSE)","v":{"$error":"#N/A"}}]
[{"$nulls":4},{"$f":"VLOOKUP(C56,'Risk Assessment'!$A$4:$F$10,MATCH(D56,'Risk Assessment'!$A$4:$F$4,0),FALSE)","v":{"$error":"#N/A"}},{"$nulls":3},{"$f":"VLOOKUP(G56,'Risk Assessment'!$A$4:$F$10,MATCH(H56,'Risk Assessment'!$A$4:$F$4,0),FALSE)","v":{"$error":"#N/A"}}]
[{"$nulls":4},{"$f":"VLOOKUP(C57,'Risk Assessment'!$A$4:$F$10,MATCH(D57,'Risk Assessment'!$A$4:$F$4,0),FALSE)","v":{"$error":"#N/A"}},{"$nulls":3},{"$f":"VLOOKUP(G57,'Risk Assessment'!$A$4:$F$10,MATCH(H57,'Risk Assessment'!$A$4:$F$4,0),FALSE)","v":{"$error":"#N/A"}}]
[{"$nulls":4},{"$f":"VLOOKUP(C58,'Risk Assessment'!$A$4:$F$10,MATCH(D58,'Risk Assessment'!$A$4:$F$4,0),FALSE)","v":{"$error":"#N/A"}},{"$nulls":3},{"$f":"VLOOKUP(G58,'Risk Assessment'!$A$4:$F$10,MATCH(H58,'Risk Assessment'!$A$4:$F$4,0),FALSE)","v":{"$error":"#N/A"}}]
[{"$nulls":4},{"$f":"VLOOKUP(C59,'Risk Assessment'!$A$4:$F$10,MATCH(D59,'Risk Assessment'!$A$4:$F$4,0),FALSE)","v":{"$error":"#N/A"}},{"$nulls":3},{"$f":"VLOOKUP(G59,'Risk Assessment'!$A$4:$F$10,MATCH(H59,'Risk Assessment'!$A$4:$F$4,0),FALSE)","v":{"$error":"#N/A"}}]
[{"$nulls":4},{"$f":"VLOOKUP(C60,'Risk Assessment'!$A$4:$F$10,MATCH(D60,'Risk Assessment'!$A$4:$F$4,0),FALSE)","v":{"$error":"#N/A"}},{"$nulls":3},{"$f":"VLOOKUP(G60,'Risk Assessment'!$A$4:$F$10,MATCH(H60,'Risk Assessment'!$A$4:$F$4,0),FALSE)","v":{"$error":"#N/A"}}]
[{"$nulls":4},{"$f":"VLOOKUP(C61,'Risk Assessment'!$A$4:$F$10,MATCH(D61,'Risk Assessment'!$A$4:$F$4,0),FALSE)","v":{"$error":"#N/A"}},{"$nulls":3},{"$f":"VLOOKUP(G61,'Risk Assessment'!$A$4:$F$10,MATCH(H61,'Risk Assessment'!$A$4:$F$4,0),FALSE)","v":{"$error":"#N/A"}}]
[{"$nulls":4},{"$f":"VLOOKUP(C62,'Risk Assessment'!$A$4:$F$10,MATCH(D62,'Risk Assessment'!$A$4:$F$4,0),FALSE)","v":{"$error":"#N/A"}},{"$nulls":3},{"$f":"VLOOKUP(G62,'Risk Assessment'!$A$4:$F$10,MATCH(H62,'Risk Assessment'!$A$4:$F$4,0),FALSE)","v":{"$error":"#N/A"}}]
[{"$nulls":4},{"$f":"VLOOKUP(C63,'Risk Assessment'!$A$4:$F$10,MATCH(D63,'Risk Assessment'!$A$4:$F$4,0),FALSE)","v":{"$error":"#N/A"}},{"$nulls":3},{"$f":"VLOOKUP(G63,'Risk Assessment'!$A$4:$F$10,MATCH(H63,'Risk Assessment'!$A$4:$F$4,0),FALSE)","v":{"$error":"#N/A"}}]
[{"$nulls":4},{"$f":"VLOOKUP(C64,'Risk Assessment'!$A$4:$F$10,MATCH(D64,'Risk Assessment'!$A$4:$F$4,0),FALSE)","v":{"$error":"#N/A"}},{"$nulls":3},{"$f":"VLOOKUP(G64,'Risk Assessment'!$A$4:$F$10,MATCH(H64,'Risk Assessment'!$A$4:$F$4,0),FALSE)","v":{"$error":"#N/A"}}]
[{"$nulls":4},{"$f":"VLOOKUP(C65,'Risk Assessment'!$A$4:$F$10,MATCH(D65,'Risk Assessment'!$A$4:$F$4,0),FALSE)","v":{"$error":"#N/A"}},{"$nulls":3},{"$f":"VLOOKUP(G65,'Risk Assessment'!$A$4:$F$10,MATCH(H65,'Risk Assessment'!$A$4:$F$4,0),FALSE)","v":{"$error":"#N/A"}}]
[{"$nulls":4},{"$f":"VLOOKUP(C66,'Risk Assessment'!$A$4:$F$10,MATCH(D66,'Risk Assessment'!$A$4:$F$4,0),FALSE)","v":{"$error":"#N/A"}},{"$nulls":3},{"$f":"VLOOKUP(G66,'Risk Assessment'!$A$4:$F$10,MATCH(H66,'Risk Assessment'!$A$4:$F$4,0),FALSE)","v":{"$error":"#N/A"}}]
[{"$nulls":4},{"$f":"VLOOKUP(C67,'Risk Assessment'!$A$4:$F$10,MATCH(D67,'Risk Assessment'!$A$4:$F$4,0),FALSE)","v":{"$error":"#N/A"}},{"$nulls":3},{"$f":"VLOOKUP(G67,'Risk Assessment'!$A$4:$F$10,MATCH(H67,'Risk Assessment'!$A$4:$F$4,0),FALSE)","v":{"$error":"#N/A"}}]
[{"$nulls":4},{"$f":"VLOOKUP(C68,'Risk Assessment'!$A$4:$F$10,MATCH(D68,'Risk Assessment'!$A$4:$F$4,0),FALSE)","v":{"$error":"#N/A"}},{"$nulls":3},{"$f":"VLOOKUP(G68,'Risk Assessment'!$A$4:$F$10,MATCH(H68,'Risk Assessment'!$A$4:$F$4,0),FALSE)","v":{"$error":"#N/A"}}]
[{"$nulls":4},{"$f":"VLOOKUP(C69,'Risk Assessment'!$A$4:$F$10,MATCH(D69,'Risk Assessment'!$A$4:$F$4,0),FALSE)","v":{"$error":"#N/A"}},{"$nulls":3},{"$f":"VLOOKUP(G69,'Risk Assessment'!$A$4:$F$10,MATCH(H69,'Risk Assessment'!$A$4:$F$4,0),FALSE)","v":{"$error":"#N/A"}}]
[{"$nulls":4},{"$f":"VLOOKUP(C70,'Risk Assessment'!$A$4:$F$10,MATCH(D70,'Risk Assessment'!$A$4:$F$4,0),FALSE)","v":{"$error":"#N/A"}},{"$nulls":3},{"$f":"VLOOKUP(G70,'Risk Assessment'!$A$4:$F$10,MATCH(H70,'Risk Assessment'!$A$4:$F$4,0),FALSE)","v":{"$error":"#N/A"}}]
[{"$nulls":4},{"$f":"VLOOKUP(C71,'Risk Assessment'!$A$4:$F$10,MATCH(D71,'Risk Assessment'!$A$4:$F$4,0),FALSE)","v":{"$error":"#N/A"}},{"$nulls":3},{"$f":"VLOOKUP(G71,'Risk Assessment'!$A$4:$F$10,MATCH(H71,'Risk Assessment'!$A$4:$F$4,0),FALSE)","v":{"$error":"#N/A"}}]
[{"$nulls":4},{"$f":"VLOOKUP(C72,'Risk Assessment'!$A$4:$F$10,MATCH(D72,'Risk Assessment'!$A$4:$F$4,0),FALSE)","v":{"$error":"#N/A"}},{"$nulls":3},{"$f":"VLOOKUP(G72,'Risk Assessment'!$A$4:$F$10,MATCH(H72,'Risk Assessment'!$A$4:$F$4,0),FALSE)","v":{"$error":"#N/A"}}]
[{"$nulls":4},{"$f":"VLOOKUP(C73,'Risk Assessment'!$A$4:$F$10,MATCH(D73,'Risk Assessment'!$A$4:$F$4,0),FALSE)","v":{"$error":"#N/A"}},{"$nulls":3},{"$f":"VLOOKUP(G73,'Risk Assessment'!$A$4:$F$10,MATCH(H73,'Risk Assessment'!$A$4:$F$4,0),FALSE)","v":{"$error":"#N/A"}}]
[{"$nulls":4},{"$f":"VLOOKUP(C74,'Risk Assessment'!$A$4:$F$10,MATCH(D74,'Risk Assessment'!$A$4:$F$4,0),FALSE)","v":{"$error":"#N/A"}},{"$nulls":3},{"$f":"VLOOKUP(G74,'Risk Assessment'!$A$4:$F$10,MATCH(H74,'Risk Assessment'!$A$4:$F$4,0),FALSE)","v":{"$error":"#N/A"}}]
[{"$nulls":4},{"$f":"VLOOKUP(C75,'Risk Assessment'!$A$4:$F$10,MATCH(D75,'Risk Assessment'!$A$4:$F$4,0),FALSE)","v":{"$error":"#N/A"}},{"$nulls":3},{"$f":"VLOOKUP(G75,'Risk Assessment'!$A$4:$F$10,MATCH(H75,'Risk Assessment'!$A$4:$F$4,0),FALSE)","v":{"$error":"#N/A"}}]
[{"$nulls":4},{"$f":"VLOOKUP(C76,'Risk Assessment'!$A$4:$F$10,MATCH(D76,'Risk Assessment'!$A$4:$F$4,0),FALSE)","v":{"$error":"#N/A"}},{"$nulls":3},{"$f":"VLOOKUP(G76,'Risk Assessment'!$A$4:$F$10,MATCH(H76,'Risk Assessment'!$A$4:$F$4,0),FALSE)","v":{"$error":"#N/A"}}]
[{"$nulls":4},{"$f":"VLOOKUP(C77,'Risk Assessment'!$A$4:$F$10,MATCH(D77,'Risk Assessment'!$A$4:$F$4,0),FALSE)","v":{"$error":"#N/A"}},{"$nulls":3},{"$f":"VLOOKUP(G77,'Risk Assessment'!$A$4:$F$10,MATCH(H77,'Risk Assessment'!$A$4:$F$4,0),FALSE)","v":{"$error":"#N/A"}}]

{"sheet":"Air rifles","index":11,"n_rows":77,"n_cols":9,"rows_kept":77}
{"$rows_empty":9}
[" HAZARD and RISK REGISTER ",null," WCC Practical Activities"]
["Refer to Hazard/Risk Management Procedure"]
[]
["Developed by: Matthew Smith Date: 25 May 2022."]
[" Approved by: Cody Blackler   Date: 10 August 2022"]
["Reviewed by: Cody Blackler and Matthew Smith  Date: 11 August 2022"]
[]
["(1) Identify all hazards, then determine a risk rating."]
["(2) Eliminate the risk. If not reasonably practicable then"]
["(3) Minimise the risk as far as reasonably practicable."]
["(4) Reassess and determine the residual risk"]
[]
["Where or what task?","Hazard and Harm?","Likelihood \n(Choose from drop list in cell)","Consequence \n(Choose from drop list in cell)","Rating","Action required to Eliminate (E) or Minimise (M). \n (controls, administration controls, personal protective equipment.)","Revised Likelihood","Revised Consequence","Residual Rating"]
["All tasks","Being shot","Moderate","Extreme",{"$f":"VLOOKUP(C23,'Risk Assessment'!$A$4:$F$10,MATCH(D23,'Risk Assessment'!$A$4:$F$4,0),FALSE)","v":15},"M: barrels around rifles so that it is not as easy to turn around with rifle away from the firing range\nM: rifles loaded, cocked and placed in barrel by adult/leader before user is given rifle\nM: users breifed to only point rifle at the ground or down range \nM: users breifed to always treat guns as loaded","Highly unlikely (rare)","Extreme",{"$f":"VLOOKUP(G23,'Risk Assessment'!$A$4:$F$10,MATCH(H23,'Risk Assessment'!$A$4:$F$4,0),FALSE)","v":5}]
["All tasks","Being hit by ricochet","Likely","Major",{"$f":"VLOOKUP(C24,'Risk Assessment'!$A$4:$F$10,MATCH(D24,'Risk Assessment'!$A$4:$F$4,0),FALSE)","v":16},"M: protective eyeware to be worn at all times by users, and adults/leaders","Likely","Insignificant",{"$f":"VLOOKUP(G24,'Risk Assessment'!$A$4:$F$10,MATCH(H24,'Risk Assessment'!$A$4:$F$4,0),FALSE)","v":4}]
["All tasks","Sunburn","Very likely","Moderate",{"$f":"VLOOKUP(C25,'Risk Assessment'!$A$4:$F$10,MATCH(D25,'Risk Assessment'!$A$4:$F$4,0),FALSE)","v":10},"M: Sunsmart principles applied.\nM: Advise clients to wear sunhats and apply sunblock","Unlikely","Moderate",{"$f":"VLOOKUP(G25,'Risk Assessment'!$A$4:$F$10,MATCH(H25,'Risk Assessment'!$A$4:$F$4,0),FALSE)","v":4}]
["Shooting","Hit by recoil ","Very likely","Moderate",{"$f":"VLOOKUP(C26,'Risk Assessment'!$A$4:$F$10,MATCH(D26,'Risk Assessment'!$A$4:$F$4,0),FALSE)","v":10},"M: brief users on position of rifle\nM: users to wear safety glasses","Highly unlikely (rare)","Insignificant",{"$f":"VLOOKUP(G26,'Risk Assessment'!$A$4:$F$10,MATCH(H26,'Risk Assessment'!$A$4:$F$4,0),FALSE)","v":1}]
["Instructing ","Pinched fingers when reloading/cocking rifle ","Very likely","Insignificant",{"$f":"VLOOKUP(C27,'Risk Assessment'!$A$4:$F$10,MATCH(D27,'Risk Assessment'!$A$4:$F$4,0),FALSE)","v":5},"M:  observe adults/leaders loading/firing rifle before giving competency signoff to ensure capable","Unlikely","Insignificant",{"$f":"VLOOKUP(G27,'Risk Assessment'!$A$4:$F$10,MATCH(H27,'Risk Assessment'!$A$4:$F$4,0),FALSE)","v":2}]
["All tasks","Exposure","Unlikely","Extreme",{"$f":"VLOOKUP(C28,'Risk Assessment'!$A$4:$F$10,MATCH(D28,'Risk Assessment'!$A$4:$F$4,0),FALSE)","v":10},"M: Staff to recognise signs and symptoms of exposure illnesses (Heatstroke, Hypothermia, Hyperthermia and heat exhaustion)\nM: Advise clients of appropriate clothing for the activity and weather\nE: activity to be closed when exposure risk can not be effectivly managed (either through lack of appropriate client clothing or continually deteriorating weather. Note staff are expected to carry apropriate clothing for work in all conditions)","Highly unlikely (rare)","Extreme",{"$f":"VLOOKUP(G28,'Risk Assessment'!$A$4:$F$10,MATCH(H28,'Risk Assessment'!$A$4:$F$4,0),FALSE)","v":5}]
[{"$nulls":4},{"$f":"VLOOKUP(C29,'Risk Assessment'!$A$4:$F$10,MATCH(D29,'Risk Assessment'!$A$4:$F$4,0),FALSE)","v":{"$error":"#N/A"}},{"$nulls":3},{"$f":"VLOOKUP(G29,'Risk Assessment'!$A$4:$F$10,MATCH(H29,'Risk Assessment'!$A$4:$F$4,0),FALSE)","v":{"$error":"#N/A"}}]
[{"$nulls":4},{"$f":"VLOOKUP(C30,'Risk Assessment'!$A$4:$F$10,MATCH(D30,'Risk Assessment'!$A$4:$F$4,0),FALSE)","v":{"$error":"#N/A"}},{"$nulls":3},{"$f":"VLOOKUP(G30,'Risk Assessment'!$A$4:$F$10,MATCH(H30,'Risk Assessment'!$A$4:$F$4,0),FALSE)","v":{"$error":"#N/A"}}]
[{"$nulls":4},{"$f":"VLOOKUP(C31,'Risk Assessment'!$A$4:$F$10,MATCH(D31,'Risk Assessment'!$A$4:$F$4,0),FALSE)","v":{"$error":"#N/A"}},{"$nulls":3},{"$f":"VLOOKUP(G31,'Risk Assessment'!$A$4:$F$10,MATCH(H31,'Risk Assessment'!$A$4:$F$4,0),FALSE)","v":{"$error":"#N/A"}}]
[{"$nulls":4},{"$f":"VLOOKUP(C32,'Risk Assessment'!$A$4:$F$10,MATCH(D32,'Risk Assessment'!$A$4:$F$4,0),FALSE)","v":{"$error":"#N/A"}},{"$nulls":3},{"$f":"VLOOKUP(G32,'Risk Assessment'!$A$4:$F$10,MATCH(H32,'Risk Assessment'!$A$4:$F$4,0),FALSE)","v":{"$error":"#N/A"}}]
[{"$nulls":4},{"$f":"VLOOKUP(C33,'Risk Assessment'!$A$4:$F$10,MATCH(D33,'Risk Assessment'!$A$4:$F$4,0),FALSE)","v":{"$error":"#N/A"}},{"$nulls":3},{"$f":"VLOOKUP(G33,'Risk Assessment'!$A$4:$F$10,MATCH(H33,'Risk Assessment'!$A$4:$F$4,0),FALSE)","v":{"$error":"#N/A"}}]
[{"$nulls":4},{"$f":"VLOOKUP(C34,'Risk Assessment'!$A$4:$F$10,MATCH(D34,'Risk Assessment'!$A$4:$F$4,0),FALSE)","v":{"$error":"#N/A"}},{"$nulls":3},{"$f":"VLOOKUP(G34,'Risk Assessment'!$A$4:$F$10,MATCH(H34,'Risk Assessment'!$A$4:$F$4,0),FALSE)","v":{"$error":"#N/A"}}]
[{"$nulls":4},{"$f":"VLOOKUP(C35,'Risk Assessment'!$A$4:$F$10,MATCH(D35,'Risk Assessment'!$A$4:$F$4,0),FALSE)","v":{"$error":"#N/A"}},{"$nulls":3},{"$f":"VLOOKUP(G35,'Risk Assessment'!$A$4:$F$10,MATCH(H35,'Risk Assessment'!$A$4:$F$4,0),FALSE)","v":{"$error":"#N/A"}}]
[{"$nulls":4},{"$f":"VLOOKUP(C36,'Risk Assessment'!$A$4:$F$10,MATCH(D36,'Risk Assessment'!$A$4:$F$4,0),FALSE)","v":{"$error":"#N/A"}},{"$nulls":3},{"$f":"VLOOKUP(G36,'Risk Assessment'!$A$4:$F$10,MATCH(H36,'Risk Assessment'!$A$4:$F$4,0),FALSE)","v":{"$error":"#N/A"}}]
[{"$nulls":4},{"$f":"VLOOKUP(C37,'Risk Assessment'!$A$4:$F$10,MATCH(D37,'Risk Assessment'!$A$4:$F$4,0),FALSE)","v":{"$error":"#N/A"}},{"$nulls":3},{"$f":"VLOOKUP(G37,'Risk Assessment'!$A$4:$F$10,MATCH(H37,'Risk Assessment'!$A$4:$F$4,0),FALSE)","v":{"$error":"#N/A"}}]
[{"$nulls":4},{"$f":"VLOOKUP(C38,'Risk Assessment'!$A$4:$F$10,MATCH(D38,'Risk Assessment'!$A$4:$F$4,0),FALSE)","v":{"$error":"#N/A"}},{"$nulls":3},{"$f":"VLOOKUP(G38,'Risk Assessment'!$A$4:$F$10,MATCH(H38,'Risk Assessment'!$A$4:$F$4,0),FALSE)","v":{"$error":"#N/A"}}]
[{"$nulls":4},{"$f":"VLOOKUP(C39,'Risk Assessment'!$A$4:$F$10,MATCH(D39,'Risk Assessment'!$A$4:$F$4,0),FALSE)","v":{"$error":"#N/A"}},{"$nulls":3},{"$f":"VLOOKUP(G39,'Risk Assessment'!$A$4:$F$10,MATCH(H39,'Risk Assessment'!$A$4:$F$4,0),FALSE)","v":{"$error":"#N/A"}}]
[{"$nulls":4},{"$f":"VLOOKUP(C40,'Risk Assessment'!$A$4:$F$10,MATCH(D40,'Risk Assessment'!$A$4:$F$4,0),FALSE)","v":{"$error":"#N/A"}},{"$nulls":3},{"$f":"VLOOKUP(G40,'Risk Assessment'!$A$4:$F$10,MATCH(H40,'Risk Assessment'!$A$4:$F$4,0),FALSE)","v":{"$error":"#N/A"}}]
[{"$nulls":4},{"$f":"VLOOKUP(C41,'Risk Assessment'!$A$4:$F$10,MATCH(D41,'Risk Assessment'!$A$4:$F$4,0),FALSE)","v":{"$error":"#N/A"}},{"$nulls":3},{"$f":"VLOOKUP(G41,'Risk Assessment'!$A$4:$F$10,MATCH(H41,'Risk Assessment'!$A$4:$F$4,0),FALSE)","v":{"$error":"#N/A"}}]
[{"$nulls":4},{"$f":"VLOOKUP(C42,'Risk Assessment'!$A$4:$F$10,MATCH(D42,'Risk Assessment'!$A$4:$F$4,0),FALSE)","v":{"$error":"#N/A"}},{"$nulls":3},{"$f":"VLOOKUP(G42,'Risk Assessment'!$A$4:$F$10,MATCH(H42,'Risk Assessment'!$A$4:$F$4,0),FALSE)","v":{"$error":"#N/A"}}]
[{"$nulls":4},{"$f":"VLOOKUP(C43,'Risk Assessment'!$A$4:$F$10,MATCH(D43,'Risk Assessment'!$A$4:$F$4,0),FALSE)","v":{"$error":"#N/A"}},{"$nulls":3},{"$f":"VLOOKUP(G43,'Risk Assessment'!$A$4:$F$10,MATCH(H43,'Risk Assessment'!$A$4:$F$4,0),FALSE)","v":{"$error":"#N/A"}}]
[{"$nulls":4},{"$f":"VLOOKUP(C44,'Risk Assessment'!$A$4:$F$10,MATCH(D44,'Risk Assessment'!$A$4:$F$4,0),FALSE)","v":{"$error":"#N/A"}},{"$nulls":3},{"$f":"VLOOKUP(G44,'Risk Assessment'!$A$4:$F$10,MATCH(H44,'Risk Assessment'!$A$4:$F$4,0),FALSE)","v":{"$error":"#N/A"}}]
[{"$nulls":4},{"$f":"VLOOKUP(C45,'Risk Assessment'!$A$4:$F$10,MATCH(D45,'Risk Assessment'!$A$4:$F$4,0),FALSE)","v":{"$error":"#N/A"}},{"$nulls":3},{"$f":"VLOOKUP(G45,'Risk Assessment'!$A$4:$F$10,MATCH(H45,'Risk Assessment'!$A$4:$F$4,0),FALSE)","v":{"$error":"#N/A"}}]
[{"$nulls":4},{"$f":"VLOOKUP(C46,'Risk Assessment'!$A$4:$F$10,MATCH(D46,'Risk Assessment'!$A$4:$F$4,0),FALSE)","v":{"$error":"#N/A"}},{"$nulls":3},{"$f":"VLOOKUP(G46,'Risk Assessment'!$A$4:$F$10,MATCH(H46,'Risk Assessment'!$A$4:$F$4,0),FALSE)","v":{"$error":"#N/A"}}]
[{"$nulls":4},{"$f":"VLOOKUP(C47,'Risk Assessment'!$A$4:$F$10,MATCH(D47,'Risk Assessment'!$A$4:$F$4,0),FALSE)","v":{"$error":"#N/A"}},{"$nulls":3},{"$f":"VLOOKUP(G47,'Risk Assessment'!$A$4:$F$10,MATCH(H47,'Risk Assessment'!$A$4:$F$4,0),FALSE)","v":{"$error":"#N/A"}}]
[{"$nulls":4},{"$f":"VLOOKUP(C48,'Risk Assessment'!$A$4:$F$10,MATCH(D48,'Risk Assessment'!$A$4:$F$4,0),FALSE)","v":{"$error":"#N/A"}},{"$nulls":3},{"$f":"VLOOKUP(G48,'Risk Assessment'!$A$4:$F$10,MATCH(H48,'Risk Assessment'!$A$4:$F$4,0),FALSE)","v":{"$error":"#N/A"}}]
[{"$nulls":4},{"$f":"VLOOKUP(C49,'Risk Assessment'!$A$4:$F$10,MATCH(D49,'Risk Assessment'!$A$4:$F$4,0),FALSE)","v":{"$error":"#N/A"}},{"$nulls":3},{"$f":"VLOOKUP(G49,'Risk Assessment'!$A$4:$F$10,MATCH(H49,'Risk Assessment'!$A$4:$F$4,0),FALSE)","v":{"$error":"#N/A"}}]
[{"$nulls":4},{"$f":"VLOOKUP(C50,'Risk Assessment'!$A$4:$F$10,MATCH(D50,'Risk Assessment'!$A$4:$F$4,0),FALSE)","v":{"$error":"#N/A"}},{"$nulls":3},{"$f":"VLOOKUP(G50,'Risk Assessment'!$A$4:$F$10,MATCH(H50,'Risk Assessment'!$A$4:$F$4,0),FALSE)","v":{"$error":"#N/A"}}]
[{"$nulls":4},{"$f":"VLOOKUP(C51,'Risk Assessment'!$A$4:$F$10,MATCH(D51,'Risk Assessment'!$A$4:$F$4,0),FALSE)","v":{"$error":"#N/A"}},{"$nulls":3},{"$f":"VLOOKUP(G51,'Risk Assessment'!$A$4:$F$10,MATCH(H51,'Risk Assessment'!$A$4:$F$4,0),FALSE)","v":{"$error":"#N/A"}}]
[{"$nulls":4},{"$f":"VLOOKUP(C52,'Risk Assessment'!$A$4:$F$10,MATCH(D52,'Risk Assessment'!$A$4:$F$4,0),FALSE)","v":{"$error":"#N/A"}},{"$nulls":3},{"$f":"VLOOKUP(G52,'Risk Assessment'!$A$4:$F$10,MATCH(H52,'Risk Assessment'!$A$4:$F$4,0),FALSE)","v":{"$error":"#N/A"}}]
[{"$nulls":4},{"$f":"VLOOKUP(C53,'Risk Assessment'!$A$4:$F$10,MATCH(D53,'Risk Assessment'!$A$4:$F$4,0),FALSE)","v":{"$error":"#N/A"}},{"$nulls":3},{"$f":"VLOOKUP(G53,'Risk Assessment'!$A$4:$F$10,MATCH(H53,'Risk Assessment'!$A$4:$F$4,0),FALSE)","v":{"$error":"#N/A"}}]
[{"$nulls":4},{"$f":"VLOOKUP(C54,'Risk Assessment'!$A$4:$F$10,MATCH(D54,'Risk Assessment'!$A$4:$F$4,0),FALSE)","v":{"$error":"#N/A"}},{"$nulls":3},{"$f":"VLOOKUP(G54,'Risk Assessment'!$A$4:$F$10,MATCH(H54,'Risk Assessment'!$A$4:$F$4,0),FALSE)","v":{"$error":"#N/A"}}]
[{"$nulls":4},{"$f":"VLOOKUP(C55,'Risk Assessment'!$A$4:$F$10,MATCH(D55,'Risk Assessment'!$A$4:$F$4,0),FALSE)","v":{"$error":"#N/A"}},{"$nulls":3},{"$f":"VLOOKUP(G55,'Risk Assessment'!$A$4:$F$10,MATCH(H55,'Risk Assessment'!$A$4:$F$4,0),FALSE)","v":{"$error":"#N/A"}}]
[{"$nulls":4},{"$f":"VLOOKUP(C56,'Risk Assessment'!$A$4:$F$10,MATCH(D56,'Risk Assessment'!$A$4:$F$4,0),FALSE)","v":{"$error":"#N/A"}},{"$nulls":3},{"$f":"VLOOKUP(G56,'Risk Assessment'!$A$4:$F$10,MATCH(H56,'Risk Assessment'!$A$4:$F$4,0),FALSE)","v":{"$error":"#N/A"}}]
[{"$nulls":4},{"$f":"VLOOKUP(C57,'Risk Assessment'!$A$4:$F$10,MATCH(D57,'Risk Assessment'!$A$4:$F$4,0),FALSE)","v":{"$error":"#N/A"}},{"$nulls":3},{"$f":"VLOOKUP(G57,'Risk Assessment'!$A$4:$F$10,MATCH(H57,'Risk Assessment'!$A$4:$F$4,0),FALSE)","v":{"$error":"#N/A"}}]
[{"$nulls":4},{"$f":"VLOOKUP(C58,'Risk Assessment'!$A$4:$F$10,MATCH(D58,'Risk Assessment'!$A$4:$F$4,0),FALSE)","v":{"$error":"#N/A"}},{"$nulls":3},{"$f":"VLOOKUP(G58,'Risk Assessment'!$A$4:$F$10,MATCH(H58,'Risk Assessment'!$A$4:$F$4,0),FALSE)","v":{"$error":"#N/A"}}]
[{"$nulls":4},{"$f":"VLOOKUP(C59,'Risk Assessment'!$A$4:$F$10,MATCH(D59,'Risk Assessment'!$A$4:$F$4,0),FALSE)","v":{"$error":"#N/A"}},{"$nulls":3},{"$f":"VLOOKUP(G59,'Risk Assessment'!$A$4:$F$10,MATCH(H59,'Risk Assessment'!$A$4:$F$4,0),FALSE)","v":{"$error":"#N/A"}}]
[{"$nulls":4},{"$f":"VLOOKUP(C60,'Risk Assessment'!$A$4:$F$10,MATCH(D60,'Risk Assessment'!$A$4:$F$4,0),FALSE)","v":{"$error":"#N/A"}},{"$nulls":3},{"$f":"VLOOKUP(G60,'Risk Assessment'!$A$4:$F$10,MATCH(H60,'Risk Assessment'!$A$4:$F$4,0),FALSE)","v":{"$error":"#N/A"}}]
[{"$nulls":4},{"$f":"VLOOKUP(C61,'Risk Assessment'!$A$4:$F$10,MATCH(D61,'Risk Assessment'!$A$4:$F$4,0),FALSE)","v":{"$error":"#N/A"}},{"$nulls":3},{"$f":"VLOOKUP(G61,'Risk Assessment'!$A$4:$F$10,MATCH(H61,'Risk Assessment'!$A$4:$F$4,0),FALSE)","v":{"$error":"#N/A"}}]
[{"$nulls":4},{"$f":"VLOOKUP(C62,'Risk Assessment'!$A$4:$F$10,MATCH(D62,'Risk Assessment'!$A$4:$F$4,0),FALSE)","v":{"$error":"#N/A"}},{"$nulls":3},{"$f":"VLOOKUP(G62,'Risk Assessment'!$A$4:$F$10,MATCH(H62,'Risk Assessment'!$A$4:$F$4,0),FALSE)","v":{"$error":"#N/A"}}]
[{"$nulls":4},{"$f":"VLOOKUP(C63,'Risk Assessment'!$A$4:$F$10,MATCH(D63,'Risk Assessment'!$A$4:$F$4,0),FALSE)","v":{"$error":"#N/A"}},{"$nulls":3},{"$f":"VLOOKUP(G63,'Risk Assessment'!$A$4:$F$10,MATCH(H63,'Risk Assessment'!$A$4:$F$4,0),FALSE)","v":{"$error":"#N/A"}}]
[{"$nulls":4},{"$f":"VLOOKUP(C64,'Risk Assessment'!$A$4:$F$10,MATCH(D64,'Risk Assessment'!$A$4:$F$4,0),FALSE)","v":{"$error":"#N/A"}},{"$nulls":3},{"$f":"VLOOKUP(G64,'Risk Assessment'!$A$4:$F$10,MATCH(H64,'Risk Assessment'!$A$4:$F$4,0),FALSE)","v":{"$error":"#N/A"}}]
[{"$nulls":4},{"$f":"VLOOKUP(C65,'Risk Assessment'!$A$4:$F$10,MATCH(D65,'Risk Assessment'!$A$4:$F$4,0),FALSE)","v":{"$error":"#N/A"}},{"$nulls":3},{"$f":"VLOOKUP(G65,'Risk Assessment'!$A$4:$F$10,MATCH(H65,'Risk Assessment'!$A$4:$F$4,0),FALSE)","v":{"$error":"#N/A"}}]
[{"$nulls":4},{"$f":"VLOOKUP(C66,'Risk Assessment'!$A$4:$F$10,MATCH(D66,'Risk Assessment'!$A$4:$F$4,0),FALSE)","v":{"$error":"#N/A"}},{"$nulls":3},{"$f":"VLOOKUP(G66,'Risk Assessment'!$A$4:$F$10,MATCH(H66,'Risk Assessment'!$A$4:$F$4,0),FALSE)","v":{"$error":"#N/A"}}]
[{"$nulls":4},{"$f":"VLOOKUP(C67,'Risk Assessment'!$A$4:$F$10,MATCH(D67,'Risk Assessment'!$A$4:$F$4,0),FALSE)","v":{"$error":"#N/A"}},{"$nulls":3},{"$f":"VLOOKUP(G67,'Risk Assessment'!$A$4:$F$10,MATCH(H67,'Risk Assessment'!$A$4:$F$4,0),FALSE)","v":{"$error":"#N/A"}}]
[{"$nulls":4},{"$f":"VLOOKUP(C68,'Risk Assessment'!$A$4:$F$10,MATCH(D68,'Risk Assessment'!$A$4:$F$4,0),FALSE)","v":{"$error":"#N/A"}},{"$nulls":3},{"$f":"VLOOKUP(G68,'Risk Assessment'!$A$4:$F$10,MATCH(H68,'Risk Assessment'!$A$4:$F$4,0),FALSE)","v":{"$error":"#N/A"}}]
[{"$nulls":4},{"$f":"VLOOKUP(C69,'Risk Assessment'!$A$4:$F$10,MATCH(D69,'Risk Assessment'!$A$4:$F$4,0),FALSE)","v":{"$error":"#N/A"}},{"$nulls":3},{"$f":"VLOOKUP(G69,'Risk Assessment'!$A$4:$F$10,MATCH(H69,'Risk Assessment'!$A$4:$F$4,0),FALSE)","v":{"$error":"#N/A"}}]
[{"$nulls":4},{"$f":"VLOOKUP(C70,'Risk Assessment'!$A$4:$F$10,MATCH(D70,'Risk Assessment'!$A$4:$F$4,0),FALSE)","v":{"$error":"#N/A"}},{"$nulls":3},{"$f":"VLOOKUP(G70,'Risk Assessment'!$A$4:$F$10,MATCH(H70,'Risk Assessment'!$A$4:$F$4,0),FALSE)","v":{"$error":"#N/A"}}]
[{"$nulls":4},{"$f":"VLOOKUP(C71,'Risk Assessment'!$A$4:$F$10,MATCH(D71,'Risk Assessment'!$A$4:$F$4,0),FALSE)","v":{"$error":"#N/A"}},{"$nulls":3},{"$f":"VLOOKUP(G71,'Risk Assessment'!$A$4:$F$10,MATCH(H71,'Risk Assessment'!$A$4:$F$4,0),FALSE)","v":{"$error":"#N/A"}}]
[{"$nulls":4},{"$f":"VLOOKUP(C72,'Risk Assessment'!$A$4:$F$10,MATCH(D72,'Risk Assessment'!$A$4:$F$4,0),FALSE)","v":{"$error":"#N/A"}},{"$nulls":3},{"$f":"VLOOKUP(G72,'Risk Assessment'!$A$4:$F$10,MATCH(H72,'Risk Assessment'!$A$4:$F$4,0),FALSE)","v":{"$error":"#N/A"}}]
[{"$nulls":4},{"$f":"VLOOKUP(C73,'Risk Assessment'!$A$4:$F$10,MATCH(D73,'Risk Assessment'!$A$4:$F$4,0),FALSE)","v":{"$error":"#N/A"}},{"$nulls":3},{"$f":"VLOOKUP(G73,'Risk Assessment'!$A$4:$F$10,MATCH(H73,'Risk Assessment'!$A$4:$F$4,0),FALSE)","v":{"$error":"#N/A"}}]
[{"$nulls":4},{"$f":"VLOOKUP(C74,'Risk Assessment'!$A$4:$F$10,MATCH(D74,'Risk Assessment'!$A$4:$F$4,0),FALSE)","v":{"$error":"#N/A"}},{"$nulls":3},{"$f":"VLOOKUP(G74,'Risk Assessment'!$A$4:$F$10,MATCH(H74,'Risk Assessment'!$A$4:$F$4,0),FALSE)","v":{"$error":"#N/A"}}]
[{"$nulls":4},{"$f":"VLOOKUP(C75,'Risk Assessment'!$A$4:$F$10,MATCH(D75,'Risk Assessment'!$A$4:$F$4,0),FALSE)","v":{"$error":"#N/A"}},{"$nulls":3},{"$f":"VLOOKUP(G75,'Risk Assessment'!$A$4:$F$10,MATCH(H75,'Risk Assessment'!$A$4:$F$4,0),FALSE)","v":{"$error":"#N/A"}}]
[{"$nulls":4},{"$f":"VLOOKUP(C76,'Risk Assessment'!$A$4:$F$10,MATCH(D76,'Risk Assessment'!$A$4:$F$4,0),FALSE)","v":{"$error":"#N/A"}},{"$nulls":3},{"$f":"VLOOKUP(G76,'Risk Assessment'!$A$4:$F$10,MATCH(H76,'Risk Assessment'!$A$4:$F$4,0),FALSE)","v":{"$error":"#N/A"}}]
[{"$nulls":4},{"$f":"VLOOKUP(C77,'Risk Assessment'!$A$4:$F$10,MATCH(D77,'Risk Assessment'!$A$4:$F$4,0),FALSE)","v":{"$error":"#N/A"}},{"$nulls":3},{"$f":"VLOOKUP(G77,'Risk Assessment'!$A$4:$F$10,MATCH(H77,'Risk Assessment'!$A$4:$F$4,0),FALSE)","v":{"$error":"#N/A"}}]

{"sheet":"Archery","index":12,"n_rows":77,"n_cols":9,"rows_kept":77}
{"$rows_empty":9}
[" HAZARD and RISK REGISTER ",null," WCC Practical Activities"]
["Refer to Hazard/Risk Management Procedure"]
[]
["Developed by: Matthew Smith Date: 25 May 2022."]
[" Approved by:  Cody Blackler Date: 10 August 2022"]
["Reviewed by: Cody Blackler and Matthew Smith  Date: 11 August 2022"]
[]
["(1) Identify all hazards, then determine a risk rating."]
["(2) Eliminate the risk. If not reasonably practicable then"]
["(3) Minimise the risk as far as reasonably practicable."]
["(4) Reassess and determine the residual risk"]
[]
["Where or what task?","Hazard and Harm?","Likelihood \n(Choose from drop list in cell)","Consequence \n(Choose from drop list in cell)","Rating","Action required to Eliminate (E) or Minimise (M). \n (controls, administration controls, personal protective equipment.)","Revised Likelihood","Revised Consequence","Residual Rating"]
["All tasks","Shot with arrow","Very likely","Extreme",{"$f":"VLOOKUP(C23,'Risk Assessment'!$A$4:$F$10,MATCH(D23,'Risk Assessment'!$A$4:$F$4,0),FALSE)","v":25},"M: only competent adults/leaders to run activity\nM: adults/leaders briefed to supervise 1:1","Highly unlikely (rare)","Extreme",{"$f":"VLOOKUP(G23,'Risk Assessment'!$A$4:$F$10,MATCH(H23,'Risk Assessment'!$A$4:$F$4,0),FALSE)","v":5}]
["Shooting ","Abrasions from bow string","Very likely","Moderate",{"$f":"VLOOKUP(C24,'Risk Assessment'!$A$4:$F$10,MATCH(D24,'Risk Assessment'!$A$4:$F$4,0),FALSE)","v":10},"M: arm guards available to those who need it","Highly unlikely (rare)","Moderate",{"$f":"VLOOKUP(G24,'Risk Assessment'!$A$4:$F$10,MATCH(H24,'Risk Assessment'!$A$4:$F$4,0),FALSE)","v":2}]
["All tasks","Sunburn","Very likely","Moderate",{"$f":"VLOOKUP(C25,'Risk Assessment'!$A$4:$F$10,MATCH(D25,'Risk Assessment'!$A$4:$F$4,0),FALSE)","v":10},"M: Sunsmart principles applied.\nM: Advise clients to wear sunhats and apply sunblock","Unlikely","Moderate",{"$f":"VLOOKUP(G25,'Risk Assessment'!$A$4:$F$10,MATCH(H25,'Risk Assessment'!$A$4:$F$4,0),FALSE)","v":4}]
["All tasks","Injured by breaking bow","Unlikely","Major",{"$f":"VLOOKUP(C26,'Risk Assessment'!$A$4:$F$10,MATCH(D26,'Risk Assessment'!$A$4:$F$4,0),FALSE)","v":8},"M: archery equipment is inspected 6 monthly","Highly unlikely (rare)","Major",{"$f":"VLOOKUP(G26,'Risk Assessment'!$A$4:$F$10,MATCH(H26,'Risk Assessment'!$A$4:$F$4,0),FALSE)","v":4}]
["All tasks","injured by breaking arrow","Likely","Major",{"$f":"VLOOKUP(C27,'Risk Assessment'!$A$4:$F$10,MATCH(D27,'Risk Assessment'!$A$4:$F$4,0),FALSE)","v":16},"M: archery equipment is inspected 6 monthly","Highly unlikely (rare)","Major",{"$f":"VLOOKUP(G27,'Risk Assessment'!$A$4:$F$10,MATCH(H27,'Risk Assessment'!$A$4:$F$4,0),FALSE)","v":4}]
["All tasks","Exposure ","Unlikely","Extreme",{"$f":"VLOOKUP(C28,'Risk Assessment'!$A$4:$F$10,MATCH(D28,'Risk Assessment'!$A$4:$F$4,0),FALSE)","v":10},"M: Staff to recognise signs and symptoms of exposure illnesses (Heatstroke, Hypothermia, Hyperthermia and heat exhaustion)\nM: Advise clients of appropriate clothing for the activity and weather\nE: activity to be closed when exposure risk can not be effectivly managed (either through lack of appropriate client clothing or continually deteriorating weather. Note staff are expected to carry apropriate clothing for work in all conditions)","Highly unlikely (rare)","Extreme",{"$f":"VLOOKUP(G28,'Risk Assessment'!$A$4:$F$10,MATCH(H28,'Risk Assessment'!$A$4:$F$4,0),FALSE)","v":5}]
[{"$nulls":4},{"$f":"VLOOKUP(C29,'Risk Assessment'!$A$4:$F$10,MATCH(D29,'Risk Assessment'!$A$4:$F$4,0),FALSE)","v":{"$error":"#N/A"}},{"$nulls":3},{"$f":"VLOOKUP(G29,'Risk Assessment'!$A$4:$F$10,MATCH(H29,'Risk Assessment'!$A$4:$F$4,0),FALSE)","v":{"$error":"#N/A"}}]
[{"$nulls":4},{"$f":"VLOOKUP(C30,'Risk Assessment'!$A$4:$F$10,MATCH(D30,'Risk Assessment'!$A$4:$F$4,0),FALSE)","v":{"$error":"#N/A"}},{"$nulls":3},{"$f":"VLOOKUP(G30,'Risk Assessment'!$A$4:$F$10,MATCH(H30,'Risk Assessment'!$A$4:$F$4,0),FALSE)","v":{"$error":"#N/A"}}]
[{"$nulls":4},{"$f":"VLOOKUP(C31,'Risk Assessment'!$A$4:$F$10,MATCH(D31,'Risk Assessment'!$A$4:$F$4,0),FALSE)","v":{"$error":"#N/A"}},{"$nulls":3},{"$f":"VLOOKUP(G31,'Risk Assessment'!$A$4:$F$10,MATCH(H31,'Risk Assessment'!$A$4:$F$4,0),FALSE)","v":{"$error":"#N/A"}}]
[{"$nulls":4},{"$f":"VLOOKUP(C32,'Risk Assessment'!$A$4:$F$10,MATCH(D32,'Risk Assessment'!$A$4:$F$4,0),FALSE)","v":{"$error":"#N/A"}},{"$nulls":3},{"$f":"VLOOKUP(G32,'Risk Assessment'!$A$4:$F$10,MATCH(H32,'Risk Assessment'!$A$4:$F$4,0),FALSE)","v":{"$error":"#N/A"}}]
[{"$nulls":4},{"$f":"VLOOKUP(C33,'Risk Assessment'!$A$4:$F$10,MATCH(D33,'Risk Assessment'!$A$4:$F$4,0),FALSE)","v":{"$error":"#N/A"}},{"$nulls":3},{"$f":"VLOOKUP(G33,'Risk Assessment'!$A$4:$F$10,MATCH(H33,'Risk Assessment'!$A$4:$F$4,0),FALSE)","v":{"$error":"#N/A"}}]
[{"$nulls":4},{"$f":"VLOOKUP(C34,'Risk Assessment'!$A$4:$F$10,MATCH(D34,'Risk Assessment'!$A$4:$F$4,0),FALSE)","v":{"$error":"#N/A"}},{"$nulls":3},{"$f":"VLOOKUP(G34,'Risk Assessment'!$A$4:$F$10,MATCH(H34,'Risk Assessment'!$A$4:$F$4,0),FALSE)","v":{"$error":"#N/A"}}]
[{"$nulls":4},{"$f":"VLOOKUP(C35,'Risk Assessment'!$A$4:$F$10,MATCH(D35,'Risk Assessment'!$A$4:$F$4,0),FALSE)","v":{"$error":"#N/A"}},{"$nulls":3},{"$f":"VLOOKUP(G35,'Risk Assessment'!$A$4:$F$10,MATCH(H35,'Risk Assessment'!$A$4:$F$4,0),FALSE)","v":{"$error":"#N/A"}}]
[{"$nulls":4},{"$f":"VLOOKUP(C36,'Risk Assessment'!$A$4:$F$10,MATCH(D36,'Risk Assessment'!$A$4:$F$4,0),FALSE)","v":{"$error":"#N/A"}},{"$nulls":3},{"$f":"VLOOKUP(G36,'Risk Assessment'!$A$4:$F$10,MATCH(H36,'Risk Assessment'!$A$4:$F$4,0),FALSE)","v":{"$error":"#N/A"}}]
[{"$nulls":4},{"$f":"VLOOKUP(C37,'Risk Assessment'!$A$4:$F$10,MATCH(D37,'Risk Assessment'!$A$4:$F$4,0),FALSE)","v":{"$error":"#N/A"}},{"$nulls":3},{"$f":"VLOOKUP(G37,'Risk Assessment'!$A$4:$F$10,MATCH(H37,'Risk Assessment'!$A$4:$F$4,0),FALSE)","v":{"$error":"#N/A"}}]
[{"$nulls":4},{"$f":"VLOOKUP(C38,'Risk Assessment'!$A$4:$F$10,MATCH(D38,'Risk Assessment'!$A$4:$F$4,0),FALSE)","v":{"$error":"#N/A"}},{"$nulls":3},{"$f":"VLOOKUP(G38,'Risk Assessment'!$A$4:$F$10,MATCH(H38,'Risk Assessment'!$A$4:$F$4,0),FALSE)","v":{"$error":"#N/A"}}]
[{"$nulls":4},{"$f":"VLOOKUP(C39,'Risk Assessment'!$A$4:$F$10,MATCH(D39,'Risk Assessment'!$A$4:$F$4,0),FALSE)","v":{"$error":"#N/A"}},{"$nulls":3},{"$f":"VLOOKUP(G39,'Risk Assessment'!$A$4:$F$10,MATCH(H39,'Risk Assessment'!$A$4:$F$4,0),FALSE)","v":{"$error":"#N/A"}}]
[{"$nulls":4},{"$f":"VLOOKUP(C40,'Risk Assessment'!$A$4:$F$10,MATCH(D40,'Risk Assessment'!$A$4:$F$4,0),FALSE)","v":{"$error":"#N/A"}},{"$nulls":3},{"$f":"VLOOKUP(G40,'Risk Assessment'!$A$4:$F$10,MATCH(H40,'Risk Assessment'!$A$4:$F$4,0),FALSE)","v":{"$error":"#N/A"}}]
[{"$nulls":4},{"$f":"VLOOKUP(C41,'Risk Assessment'!$A$4:$F$10,MATCH(D41,'Risk Assessment'!$A$4:$F$4,0),FALSE)","v":{"$error":"#N/A"}},{"$nulls":3},{"$f":"VLOOKUP(G41,'Risk Assessment'!$A$4:$F$10,MATCH(H41,'Risk Assessment'!$A$4:$F$4,0),FALSE)","v":{"$error":"#N/A"}}]
[{"$nulls":4},{"$f":"VLOOKUP(C42,'Risk Assessment'!$A$4:$F$10,MATCH(D42,'Risk Assessment'!$A$4:$F$4,0),FALSE)","v":{"$error":"#N/A"}},{"$nulls":3},{"$f":"VLOOKUP(G42,'Risk Assessment'!$A$4:$F$10,MATCH(H42,'Risk Assessment'!$A$4:$F$4,0),FALSE)","v":{"$error":"#N/A"}}]
[{"$nulls":4},{"$f":"VLOOKUP(C43,'Risk Assessment'!$A$4:$F$10,MATCH(D43,'Risk Assessment'!$A$4:$F$4,0),FALSE)","v":{"$error":"#N/A"}},{"$nulls":3},{"$f":"VLOOKUP(G43,'Risk Assessment'!$A$4:$F$10,MATCH(H43,'Risk Assessment'!$A$4:$F$4,0),FALSE)","v":{"$error":"#N/A"}}]
[{"$nulls":4},{"$f":"VLOOKUP(C44,'Risk Assessment'!$A$4:$F$10,MATCH(D44,'Risk Assessment'!$A$4:$F$4,0),FALSE)","v":{"$error":"#N/A"}},{"$nulls":3},{"$f":"VLOOKUP(G44,'Risk Assessment'!$A$4:$F$10,MATCH(H44,'Risk Assessment'!$A$4:$F$4,0),FALSE)","v":{"$error":"#N/A"}}]
[{"$nulls":4},{"$f":"VLOOKUP(C45,'Risk Assessment'!$A$4:$F$10,MATCH(D45,'Risk Assessment'!$A$4:$F$4,0),FALSE)","v":{"$error":"#N/A"}},{"$nulls":3},{"$f":"VLOOKUP(G45,'Risk Assessment'!$A$4:$F$10,MATCH(H45,'Risk Assessment'!$A$4:$F$4,0),FALSE)","v":{"$error":"#N/A"}}]
[{"$nulls":4},{"$f":"VLOOKUP(C46,'Risk Assessment'!$A$4:$F$10,MATCH(D46,'Risk Assessment'!$A$4:$F$4,0),FALSE)","v":{"$error":"#N/A"}},{"$nulls":3},{"$f":"VLOOKUP(G46,'Risk Assessment'!$A$4:$F$10,MATCH(H46,'Risk Assessment'!$A$4:$F$4,0),FALSE)","v":{"$error":"#N/A"}}]
[{"$nulls":4},{"$f":"VLOOKUP(C47,'Risk Assessment'!$A$4:$F$10,MATCH(D47,'Risk Assessment'!$A$4:$F$4,0),FALSE)","v":{"$error":"#N/A"}},{"$nulls":3},{"$f":"VLOOKUP(G47,'Risk Assessment'!$A$4:$F$10,MATCH(H47,'Risk Assessment'!$A$4:$F$4,0),FALSE)","v":{"$error":"#N/A"}}]
[{"$nulls":4},{"$f":"VLOOKUP(C48,'Risk Assessment'!$A$4:$F$10,MATCH(D48,'Risk Assessment'!$A$4:$F$4,0),FALSE)","v":{"$error":"#N/A"}},{"$nulls":3},{"$f":"VLOOKUP(G48,'Risk Assessment'!$A$4:$F$10,MATCH(H48,'Risk Assessment'!$A$4:$F$4,0),FALSE)","v":{"$error":"#N/A"}}]
[{"$nulls":4},{"$f":"VLOOKUP(C49,'Risk Assessment'!$A$4:$F$10,MATCH(D49,'Risk Assessment'!$A$4:$F$4,0),FALSE)","v":{"$error":"#N/A"}},{"$nulls":3},{"$f":"VLOOKUP(G49,'Risk Assessment'!$A$4:$F$10,MATCH(H49,'Risk Assessment'!$A$4:$F$4,0),FALSE)","v":{"$error":"#N/A"}}]
[{"$nulls":4},{"$f":"VLOOKUP(C50,'Risk Assessment'!$A$4:$F$10,MATCH(D50,'Risk Assessment'!$A$4:$F$4,0),FALSE)","v":{"$error":"#N/A"}},{"$nulls":3},{"$f":"VLOOKUP(G50,'Risk Assessment'!$A$4:$F$10,MATCH(H50,'Risk Assessment'!$A$4:$F$4,0),FALSE)","v":{"$error":"#N/A"}}]
[{"$nulls":4},{"$f":"VLOOKUP(C51,'Risk Assessment'!$A$4:$F$10,MATCH(D51,'Risk Assessment'!$A$4:$F$4,0),FALSE)","v":{"$error":"#N/A"}},{"$nulls":3},{"$f":"VLOOKUP(G51,'Risk Assessment'!$A$4:$F$10,MATCH(H51,'Risk Assessment'!$A$4:$F$4,0),FALSE)","v":{"$error":"#N/A"}}]
[{"$nulls":4},{"$f":"VLOOKUP(C52,'Risk Assessment'!$A$4:$F$10,MATCH(D52,'Risk Assessment'!$A$4:$F$4,0),FALSE)","v":{"$error":"#N/A"}},{"$nulls":3},{"$f":"VLOOKUP(G52,'Risk Assessment'!$A$4:$F$10,MATCH(H52,'Risk Assessment'!$A$4:$F$4,0),FALSE)","v":{"$error":"#N/A"}}]
[{"$nulls":4},{"$f":"VLOOKUP(C53,'Risk Assessment'!$A$4:$F$10,MATCH(D53,'Risk Assessment'!$A$4:$F$4,0),FALSE)","v":{"$error":"#N/A"}},{"$nulls":3},{"$f":"VLOOKUP(G53,'Risk Assessment'!$A$4:$F$10,MATCH(H53,'Risk Assessment'!$A$4:$F$4,0),FALSE)","v":{"$error":"#N/A"}}]
[{"$nulls":4},{"$f":"VLOOKUP(C54,'Risk Assessment'!$A$4:$F$10,MATCH(D54,'Risk Assessment'!$A$4:$F$4,0),FALSE)","v":{"$error":"#N/A"}},{"$nulls":3},{"$f":"VLOOKUP(G54,'Risk Assessment'!$A$4:$F$10,MATCH(H54,'Risk Assessment'!$A$4:$F$4,0),FALSE)","v":{"$error":"#N/A"}}]
[{"$nulls":4},{"$f":"VLOOKUP(C55,'Risk Assessment'!$A$4:$F$10,MATCH(D55,'Risk Assessment'!$A$4:$F$4,0),FALSE)","v":{"$error":"#N/A"}},{"$nulls":3},{"$f":"VLOOKUP(G55,'Risk Assessment'!$A$4:$F$10,MATCH(H55,'Risk Assessment'!$A$4:$F$4,0),FALSE)","v":{"$error":"#N/A"}}]
[{"$nulls":4},{"$f":"VLOOKUP(C56,'Risk Assessment'!$A$4:$F$10,MATCH(D56,'Risk Assessment'!$A$4:$F$4,0),FALSE)","v":{"$error":"#N/A"}},{"$nulls":3},{"$f":"VLOOKUP(G56,'Risk Assessment'!$A$4:$F$10,MATCH(H56,'Risk Assessment'!$A$4:$F$4,0),FALSE)","v":{"$error":"#N/A"}}]
[{"$nulls":4},{"$f":"VLOOKUP(C57,'Risk Assessment'!$A$4:$F$10,MATCH(D57,'Risk Assessment'!$A$4:$F$4,0),FALSE)","v":{"$error":"#N/A"}},{"$nulls":3},{"$f":"VLOOKUP(G57,'Risk Assessment'!$A$4:$F$10,MATCH(H57,'Risk Assessment'!$A$4:$F$4,0),FALSE)","v":{"$error":"#N/A"}}]
[{"$nulls":4},{"$f":"VLOOKUP(C58,'Risk Assessment'!$A$4:$F$10,MATCH(D58,'Risk Assessment'!$A$4:$F$4,0),FALSE)","v":{"$error":"#N/A"}},{"$nulls":3},{"$f":"VLOOKUP(G58,'Risk Assessment'!$A$4:$F$10,MATCH(H58,'Risk Assessment'!$A$4:$F$4,0),FALSE)","v":{"$error":"#N/A"}}]
[{"$nulls":4},{"$f":"VLOOKUP(C59,'Risk Assessment'!$A$4:$F$10,MATCH(D59,'Risk Assessment'!$A$4:$F$4,0),FALSE)","v":{"$error":"#N/A"}},{"$nulls":3},{"$f":"VLOOKUP(G59,'Risk Assessment'!$A$4:$F$10,MATCH(H59,'Risk Assessment'!$A$4:$F$4,0),FALSE)","v":{"$error":"#N/A"}}]
[{"$nulls":4},{"$f":"VLOOKUP(C60,'Risk Assessment'!$A$4:$F$10,MATCH(D60,'Risk Assessment'!$A$4:$F$4,0),FALSE)","v":{"$error":"#N/A"}},{"$nulls":3},{"$f":"VLOOKUP(G60,'Risk Assessment'!$A$4:$F$10,MATCH(H60,'Risk Assessment'!$A$4:$F$4,0),FALSE)","v":{"$error":"#N/A"}}]
[{"$nulls":4},{"$f":"VLOOKUP(C61,'Risk Assessment'!$A$4:$F$10,MATCH(D61,'Risk Assessment'!$A$4:$F$4,0),FALSE)","v":{"$error":"#N/A"}},{"$nulls":3},{"$f":"VLOOKUP(G61,'Risk Assessment'!$A$4:$F$10,MATCH(H61,'Risk Assessment'!$A$4:$F$4,0),FALSE)","v":{"$error":"#N/A"}}]
[{"$nulls":4},{"$f":"VLOOKUP(C62,'Risk Assessment'!$A$4:$F$10,MATCH(D62,'Risk Assessment'!$A$4:$F$4,0),FALSE)","v":{"$error":"#N/A"}},{"$nulls":3},{"$f":"VLOOKUP(G62,'Risk Assessment'!$A$4:$F$10,MATCH(H62,'Risk Assessment'!$A$4:$F$4,0),FALSE)","v":{"$error":"#N/A"}}]
[{"$nulls":4},{"$f":"VLOOKUP(C63,'Risk Assessment'!$A$4:$F$10,MATCH(D63,'Risk Assessment'!$A$4:$F$4,0),FALSE)","v":{"$error":"#N/A"}},{"$nulls":3},{"$f":"VLOOKUP(G63,'Risk Assessment'!$A$4:$F$10,MATCH(H63,'Risk Assessment'!$A$4:$F$4,0),FALSE)","v":{"$error":"#N/A"}}]
[{"$nulls":4},{"$f":"VLOOKUP(C64,'Risk Assessment'!$A$4:$F$10,MATCH(D64,'Risk Assessment'!$A$4:$F$4,0),FALSE)","v":{"$error":"#N/A"}},{"$nulls":3},{"$f":"VLOOKUP(G64,'Risk Assessment'!$A$4:$F$10,MATCH(H64,'Risk Assessment'!$A$4:$F$4,0),FALSE)","v":{"$error":"#N/A"}}]
[{"$nulls":4},{"$f":"VLOOKUP(C65,'Risk Assessment'!$A$4:$F$10,MATCH(D65,'Risk Assessment'!$A$4:$F$4,0),FALSE)","v":{"$error":"#N/A"}},{"$nulls":3},{"$f":"VLOOKUP(G65,'Risk Assessment'!$A$4:$F$10,MATCH(H65,'Risk Assessment'!$A$4:$F$4,0),FALSE)","v":{"$error":"#N/A"}}]
[{"$nulls":4},{"$f":"VLOOKUP(C66,'Risk Assessment'!$A$4:$F$10,MATCH(D66,'Risk Assessment'!$A$4:$F$4,0),FALSE)","v":{"$error":"#N/A"}},{"$nulls":3},{"$f":"VLOOKUP(G66,'Risk Assessment'!$A$4:$F$10,MATCH(H66,'Risk Assessment'!$A$4:$F$4,0),FALSE)","v":{"$error":"#N/A"}}]
[{"$nulls":4},{"$f":"VLOOKUP(C67,'Risk Assessment'!$A$4:$F$10,MATCH(D67,'Risk Assessment'!$A$4:$F$4,0),FALSE)","v":{"$error":"#N/A"}},{"$nulls":3},{"$f":"VLOOKUP(G67,'Risk Assessment'!$A$4:$F$10,MATCH(H67,'Risk Assessment'!$A$4:$F$4,0),FALSE)","v":{"$error":"#N/A"}}]
[{"$nulls":4},{"$f":"VLOOKUP(C68,'Risk Assessment'!$A$4:$F$10,MATCH(D68,'Risk Assessment'!$A$4:$F$4,0),FALSE)","v":{"$error":"#N/A"}},{"$nulls":3},{"$f":"VLOOKUP(G68,'Risk Assessment'!$A$4:$F$10,MATCH(H68,'Risk Assessment'!$A$4:$F$4,0),FALSE)","v":{"$error":"#N/A"}}]
[{"$nulls":4},{"$f":"VLOOKUP(C69,'Risk Assessment'!$A$4:$F$10,MATCH(D69,'Risk Assessment'!$A$4:$F$4,0),FALSE)","v":{"$error":"#N/A"}},{"$nulls":3},{"$f":"VLOOKUP(G69,'Risk Assessment'!$A$4:$F$10,MATCH(H69,'Risk Assessment'!$A$4:$F$4,0),FALSE)","v":{"$error":"#N/A"}}]
[{"$nulls":4},{"$f":"VLOOKUP(C70,'Risk Assessment'!$A$4:$F$10,MATCH(D70,'Risk Assessment'!$A$4:$F$4,0),FALSE)","v":{"$error":"#N/A"}},{"$nulls":3},{"$f":"VLOOKUP(G70,'Risk Assessment'!$A$4:$F$10,MATCH(H70,'Risk Assessment'!$A$4:$F$4,0),FALSE)","v":{"$error":"#N/A"}}]
[{"$nulls":4},{"$f":"VLOOKUP(C71,'Risk Assessment'!$A$4:$F$10,MATCH(D71,'Risk Assessment'!$A$4:$F$4,0),FALSE)","v":{"$error":"#N/A"}},{"$nulls":3},{"$f":"VLOOKUP(G71,'Risk Assessment'!$A$4:$F$10,MATCH(H71,'Risk Assessment'!$A$4:$F$4,0),FALSE)","v":{"$error":"#N/A"}}]
[{"$nulls":4},{"$f":"VLOOKUP(C72,'Risk Assessment'!$A$4:$F$10,MATCH(D72,'Risk Assessment'!$A$4:$F$4,0),FALSE)","v":{"$error":"#N/A"}},{"$nulls":3},{"$f":"VLOOKUP(G72,'Risk Assessment'!$A$4:$F$10,MATCH(H72,'Risk Assessment'!$A$4:$F$4,0),FALSE)","v":{"$error":"#N/A"}}]
[{"$nulls":4},{"$f":"VLOOKUP(C73,'Risk Assessment'!$A$4:$F$10,MATCH(D73,'Risk Assessment'!$A$4:$F$4,0),FALSE)","v":{"$error":"#N/A"}},{"$nulls":3},{"$f":"VLOOKUP(G73,'Risk Assessment'!$A$4:$F$10,MATCH(H73,'Risk Assessment'!$A$4:$F$4,0),FALSE)","v":{"$error":"#N/A"}}]
[{"$nulls":4},{"$f":"VLOOKUP(C74,'Risk Assessment'!$A$4:$F$10,MATCH(D74,'Risk Assessment'!$A$4:$F$4,0),FALSE)","v":{"$error":"#N/A"}},{"$nulls":3},{"$f":"VLOOKUP(G74,'Risk Assessment'!$A$4:$F$10,MATCH(H74,'Risk Assessment'!$A$4:$F$4,0),FALSE)","v":{"$error":"#N/A"}}]
[{"$nulls":4},{"$f":"VLOOKUP(C75,'Risk Assessment'!$A$4:$F$10,MATCH(D75,'Risk Assessment'!$A$4:$F$4,0),FALSE)","v":{"$error":"#N/A"}},{"$nulls":3},{"$f":"VLOOKUP(G75,'Risk Assessment'!$A$4:$F$10,MATCH(H75,'Risk Assessment'!$A$4:$F$4,0),FALSE)","v":{"$error":"#N/A"}}]
[{"$nulls":4},{"$f":"VLOOKUP(C76,'Risk Assessment'!$A$4:$F$10,MATCH(D76,'Risk Assessment'!$A$4:$F$4,0),FALSE)","v":{"$error":"#N/A"}},{"$nulls":3},{"$f":"VLOOKUP(G76,'Risk Assessment'!$A$4:$F$10,MATCH(H76,'Risk Assessment'!$A$4:$F$4,0),FALSE)","v":{"$error":"#N/A"}}]
[{"$nulls":4},{"$f":"VLOOKUP(C77,'Risk Assessment'!$A$4:$F$10,MATCH(D77,'Risk Assessment'!$A$4:$F$4,0),FALSE)","v":{"$error":"#N/A"}},{"$nulls":3},{"$f":"VLOOKUP(G77,'Risk Assessment'!$A$4:$F$10,MATCH(H77,'Risk Assessment'!$A$4:$F$4,0),FALSE)","v":{"$error":"#N/A"}}]

{"sheet":"Orienteering","index":13,"n_rows":77,"n_cols":9,"rows_kept":77}
{"$rows_empty":9}
[" HAZARD and RISK REGISTER ",null," WCC Practical Activities"]
["Refer to Hazard/Risk Management Procedure"]
[]
["Developed by: Matthew Smith Date: 25 May 2022."]
[" Approved by: Cody Blackler   Date: 10 August 2022"]
["Reviewed by: Cody Blackler and Matthew Smith  Date: 11 August 2022"]
[]
["(1) Identify all hazards, then determine a risk rating."]
["(2) Eliminate the risk. If not reasonably practicable then"]
["(3) Minimise the risk as far as reasonably practicable."]
["(4) Reassess and determine the residual risk"]
[]
["Where or what task?","Hazard and Harm?","Likelihood \n(Choose from drop list in cell)","Consequence \n(Choose from drop list in cell)","Rating","Action required to Eliminate (E) or Minimise (M). \n (controls, administration controls, personal protective equipment.)","Revised Likelihood","Revised Consequence","Residual Rating"]
["All Tasks","Trips, slips or falls ","Likely","Moderate",{"$f":"VLOOKUP(C23,'Risk Assessment'!$A$4:$F$10,MATCH(D23,'Risk Assessment'!$A$4:$F$4,0),FALSE)","v":8},"M: users to be mindful of their footing","Unlikely","Moderate",{"$f":"VLOOKUP(G23,'Risk Assessment'!$A$4:$F$10,MATCH(H23,'Risk Assessment'!$A$4:$F$4,0),FALSE)","v":4}]
["All Tasks","getting lost","Unlikely","Moderate",{"$f":"VLOOKUP(C24,'Risk Assessment'!$A$4:$F$10,MATCH(D24,'Risk Assessment'!$A$4:$F$4,0),FALSE)","v":4},"M: users briefed on ways to find their way back to camp","Highly unlikely (rare)","Moderate",{"$f":"VLOOKUP(G24,'Risk Assessment'!$A$4:$F$10,MATCH(H24,'Risk Assessment'!$A$4:$F$4,0),FALSE)","v":2}]
["All Tasks","dehydration ","Moderate","Significant",{"$f":"VLOOKUP(C25,'Risk Assessment'!$A$4:$F$10,MATCH(D25,'Risk Assessment'!$A$4:$F$4,0),FALSE)","v":9},"M: users encouraged to stay hydrated in hot weather\nM: staff knowledgable in dehydration management","Unlikely","Significant",{"$f":"VLOOKUP(G25,'Risk Assessment'!$A$4:$F$10,MATCH(H25,'Risk Assessment'!$A$4:$F$4,0),FALSE)","v":6}]
["All Tasks","exposure ","Unlikely","Extreme",{"$f":"VLOOKUP(C26,'Risk Assessment'!$A$4:$F$10,MATCH(D26,'Risk Assessment'!$A$4:$F$4,0),FALSE)","v":10},"M: Staff to recognise signs and symptoms of exposure illnesses (Heatstroke, Hypothermia, Hyperthermia and heat exhaustion)\nM: Advise clients of appropriate clothing for the activity and weather\nE: activity to be closed when exposure risk can not be effectivly managed (either through lack of appropriate client clothing or continually deteriorating weather. Note staff are expected to carry apropriate clothing for work in all conditions)","Highly unlikely (rare)","Extreme",{"$f":"VLOOKUP(G26,'Risk Assessment'!$A$4:$F$10,MATCH(H26,'Risk Assessment'!$A$4:$F$4,0),FALSE)","v":5}]
["All Tasks","sunburn","Very likely","Moderate",{"$f":"VLOOKUP(C27,'Risk Assessment'!$A$4:$F$10,MATCH(D27,'Risk Assessment'!$A$4:$F$4,0),FALSE)","v":10},"M: Sunsmart principles applied.\nM: Advise clients to wear sunhats and apply sunblock","Unlikely","Moderate",{"$f":"VLOOKUP(G27,'Risk Assessment'!$A$4:$F$10,MATCH(H27,'Risk Assessment'!$A$4:$F$4,0),FALSE)","v":4}]
["All Tasks","injury from other activity users ","Very likely","Major",{"$f":"VLOOKUP(C28,'Risk Assessment'!$A$4:$F$10,MATCH(D28,'Risk Assessment'!$A$4:$F$4,0),FALSE)","v":20},"M: users briefed on places not to go\nM: adults/leaders/instuctors briefed/trained to keep an eye on orienteering users near their activities","Highly unlikely (rare)","Major",{"$f":"VLOOKUP(G28,'Risk Assessment'!$A$4:$F$10,MATCH(H28,'Risk Assessment'!$A$4:$F$4,0),FALSE)","v":4}]
["All Tasks","falling objects (trees, pinecones, branches ect)","Unlikely","Extreme",{"$f":"VLOOKUP(C29,'Risk Assessment'!$A$4:$F$10,MATCH(D29,'Risk Assessment'!$A$4:$F$4,0),FALSE)","v":10},"M: following high wind events, high wind inspection to be completed before use\n","Highly unlikely (rare)","Extreme",{"$f":"VLOOKUP(G29,'Risk Assessment'!$A$4:$F$10,MATCH(H29,'Risk Assessment'!$A$4:$F$4,0),FALSE)","v":5}]
[{"$nulls":4},{"$f":"VLOOKUP(C30,'Risk Assessment'!$A$4:$F$10,MATCH(D30,'Risk Assessment'!$A$4:$F$4,0),FALSE)","v":{"$error":"#N/A"}},{"$nulls":3},{"$f":"VLOOKUP(G30,'Risk Assessment'!$A$4:$F$10,MATCH(H30,'Risk Assessment'!$A$4:$F$4,0),FALSE)","v":{"$error":"#N/A"}}]
[{"$nulls":4},{"$f":"VLOOKUP(C31,'Risk Assessment'!$A$4:$F$10,MATCH(D31,'Risk Assessment'!$A$4:$F$4,0),FALSE)","v":{"$error":"#N/A"}},{"$nulls":3},{"$f":"VLOOKUP(G31,'Risk Assessment'!$A$4:$F$10,MATCH(H31,'Risk Assessment'!$A$4:$F$4,0),FALSE)","v":{"$error":"#N/A"}}]
[{"$nulls":4},{"$f":"VLOOKUP(C32,'Risk Assessment'!$A$4:$F$10,MATCH(D32,'Risk Assessment'!$A$4:$F$4,0),FALSE)","v":{"$error":"#N/A"}},{"$nulls":3},{"$f":"VLOOKUP(G32,'Risk Assessment'!$A$4:$F$10,MATCH(H32,'Risk Assessment'!$A$4:$F$4,0),FALSE)","v":{"$error":"#N/A"}}]
[{"$nulls":4},{"$f":"VLOOKUP(C33,'Risk Assessment'!$A$4:$F$10,MATCH(D33,'Risk Assessment'!$A$4:$F$4,0),FALSE)","v":{"$error":"#N/A"}},{"$nulls":3},{"$f":"VLOOKUP(G33,'Risk Assessment'!$A$4:$F$10,MATCH(H33,'Risk Assessment'!$A$4:$F$4,0),FALSE)","v":{"$error":"#N/A"}}]
[{"$nulls":4},{"$f":"VLOOKUP(C34,'Risk Assessment'!$A$4:$F$10,MATCH(D34,'Risk Assessment'!$A$4:$F$4,0),FALSE)","v":{"$error":"#N/A"}},{"$nulls":3},{"$f":"VLOOKUP(G34,'Risk Assessment'!$A$4:$F$10,MATCH(H34,'Risk Assessment'!$A$4:$F$4,0),FALSE)","v":{"$error":"#N/A"}}]
[{"$nulls":4},{"$f":"VLOOKUP(C35,'Risk Assessment'!$A$4:$F$10,MATCH(D35,'Risk Assessment'!$A$4:$F$4,0),FALSE)","v":{"$error":"#N/A"}},{"$nulls":3},{"$f":"VLOOKUP(G35,'Risk Assessment'!$A$4:$F$10,MATCH(H35,'Risk Assessment'!$A$4:$F$4,0),FALSE)","v":{"$error":"#N/A"}}]
[{"$nulls":4},{"$f":"VLOOKUP(C36,'Risk Assessment'!$A$4:$F$10,MATCH(D36,'Risk Assessment'!$A$4:$F$4,0),FALSE)","v":{"$error":"#N/A"}},{"$nulls":3},{"$f":"VLOOKUP(G36,'Risk Assessment'!$A$4:$F$10,MATCH(H36,'Risk Assessment'!$A$4:$F$4,0),FALSE)","v":{"$error":"#N/A"}}]
[{"$nulls":4},{"$f":"VLOOKUP(C37,'Risk Assessment'!$A$4:$F$10,MATCH(D37,'Risk Assessment'!$A$4:$F$4,0),FALSE)","v":{"$error":"#N/A"}},{"$nulls":3},{"$f":"VLOOKUP(G37,'Risk Assessment'!$A$4:$F$10,MATCH(H37,'Risk Assessment'!$A$4:$F$4,0),FALSE)","v":{"$error":"#N/A"}}]
[{"$nulls":4},{"$f":"VLOOKUP(C38,'Risk Assessment'!$A$4:$F$10,MATCH(D38,'Risk Assessment'!$A$4:$F$4,0),FALSE)","v":{"$error":"#N/A"}},{"$nulls":3},{"$f":"VLOOKUP(G38,'Risk Assessment'!$A$4:$F$10,MATCH(H38,'Risk Assessment'!$A$4:$F$4,0),FALSE)","v":{"$error":"#N/A"}}]
[{"$nulls":4},{"$f":"VLOOKUP(C39,'Risk Assessment'!$A$4:$F$10,MATCH(D39,'Risk Assessment'!$A$4:$F$4,0),FALSE)","v":{"$error":"#N/A"}},{"$nulls":3},{"$f":"VLOOKUP(G39,'Risk Assessment'!$A$4:$F$10,MATCH(H39,'Risk Assessment'!$A$4:$F$4,0),FALSE)","v":{"$error":"#N/A"}}]
[{"$nulls":4},{"$f":"VLOOKUP(C40,'Risk Assessment'!$A$4:$F$10,MATCH(D40,'Risk Assessment'!$A$4:$F$4,0),FALSE)","v":{"$error":"#N/A"}},{"$nulls":3},{"$f":"VLOOKUP(G40,'Risk Assessment'!$A$4:$F$10,MATCH(H40,'Risk Assessment'!$A$4:$F$4,0),FALSE)","v":{"$error":"#N/A"}}]
[{"$nulls":4},{"$f":"VLOOKUP(C41,'Risk Assessment'!$A$4:$F$10,MATCH(D41,'Risk Assessment'!$A$4:$F$4,0),FALSE)","v":{"$error":"#N/A"}},{"$nulls":3},{"$f":"VLOOKUP(G41,'Risk Assessment'!$A$4:$F$10,MATCH(H41,'Risk Assessment'!$A$4:$F$4,0),FALSE)","v":{"$error":"#N/A"}}]
[{"$nulls":4},{"$f":"VLOOKUP(C42,'Risk Assessment'!$A$4:$F$10,MATCH(D42,'Risk Assessment'!$A$4:$F$4,0),FALSE)","v":{"$error":"#N/A"}},{"$nulls":3},{"$f":"VLOOKUP(G42,'Risk Assessment'!$A$4:$F$10,MATCH(H42,'Risk Assessment'!$A$4:$F$4,0),FALSE)","v":{"$error":"#N/A"}}]
[{"$nulls":4},{"$f":"VLOOKUP(C43,'Risk Assessment'!$A$4:$F$10,MATCH(D43,'Risk Assessment'!$A$4:$F$4,0),FALSE)","v":{"$error":"#N/A"}},{"$nulls":3},{"$f":"VLOOKUP(G43,'Risk Assessment'!$A$4:$F$10,MATCH(H43,'Risk Assessment'!$A$4:$F$4,0),FALSE)","v":{"$error":"#N/A"}}]
[{"$nulls":4},{"$f":"VLOOKUP(C44,'Risk Assessment'!$A$4:$F$10,MATCH(D44,'Risk Assessment'!$A$4:$F$4,0),FALSE)","v":{"$error":"#N/A"}},{"$nulls":3},{"$f":"VLOOKUP(G44,'Risk Assessment'!$A$4:$F$10,MATCH(H44,'Risk Assessment'!$A$4:$F$4,0),FALSE)","v":{"$error":"#N/A"}}]
[{"$nulls":4},{"$f":"VLOOKUP(C45,'Risk Assessment'!$A$4:$F$10,MATCH(D45,'Risk Assessment'!$A$4:$F$4,0),FALSE)","v":{"$error":"#N/A"}},{"$nulls":3},{"$f":"VLOOKUP(G45,'Risk Assessment'!$A$4:$F$10,MATCH(H45,'Risk Assessment'!$A$4:$F$4,0),FALSE)","v":{"$error":"#N/A"}}]
[{"$nulls":4},{"$f":"VLOOKUP(C46,'Risk Assessment'!$A$4:$F$10,MATCH(D46,'Risk Assessment'!$A$4:$F$4,0),FALSE)","v":{"$error":"#N/A"}},{"$nulls":3},{"$f":"VLOOKUP(G46,'Risk Assessment'!$A$4:$F$10,MATCH(H46,'Risk Assessment'!$A$4:$F$4,0),FALSE)","v":{"$error":"#N/A"}}]
[{"$nulls":4},{"$f":"VLOOKUP(C47,'Risk Assessment'!$A$4:$F$10,MATCH(D47,'Risk Assessment'!$A$4:$F$4,0),FALSE)","v":{"$error":"#N/A"}},{"$nulls":3},{"$f":"VLOOKUP(G47,'Risk Assessment'!$A$4:$F$10,MATCH(H47,'Risk Assessment'!$A$4:$F$4,0),FALSE)","v":{"$error":"#N/A"}}]
[{"$nulls":4},{"$f":"VLOOKUP(C48,'Risk Assessment'!$A$4:$F$10,MATCH(D48,'Risk Assessment'!$A$4:$F$4,0),FALSE)","v":{"$error":"#N/A"}},{"$nulls":3},{"$f":"VLOOKUP(G48,'Risk Assessment'!$A$4:$F$10,MATCH(H48,'Risk Assessment'!$A$4:$F$4,0),FALSE)","v":{"$error":"#N/A"}}]
[{"$nulls":4},{"$f":"VLOOKUP(C49,'Risk Assessment'!$A$4:$F$10,MATCH(D49,'Risk Assessment'!$A$4:$F$4,0),FALSE)","v":{"$error":"#N/A"}},{"$nulls":3},{"$f":"VLOOKUP(G49,'Risk Assessment'!$A$4:$F$10,MATCH(H49,'Risk Assessment'!$A$4:$F$4,0),FALSE)","v":{"$error":"#N/A"}}]
[{"$nulls":4},{"$f":"VLOOKUP(C50,'Risk Assessment'!$A$4:$F$10,MATCH(D50,'Risk Assessment'!$A$4:$F$4,0),FALSE)","v":{"$error":"#N/A"}},{"$nulls":3},{"$f":"VLOOKUP(G50,'Risk Assessment'!$A$4:$F$10,MATCH(H50,'Risk Assessment'!$A$4:$F$4,0),FALSE)","v":{"$error":"#N/A"}}]
[{"$nulls":4},{"$f":"VLOOKUP(C51,'Risk Assessment'!$A$4:$F$10,MATCH(D51,'Risk Assessment'!$A$4:$F$4,0),FALSE)","v":{"$error":"#N/A"}},{"$nulls":3},{"$f":"VLOOKUP(G51,'Risk Assessment'!$A$4:$F$10,MATCH(H51,'Risk Assessment'!$A$4:$F$4,0),FALSE)","v":{"$error":"#N/A"}}]
[{"$nulls":4},{"$f":"VLOOKUP(C52,'Risk Assessment'!$A$4:$F$10,MATCH(D52,'Risk Assessment'!$A$4:$F$4,0),FALSE)","v":{"$error":"#N/A"}},{"$nulls":3},{"$f":"VLOOKUP(G52,'Risk Assessment'!$A$4:$F$10,MATCH(H52,'Risk Assessment'!$A$4:$F$4,0),FALSE)","v":{"$error":"#N/A"}}]
[{"$nulls":4},{"$f":"VLOOKUP(C53,'Risk Assessment'!$A$4:$F$10,MATCH(D53,'Risk Assessment'!$A$4:$F$4,0),FALSE)","v":{"$error":"#N/A"}},{"$nulls":3},{"$f":"VLOOKUP(G53,'Risk Assessment'!$A$4:$F$10,MATCH(H53,'Risk Assessment'!$A$4:$F$4,0),FALSE)","v":{"$error":"#N/A"}}]
[{"$nulls":4},{"$f":"VLOOKUP(C54,'Risk Assessment'!$A$4:$F$10,MATCH(D54,'Risk Assessment'!$A$4:$F$4,0),FALSE)","v":{"$error":"#N/A"}},{"$nulls":3},{"$f":"VLOOKUP(G54,'Risk Assessment'!$A$4:$F$10,MATCH(H54,'Risk Assessment'!$A$4:$F$4,0),FALSE)","v":{"$error":"#N/A"}}]
[{"$nulls":4},{"$f":"VLOOKUP(C55,'Risk Assessment'!$A$4:$F$10,MATCH(D55,'Risk Assessment'!$A$4:$F$4,0),FALSE)","v":{"$error":"#N/A"}},{"$nulls":3},{"$f":"VLOOKUP(G55,'Risk Assessment'!$A$4:$F$10,MATCH(H55,'Risk Assessment'!$A$4:$F$4,0),FALSE)","v":{"$error":"#N/A"}}]
[{"$nulls":4},{"$f":"VLOOKUP(C56,'Risk Assessment'!$A$4:$F$10,MATCH(D56,'Risk Assessment'!$A$4:$F$4,0),FALSE)","v":{"$error":"#N/A"}},{"$nulls":3},{"$f":"VLOOKUP(G56,'Risk Assessment'!$A$4:$F$10,MATCH(H56,'Risk Assessment'!$A$4:$F$4,0),FALSE)","v":{"$error":"#N/A"}}]
[{"$nulls":4},{"$f":"VLOOKUP(C57,'Risk Assessment'!$A$4:$F$10,MATCH(D57,'Risk Assessment'!$A$4:$F$4,0),FALSE)","v":{"$error":"#N/A"}},{"$nulls":3},{"$f":"VLOOKUP(G57,'Risk Assessment'!$A$4:$F$10,MATCH(H57,'Risk Assessment'!$A$4:$F$4,0),FALSE)","v":{"$error":"#N/A"}}]
[{"$nulls":4},{"$f":"VLOOKUP(C58,'Risk Assessment'!$A$4:$F$10,MATCH(D58,'Risk Assessment'!$A$4:$F$4,0),FALSE)","v":{"$error":"#N/A"}},{"$nulls":3},{"$f":"VLOOKUP(G58,'Risk Assessment'!$A$4:$F$10,MATCH(H58,'Risk Assessment'!$A$4:$F$4,0),FALSE)","v":{"$error":"#N/A"}}]
[{"$nulls":4},{"$f":"VLOOKUP(C59,'Risk Assessment'!$A$4:$F$10,MATCH(D59,'Risk Assessment'!$A$4:$F$4,0),FALSE)","v":{"$error":"#N/A"}},{"$nulls":3},{"$f":"VLOOKUP(G59,'Risk Assessment'!$A$4:$F$10,MATCH(H59,'Risk Assessment'!$A$4:$F$4,0),FALSE)","v":{"$error":"#N/A"}}]
[{"$nulls":4},{"$f":"VLOOKUP(C60,'Risk Assessment'!$A$4:$F$10,MATCH(D60,'Risk Assessment'!$A$4:$F$4,0),FALSE)","v":{"$error":"#N/A"}},{"$nulls":3},{"$f":"VLOOKUP(G60,'Risk Assessment'!$A$4:$F$10,MATCH(H60,'Risk Assessment'!$A$4:$F$4,0),FALSE)","v":{"$error":"#N/A"}}]
[{"$nulls":4},{"$f":"VLOOKUP(C61,'Risk Assessment'!$A$4:$F$10,MATCH(D61,'Risk Assessment'!$A$4:$F$4,0),FALSE)","v":{"$error":"#N/A"}},{"$nulls":3},{"$f":"VLOOKUP(G61,'Risk Assessment'!$A$4:$F$10,MATCH(H61,'Risk Assessment'!$A$4:$F$4,0),FALSE)","v":{"$error":"#N/A"}}]
[{"$nulls":4},{"$f":"VLOOKUP(C62,'Risk Assessment'!$A$4:$F$10,MATCH(D62,'Risk Assessment'!$A$4:$F$4,0),FALSE)","v":{"$error":"#N/A"}},{"$nulls":3},{"$f":"VLOOKUP(G62,'Risk Assessment'!$A$4:$F$10,MATCH(H62,'Risk Assessment'!$A$4:$F$4,0),FALSE)","v":{"$error":"#N/A"}}]
[{"$nulls":4},{"$f":"VLOOKUP(C63,'Risk Assessment'!$A$4:$F$10,MATCH(D63,'Risk Assessment'!$A$4:$F$4,0),FALSE)","v":{"$error":"#N/A"}},{"$nulls":3},{"$f":"VLOOKUP(G63,'Risk Assessment'!$A$4:$F$10,MATCH(H63,'Risk Assessment'!$A$4:$F$4,0),FALSE)","v":{"$error":"#N/A"}}]
[{"$nulls":4},{"$f":"VLOOKUP(C64,'Risk Assessment'!$A$4:$F$10,MATCH(D64,'Risk Assessment'!$A$4:$F$4,0),FALSE)","v":{"$error":"#N/A"}},{"$nulls":3},{"$f":"VLOOKUP(G64,'Risk Assessment'!$A$4:$F$10,MATCH(H64,'Risk Assessment'!$A$4:$F$4,0),FALSE)","v":{"$error":"#N/A"}}]
[{"$nulls":4},{"$f":"VLOOKUP(C65,'Risk Assessment'!$A$4:$F$10,MATCH(D65,'Risk Assessment'!$A$4:$F$4,0),FALSE)","v":{"$error":"#N/A"}},{"$nulls":3},{"$f":"VLOOKUP(G65,'Risk Assessment'!$A$4:$F$10,MATCH(H65,'Risk Assessment'!$A$4:$F$4,0),FALSE)","v":{"$error":"#N/A"}}]
[{"$nulls":4},{"$f":"VLOOKUP(C66,'Risk Assessment'!$A$4:$F$10,MATCH(D66,'Risk Assessment'!$A$4:$F$4,0),FALSE)","v":{"$error":"#N/A"}},{"$nulls":3},{"$f":"VLOOKUP(G66,'Risk Assessment'!$A$4:$F$10,MATCH(H66,'Risk Assessment'!$A$4:$F$4,0),FALSE)","v":{"$error":"#N/A"}}]
[{"$nulls":4},{"$f":"VLOOKUP(C67,'Risk Assessment'!$A$4:$F$10,MATCH(D67,'Risk Assessment'!$A$4:$F$4,0),FALSE)","v":{"$error":"#N/A"}},{"$nulls":3},{"$f":"VLOOKUP(G67,'Risk Assessment'!$A$4:$F$10,MATCH(H67,'Risk Assessment'!$A$4:$F$4,0),FALSE)","v":{"$error":"#N/A"}}]
[{"$nulls":4},{"$f":"VLOOKUP(C68,'Risk Assessment'!$A$4:$F$10,MATCH(D68,'Risk Assessment'!$A$4:$F$4,0),FALSE)","v":{"$error":"#N/A"}},{"$nulls":3},{"$f":"VLOOKUP(G68,'Risk Assessment'!$A$4:$F$10,MATCH(H68,'Risk Assessment'!$A$4:$F$4,0),FALSE)","v":{"$error":"#N/A"}}]
[{"$nulls":4},{"$f":"VLOOKUP(C69,'Risk Assessment'!$A$4:$F$10,MATCH(D69,'Risk Assessment'!$A$4:$F$4,0),FALSE)","v":{"$error":"#N/A"}},{"$nulls":3},{"$f":"VLOOKUP(G69,'Risk Assessment'!$A$4:$F$10,MATCH(H69,'Risk Assessment'!$A$4:$F$4,0),FALSE)","v":{"$error":"#N/A"}}]
[{"$nulls":4},{"$f":"VLOOKUP(C70,'Risk Assessment'!$A$4:$F$10,MATCH(D70,'Risk Assessment'!$A$4:$F$4,0),FALSE)","v":{"$error":"#N/A"}},{"$nulls":3},{"$f":"VLOOKUP(G70,'Risk Assessment'!$A$4:$F$10,MATCH(H70,'Risk Assessment'!$A$4:$F$4,0),FALSE)","v":{"$error":"#N/A"}}]
[{"$nulls":4},{"$f":"VLOOKUP(C71,'Risk Assessment'!$A$4:$F$10,MATCH(D71,'Risk Assessment'!$A$4:$F$4,0),FALSE)","v":{"$error":"#N/A"}},{"$nulls":3},{"$f":"VLOOKUP(G71,'Risk Assessment'!$A$4:$F$10,MATCH(H71,'Risk Assessment'!$A$4:$F$4,0),FALSE)","v":{"$error":"#N/A"}}]
[{"$nulls":4},{"$f":"VLOOKUP(C72,'Risk Assessment'!$A$4:$F$10,MATCH(D72,'Risk Assessment'!$A$4:$F$4,0),FALSE)","v":{"$error":"#N/A"}},{"$nulls":3},{"$f":"VLOOKUP(G72,'Risk Assessment'!$A$4:$F$10,MATCH(H72,'Risk Assessment'!$A$4:$F$4,0),FALSE)","v":{"$error":"#N/A"}}]
[{"$nulls":4},{"$f":"VLOOKUP(C73,'Risk Assessment'!$A$4:$F$10,MATCH(D73,'Risk Assessment'!$A$4:$F$4,0),FALSE)","v":{"$error":"#N/A"}},{"$nulls":3},{"$f":"VLOOKUP(G73,'Risk Assessment'!$A$4:$F$10,MATCH(H73,'Risk Assessment'!$A$4:$F$4,0),FALSE)","v":{"$error":"#N/A"}}]
[{"$nulls":4},{"$f":"VLOOKUP(C74,'Risk Assessment'!$A$4:$F$10,MATCH(D74,'Risk Assessment'!$A$4:$F$4,0),FALSE)","v":{"$error":"#N/A"}},{"$nulls":3},{"$f":"VLOOKUP(G74,'Risk Assessment'!$A$4:$F$10,MATCH(H74,'Risk Assessment'!$A$4:$F$4,0),FALSE)","v":{"$error":"#N/A"}}]
[{"$nulls":4},{"$f":"VLOOKUP(C75,'Risk Assessment'!$A$4:$F$10,MATCH(D75,'Risk Assessment'!$A$4:$F$4,0),FALSE)","v":{"$error":"#N/A"}},{"$nulls":3},{"$f":"VLOOKUP(G75,'Risk Assessment'!$A$4:$F$10,MATCH(H75,'Risk Assessment'!$A$4:$F$4,0),FALSE)","v":{"$error":"#N/A"}}]
[{"$nulls":4},{"$f":"VLOOKUP(C76,'Risk Assessment'!$A$4:$F$10,MATCH(D76,'Risk Assessment'!$A$4:$F$4,0),FALSE)","v":{"$error":"#N/A"}},{"$nulls":3},{"$f":"VLOOKUP(G76,'Risk Assessment'!$A$4:$F$10,MATCH(H76,'Risk Assessment'!$A$4:$F$4,0),FALSE)","v":{"$error":"#N/A"}}]
[{"$nulls":4},{"$f":"VLOOKUP(C77,'Risk Assessment'!$A$4:$F$10,MATCH(D77,'Risk Assessment'!$A$4:$F$4,0),FALSE)","v":{"$error":"#N/A"}},{"$nulls":3},{"$f":"VLOOKUP(G77,'Risk Assessment'!$A$4:$F$10,MATCH(H77,'Risk Assessment'!$A$4:$F$4,0),FALSE)","v":{"$error":"#N/A"}}]

{"sheet":"Reflector Trail","index":14,"n_rows":77,"n_cols":9,"rows_kept":77}
{"$rows_empty":9}
[" HAZARD and RISK REGISTER ",null," WCC Practical Activities"]
["Refer to Hazard/Risk Management Procedure"]
[]
["Developed by: Matthew Smith Date: 25 May 2022."]
[" Approved by:  Cody Blackler  Date:  11 August 2022"]
["Reviewed by: Cody Blackler and Matthew Smith  Date: 11 August 2022"]
[]
["(1) Identify all hazards, then determine a risk rating."]
["(2) Eliminate the risk. If not reasonably practicable then"]
["(3) Minimise the risk as far as reasonably practicable."]
["(4) Reassess and determine the residual risk"]
[]
["Where or what task?","Hazard and Harm?","Likelihood \n(Choose from drop list in cell)","Consequence \n(Choose from drop list in cell)","Rating","Action required to Eliminate (E) or Minimise (M). \n (controls, administration controls, personal protective equipment.)","Revised Likelihood","Revised Consequence","Residual Rating"]
["All Tasks","trips, slips or falls","Very likely","Moderate",{"$f":"VLOOKUP(C23,'Risk Assessment'!$A$4:$F$10,MATCH(D23,'Risk Assessment'!$A$4:$F$4,0),FALSE)","v":10},"M: users to be mindful of their footing\nM: torches to be used","Unlikely","Moderate",{"$f":"VLOOKUP(G23,'Risk Assessment'!$A$4:$F$10,MATCH(H23,'Risk Assessment'!$A$4:$F$4,0),FALSE)","v":4}]
["All Tasks","Walking into trees, branches or other obstacle","Moderate","Significant",{"$f":"VLOOKUP(C24,'Risk Assessment'!$A$4:$F$10,MATCH(D24,'Risk Assessment'!$A$4:$F$4,0),FALSE)","v":9},"M: users to be mindful of their footing\nM: torches to be used","Unlikely","Significant",{"$f":"VLOOKUP(G24,'Risk Assessment'!$A$4:$F$10,MATCH(H24,'Risk Assessment'!$A$4:$F$4,0),FALSE)","v":6}]
["All Tasks","getting lost ","Moderate","Significant",{"$f":"VLOOKUP(C25,'Risk Assessment'!$A$4:$F$10,MATCH(D25,'Risk Assessment'!$A$4:$F$4,0),FALSE)","v":9},"M: 1:5 adult:child ratio","Unlikely","Significant",{"$f":"VLOOKUP(G25,'Risk Assessment'!$A$4:$F$10,MATCH(H25,'Risk Assessment'!$A$4:$F$4,0),FALSE)","v":6}]
["All Tasks","exposure","Likely","Extreme",{"$f":"VLOOKUP(C26,'Risk Assessment'!$A$4:$F$10,MATCH(D26,'Risk Assessment'!$A$4:$F$4,0),FALSE)","v":20},"M: Staff to recognise signs and symptoms of exposure illnesses (Heatstroke, Hypothermia, Hyperthermia and heat exhaustion)\nM: Advise clients of appropriate clothing for the activity and weather\nE: activity to be closed when exposure risk can not be effectivly managed (either through lack of appropriate client clothing or continually deteriorating weather. Note staff are expected to carry apropriate clothing for work in all conditions)","Highly unlikely (rare)","Extreme",{"$f":"VLOOKUP(G26,'Risk Assessment'!$A$4:$F$10,MATCH(H26,'Risk Assessment'!$A$4:$F$4,0),FALSE)","v":5}]
["All Tasks","emotional stress fear of the dark","Likely","Moderate",{"$f":"VLOOKUP(C27,'Risk Assessment'!$A$4:$F$10,MATCH(D27,'Risk Assessment'!$A$4:$F$4,0),FALSE)","v":8},"E: Challenge by choice: clients who do not wish to participate must be allowed to opt out.\nM: mild encouragement to try is ok however clients must make the choice themselves\nM: staff to encourage challenge by choice principles and encourage others in group (teachers, parents, peers, and other figures of authority within group) to do so as well\nE: Staff retain the ability to remove people from group either temporarily or for the remainder of session for pressuring other clients, (Note: be mindful of using challenge by choice principles here too)\nM:  adults/leaders running the activity to be familiar with signs of emotional stress and a range of methods to calm the user (such as rationalization and breathing exercises)\nM: post-activity debrief to discuss events through the activity","Unlikely","Moderate",{"$f":"VLOOKUP(G27,'Risk Assessment'!$A$4:$F$10,MATCH(H27,'Risk Assessment'!$A$4:$F$4,0),FALSE)","v":4}]
["All Tasks","emotional stress frightend by possum or other wildlife","Likely","Moderate",{"$f":"VLOOKUP(C28,'Risk Assessment'!$A$4:$F$10,MATCH(D28,'Risk Assessment'!$A$4:$F$4,0),FALSE)","v":8},"M:  adults/leaders running the activity to be familiar with signs of emotional stress and a range of methods to calm the user (such as rationalization and breathing exercises)\nM: post-activity debrief to discuss events through the activity","Unlikely","Moderate",{"$f":"VLOOKUP(G28,'Risk Assessment'!$A$4:$F$10,MATCH(H28,'Risk Assessment'!$A$4:$F$4,0),FALSE)","v":4}]
[{"$nulls":4},{"$f":"VLOOKUP(C29,'Risk Assessment'!$A$4:$F$10,MATCH(D29,'Risk Assessment'!$A$4:$F$4,0),FALSE)","v":{"$error":"#N/A"}},{"$nulls":3},{"$f":"VLOOKUP(G29,'Risk Assessment'!$A$4:$F$10,MATCH(H29,'Risk Assessment'!$A$4:$F$4,0),FALSE)","v":{"$error":"#N/A"}}]
[{"$nulls":4},{"$f":"VLOOKUP(C30,'Risk Assessment'!$A$4:$F$10,MATCH(D30,'Risk Assessment'!$A$4:$F$4,0),FALSE)","v":{"$error":"#N/A"}},{"$nulls":3},{"$f":"VLOOKUP(G30,'Risk Assessment'!$A$4:$F$10,MATCH(H30,'Risk Assessment'!$A$4:$F$4,0),FALSE)","v":{"$error":"#N/A"}}]
[{"$nulls":4},{"$f":"VLOOKUP(C31,'Risk Assessment'!$A$4:$F$10,MATCH(D31,'Risk Assessment'!$A$4:$F$4,0),FALSE)","v":{"$error":"#N/A"}},{"$nulls":3},{"$f":"VLOOKUP(G31,'Risk Assessment'!$A$4:$F$10,MATCH(H31,'Risk Assessment'!$A$4:$F$4,0),FALSE)","v":{"$error":"#N/A"}}]
[{"$nulls":4},{"$f":"VLOOKUP(C32,'Risk Assessment'!$A$4:$F$10,MATCH(D32,'Risk Assessment'!$A$4:$F$4,0),FALSE)","v":{"$error":"#N/A"}},{"$nulls":3},{"$f":"VLOOKUP(G32,'Risk Assessment'!$A$4:$F$10,MATCH(H32,'Risk Assessment'!$A$4:$F$4,0),FALSE)","v":{"$error":"#N/A"}}]
[{"$nulls":4},{"$f":"VLOOKUP(C33,'Risk Assessment'!$A$4:$F$10,MATCH(D33,'Risk Assessment'!$A$4:$F$4,0),FALSE)","v":{"$error":"#N/A"}},{"$nulls":3},{"$f":"VLOOKUP(G33,'Risk Assessment'!$A$4:$F$10,MATCH(H33,'Risk Assessment'!$A$4:$F$4,0),FALSE)","v":{"$error":"#N/A"}}]
[{"$nulls":4},{"$f":"VLOOKUP(C34,'Risk Assessment'!$A$4:$F$10,MATCH(D34,'Risk Assessment'!$A$4:$F$4,0),FALSE)","v":{"$error":"#N/A"}},{"$nulls":3},{"$f":"VLOOKUP(G34,'Risk Assessment'!$A$4:$F$10,MATCH(H34,'Risk Assessment'!$A$4:$F$4,0),FALSE)","v":{"$error":"#N/A"}}]
[{"$nulls":4},{"$f":"VLOOKUP(C35,'Risk Assessment'!$A$4:$F$10,MATCH(D35,'Risk Assessment'!$A$4:$F$4,0),FALSE)","v":{"$error":"#N/A"}},{"$nulls":3},{"$f":"VLOOKUP(G35,'Risk Assessment'!$A$4:$F$10,MATCH(H35,'Risk Assessment'!$A$4:$F$4,0),FALSE)","v":{"$error":"#N/A"}}]
[{"$nulls":4},{"$f":"VLOOKUP(C36,'Risk Assessment'!$A$4:$F$10,MATCH(D36,'Risk Assessment'!$A$4:$F$4,0),FALSE)","v":{"$error":"#N/A"}},{"$nulls":3},{"$f":"VLOOKUP(G36,'Risk Assessment'!$A$4:$F$10,MATCH(H36,'Risk Assessment'!$A$4:$F$4,0),FALSE)","v":{"$error":"#N/A"}}]
[{"$nulls":4},{"$f":"VLOOKUP(C37,'Risk Assessment'!$A$4:$F$10,MATCH(D37,'Risk Assessment'!$A$4:$F$4,0),FALSE)","v":{"$error":"#N/A"}},{"$nulls":3},{"$f":"VLOOKUP(G37,'Risk Assessment'!$A$4:$F$10,MATCH(H37,'Risk Assessment'!$A$4:$F$4,0),FALSE)","v":{"$error":"#N/A"}}]
[{"$nulls":4},{"$f":"VLOOKUP(C38,'Risk Assessment'!$A$4:$F$10,MATCH(D38,'Risk Assessment'!$A$4:$F$4,0),FALSE)","v":{"$error":"#N/A"}},{"$nulls":3},{"$f":"VLOOKUP(G38,'Risk Assessment'!$A$4:$F$10,MATCH(H38,'Risk Assessment'!$A$4:$F$4,0),FALSE)","v":{"$error":"#N/A"}}]
[{"$nulls":4},{"$f":"VLOOKUP(C39,'Risk Assessment'!$A$4:$F$10,MATCH(D39,'Risk Assessment'!$A$4:$F$4,0),FALSE)","v":{"$error":"#N/A"}},{"$nulls":3},{"$f":"VLOOKUP(G39,'Risk Assessment'!$A$4:$F$10,MATCH(H39,'Risk Assessment'!$A$4:$F$4,0),FALSE)","v":{"$error":"#N/A"}}]
[{"$nulls":4},{"$f":"VLOOKUP(C40,'Risk Assessment'!$A$4:$F$10,MATCH(D40,'Risk Assessment'!$A$4:$F$4,0),FALSE)","v":{"$error":"#N/A"}},{"$nulls":3},{"$f":"VLOOKUP(G40,'Risk Assessment'!$A$4:$F$10,MATCH(H40,'Risk Assessment'!$A$4:$F$4,0),FALSE)","v":{"$error":"#N/A"}}]
[{"$nulls":4},{"$f":"VLOOKUP(C41,'Risk Assessment'!$A$4:$F$10,MATCH(D41,'Risk Assessment'!$A$4:$F$4,0),FALSE)","v":{"$error":"#N/A"}},{"$nulls":3},{"$f":"VLOOKUP(G41,'Risk Assessment'!$A$4:$F$10,MATCH(H41,'Risk Assessment'!$A$4:$F$4,0),FALSE)","v":{"$error":"#N/A"}}]
[{"$nulls":4},{"$f":"VLOOKUP(C42,'Risk Assessment'!$A$4:$F$10,MATCH(D42,'Risk Assessment'!$A$4:$F$4,0),FALSE)","v":{"$error":"#N/A"}},{"$nulls":3},{"$f":"VLOOKUP(G42,'Risk Assessment'!$A$4:$F$10,MATCH(H42,'Risk Assessment'!$A$4:$F$4,0),FALSE)","v":{"$error":"#N/A"}}]
[{"$nulls":4},{"$f":"VLOOKUP(C43,'Risk Assessment'!$A$4:$F$10,MATCH(D43,'Risk Assessment'!$A$4:$F$4,0),FALSE)","v":{"$error":"#N/A"}},{"$nulls":3},{"$f":"VLOOKUP(G43,'Risk Assessment'!$A$4:$F$10,MATCH(H43,'Risk Assessment'!$A$4:$F$4,0),FALSE)","v":{"$error":"#N/A"}}]
[{"$nulls":4},{"$f":"VLOOKUP(C44,'Risk Assessment'!$A$4:$F$10,MATCH(D44,'Risk Assessment'!$A$4:$F$4,0),FALSE)","v":{"$error":"#N/A"}},{"$nulls":3},{"$f":"VLOOKUP(G44,'Risk Assessment'!$A$4:$F$10,MATCH(H44,'Risk Assessment'!$A$4:$F$4,0),FALSE)","v":{"$error":"#N/A"}}]
[{"$nulls":4},{"$f":"VLOOKUP(C45,'Risk Assessment'!$A$4:$F$10,MATCH(D45,'Risk Assessment'!$A$4:$F$4,0),FALSE)","v":{"$error":"#N/A"}},{"$nulls":3},{"$f":"VLOOKUP(G45,'Risk Assessment'!$A$4:$F$10,MATCH(H45,'Risk Assessment'!$A$4:$F$4,0),FALSE)","v":{"$error":"#N/A"}}]
[{"$nulls":4},{"$f":"VLOOKUP(C46,'Risk Assessment'!$A$4:$F$10,MATCH(D46,'Risk Assessment'!$A$4:$F$4,0),FALSE)","v":{"$error":"#N/A"}},{"$nulls":3},{"$f":"VLOOKUP(G46,'Risk Assessment'!$A$4:$F$10,MATCH(H46,'Risk Assessment'!$A$4:$F$4,0),FALSE)","v":{"$error":"#N/A"}}]
[{"$nulls":4},{"$f":"VLOOKUP(C47,'Risk Assessment'!$A$4:$F$10,MATCH(D47,'Risk Assessment'!$A$4:$F$4,0),FALSE)","v":{"$error":"#N/A"}},{"$nulls":3},{"$f":"VLOOKUP(G47,'Risk Assessment'!$A$4:$F$10,MATCH(H47,'Risk Assessment'!$A$4:$F$4,0),FALSE)","v":{"$error":"#N/A"}}]
[{"$nulls":4},{"$f":"VLOOKUP(C48,'Risk Assessment'!$A$4:$F$10,MATCH(D48,'Risk Assessment'!$A$4:$F$4,0),FALSE)","v":{"$error":"#N/A"}},{"$nulls":3},{"$f":"VLOOKUP(G48,'Risk Assessment'!$A$4:$F$10,MATCH(H48,'Risk Assessment'!$A$4:$F$4,0),FALSE)","v":{"$error":"#N/A"}}]
[{"$nulls":4},{"$f":"VLOOKUP(C49,'Risk Assessment'!$A$4:$F$10,MATCH(D49,'Risk Assessment'!$A$4:$F$4,0),FALSE)","v":{"$error":"#N/A"}},{"$nulls":3},{"$f":"VLOOKUP(G49,'Risk Assessment'!$A$4:$F$10,MATCH(H49,'Risk Assessment'!$A$4:$F$4,0),FALSE)","v":{"$error":"#N/A"}}]
[{"$nulls":4},{"$f":"VLOOKUP(C50,'Risk Assessment'!$A$4:$F$10,MATCH(D50,'Risk Assessment'!$A$4:$F$4,0),FALSE)","v":{"$error":"#N/A"}},{"$nulls":3},{"$f":"VLOOKUP(G50,'Risk Assessment'!$A$4:$F$10,MATCH(H50,'Risk Assessment'!$A$4:$F$4,0),FALSE)","v":{"$error":"#N/A"}}]
[{"$nulls":4},{"$f":"VLOOKUP(C51,'Risk Assessment'!$A$4:$F$10,MATCH(D51,'Risk Assessment'!$A$4:$F$4,0),FALSE)","v":{"$error":"#N/A"}},{"$nulls":3},{"$f":"VLOOKUP(G51,'Risk Assessment'!$A$4:$F$10,MATCH(H51,'Risk Assessment'!$A$4:$F$4,0),FALSE)","v":{"$error":"#N/A"}}]
[{"$nulls":4},{"$f":"VLOOKUP(C52,'Risk Assessment'!$A$4:$F$10,MATCH(D52,'Risk Assessment'!$A$4:$F$4,0),FALSE)","v":{"$error":"#N/A"}},{"$nulls":3},{"$f":"VLOOKUP(G52,'Risk Assessment'!$A$4:$F$10,MATCH(H52,'Risk Assessment'!$A$4:$F$4,0),FALSE)","v":{"$error":"#N/A"}}]
[{"$nulls":4},{"$f":"VLOOKUP(C53,'Risk Assessment'!$A$4:$F$10,MATCH(D53,'Risk Assessment'!$A$4:$F$4,0),FALSE)","v":{"$error":"#N/A"}},{"$nulls":3},{"$f":"VLOOKUP(G53,'Risk Assessment'!$A$4:$F$10,MATCH(H53,'Risk Assessment'!$A$4:$F$4,0),FALSE)","v":{"$error":"#N/A"}}]
[{"$nulls":4},{"$f":"VLOOKUP(C54,'Risk Assessment'!$A$4:$F$10,MATCH(D54,'Risk Assessment'!$A$4:$F$4,0),FALSE)","v":{"$error":"#N/A"}},{"$nulls":3},{"$f":"VLOOKUP(G54,'Risk Assessment'!$A$4:$F$10,MATCH(H54,'Risk Assessment'!$A$4:$F$4,0),FALSE)","v":{"$error":"#N/A"}}]
[{"$nulls":4},{"$f":"VLOOKUP(C55,'Risk Assessment'!$A$4:$F$10,MATCH(D55,'Risk Assessment'!$A$4:$F$4,0),FALSE)","v":{"$error":"#N/A"}},{"$nulls":3},{"$f":"VLOOKUP(G55,'Risk Assessment'!$A$4:$F$10,MATCH(H55,'Risk Assessment'!$A$4:$F$4,0),FALSE)","v":{"$error":"#N/A"}}]
[{"$nulls":4},{"$f":"VLOOKUP(C56,'Risk Assessment'!$A$4:$F$10,MATCH(D56,'Risk Assessment'!$A$4:$F$4,0),FALSE)","v":{"$error":"#N/A"}},{"$nulls":3},{"$f":"VLOOKUP(G56,'Risk Assessment'!$A$4:$F$10,MATCH(H56,'Risk Assessment'!$A$4:$F$4,0),FALSE)","v":{"$error":"#N/A"}}]
[{"$nulls":4},{"$f":"VLOOKUP(C57,'Risk Assessment'!$A$4:$F$10,MATCH(D57,'Risk Assessment'!$A$4:$F$4,0),FALSE)","v":{"$error":"#N/A"}},{"$nulls":3},{"$f":"VLOOKUP(G57,'Risk Assessment'!$A$4:$F$10,MATCH(H57,'Risk Assessment'!$A$4:$F$4,0),FALSE)","v":{"$error":"#N/A"}}]
[{"$nulls":4},{"$f":"VLOOKUP(C58,'Risk Assessment'!$A$4:$F$10,MATCH(D58,'Risk Assessment'!$A$4:$F$4,0),FALSE)","v":{"$error":"#N/A"}},{"$nulls":3},{"$f":"VLOOKUP(G58,'Risk Assessment'!$A$4:$F$10,MATCH(H58,'Risk Assessment'!$A$4:$F$4,0),FALSE)","v":{"$error":"#N/A"}}]
[{"$nulls":4},{"$f":"VLOOKUP(C59,'Risk Assessment'!$A$4:$F$10,MATCH(D59,'Risk Assessment'!$A$4:$F$4,0),FALSE)","v":{"$error":"#N/A"}},{"$nulls":3},{"$f":"VLOOKUP(G59,'Risk Assessment'!$A$4:$F$10,MATCH(H59,'Risk Assessment'!$A$4:$F$4,0),FALSE)","v":{"$error":"#N/A"}}]
[{"$nulls":4},{"$f":"VLOOKUP(C60,'Risk Assessment'!$A$4:$F$10,MATCH(D60,'Risk Assessment'!$A$4:$F$4,0),FALSE)","v":{"$error":"#N/A"}},{"$nulls":3},{"$f":"VLOOKUP(G60,'Risk Assessment'!$A$4:$F$10,MATCH(H60,'Risk Assessment'!$A$4:$F$4,0),FALSE)","v":{"$error":"#N/A"}}]
[{"$nulls":4},{"$f":"VLOOKUP(C61,'Risk Assessment'!$A$4:$F$10,MATCH(D61,'Risk Assessment'!$A$4:$F$4,0),FALSE)","v":{"$error":"#N/A"}},{"$nulls":3},{"$f":"VLOOKUP(G61,'Risk Assessment'!$A$4:$F$10,MATCH(H61,'Risk Assessment'!$A$4:$F$4,0),FALSE)","v":{"$error":"#N/A"}}]
[{"$nulls":4},{"$f":"VLOOKUP(C62,'Risk Assessment'!$A$4:$F$10,MATCH(D62,'Risk Assessment'!$A$4:$F$4,0),FALSE)","v":{"$error":"#N/A"}},{"$nulls":3},{"$f":"VLOOKUP(G62,'Risk Assessment'!$A$4:$F$10,MATCH(H62,'Risk Assessment'!$A$4:$F$4,0),FALSE)","v":{"$error":"#N/A"}}]
[{"$nulls":4},{"$f":"VLOOKUP(C63,'Risk Assessment'!$A$4:$F$10,MATCH(D63,'Risk Assessment'!$A$4:$F$4,0),FALSE)","v":{"$error":"#N/A"}},{"$nulls":3},{"$f":"VLOOKUP(G63,'Risk Assessment'!$A$4:$F$10,MATCH(H63,'Risk Assessment'!$A$4:$F$4,0),FALSE)","v":{"$error":"#N/A"}}]
[{"$nulls":4},{"$f":"VLOOKUP(C64,'Risk Assessment'!$A$4:$F$10,MATCH(D64,'Risk Assessment'!$A$4:$F$4,0),FALSE)","v":{"$error":"#N/A"}},{"$nulls":3},{"$f":"VLOOKUP(G64,'Risk Assessment'!$A$4:$F$10,MATCH(H64,'Risk Assessment'!$A$4:$F$4,0),FALSE)","v":{"$error":"#N/A"}}]
[{"$nulls":4},{"$f":"VLOOKUP(C65,'Risk Assessment'!$A$4:$F$10,MATCH(D65,'Risk Assessment'!$A$4:$F$4,0),FALSE)","v":{"$error":"#N/A"}},{"$nulls":3},{"$f":"VLOOKUP(G65,'Risk Assessment'!$A$4:$F$10,MATCH(H65,'Risk Assessment'!$A$4:$F$4,0),FALSE)","v":{"$error":"#N/A"}}]
[{"$nulls":4},{"$f":"VLOOKUP(C66,'Risk Assessment'!$A$4:$F$10,MATCH(D66,'Risk Assessment'!$A$4:$F$4,0),FALSE)","v":{"$error":"#N/A"}},{"$nulls":3},{"$f":"VLOOKUP(G66,'Risk Assessment'!$A$4:$F$10,MATCH(H66,'Risk Assessment'!$A$4:$F$4,0),FALSE)","v":{"$error":"#N/A"}}]
[{"$nulls":4},{"$f":"VLOOKUP(C67,'Risk Assessment'!$A$4:$F$10,MATCH(D67,'Risk Assessment'!$A$4:$F$4,0),FALSE)","v":{"$error":"#N/A"}},{"$nulls":3},{"$f":"VLOOKUP(G67,'Risk Assessment'!$A$4:$F$10,MATCH(H67,'Risk Assessment'!$A$4:$F$4,0),FALSE)","v":{"$error":"#N/A"}}]
[{"$nulls":4},{"$f":"VLOOKUP(C68,'Risk Assessment'!$A$4:$F$10,MATCH(D68,'Risk Assessment'!$A$4:$F$4,0),FALSE)","v":{"$error":"#N/A"}},{"$nulls":3},{"$f":"VLOOKUP(G68,'Risk Assessment'!$A$4:$F$10,MATCH(H68,'Risk Assessment'!$A$4:$F$4,0),FALSE)","v":{"$error":"#N/A"}}]
[{"$nulls":4},{"$f":"VLOOKUP(C69,'Risk Assessment'!$A$4:$F$10,MATCH(D69,'Risk Assessment'!$A$4:$F$4,0),FALSE)","v":{"$error":"#N/A"}},{"$nulls":3},{"$f":"VLOOKUP(G69,'Risk Assessment'!$A$4:$F$10,MATCH(H69,'Risk Assessment'!$A$4:$F$4,0),FALSE)","v":{"$error":"#N/A"}}]
[{"$nulls":4},{"$f":"VLOOKUP(C70,'Risk Assessment'!$A$4:$F$10,MATCH(D70,'Risk Assessment'!$A$4:$F$4,0),FALSE)","v":{"$error":"#N/A"}},{"$nulls":3},{"$f":"VLOOKUP(G70,'Risk Assessment'!$A$4:$F$10,MATCH(H70,'Risk Assessment'!$A$4:$F$4,0),FALSE)","v":{"$error":"#N/A"}}]
[{"$nulls":4},{"$f":"VLOOKUP(C71,'Risk Assessment'!$A$4:$F$10,MATCH(D71,'Risk Assessment'!$A$4:$F$4,0),FALSE)","v":{"$error":"#N/A"}},{"$nulls":3},{"$f":"VLOOKUP(G71,'Risk Assessment'!$A$4:$F$10,MATCH(H71,'Risk Assessment'!$A$4:$F$4,0),FALSE)","v":{"$error":"#N/A"}}]
[{"$nulls":4},{"$f":"VLOOKUP(C72,'Risk Assessment'!$A$4:$F$10,MATCH(D72,'Risk Assessment'!$A$4:$F$4,0),FALSE)","v":{"$error":"#N/A"}},{"$nulls":3},{"$f":"VLOOKUP(G72,'Risk Assessment'!$A$4:$F$10,MATCH(H72,'Risk Assessment'!$A$4:$F$4,0),FALSE)","v":{"$error":"#N/A"}}]
[{"$nulls":4},{"$f":"VLOOKUP(C73,'Risk Assessment'!$A$4:$F$10,MATCH(D73,'Risk Assessment'!$A$4:$F$4,0),FALSE)","v":{"$error":"#N/A"}},{"$nulls":3},{"$f":"VLOOKUP(G73,'Risk Assessment'!$A$4:$F$10,MATCH(H73,'Risk Assessment'!$A$4:$F$4,0),FALSE)","v":{"$error":"#N/A"}}]
[{"$nulls":4},{"$f":"VLOOKUP(C74,'Risk Assessment'!$A$4:$F$10,MATCH(D74,'Risk Assessment'!$A$4:$F$4,0),FALSE)","v":{"$error":"#N/A"}},{"$nulls":3},{"$f":"VLOOKUP(G74,'Risk Assessment'!$A$4:$F$10,MATCH(H74,'Risk Assessment'!$A$4:$F$4,0),FALSE)","v":{"$error":"#N/A"}}]
[{"$nulls":4},{"$f":"VLOOKUP(C75,'Risk Assessment'!$A$4:$F$10,MATCH(D75,'Risk Assessment'!$A$4:$F$4,0),FALSE)","v":{"$error":"#N/A"}},{"$nulls":3},{"$f":"VLOOKUP(G75,'Risk Assessment'!$A$4:$F$10,MATCH(H75,'Risk Assessment'!$A$4:$F$4,0),FALSE)","v":{"$error":"#N/A"}}]
[{"$nulls":4},{"$f":"VLOOKUP(C76,'Risk Assessment'!$A$4:$F$10,MATCH(D76,'Risk Assessment'!$A$4:$F$4,0),FALSE)","v":{"$error":"#N/A"}},{"$nulls":3},{"$f":"VLOOKUP(G76,'Risk Assessment'!$A$4:$F$10,MATCH(H76,'Risk Assessment'!$A$4:$F$4,0),FALSE)","v":{"$error":"#N/A"}}]
[{"$nulls":4},{"$f":"VLOOKUP(C77,'Risk Assessment'!$A$4:$F$10,MATCH(D77,'Risk Assessment'!$A$4:$F$4,0),FALSE)","v":{"$error":"#N/A"}},{"$nulls":3},{"$f":"VLOOKUP(G77,'Risk Assessment'!$A$4:$F$10,MATCH(H77,'Risk Assessment'!$A$4:$F$4,0),FALSE)","v":{"$error":"#N/A"}}]

{"sheet":"Burma Trail","index":15,"n_rows":76,"n_cols":9,"rows_kept":76}
{"$rows_empty":9}
[" HAZARD and RISK REGISTER ",null," WCC Practical Activities"]
["Refer to Hazard/Risk Management Procedure"]
[]
["Developed by: Matthew Smith Date: 25 May 2022."]
[" Approved by: Cody Blackler  Date: 11 August 2022"]
["Reviewed by: Cody Blackler and Matthew Smith  Date: 11 August 2022"]
[]
["(1) Identify all hazards, then determine a risk rating."]
["(2) Eliminate the risk. If not reasonably practicable then"]
["(3) Minimise the risk as far as reasonably practicable."]
["(4) Reassess and determine the residual risk"]
[]
["Where or what task?","Hazard and Harm?","Likelihood \n(Choose from drop list in cell)","Consequence \n(Choose from drop list in cell)","Rating","Action required to Eliminate (E) or Minimise (M). \n (controls, administration controls, personal protective equipment.)","Revised Likelihood","Revised Consequence","Residual Rating"]
["All variations","Trips slips and falls","Unlikely","Moderate",{"$f":"VLOOKUP(C23,'Risk Assessment'!$A$4:$F$10,MATCH(D23,'Risk Assessment'!$A$4:$F$4,0),FALSE)","v":4},"M: users to be mindful of their footing\nM: torches to be used","Unlikely","Moderate",{"$f":"VLOOKUP(G23,'Risk Assessment'!$A$4:$F$10,MATCH(H23,'Risk Assessment'!$A$4:$F$4,0),FALSE)","v":4}]
["Night or blindfolded variations","Walking into trees, branches or other obstacle","Moderate","Significant",{"$f":"VLOOKUP(C24,'Risk Assessment'!$A$4:$F$10,MATCH(D24,'Risk Assessment'!$A$4:$F$4,0),FALSE)","v":9},"M: users to be mindful of their footing\nM: torches to be used\nM: in blindfold variation, communication to be clear; adequate supervision required","Unlikely","Significant",{"$f":"VLOOKUP(G24,'Risk Assessment'!$A$4:$F$10,MATCH(H24,'Risk Assessment'!$A$4:$F$4,0),FALSE)","v":6}]
["Night or blindfolded variations","Colliding with others","Moderate","Insignificant",{"$f":"VLOOKUP(C25,'Risk Assessment'!$A$4:$F$10,MATCH(D25,'Risk Assessment'!$A$4:$F$4,0),FALSE)","v":3},"M: users to be mindful of their footing\nM: torches to be used\nM: in blindfold variation, communication to be clear; adequate supervision required","Unlikely","Insignificant",{"$f":"VLOOKUP(G25,'Risk Assessment'!$A$4:$F$10,MATCH(H25,'Risk Assessment'!$A$4:$F$4,0),FALSE)","v":2}]
["Daytime variations","Sunburn","Likely","Moderate",{"$f":"VLOOKUP(C26,'Risk Assessment'!$A$4:$F$10,MATCH(D26,'Risk Assessment'!$A$4:$F$4,0),FALSE)","v":8},"M: Sunsmart principles applied.\nM: Advise clients to wear sunhats and apply sunblock","Unlikely","Moderate",{"$f":"VLOOKUP(G26,'Risk Assessment'!$A$4:$F$10,MATCH(H26,'Risk Assessment'!$A$4:$F$4,0),FALSE)","v":4}]
["All variations","Exposure ","Unlikely","Extreme",{"$f":"VLOOKUP(C27,'Risk Assessment'!$A$4:$F$10,MATCH(D27,'Risk Assessment'!$A$4:$F$4,0),FALSE)","v":10},"M: Staff to recognise signs and symptoms of exposure illnesses (Heatstroke, Hypothermia, Hyperthermia and heat exhaustion)\nM: Advise clients of appropriate clothing for the activity and weather\nE: activity to be closed when exposure risk can not be effectivly managed (either through lack of appropriate client clothing or continually deteriorating weather. Note staff are expected to carry apropriate clothing for work in all conditions)","Highly unlikely (rare)","Extreme",{"$f":"VLOOKUP(G27,'Risk Assessment'!$A$4:$F$10,MATCH(H27,'Risk Assessment'!$A$4:$F$4,0),FALSE)","v":5}]
["All variations","Tree fall ","Likely","Extreme",{"$f":"VLOOKUP(C28,'Risk Assessment'!$A$4:$F$10,MATCH(D28,'Risk Assessment'!$A$4:$F$4,0),FALSE)","v":20},"M: Regular inspections of trees in vicinity\nM: Hung up trees/branches removed","Highly unlikely (rare)","Extreme",{"$f":"VLOOKUP(G28,'Risk Assessment'!$A$4:$F$10,MATCH(H28,'Risk Assessment'!$A$4:$F$4,0),FALSE)","v":5}]
[{"$nulls":4},{"$f":"VLOOKUP(C29,'Risk Assessment'!$A$4:$F$10,MATCH(D29,'Risk Assessment'!$A$4:$F$4,0),FALSE)","v":{"$error":"#N/A"}},{"$nulls":3},{"$f":"VLOOKUP(G29,'Risk Assessment'!$A$4:$F$10,MATCH(H29,'Risk Assessment'!$A$4:$F$4,0),FALSE)","v":{"$error":"#N/A"}}]
[{"$nulls":4},{"$f":"VLOOKUP(C30,'Risk Assessment'!$A$4:$F$10,MATCH(D30,'Risk Assessment'!$A$4:$F$4,0),FALSE)","v":{"$error":"#N/A"}},{"$nulls":3},{"$f":"VLOOKUP(G30,'Risk Assessment'!$A$4:$F$10,MATCH(H30,'Risk Assessment'!$A$4:$F$4,0),FALSE)","v":{"$error":"#N/A"}}]
[{"$nulls":4},{"$f":"VLOOKUP(C31,'Risk Assessment'!$A$4:$F$10,MATCH(D31,'Risk Assessment'!$A$4:$F$4,0),FALSE)","v":{"$error":"#N/A"}},{"$nulls":3},{"$f":"VLOOKUP(G31,'Risk Assessment'!$A$4:$F$10,MATCH(H31,'Risk Assessment'!$A$4:$F$4,0),FALSE)","v":{"$error":"#N/A"}}]
[{"$nulls":4},{"$f":"VLOOKUP(C32,'Risk Assessment'!$A$4:$F$10,MATCH(D32,'Risk Assessment'!$A$4:$F$4,0),FALSE)","v":{"$error":"#N/A"}},{"$nulls":3},{"$f":"VLOOKUP(G32,'Risk Assessment'!$A$4:$F$10,MATCH(H32,'Risk Assessment'!$A$4:$F$4,0),FALSE)","v":{"$error":"#N/A"}}]
[{"$nulls":4},{"$f":"VLOOKUP(C33,'Risk Assessment'!$A$4:$F$10,MATCH(D33,'Risk Assessment'!$A$4:$F$4,0),FALSE)","v":{"$error":"#N/A"}},{"$nulls":3},{"$f":"VLOOKUP(G33,'Risk Assessment'!$A$4:$F$10,MATCH(H33,'Risk Assessment'!$A$4:$F$4,0),FALSE)","v":{"$error":"#N/A"}}]
[{"$nulls":4},{"$f":"VLOOKUP(C34,'Risk Assessment'!$A$4:$F$10,MATCH(D34,'Risk Assessment'!$A$4:$F$4,0),FALSE)","v":{"$error":"#N/A"}},{"$nulls":3},{"$f":"VLOOKUP(G34,'Risk Assessment'!$A$4:$F$10,MATCH(H34,'Risk Assessment'!$A$4:$F$4,0),FALSE)","v":{"$error":"#N/A"}}]
[{"$nulls":4},{"$f":"VLOOKUP(C35,'Risk Assessment'!$A$4:$F$10,MATCH(D35,'Risk Assessment'!$A$4:$F$4,0),FALSE)","v":{"$error":"#N/A"}},{"$nulls":3},{"$f":"VLOOKUP(G35,'Risk Assessment'!$A$4:$F$10,MATCH(H35,'Risk Assessment'!$A$4:$F$4,0),FALSE)","v":{"$error":"#N/A"}}]
[{"$nulls":4},{"$f":"VLOOKUP(C36,'Risk Assessment'!$A$4:$F$10,MATCH(D36,'Risk Assessment'!$A$4:$F$4,0),FALSE)","v":{"$error":"#N/A"}},{"$nulls":3},{"$f":"VLOOKUP(G36,'Risk Assessment'!$A$4:$F$10,MATCH(H36,'Risk Assessment'!$A$4:$F$4,0),FALSE)","v":{"$error":"#N/A"}}]
[{"$nulls":4},{"$f":"VLOOKUP(C37,'Risk Assessment'!$A$4:$F$10,MATCH(D37,'Risk Assessment'!$A$4:$F$4,0),FALSE)","v":{"$error":"#N/A"}},{"$nulls":3},{"$f":"VLOOKUP(G37,'Risk Assessment'!$A$4:$F$10,MATCH(H37,'Risk Assessment'!$A$4:$F$4,0),FALSE)","v":{"$error":"#N/A"}}]
[{"$nulls":4},{"$f":"VLOOKUP(C38,'Risk Assessment'!$A$4:$F$10,MATCH(D38,'Risk Assessment'!$A$4:$F$4,0),FALSE)","v":{"$error":"#N/A"}},{"$nulls":3},{"$f":"VLOOKUP(G38,'Risk Assessment'!$A$4:$F$10,MATCH(H38,'Risk Assessment'!$A$4:$F$4,0),FALSE)","v":{"$error":"#N/A"}}]
[{"$nulls":4},{"$f":"VLOOKUP(C39,'Risk Assessment'!$A$4:$F$10,MATCH(D39,'Risk Assessment'!$A$4:$F$4,0),FALSE)","v":{"$error":"#N/A"}},{"$nulls":3},{"$f":"VLOOKUP(G39,'Risk Assessment'!$A$4:$F$10,MATCH(H39,'Risk Assessment'!$A$4:$F$4,0),FALSE)","v":{"$error":"#N/A"}}]
[{"$nulls":4},{"$f":"VLOOKUP(C40,'Risk Assessment'!$A$4:$F$10,MATCH(D40,'Risk Assessment'!$A$4:$F$4,0),FALSE)","v":{"$error":"#N/A"}},{"$nulls":3},{"$f":"VLOOKUP(G40,'Risk Assessment'!$A$4:$F$10,MATCH(H40,'Risk Assessment'!$A$4:$F$4,0),FALSE)","v":{"$error":"#N/A"}}]
[{"$nulls":4},{"$f":"VLOOKUP(C41,'Risk Assessment'!$A$4:$F$10,MATCH(D41,'Risk Assessment'!$A$4:$F$4,0),FALSE)","v":{"$error":"#N/A"}},{"$nulls":3},{"$f":"VLOOKUP(G41,'Risk Assessment'!$A$4:$F$10,MATCH(H41,'Risk Assessment'!$A$4:$F$4,0),FALSE)","v":{"$error":"#N/A"}}]
[{"$nulls":4},{"$f":"VLOOKUP(C42,'Risk Assessment'!$A$4:$F$10,MATCH(D42,'Risk Assessment'!$A$4:$F$4,0),FALSE)","v":{"$error":"#N/A"}},{"$nulls":3},{"$f":"VLOOKUP(G42,'Risk Assessment'!$A$4:$F$10,MATCH(H42,'Risk Assessment'!$A$4:$F$4,0),FALSE)","v":{"$error":"#N/A"}}]
[{"$nulls":4},{"$f":"VLOOKUP(C43,'Risk Assessment'!$A$4:$F$10,MATCH(D43,'Risk Assessment'!$A$4:$F$4,0),FALSE)","v":{"$error":"#N/A"}},{"$nulls":3},{"$f":"VLOOKUP(G43,'Risk Assessment'!$A$4:$F$10,MATCH(H43,'Risk Assessment'!$A$4:$F$4,0),FALSE)","v":{"$error":"#N/A"}}]
[{"$nulls":4},{"$f":"VLOOKUP(C44,'Risk Assessment'!$A$4:$F$10,MATCH(D44,'Risk Assessment'!$A$4:$F$4,0),FALSE)","v":{"$error":"#N/A"}},{"$nulls":3},{"$f":"VLOOKUP(G44,'Risk Assessment'!$A$4:$F$10,MATCH(H44,'Risk Assessment'!$A$4:$F$4,0),FALSE)","v":{"$error":"#N/A"}}]
[{"$nulls":4},{"$f":"VLOOKUP(C45,'Risk Assessment'!$A$4:$F$10,MATCH(D45,'Risk Assessment'!$A$4:$F$4,0),FALSE)","v":{"$error":"#N/A"}},{"$nulls":3},{"$f":"VLOOKUP(G45,'Risk Assessment'!$A$4:$F$10,MATCH(H45,'Risk Assessment'!$A$4:$F$4,0),FALSE)","v":{"$error":"#N/A"}}]
[{"$nulls":4},{"$f":"VLOOKUP(C46,'Risk Assessment'!$A$4:$F$10,MATCH(D46,'Risk Assessment'!$A$4:$F$4,0),FALSE)","v":{"$error":"#N/A"}},{"$nulls":3},{"$f":"VLOOKUP(G46,'Risk Assessment'!$A$4:$F$10,MATCH(H46,'Risk Assessment'!$A$4:$F$4,0),FALSE)","v":{"$error":"#N/A"}}]
[{"$nulls":4},{"$f":"VLOOKUP(C47,'Risk Assessment'!$A$4:$F$10,MATCH(D47,'Risk Assessment'!$A$4:$F$4,0),FALSE)","v":{"$error":"#N/A"}},{"$nulls":3},{"$f":"VLOOKUP(G47,'Risk Assessment'!$A$4:$F$10,MATCH(H47,'Risk Assessment'!$A$4:$F$4,0),FALSE)","v":{"$error":"#N/A"}}]
[{"$nulls":4},{"$f":"VLOOKUP(C48,'Risk Assessment'!$A$4:$F$10,MATCH(D48,'Risk Assessment'!$A$4:$F$4,0),FALSE)","v":{"$error":"#N/A"}},{"$nulls":3},{"$f":"VLOOKUP(G48,'Risk Assessment'!$A$4:$F$10,MATCH(H48,'Risk Assessment'!$A$4:$F$4,0),FALSE)","v":{"$error":"#N/A"}}]
[{"$nulls":4},{"$f":"VLOOKUP(C49,'Risk Assessment'!$A$4:$F$10,MATCH(D49,'Risk Assessment'!$A$4:$F$4,0),FALSE)","v":{"$error":"#N/A"}},{"$nulls":3},{"$f":"VLOOKUP(G49,'Risk Assessment'!$A$4:$F$10,MATCH(H49,'Risk Assessment'!$A$4:$F$4,0),FALSE)","v":{"$error":"#N/A"}}]
[{"$nulls":4},{"$f":"VLOOKUP(C50,'Risk Assessment'!$A$4:$F$10,MATCH(D50,'Risk Assessment'!$A$4:$F$4,0),FALSE)","v":{"$error":"#N/A"}},{"$nulls":3},{"$f":"VLOOKUP(G50,'Risk Assessment'!$A$4:$F$10,MATCH(H50,'Risk Assessment'!$A$4:$F$4,0),FALSE)","v":{"$error":"#N/A"}}]
[{"$nulls":4},{"$f":"VLOOKUP(C51,'Risk Assessment'!$A$4:$F$10,MATCH(D51,'Risk Assessment'!$A$4:$F$4,0),FALSE)","v":{"$error":"#N/A"}},{"$nulls":3},{"$f":"VLOOKUP(G51,'Risk Assessment'!$A$4:$F$10,MATCH(H51,'Risk Assessment'!$A$4:$F$4,0),FALSE)","v":{"$error":"#N/A"}}]
[{"$nulls":4},{"$f":"VLOOKUP(C52,'Risk Assessment'!$A$4:$F$10,MATCH(D52,'Risk Assessment'!$A$4:$F$4,0),FALSE)","v":{"$error":"#N/A"}},{"$nulls":3},{"$f":"VLOOKUP(G52,'Risk Assessment'!$A$4:$F$10,MATCH(H52,'Risk Assessment'!$A$4:$F$4,0),FALSE)","v":{"$error":"#N/A"}}]
[{"$nulls":4},{"$f":"VLOOKUP(C53,'Risk Assessment'!$A$4:$F$10,MATCH(D53,'Risk Assessment'!$A$4:$F$4,0),FALSE)","v":{"$error":"#N/A"}},{"$nulls":3},{"$f":"VLOOKUP(G53,'Risk Assessment'!$A$4:$F$10,MATCH(H53,'Risk Assessment'!$A$4:$F$4,0),FALSE)","v":{"$error":"#N/A"}}]
[{"$nulls":4},{"$f":"VLOOKUP(C54,'Risk Assessment'!$A$4:$F$10,MATCH(D54,'Risk Assessment'!$A$4:$F$4,0),FALSE)","v":{"$error":"#N/A"}},{"$nulls":3},{"$f":"VLOOKUP(G54,'Risk Assessment'!$A$4:$F$10,MATCH(H54,'Risk Assessment'!$A$4:$F$4,0),FALSE)","v":{"$error":"#N/A"}}]
[{"$nulls":4},{"$f":"VLOOKUP(C55,'Risk Assessment'!$A$4:$F$10,MATCH(D55,'Risk Assessment'!$A$4:$F$4,0),FALSE)","v":{"$error":"#N/A"}},{"$nulls":3},{"$f":"VLOOKUP(G55,'Risk Assessment'!$A$4:$F$10,MATCH(H55,'Risk Assessment'!$A$4:$F$4,0),FALSE)","v":{"$error":"#N/A"}}]
[{"$nulls":4},{"$f":"VLOOKUP(C56,'Risk Assessment'!$A$4:$F$10,MATCH(D56,'Risk Assessment'!$A$4:$F$4,0),FALSE)","v":{"$error":"#N/A"}},{"$nulls":3},{"$f":"VLOOKUP(G56,'Risk Assessment'!$A$4:$F$10,MATCH(H56,'Risk Assessment'!$A$4:$F$4,0),FALSE)","v":{"$error":"#N/A"}}]
[{"$nulls":4},{"$f":"VLOOKUP(C57,'Risk Assessment'!$A$4:$F$10,MATCH(D57,'Risk Assessment'!$A$4:$F$4,0),FALSE)","v":{"$error":"#N/A"}},{"$nulls":3},{"$f":"VLOOKUP(G57,'Risk Assessment'!$A$4:$F$10,MATCH(H57,'Risk Assessment'!$A$4:$F$4,0),FALSE)","v":{"$error":"#N/A"}}]
[{"$nulls":4},{"$f":"VLOOKUP(C58,'Risk Assessment'!$A$4:$F$10,MATCH(D58,'Risk Assessment'!$A$4:$F$4,0),FALSE)","v":{"$error":"#N/A"}},{"$nulls":3},{"$f":"VLOOKUP(G58,'Risk Assessment'!$A$4:$F$10,MATCH(H58,'Risk Assessment'!$A$4:$F$4,0),FALSE)","v":{"$error":"#N/A"}}]
[{"$nulls":4},{"$f":"VLOOKUP(C59,'Risk Assessment'!$A$4:$F$10,MATCH(D59,'Risk Assessment'!$A$4:$F$4,0),FALSE)","v":{"$error":"#N/A"}},{"$nulls":3},{"$f":"VLOOKUP(G59,'Risk Assessment'!$A$4:$F$10,MATCH(H59,'Risk Assessment'!$A$4:$F$4,0),FALSE)","v":{"$error":"#N/A"}}]
[{"$nulls":4},{"$f":"VLOOKUP(C60,'Risk Assessment'!$A$4:$F$10,MATCH(D60,'Risk Assessment'!$A$4:$F$4,0),FALSE)","v":{"$error":"#N/A"}},{"$nulls":3},{"$f":"VLOOKUP(G60,'Risk Assessment'!$A$4:$F$10,MATCH(H60,'Risk Assessment'!$A$4:$F$4,0),FALSE)","v":{"$error":"#N/A"}}]
[{"$nulls":4},{"$f":"VLOOKUP(C61,'Risk Assessment'!$A$4:$F$10,MATCH(D61,'Risk Assessment'!$A$4:$F$4,0),FALSE)","v":{"$error":"#N/A"}},{"$nulls":3},{"$f":"VLOOKUP(G61,'Risk Assessment'!$A$4:$F$10,MATCH(H61,'Risk Assessment'!$A$4:$F$4,0),FALSE)","v":{"$error":"#N/A"}}]
[{"$nulls":4},{"$f":"VLOOKUP(C62,'Risk Assessment'!$A$4:$F$10,MATCH(D62,'Risk Assessment'!$A$4:$F$4,0),FALSE)","v":{"$error":"#N/A"}},{"$nulls":3},{"$f":"VLOOKUP(G62,'Risk Assessment'!$A$4:$F$10,MATCH(H62,'Risk Assessment'!$A$4:$F$4,0),FALSE)","v":{"$error":"#N/A"}}]
[{"$nulls":4},{"$f":"VLOOKUP(C63,'Risk Assessment'!$A$4:$F$10,MATCH(D63,'Risk Assessment'!$A$4:$F$4,0),FALSE)","v":{"$error":"#N/A"}},{"$nulls":3},{"$f":"VLOOKUP(G63,'Risk Assessment'!$A$4:$F$10,MATCH(H63,'Risk Assessment'!$A$4:$F$4,0),FALSE)","v":{"$error":"#N/A"}}]
[{"$nulls":4},{"$f":"VLOOKUP(C64,'Risk Assessment'!$A$4:$F$10,MATCH(D64,'Risk Assessment'!$A$4:$F$4,0),FALSE)","v":{"$error":"#N/A"}},{"$nulls":3},{"$f":"VLOOKUP(G64,'Risk Assessment'!$A$4:$F$10,MATCH(H64,'Risk Assessment'!$A$4:$F$4,0),FALSE)","v":{"$error":"#N/A"}}]
[{"$nulls":4},{"$f":"VLOOKUP(C65,'Risk Assessment'!$A$4:$F$10,MATCH(D65,'Risk Assessment'!$A$4:$F$4,0),FALSE)","v":{"$error":"#N/A"}},{"$nulls":3},{"$f":"VLOOKUP(G65,'Risk Assessment'!$A$4:$F$10,MATCH(H65,'Risk Assessment'!$A$4:$F$4,0),FALSE)","v":{"$error":"#N/A"}}]
[{"$nulls":4},{"$f":"VLOOKUP(C66,'Risk Assessment'!$A$4:$F$10,MATCH(D66,'Risk Assessment'!$A$4:$F$4,0),FALSE)","v":{"$error":"#N/A"}},{"$nulls":3},{"$f":"VLOOKUP(G66,'Risk Assessment'!$A$4:$F$10,MATCH(H66,'Risk Assessment'!$A$4:$F$4,0),FALSE)","v":{"$error":"#N/A"}}]
[{"$nulls":4},{"$f":"VLOOKUP(C67,'Risk Assessment'!$A$4:$F$10,MATCH(D67,'Risk Assessment'!$A$4:$F$4,0),FALSE)","v":{"$error":"#N/A"}},{"$nulls":3},{"$f":"VLOOKUP(G67,'Risk Assessment'!$A$4:$F$10,MATCH(H67,'Risk Assessment'!$A$4:$F$4,0),FALSE)","v":{"$error":"#N/A"}}]
[{"$nulls":4},{"$f":"VLOOKUP(C68,'Risk Assessment'!$A$4:$F$10,MATCH(D68,'Risk Assessment'!$A$4:$F$4,0),FALSE)","v":{"$error":"#N/A"}},{"$nulls":3},{"$f":"VLOOKUP(G68,'Risk Assessment'!$A$4:$F$10,MATCH(H68,'Risk Assessment'!$A$4:$F$4,0),FALSE)","v":{"$error":"#N/A"}}]
[{"$nulls":4},{"$f":"VLOOKUP(C69,'Risk Assessment'!$A$4:$F$10,MATCH(D69,'Risk Assessment'!$A$4:$F$4,0),FALSE)","v":{"$error":"#N/A"}},{"$nulls":3},{"$f":"VLOOKUP(G69,'Risk Assessment'!$A$4:$F$10,MATCH(H69,'Risk Assessment'!$A$4:$F$4,0),FALSE)","v":{"$error":"#N/A"}}]
[{"$nulls":4},{"$f":"VLOOKUP(C70,'Risk Assessment'!$A$4:$F$10,MATCH(D70,'Risk Assessment'!$A$4:$F$4,0),FALSE)","v":{"$error":"#N/A"}},{"$nulls":3},{"$f":"VLOOKUP(G70,'Risk Assessment'!$A$4:$F$10,MATCH(H70,'Risk Assessment'!$A$4:$F$4,0),FALSE)","v":{"$error":"#N/A"}}]
[{"$nulls":4},{"$f":"VLOOKUP(C71,'Risk Assessment'!$A$4:$F$10,MATCH(D71,'Risk Assessment'!$A$4:$F$4,0),FALSE)","v":{"$error":"#N/A"}},{"$nulls":3},{"$f":"VLOOKUP(G71,'Risk Assessment'!$A$4:$F$10,MATCH(H71,'Risk Assessment'!$A$4:$F$4,0),FALSE)","v":{"$error":"#N/A"}}]
[{"$nulls":4},{"$f":"VLOOKUP(C72,'Risk Assessment'!$A$4:$F$10,MATCH(D72,'Risk Assessment'!$A$4:$F$4,0),FALSE)","v":{"$error":"#N/A"}},{"$nulls":3},{"$f":"VLOOKUP(G72,'Risk Assessment'!$A$4:$F$10,MATCH(H72,'Risk Assessment'!$A$4:$F$4,0),FALSE)","v":{"$error":"#N/A"}}]
[{"$nulls":4},{"$f":"VLOOKUP(C73,'Risk Assessment'!$A$4:$F$10,MATCH(D73,'Risk Assessment'!$A$4:$F$4,0),FALSE)","v":{"$error":"#N/A"}},{"$nulls":3},{"$f":"VLOOKUP(G73,'Risk Assessment'!$A$4:$F$10,MATCH(H73,'Risk Assessment'!$A$4:$F$4,0),FALSE)","v":{"$error":"#N/A"}}]
[{"$nulls":4},{"$f":"VLOOKUP(C74,'Risk Assessment'!$A$4:$F$10,MATCH(D74,'Risk Assessment'!$A$4:$F$4,0),FALSE)","v":{"$error":"#N/A"}},{"$nulls":3},{"$f":"VLOOKUP(G74,'Risk Assessment'!$A$4:$F$10,MATCH(H74,'Risk Assessment'!$A$4:$F$4,0),FALSE)","v":{"$error":"#N/A"}}]
[{"$nulls":4},{"$f":"VLOOKUP(C75,'Risk Assessment'!$A$4:$F$10,MATCH(D75,'Risk Assessment'!$A$4:$F$4,0),FALSE)","v":{"$error":"#N/A"}},{"$nulls":3},{"$f":"VLOOKUP(G75,'Risk Assessment'!$A$4:$F$10,MATCH(H75,'Risk Assessment'!$A$4:$F$4,0),FALSE)","v":{"$error":"#N/A"}}]
[{"$nulls":4},{"$f":"VLOOKUP(C76,'Risk Assessment'!$A$4:$F$10,MATCH(D76,'Risk Assessment'!$A$4:$F$4,0),FALSE)","v":{"$error":"#N/A"}},{"$nulls":3},{"$f":"VLOOKUP(G76,'Risk Assessment'!$A$4:$F$10,MATCH(H76,'Risk Assessment'!$A$4:$F$4,0),FALSE)","v":{"$error":"#N/A"}}]

{"sheet":"Waterslide","index":16,"n_rows":77,"n_cols":9,"rows_kept":77}
{"$rows_empty":9}
[" HAZARD and RISK REGISTER ",null," WCC Practical Activities"]
["Refer to Hazard/Risk Management Procedure"]
[]
["Developed by: Matthew Smith Date: 25 May 2022."]
[" Approved by:  Cody Blackler   Date: 11 August 2022 "]
["Reviewed by: Cody Blackler and Matthew Smith  Date: 11 August 2022"]
[]
["(1) Identify all hazards, then determine a risk rating."]
["(2) Eliminate the risk. If not reasonably practicable then"]
["(3) Minimise the risk as far as reasonably practicable."]
["(4) Reassess and determine the residual risk"]
[]
["Where or what task?","Hazard and Harm?","Likelihood \n(Choose from drop list in cell)","Consequence \n(Choose from drop list in cell)","Rating","Action required to Eliminate (E) or Minimise (M). \n (controls, administration controls, personal protective equipment.)","Revised Likelihood","Revised Consequence","Residual Rating"]
["All Tasks","slipping over","Likely","Significant",{"$f":"VLOOKUP(C23,'Risk Assessment'!$A$4:$F$10,MATCH(D23,'Risk Assessment'!$A$4:$F$4,0),FALSE)","v":12},"M: users to be mindful of footing; walk and not run; no standing on slide","Unlikely","Significant",{"$f":"VLOOKUP(G23,'Risk Assessment'!$A$4:$F$10,MATCH(H23,'Risk Assessment'!$A$4:$F$4,0),FALSE)","v":6}]
["Riding slide, spectators","colliding with other users or spectators","Very likely","Moderate",{"$f":"VLOOKUP(C24,'Risk Assessment'!$A$4:$F$10,MATCH(D24,'Risk Assessment'!$A$4:$F$4,0),FALSE)","v":10},"M: users are briefed to walk around end of the slide and not cross the slide\nM: users must walk and not run\nM: if allowing multiple users, ensure this is done in a safe manner ","Unlikely","Moderate",{"$f":"VLOOKUP(G24,'Risk Assessment'!$A$4:$F$10,MATCH(H24,'Risk Assessment'!$A$4:$F$4,0),FALSE)","v":4}]
["All Tasks","Exposure","Very likely","Extreme",{"$f":"VLOOKUP(C25,'Risk Assessment'!$A$4:$F$10,MATCH(D25,'Risk Assessment'!$A$4:$F$4,0),FALSE)","v":25},"M: Staff to recognise signs and symptoms of exposure illnesses (Heatstroke, Hypothermia, Hyperthermia and heat exhaustion)\nM: Advise clients of appropriate clothing for the activity and weather\nE: activity to be closed when exposure risk can not be effectivly managed (either through lack of appropriate client clothing or continually deteriorating weather. Note staff are expected to carry apropriate clothing for work in all conditions)","Highly unlikely (rare)","Extreme",{"$f":"VLOOKUP(G25,'Risk Assessment'!$A$4:$F$10,MATCH(H25,'Risk Assessment'!$A$4:$F$4,0),FALSE)","v":5}]
["All Tasks","sunburn","Very likely","Moderate",{"$f":"VLOOKUP(C26,'Risk Assessment'!$A$4:$F$10,MATCH(D26,'Risk Assessment'!$A$4:$F$4,0),FALSE)","v":10},"M: Sunsmart principles applied.\nM: Advise clients to wear sunhats and apply sunblock","Unlikely","Moderate",{"$f":"VLOOKUP(G26,'Risk Assessment'!$A$4:$F$10,MATCH(H26,'Risk Assessment'!$A$4:$F$4,0),FALSE)","v":4}]
["Riding slide","injuries from sharp edges or damaged sections of slide ","Moderate","Significant",{"$f":"VLOOKUP(C27,'Risk Assessment'!$A$4:$F$10,MATCH(D27,'Risk Assessment'!$A$4:$F$4,0),FALSE)","v":9},"M: 3 monthly maintenance checks to be completed\nM: users briefed to keep limbs inside the slide when riding","Unlikely","Significant",{"$f":"VLOOKUP(G27,'Risk Assessment'!$A$4:$F$10,MATCH(H27,'Risk Assessment'!$A$4:$F$4,0),FALSE)","v":6}]
["Riding slide","injury from coming off end of slide ","Very likely","Moderate",{"$f":"VLOOKUP(C28,'Risk Assessment'!$A$4:$F$10,MATCH(D28,'Risk Assessment'!$A$4:$F$4,0),FALSE)","v":10},"M: sand pit at the end of slide\nM: slide goes up hill at the end to slow user","Likely","Insignificant",{"$f":"VLOOKUP(G28,'Risk Assessment'!$A$4:$F$10,MATCH(H28,'Risk Assessment'!$A$4:$F$4,0),FALSE)","v":4}]
[{"$nulls":4},{"$f":"VLOOKUP(C29,'Risk Assessment'!$A$4:$F$10,MATCH(D29,'Risk Assessment'!$A$4:$F$4,0),FALSE)","v":{"$error":"#N/A"}},{"$nulls":3},{"$f":"VLOOKUP(G29,'Risk Assessment'!$A$4:$F$10,MATCH(H29,'Risk Assessment'!$A$4:$F$4,0),FALSE)","v":{"$error":"#N/A"}}]
[{"$nulls":4},{"$f":"VLOOKUP(C30,'Risk Assessment'!$A$4:$F$10,MATCH(D30,'Risk Assessment'!$A$4:$F$4,0),FALSE)","v":{"$error":"#N/A"}},{"$nulls":3},{"$f":"VLOOKUP(G30,'Risk Assessment'!$A$4:$F$10,MATCH(H30,'Risk Assessment'!$A$4:$F$4,0),FALSE)","v":{"$error":"#N/A"}}]
[{"$nulls":4},{"$f":"VLOOKUP(C31,'Risk Assessment'!$A$4:$F$10,MATCH(D31,'Risk Assessment'!$A$4:$F$4,0),FALSE)","v":{"$error":"#N/A"}},{"$nulls":3},{"$f":"VLOOKUP(G31,'Risk Assessment'!$A$4:$F$10,MATCH(H31,'Risk Assessment'!$A$4:$F$4,0),FALSE)","v":{"$error":"#N/A"}}]
[{"$nulls":4},{"$f":"VLOOKUP(C32,'Risk Assessment'!$A$4:$F$10,MATCH(D32,'Risk Assessment'!$A$4:$F$4,0),FALSE)","v":{"$error":"#N/A"}},{"$nulls":3},{"$f":"VLOOKUP(G32,'Risk Assessment'!$A$4:$F$10,MATCH(H32,'Risk Assessment'!$A$4:$F$4,0),FALSE)","v":{"$error":"#N/A"}}]
[{"$nulls":4},{"$f":"VLOOKUP(C33,'Risk Assessment'!$A$4:$F$10,MATCH(D33,'Risk Assessment'!$A$4:$F$4,0),FALSE)","v":{"$error":"#N/A"}},{"$nulls":3},{"$f":"VLOOKUP(G33,'Risk Assessment'!$A$4:$F$10,MATCH(H33,'Risk Assessment'!$A$4:$F$4,0),FALSE)","v":{"$error":"#N/A"}}]
[{"$nulls":4},{"$f":"VLOOKUP(C34,'Risk Assessment'!$A$4:$F$10,MATCH(D34,'Risk Assessment'!$A$4:$F$4,0),FALSE)","v":{"$error":"#N/A"}},{"$nulls":3},{"$f":"VLOOKUP(G34,'Risk Assessment'!$A$4:$F$10,MATCH(H34,'Risk Assessment'!$A$4:$F$4,0),FALSE)","v":{"$error":"#N/A"}}]
[{"$nulls":4},{"$f":"VLOOKUP(C35,'Risk Assessment'!$A$4:$F$10,MATCH(D35,'Risk Assessment'!$A$4:$F$4,0),FALSE)","v":{"$error":"#N/A"}},{"$nulls":3},{"$f":"VLOOKUP(G35,'Risk Assessment'!$A$4:$F$10,MATCH(H35,'Risk Assessment'!$A$4:$F$4,0),FALSE)","v":{"$error":"#N/A"}}]
[{"$nulls":4},{"$f":"VLOOKUP(C36,'Risk Assessment'!$A$4:$F$10,MATCH(D36,'Risk Assessment'!$A$4:$F$4,0),FALSE)","v":{"$error":"#N/A"}},{"$nulls":3},{"$f":"VLOOKUP(G36,'Risk Assessment'!$A$4:$F$10,MATCH(H36,'Risk Assessment'!$A$4:$F$4,0),FALSE)","v":{"$error":"#N/A"}}]
[{"$nulls":4},{"$f":"VLOOKUP(C37,'Risk Assessment'!$A$4:$F$10,MATCH(D37,'Risk Assessment'!$A$4:$F$4,0),FALSE)","v":{"$error":"#N/A"}},{"$nulls":3},{"$f":"VLOOKUP(G37,'Risk Assessment'!$A$4:$F$10,MATCH(H37,'Risk Assessment'!$A$4:$F$4,0),FALSE)","v":{"$error":"#N/A"}}]
[{"$nulls":4},{"$f":"VLOOKUP(C38,'Risk Assessment'!$A$4:$F$10,MATCH(D38,'Risk Assessment'!$A$4:$F$4,0),FALSE)","v":{"$error":"#N/A"}},{"$nulls":3},{"$f":"VLOOKUP(G38,'Risk Assessment'!$A$4:$F$10,MATCH(H38,'Risk Assessment'!$A$4:$F$4,0),FALSE)","v":{"$error":"#N/A"}}]
[{"$nulls":4},{"$f":"VLOOKUP(C39,'Risk Assessment'!$A$4:$F$10,MATCH(D39,'Risk Assessment'!$A$4:$F$4,0),FALSE)","v":{"$error":"#N/A"}},{"$nulls":3},{"$f":"VLOOKUP(G39,'Risk Assessment'!$A$4:$F$10,MATCH(H39,'Risk Assessment'!$A$4:$F$4,0),FALSE)","v":{"$error":"#N/A"}}]
[{"$nulls":4},{"$f":"VLOOKUP(C40,'Risk Assessment'!$A$4:$F$10,MATCH(D40,'Risk Assessment'!$A$4:$F$4,0),FALSE)","v":{"$error":"#N/A"}},{"$nulls":3},{"$f":"VLOOKUP(G40,'Risk Assessment'!$A$4:$F$10,MATCH(H40,'Risk Assessment'!$A$4:$F$4,0),FALSE)","v":{"$error":"#N/A"}}]
[{"$nulls":4},{"$f":"VLOOKUP(C41,'Risk Assessment'!$A$4:$F$10,MATCH(D41,'Risk Assessment'!$A$4:$F$4,0),FALSE)","v":{"$error":"#N/A"}},{"$nulls":3},{"$f":"VLOOKUP(G41,'Risk Assessment'!$A$4:$F$10,MATCH(H41,'Risk Assessment'!$A$4:$F$4,0),FALSE)","v":{"$error":"#N/A"}}]
[{"$nulls":4},{"$f":"VLOOKUP(C42,'Risk Assessment'!$A$4:$F$10,MATCH(D42,'Risk Assessment'!$A$4:$F$4,0),FALSE)","v":{"$error":"#N/A"}},{"$nulls":3},{"$f":"VLOOKUP(G42,'Risk Assessment'!$A$4:$F$10,MATCH(H42,'Risk Assessment'!$A$4:$F$4,0),FALSE)","v":{"$error":"#N/A"}}]
[{"$nulls":4},{"$f":"VLOOKUP(C43,'Risk Assessment'!$A$4:$F$10,MATCH(D43,'Risk Assessment'!$A$4:$F$4,0),FALSE)","v":{"$error":"#N/A"}},{"$nulls":3},{"$f":"VLOOKUP(G43,'Risk Assessment'!$A$4:$F$10,MATCH(H43,'Risk Assessment'!$A$4:$F$4,0),FALSE)","v":{"$error":"#N/A"}}]
[{"$nulls":4},{"$f":"VLOOKUP(C44,'Risk Assessment'!$A$4:$F$10,MATCH(D44,'Risk Assessment'!$A$4:$F$4,0),FALSE)","v":{"$error":"#N/A"}},{"$nulls":3},{"$f":"VLOOKUP(G44,'Risk Assessment'!$A$4:$F$10,MATCH(H44,'Risk Assessment'!$A$4:$F$4,0),FALSE)","v":{"$error":"#N/A"}}]
[{"$nulls":4},{"$f":"VLOOKUP(C45,'Risk Assessment'!$A$4:$F$10,MATCH(D45,'Risk Assessment'!$A$4:$F$4,0),FALSE)","v":{"$error":"#N/A"}},{"$nulls":3},{"$f":"VLOOKUP(G45,'Risk Assessment'!$A$4:$F$10,MATCH(H45,'Risk Assessment'!$A$4:$F$4,0),FALSE)","v":{"$error":"#N/A"}}]
[{"$nulls":4},{"$f":"VLOOKUP(C46,'Risk Assessment'!$A$4:$F$10,MATCH(D46,'Risk Assessment'!$A$4:$F$4,0),FALSE)","v":{"$error":"#N/A"}},{"$nulls":3},{"$f":"VLOOKUP(G46,'Risk Assessment'!$A$4:$F$10,MATCH(H46,'Risk Assessment'!$A$4:$F$4,0),FALSE)","v":{"$error":"#N/A"}}]
[{"$nulls":4},{"$f":"VLOOKUP(C47,'Risk Assessment'!$A$4:$F$10,MATCH(D47,'Risk Assessment'!$A$4:$F$4,0),FALSE)","v":{"$error":"#N/A"}},{"$nulls":3},{"$f":"VLOOKUP(G47,'Risk Assessment'!$A$4:$F$10,MATCH(H47,'Risk Assessment'!$A$4:$F$4,0),FALSE)","v":{"$error":"#N/A"}}]
[{"$nulls":4},{"$f":"VLOOKUP(C48,'Risk Assessment'!$A$4:$F$10,MATCH(D48,'Risk Assessment'!$A$4:$F$4,0),FALSE)","v":{"$error":"#N/A"}},{"$nulls":3},{"$f":"VLOOKUP(G48,'Risk Assessment'!$A$4:$F$10,MATCH(H48,'Risk Assessment'!$A$4:$F$4,0),FALSE)","v":{"$error":"#N/A"}}]
[{"$nulls":4},{"$f":"VLOOKUP(C49,'Risk Assessment'!$A$4:$F$10,MATCH(D49,'Risk Assessment'!$A$4:$F$4,0),FALSE)","v":{"$error":"#N/A"}},{"$nulls":3},{"$f":"VLOOKUP(G49,'Risk Assessment'!$A$4:$F$10,MATCH(H49,'Risk Assessment'!$A$4:$F$4,0),FALSE)","v":{"$error":"#N/A"}}]
[{"$nulls":4},{"$f":"VLOOKUP(C50,'Risk Assessment'!$A$4:$F$10,MATCH(D50,'Risk Assessment'!$A$4:$F$4,0),FALSE)","v":{"$error":"#N/A"}},{"$nulls":3},{"$f":"VLOOKUP(G50,'Risk Assessment'!$A$4:$F$10,MATCH(H50,'Risk Assessment'!$A$4:$F$4,0),FALSE)","v":{"$error":"#N/A"}}]
[{"$nulls":4},{"$f":"VLOOKUP(C51,'Risk Assessment'!$A$4:$F$10,MATCH(D51,'Risk Assessment'!$A$4:$F$4,0),FALSE)","v":{"$error":"#N/A"}},{"$nulls":3},{"$f":"VLOOKUP(G51,'Risk Assessment'!$A$4:$F$10,MATCH(H51,'Risk Assessment'!$A$4:$F$4,0),FALSE)","v":{"$error":"#N/A"}}]
[{"$nulls":4},{"$f":"VLOOKUP(C52,'Risk Assessment'!$A$4:$F$10,MATCH(D52,'Risk Assessment'!$A$4:$F$4,0),FALSE)","v":{"$error":"#N/A"}},{"$nulls":3},{"$f":"VLOOKUP(G52,'Risk Assessment'!$A$4:$F$10,MATCH(H52,'Risk Assessment'!$A$4:$F$4,0),FALSE)","v":{"$error":"#N/A"}}]
[{"$nulls":4},{"$f":"VLOOKUP(C53,'Risk Assessment'!$A$4:$F$10,MATCH(D53,'Risk Assessment'!$A$4:$F$4,0),FALSE)","v":{"$error":"#N/A"}},{"$nulls":3},{"$f":"VLOOKUP(G53,'Risk Assessment'!$A$4:$F$10,MATCH(H53,'Risk Assessment'!$A$4:$F$4,0),FALSE)","v":{"$error":"#N/A"}}]
[{"$nulls":4},{"$f":"VLOOKUP(C54,'Risk Assessment'!$A$4:$F$10,MATCH(D54,'Risk Assessment'!$A$4:$F$4,0),FALSE)","v":{"$error":"#N/A"}},{"$nulls":3},{"$f":"VLOOKUP(G54,'Risk Assessment'!$A$4:$F$10,MATCH(H54,'Risk Assessment'!$A$4:$F$4,0),FALSE)","v":{"$error":"#N/A"}}]
[{"$nulls":4},{"$f":"VLOOKUP(C55,'Risk Assessment'!$A$4:$F$10,MATCH(D55,'Risk Assessment'!$A$4:$F$4,0),FALSE)","v":{"$error":"#N/A"}},{"$nulls":3},{"$f":"VLOOKUP(G55,'Risk Assessment'!$A$4:$F$10,MATCH(H55,'Risk Assessment'!$A$4:$F$4,0),FALSE)","v":{"$error":"#N/A"}}]
[{"$nulls":4},{"$f":"VLOOKUP(C56,'Risk Assessment'!$A$4:$F$10,MATCH(D56,'Risk Assessment'!$A$4:$F$4,0),FALSE)","v":{"$error":"#N/A"}},{"$nulls":3},{"$f":"VLOOKUP(G56,'Risk Assessment'!$A$4:$F$10,MATCH(H56,'Risk Assessment'!$A$4:$F$4,0),FALSE)","v":{"$error":"#N/A"}}]
[{"$nulls":4},{"$f":"VLOOKUP(C57,'Risk Assessment'!$A$4:$F$10,MATCH(D57,'Risk Assessment'!$A$4:$F$4,0),FALSE)","v":{"$error":"#N/A"}},{"$nulls":3},{"$f":"VLOOKUP(G57,'Risk Assessment'!$A$4:$F$10,MATCH(H57,'Risk Assessment'!$A$4:$F$4,0),FALSE)","v":{"$error":"#N/A"}}]
[{"$nulls":4},{"$f":"VLOOKUP(C58,'Risk Assessment'!$A$4:$F$10,MATCH(D58,'Risk Assessment'!$A$4:$F$4,0),FALSE)","v":{"$error":"#N/A"}},{"$nulls":3},{"$f":"VLOOKUP(G58,'Risk Assessment'!$A$4:$F$10,MATCH(H58,'Risk Assessment'!$A$4:$F$4,0),FALSE)","v":{"$error":"#N/A"}}]
[{"$nulls":4},{"$f":"VLOOKUP(C59,'Risk Assessment'!$A$4:$F$10,MATCH(D59,'Risk Assessment'!$A$4:$F$4,0),FALSE)","v":{"$error":"#N/A"}},{"$nulls":3},{"$f":"VLOOKUP(G59,'Risk Assessment'!$A$4:$F$10,MATCH(H59,'Risk Assessment'!$A$4:$F$4,0),FALSE)","v":{"$error":"#N/A"}}]
[{"$nulls":4},{"$f":"VLOOKUP(C60,'Risk Assessment'!$A$4:$F$10,MATCH(D60,'Risk Assessment'!$A$4:$F$4,0),FALSE)","v":{"$error":"#N/A"}},{"$nulls":3},{"$f":"VLOOKUP(G60,'Risk Assessment'!$A$4:$F$10,MATCH(H60,'Risk Assessment'!$A$4:$F$4,0),FALSE)","v":{"$error":"#N/A"}}]
[{"$nulls":4},{"$f":"VLOOKUP(C61,'Risk Assessment'!$A$4:$F$10,MATCH(D61,'Risk Assessment'!$A$4:$F$4,0),FALSE)","v":{"$error":"#N/A"}},{"$nulls":3},{"$f":"VLOOKUP(G61,'Risk Assessment'!$A$4:$F$10,MATCH(H61,'Risk Assessment'!$A$4:$F$4,0),FALSE)","v":{"$error":"#N/A"}}]
[{"$nulls":4},{"$f":"VLOOKUP(C62,'Risk Assessment'!$A$4:$F$10,MATCH(D62,'Risk Assessment'!$A$4:$F$4,0),FALSE)","v":{"$error":"#N/A"}},{"$nulls":3},{"$f":"VLOOKUP(G62,'Risk Assessment'!$A$4:$F$10,MATCH(H62,'Risk Assessment'!$A$4:$F$4,0),FALSE)","v":{"$error":"#N/A"}}]
[{"$nulls":4},{"$f":"VLOOKUP(C63,'Risk Assessment'!$A$4:$F$10,MATCH(D63,'Risk Assessment'!$A$4:$F$4,0),FALSE)","v":{"$error":"#N/A"}},{"$nulls":3},{"$f":"VLOOKUP(G63,'Risk Assessment'!$A$4:$F$10,MATCH(H63,'Risk Assessment'!$A$4:$F$4,0),FALSE)","v":{"$error":"#N/A"}}]
[{"$nulls":4},{"$f":"VLOOKUP(C64,'Risk Assessment'!$A$4:$F$10,MATCH(D64,'Risk Assessment'!$A$4:$F$4,0),FALSE)","v":{"$error":"#N/A"}},{"$nulls":3},{"$f":"VLOOKUP(G64,'Risk Assessment'!$A$4:$F$10,MATCH(H64,'Risk Assessment'!$A$4:$F$4,0),FALSE)","v":{"$error":"#N/A"}}]
[{"$nulls":4},{"$f":"VLOOKUP(C65,'Risk Assessment'!$A$4:$F$10,MATCH(D65,'Risk Assessment'!$A$4:$F$4,0),FALSE)","v":{"$error":"#N/A"}},{"$nulls":3},{"$f":"VLOOKUP(G65,'Risk Assessment'!$A$4:$F$10,MATCH(H65,'Risk Assessment'!$A$4:$F$4,0),FALSE)","v":{"$error":"#N/A"}}]
[{"$nulls":4},{"$f":"VLOOKUP(C66,'Risk Assessment'!$A$4:$F$10,MATCH(D66,'Risk Assessment'!$A$4:$F$4,0),FALSE)","v":{"$error":"#N/A"}},{"$nulls":3},{"$f":"VLOOKUP(G66,'Risk Assessment'!$A$4:$F$10,MATCH(H66,'Risk Assessment'!$A$4:$F$4,0),FALSE)","v":{"$error":"#N/A"}}]
[{"$nulls":4},{"$f":"VLOOKUP(C67,'Risk Assessment'!$A$4:$F$10,MATCH(D67,'Risk Assessment'!$A$4:$F$4,0),FALSE)","v":{"$error":"#N/A"}},{"$nulls":3},{"$f":"VLOOKUP(G67,'Risk Assessment'!$A$4:$F$10,MATCH(H67,'Risk Assessment'!$A$4:$F$4,0),FALSE)","v":{"$error":"#N/A"}}]
[{"$nulls":4},{"$f":"VLOOKUP(C68,'Risk Assessment'!$A$4:$F$10,MATCH(D68,'Risk Assessment'!$A$4:$F$4,0),FALSE)","v":{"$error":"#N/A"}},{"$nulls":3},{"$f":"VLOOKUP(G68,'Risk Assessment'!$A$4:$F$10,MATCH(H68,'Risk Assessment'!$A$4:$F$4,0),FALSE)","v":{"$error":"#N/A"}}]
[{"$nulls":4},{"$f":"VLOOKUP(C69,'Risk Assessment'!$A$4:$F$10,MATCH(D69,'Risk Assessment'!$A$4:$F$4,0),FALSE)","v":{"$error":"#N/A"}},{"$nulls":3},{"$f":"VLOOKUP(G69,'Risk Assessment'!$A$4:$F$10,MATCH(H69,'Risk Assessment'!$A$4:$F$4,0),FALSE)","v":{"$error":"#N/A"}}]
[{"$nulls":4},{"$f":"VLOOKUP(C70,'Risk Assessment'!$A$4:$F$10,MATCH(D70,'Risk Assessment'!$A$4:$F$4,0),FALSE)","v":{"$error":"#N/A"}},{"$nulls":3},{"$f":"VLOOKUP(G70,'Risk Assessment'!$A$4:$F$10,MATCH(H70,'Risk Assessment'!$A$4:$F$4,0),FALSE)","v":{"$error":"#N/A"}}]
[{"$nulls":4},{"$f":"VLOOKUP(C71,'Risk Assessment'!$A$4:$F$10,MATCH(D71,'Risk Assessment'!$A$4:$F$4,0),FALSE)","v":{"$error":"#N/A"}},{"$nulls":3},{"$f":"VLOOKUP(G71,'Risk Assessment'!$A$4:$F$10,MATCH(H71,'Risk Assessment'!$A$4:$F$4,0),FALSE)","v":{"$error":"#N/A"}}]
[{"$nulls":4},{"$f":"VLOOKUP(C72,'Risk Assessment'!$A$4:$F$10,MATCH(D72,'Risk Assessment'!$A$4:$F$4,0),FALSE)","v":{"$error":"#N/A"}},{"$nulls":3},{"$f":"VLOOKUP(G72,'Risk Assessment'!$A$4:$F$10,MATCH(H72,'Risk Assessment'!$A$4:$F$4,0),FALSE)","v":{"$error":"#N/A"}}]
[{"$nulls":4},{"$f":"VLOOKUP(C73,'Risk Assessment'!$A$4:$F$10,MATCH(D73,'Risk Assessment'!$A$4:$F$4,0),FALSE)","v":{"$error":"#N/A"}},{"$nulls":3},{"$f":"VLOOKUP(G73,'Risk Assessment'!$A$4:$F$10,MATCH(H73,'Risk Assessment'!$A$4:$F$4,0),FALSE)","v":{"$error":"#N/A"}}]
[{"$nulls":4},{"$f":"VLOOKUP(C74,'Risk Assessment'!$A$4:$F$10,MATCH(D74,'Risk Assessment'!$A$4:$F$4,0),FALSE)","v":{"$error":"#N/A"}},{"$nulls":3},{"$f":"VLOOKUP(G74,'Risk Assessment'!$A$4:$F$10,MATCH(H74,'Risk Assessment'!$A$4:$F$4,0),FALSE)","v":{"$error":"#N/A"}}]
[{"$nulls":4},{"$f":"VLOOKUP(C75,'Risk Assessment'!$A$4:$F$10,MATCH(D75,'Risk Assessment'!$A$4:$F$4,0),FALSE)","v":{"$error":"#N/A"}},{"$nulls":3},{"$f":"VLOOKUP(G75,'Risk Assessment'!$A$4:$F$10,MATCH(H75,'Risk Assessment'!$A$4:$F$4,0),FALSE)","v":{"$error":"#N/A"}}]
[{"$nulls":4},{"$f":"VLOOKUP(C76,'Risk Assessment'!$A$4:$F$10,MATCH(D76,'Risk Assessment'!$A$4:$F$4,0),FALSE)","v":{"$error":"#N/A"}},{"$nulls":3},{"$f":"VLOOKUP(G76,'Risk Assessment'!$A$4:$F$10,MATCH(H76,'Risk Assessment'!$A$4:$F$4,0),FALSE)","v":{"$error":"#N/A"}}]
[{"$nulls":4},{"$f":"VLOOKUP(C77,'Risk Assessment'!$A$4:$F$10,MATCH(D77,'Risk Assessment'!$A$4:$F$4,0),FALSE)","v":{"$error":"#N/A"}},{"$nulls":3},{"$f":"VLOOKUP(G77,'Risk Assessment'!$A$4:$F$10,MATCH(H77,'Risk Assessment'!$A$4:$F$4,0),FALSE)","v":{"$error":"#N/A"}}]

{"sheet":"Aerojump","index":17,"n_rows":77,"n_cols":9,"rows_kept":77}
{"$rows_empty":9}
[" HAZARD and RISK REGISTER ",null," WCC Practical Activities"]
["Refer to Hazard/Risk Management Procedure"]
[]
["Developed by: Matthew Smith Date: 25 May 2022."]
[" Approved by: Cody Blackler  Date: 28 July 2022 "]
["Reviewed by: Cody Blackler and Matthew Smith  Date: 11 August 2022"]
[]
["(1) Identify all hazards, then determine a risk rating."]
["(2) Eliminate the risk. If not reasonably practicable then"]
["(3) Minimise the risk as far as reasonably practicable."]
["(4) Reassess and determine the residual risk"]
[]
["Where or what task?","Hazard and Harm?","Likelihood \n(Choose from drop list in cell)","Consequence \n(Choose from drop list in cell)","Rating","Action required to Eliminate (E) or Minimise (M). \n (controls, administration controls, personal protective equipment.)","Revised Likelihood","Revised Consequence","Residual Rating"]
["Jumping","Over exersion ","Likely","Moderate",{"$f":"VLOOKUP(C23,'Risk Assessment'!$A$4:$F$10,MATCH(D23,'Risk Assessment'!$A$4:$F$4,0),FALSE)","v":8},"M: staff to recognise signs of over exersion and encourage users to self-regulate\nM: staff to keep time limits to a maximum appropriate for the group","Highly unlikely (rare)","Moderate",{"$f":"VLOOKUP(G23,'Risk Assessment'!$A$4:$F$10,MATCH(H23,'Risk Assessment'!$A$4:$F$4,0),FALSE)","v":2}]
["Jumping","Injury from landing on edge of trampoline ","Moderate","Significant",{"$f":"VLOOKUP(C24,'Risk Assessment'!$A$4:$F$10,MATCH(D24,'Risk Assessment'!$A$4:$F$4,0),FALSE)","v":9},"M: participants are briefed to stop jumping if they begin swinging\nM: staff to recognise signs of swinging and instruct users accordingly","Highly unlikely (rare)","Significant",{"$f":"VLOOKUP(G24,'Risk Assessment'!$A$4:$F$10,MATCH(H24,'Risk Assessment'!$A$4:$F$4,0),FALSE)","v":3}]
["Jumping","injury from harness failure ","Unlikely","Major",{"$f":"VLOOKUP(C25,'Risk Assessment'!$A$4:$F$10,MATCH(D25,'Risk Assessment'!$A$4:$F$4,0),FALSE)","v":8},"M: staff ensure harnesses are correctly attached every time and monitor throughout \nM: annual equipment inspections","Highly unlikely (rare)","Major",{"$f":"VLOOKUP(G25,'Risk Assessment'!$A$4:$F$10,MATCH(H25,'Risk Assessment'!$A$4:$F$4,0),FALSE)","v":4}]
["Jumping","injury from bungy failure ","Moderate","Significant",{"$f":"VLOOKUP(C26,'Risk Assessment'!$A$4:$F$10,MATCH(D26,'Risk Assessment'!$A$4:$F$4,0),FALSE)","v":9},"M: there is a minimum of 2 bungees per side attached \nM: bungees are inspected annually and visually checked each use\nE: bungees are taken out of use if damaged or due to be retired","Highly unlikely (rare)","Moderate",{"$f":"VLOOKUP(G26,'Risk Assessment'!$A$4:$F$10,MATCH(H26,'Risk Assessment'!$A$4:$F$4,0),FALSE)","v":2}]
["Jumping","Injury from landing on head or neck ","Moderate","Major",{"$f":"VLOOKUP(C27,'Risk Assessment'!$A$4:$F$10,MATCH(D27,'Risk Assessment'!$A$4:$F$4,0),FALSE)","v":12},"M: users are briefed to only attempt flips after instructor has given the ok to do so","Highly unlikely (rare)","Major",{"$f":"VLOOKUP(G27,'Risk Assessment'!$A$4:$F$10,MATCH(H27,'Risk Assessment'!$A$4:$F$4,0),FALSE)","v":4}]
["All Tasks","structural failure","Moderate","Extreme",{"$f":"VLOOKUP(C28,'Risk Assessment'!$A$4:$F$10,MATCH(D28,'Risk Assessment'!$A$4:$F$4,0),FALSE)","v":15},"M: 3 monthly inspections and visual checks every use\nM: pins painted bright colour to be obvious if not in correct position","Highly unlikely (rare)","Extreme",{"$f":"VLOOKUP(G28,'Risk Assessment'!$A$4:$F$10,MATCH(H28,'Risk Assessment'!$A$4:$F$4,0),FALSE)","v":5}]
["All Tasks","sunburn ","Very likely","Moderate",{"$f":"VLOOKUP(C29,'Risk Assessment'!$A$4:$F$10,MATCH(D29,'Risk Assessment'!$A$4:$F$4,0),FALSE)","v":10},"M: Sunsmart principles applied.\nM: Advise clients to wear sunhats and apply sunblock","Unlikely","Moderate",{"$f":"VLOOKUP(G29,'Risk Assessment'!$A$4:$F$10,MATCH(H29,'Risk Assessment'!$A$4:$F$4,0),FALSE)","v":4}]
["Jumping","client stress due to close contact while being harnessed/unharnessed","Unlikely","Significant",{"$f":"VLOOKUP(C30,'Risk Assessment'!$A$4:$F$10,MATCH(D30,'Risk Assessment'!$A$4:$F$4,0),FALSE)","v":6},"M: instructor communicating clearly with user to indicate what they are doing before it is done\nM: users can opt out if they are uncomfortable; implement challenge by choice principles","Highly unlikely (rare)","Significant",{"$f":"VLOOKUP(G30,'Risk Assessment'!$A$4:$F$10,MATCH(H30,'Risk Assessment'!$A$4:$F$4,0),FALSE)","v":3}]
["All Tasks","collision with other people in area","Moderate","Significant",{"$f":"VLOOKUP(C31,'Risk Assessment'!$A$4:$F$10,MATCH(D31,'Risk Assessment'!$A$4:$F$4,0),FALSE)","v":9},"M: instructor to monitor who comes in and out of fenced area\nM: adult/leader assist in supervision of users","Highly unlikely (rare)","Significant",{"$f":"VLOOKUP(G31,'Risk Assessment'!$A$4:$F$10,MATCH(H31,'Risk Assessment'!$A$4:$F$4,0),FALSE)","v":3}]
["Inspection","fall from height","Likely","Extreme",{"$f":"VLOOKUP(C32,'Risk Assessment'!$A$4:$F$10,MATCH(D32,'Risk Assessment'!$A$4:$F$4,0),FALSE)","v":20},"M: Inspecting staff member to be harnessed and appropriately attached during inspection\nM: Ensure ladder is stable/secure","Highly unlikely (rare)","Extreme",{"$f":"VLOOKUP(G32,'Risk Assessment'!$A$4:$F$10,MATCH(H32,'Risk Assessment'!$A$4:$F$4,0),FALSE)","v":5}]
["Inspection","falling parts/tools on assisting staff","Very likely","Major",{"$f":"VLOOKUP(C33,'Risk Assessment'!$A$4:$F$10,MATCH(D33,'Risk Assessment'!$A$4:$F$4,0),FALSE)","v":20},"M: Thorough checks of all parts to ensure parts are secure and attached appropriately\nM: Assisting staff member to be mindful\nM: Proper communication maintained","Highly unlikely (rare)","Major",{"$f":"VLOOKUP(G33,'Risk Assessment'!$A$4:$F$10,MATCH(H33,'Risk Assessment'!$A$4:$F$4,0),FALSE)","v":4}]
["Jumping/Instructing","falling items","Likely","Significant",{"$f":"VLOOKUP(C34,'Risk Assessment'!$A$4:$F$10,MATCH(D34,'Risk Assessment'!$A$4:$F$4,0),FALSE)","v":12},"M: Brief users to empty pockets before use","Unlikely","Significant",{"$f":"VLOOKUP(G34,'Risk Assessment'!$A$4:$F$10,MATCH(H34,'Risk Assessment'!$A$4:$F$4,0),FALSE)","v":6}]
[{"$nulls":4},{"$f":"VLOOKUP(C35,'Risk Assessment'!$A$4:$F$10,MATCH(D35,'Risk Assessment'!$A$4:$F$4,0),FALSE)","v":{"$error":"#N/A"}},{"$nulls":3},{"$f":"VLOOKUP(G35,'Risk Assessment'!$A$4:$F$10,MATCH(H35,'Risk Assessment'!$A$4:$F$4,0),FALSE)","v":{"$error":"#N/A"}}]
[{"$nulls":4},{"$f":"VLOOKUP(C36,'Risk Assessment'!$A$4:$F$10,MATCH(D36,'Risk Assessment'!$A$4:$F$4,0),FALSE)","v":{"$error":"#N/A"}},{"$nulls":3},{"$f":"VLOOKUP(G36,'Risk Assessment'!$A$4:$F$10,MATCH(H36,'Risk Assessment'!$A$4:$F$4,0),FALSE)","v":{"$error":"#N/A"}}]
[{"$nulls":4},{"$f":"VLOOKUP(C37,'Risk Assessment'!$A$4:$F$10,MATCH(D37,'Risk Assessment'!$A$4:$F$4,0),FALSE)","v":{"$error":"#N/A"}},{"$nulls":3},{"$f":"VLOOKUP(G37,'Risk Assessment'!$A$4:$F$10,MATCH(H37,'Risk Assessment'!$A$4:$F$4,0),FALSE)","v":{"$error":"#N/A"}}]
[{"$nulls":4},{"$f":"VLOOKUP(C38,'Risk Assessment'!$A$4:$F$10,MATCH(D38,'Risk Assessment'!$A$4:$F$4,0),FALSE)","v":{"$error":"#N/A"}},{"$nulls":3},{"$f":"VLOOKUP(G38,'Risk Assessment'!$A$4:$F$10,MATCH(H38,'Risk Assessment'!$A$4:$F$4,0),FALSE)","v":{"$error":"#N/A"}}]
[{"$nulls":4},{"$f":"VLOOKUP(C39,'Risk Assessment'!$A$4:$F$10,MATCH(D39,'Risk Assessment'!$A$4:$F$4,0),FALSE)","v":{"$error":"#N/A"}},{"$nulls":3},{"$f":"VLOOKUP(G39,'Risk Assessment'!$A$4:$F$10,MATCH(H39,'Risk Assessment'!$A$4:$F$4,0),FALSE)","v":{"$error":"#N/A"}}]
[{"$nulls":4},{"$f":"VLOOKUP(C40,'Risk Assessment'!$A$4:$F$10,MATCH(D40,'Risk Assessment'!$A$4:$F$4,0),FALSE)","v":{"$error":"#N/A"}},{"$nulls":3},{"$f":"VLOOKUP(G40,'Risk Assessment'!$A$4:$F$10,MATCH(H40,'Risk Assessment'!$A$4:$F$4,0),FALSE)","v":{"$error":"#N/A"}}]
[{"$nulls":4},{"$f":"VLOOKUP(C41,'Risk Assessment'!$A$4:$F$10,MATCH(D41,'Risk Assessment'!$A$4:$F$4,0),FALSE)","v":{"$error":"#N/A"}},{"$nulls":3},{"$f":"VLOOKUP(G41,'Risk Assessment'!$A$4:$F$10,MATCH(H41,'Risk Assessment'!$A$4:$F$4,0),FALSE)","v":{"$error":"#N/A"}}]
[{"$nulls":4},{"$f":"VLOOKUP(C42,'Risk Assessment'!$A$4:$F$10,MATCH(D42,'Risk Assessment'!$A$4:$F$4,0),FALSE)","v":{"$error":"#N/A"}},{"$nulls":3},{"$f":"VLOOKUP(G42,'Risk Assessment'!$A$4:$F$10,MATCH(H42,'Risk Assessment'!$A$4:$F$4,0),FALSE)","v":{"$error":"#N/A"}}]
[{"$nulls":4},{"$f":"VLOOKUP(C43,'Risk Assessment'!$A$4:$F$10,MATCH(D43,'Risk Assessment'!$A$4:$F$4,0),FALSE)","v":{"$error":"#N/A"}},{"$nulls":3},{"$f":"VLOOKUP(G43,'Risk Assessment'!$A$4:$F$10,MATCH(H43,'Risk Assessment'!$A$4:$F$4,0),FALSE)","v":{"$error":"#N/A"}}]
[{"$nulls":4},{"$f":"VLOOKUP(C44,'Risk Assessment'!$A$4:$F$10,MATCH(D44,'Risk Assessment'!$A$4:$F$4,0),FALSE)","v":{"$error":"#N/A"}},{"$nulls":3},{"$f":"VLOOKUP(G44,'Risk Assessment'!$A$4:$F$10,MATCH(H44,'Risk Assessment'!$A$4:$F$4,0),FALSE)","v":{"$error":"#N/A"}}]
[{"$nulls":4},{"$f":"VLOOKUP(C45,'Risk Assessment'!$A$4:$F$10,MATCH(D45,'Risk Assessment'!$A$4:$F$4,0),FALSE)","v":{"$error":"#N/A"}},{"$nulls":3},{"$f":"VLOOKUP(G45,'Risk Assessment'!$A$4:$F$10,MATCH(H45,'Risk Assessment'!$A$4:$F$4,0),FALSE)","v":{"$error":"#N/A"}}]
[{"$nulls":4},{"$f":"VLOOKUP(C46,'Risk Assessment'!$A$4:$F$10,MATCH(D46,'Risk Assessment'!$A$4:$F$4,0),FALSE)","v":{"$error":"#N/A"}},{"$nulls":3},{"$f":"VLOOKUP(G46,'Risk Assessment'!$A$4:$F$10,MATCH(H46,'Risk Assessment'!$A$4:$F$4,0),FALSE)","v":{"$error":"#N/A"}}]
[{"$nulls":4},{"$f":"VLOOKUP(C47,'Risk Assessment'!$A$4:$F$10,MATCH(D47,'Risk Assessment'!$A$4:$F$4,0),FALSE)","v":{"$error":"#N/A"}},{"$nulls":3},{"$f":"VLOOKUP(G47,'Risk Assessment'!$A$4:$F$10,MATCH(H47,'Risk Assessment'!$A$4:$F$4,0),FALSE)","v":{"$error":"#N/A"}}]
[{"$nulls":4},{"$f":"VLOOKUP(C48,'Risk Assessment'!$A$4:$F$10,MATCH(D48,'Risk Assessment'!$A$4:$F$4,0),FALSE)","v":{"$error":"#N/A"}},{"$nulls":3},{"$f":"VLOOKUP(G48,'Risk Assessment'!$A$4:$F$10,MATCH(H48,'Risk Assessment'!$A$4:$F$4,0),FALSE)","v":{"$error":"#N/A"}}]
[{"$nulls":4},{"$f":"VLOOKUP(C49,'Risk Assessment'!$A$4:$F$10,MATCH(D49,'Risk Assessment'!$A$4:$F$4,0),FALSE)","v":{"$error":"#N/A"}},{"$nulls":3},{"$f":"VLOOKUP(G49,'Risk Assessment'!$A$4:$F$10,MATCH(H49,'Risk Assessment'!$A$4:$F$4,0),FALSE)","v":{"$error":"#N/A"}}]
[{"$nulls":4},{"$f":"VLOOKUP(C50,'Risk Assessment'!$A$4:$F$10,MATCH(D50,'Risk Assessment'!$A$4:$F$4,0),FALSE)","v":{"$error":"#N/A"}},{"$nulls":3},{"$f":"VLOOKUP(G50,'Risk Assessment'!$A$4:$F$10,MATCH(H50,'Risk Assessment'!$A$4:$F$4,0),FALSE)","v":{"$error":"#N/A"}}]
[{"$nulls":4},{"$f":"VLOOKUP(C51,'Risk Assessment'!$A$4:$F$10,MATCH(D51,'Risk Assessment'!$A$4:$F$4,0),FALSE)","v":{"$error":"#N/A"}},{"$nulls":3},{"$f":"VLOOKUP(G51,'Risk Assessment'!$A$4:$F$10,MATCH(H51,'Risk Assessment'!$A$4:$F$4,0),FALSE)","v":{"$error":"#N/A"}}]
[{"$nulls":4},{"$f":"VLOOKUP(C52,'Risk Assessment'!$A$4:$F$10,MATCH(D52,'Risk Assessment'!$A$4:$F$4,0),FALSE)","v":{"$error":"#N/A"}},{"$nulls":3},{"$f":"VLOOKUP(G52,'Risk Assessment'!$A$4:$F$10,MATCH(H52,'Risk Assessment'!$A$4:$F$4,0),FALSE)","v":{"$error":"#N/A"}}]
[{"$nulls":4},{"$f":"VLOOKUP(C53,'Risk Assessment'!$A$4:$F$10,MATCH(D53,'Risk Assessment'!$A$4:$F$4,0),FALSE)","v":{"$error":"#N/A"}},{"$nulls":3},{"$f":"VLOOKUP(G53,'Risk Assessment'!$A$4:$F$10,MATCH(H53,'Risk Assessment'!$A$4:$F$4,0),FALSE)","v":{"$error":"#N/A"}}]
[{"$nulls":4},{"$f":"VLOOKUP(C54,'Risk Assessment'!$A$4:$F$10,MATCH(D54,'Risk Assessment'!$A$4:$F$4,0),FALSE)","v":{"$error":"#N/A"}},{"$nulls":3},{"$f":"VLOOKUP(G54,'Risk Assessment'!$A$4:$F$10,MATCH(H54,'Risk Assessment'!$A$4:$F$4,0),FALSE)","v":{"$error":"#N/A"}}]
[{"$nulls":4},{"$f":"VLOOKUP(C55,'Risk Assessment'!$A$4:$F$10,MATCH(D55,'Risk Assessment'!$A$4:$F$4,0),FALSE)","v":{"$error":"#N/A"}},{"$nulls":3},{"$f":"VLOOKUP(G55,'Risk Assessment'!$A$4:$F$10,MATCH(H55,'Risk Assessment'!$A$4:$F$4,0),FALSE)","v":{"$error":"#N/A"}}]
[{"$nulls":4},{"$f":"VLOOKUP(C56,'Risk Assessment'!$A$4:$F$10,MATCH(D56,'Risk Assessment'!$A$4:$F$4,0),FALSE)","v":{"$error":"#N/A"}},{"$nulls":3},{"$f":"VLOOKUP(G56,'Risk Assessment'!$A$4:$F$10,MATCH(H56,'Risk Assessment'!$A$4:$F$4,0),FALSE)","v":{"$error":"#N/A"}}]
[{"$nulls":4},{"$f":"VLOOKUP(C57,'Risk Assessment'!$A$4:$F$10,MATCH(D57,'Risk Assessment'!$A$4:$F$4,0),FALSE)","v":{"$error":"#N/A"}},{"$nulls":3},{"$f":"VLOOKUP(G57,'Risk Assessment'!$A$4:$F$10,MATCH(H57,'Risk Assessment'!$A$4:$F$4,0),FALSE)","v":{"$error":"#N/A"}}]
[{"$nulls":4},{"$f":"VLOOKUP(C58,'Risk Assessment'!$A$4:$F$10,MATCH(D58,'Risk Assessment'!$A$4:$F$4,0),FALSE)","v":{"$error":"#N/A"}},{"$nulls":3},{"$f":"VLOOKUP(G58,'Risk Assessment'!$A$4:$F$10,MATCH(H58,'Risk Assessment'!$A$4:$F$4,0),FALSE)","v":{"$error":"#N/A"}}]
[{"$nulls":4},{"$f":"VLOOKUP(C59,'Risk Assessment'!$A$4:$F$10,MATCH(D59,'Risk Assessment'!$A$4:$F$4,0),FALSE)","v":{"$error":"#N/A"}},{"$nulls":3},{"$f":"VLOOKUP(G59,'Risk Assessment'!$A$4:$F$10,MATCH(H59,'Risk Assessment'!$A$4:$F$4,0),FALSE)","v":{"$error":"#N/A"}}]
[{"$nulls":4},{"$f":"VLOOKUP(C60,'Risk Assessment'!$A$4:$F$10,MATCH(D60,'Risk Assessment'!$A$4:$F$4,0),FALSE)","v":{"$error":"#N/A"}},{"$nulls":3},{"$f":"VLOOKUP(G60,'Risk Assessment'!$A$4:$F$10,MATCH(H60,'Risk Assessment'!$A$4:$F$4,0),FALSE)","v":{"$error":"#N/A"}}]
[{"$nulls":4},{"$f":"VLOOKUP(C61,'Risk Assessment'!$A$4:$F$10,MATCH(D61,'Risk Assessment'!$A$4:$F$4,0),FALSE)","v":{"$error":"#N/A"}},{"$nulls":3},{"$f":"VLOOKUP(G61,'Risk Assessment'!$A$4:$F$10,MATCH(H61,'Risk Assessment'!$A$4:$F$4,0),FALSE)","v":{"$error":"#N/A"}}]
[{"$nulls":4},{"$f":"VLOOKUP(C62,'Risk Assessment'!$A$4:$F$10,MATCH(D62,'Risk Assessment'!$A$4:$F$4,0),FALSE)","v":{"$error":"#N/A"}},{"$nulls":3},{"$f":"VLOOKUP(G62,'Risk Assessment'!$A$4:$F$10,MATCH(H62,'Risk Assessment'!$A$4:$F$4,0),FALSE)","v":{"$error":"#N/A"}}]
[{"$nulls":4},{"$f":"VLOOKUP(C63,'Risk Assessment'!$A$4:$F$10,MATCH(D63,'Risk Assessment'!$A$4:$F$4,0),FALSE)","v":{"$error":"#N/A"}},{"$nulls":3},{"$f":"VLOOKUP(G63,'Risk Assessment'!$A$4:$F$10,MATCH(H63,'Risk Assessment'!$A$4:$F$4,0),FALSE)","v":{"$error":"#N/A"}}]
[{"$nulls":4},{"$f":"VLOOKUP(C64,'Risk Assessment'!$A$4:$F$10,MATCH(D64,'Risk Assessment'!$A$4:$F$4,0),FALSE)","v":{"$error":"#N/A"}},{"$nulls":3},{"$f":"VLOOKUP(G64,'Risk Assessment'!$A$4:$F$10,MATCH(H64,'Risk Assessment'!$A$4:$F$4,0),FALSE)","v":{"$error":"#N/A"}}]
[{"$nulls":4},{"$f":"VLOOKUP(C65,'Risk Assessment'!$A$4:$F$10,MATCH(D65,'Risk Assessment'!$A$4:$F$4,0),FALSE)","v":{"$error":"#N/A"}},{"$nulls":3},{"$f":"VLOOKUP(G65,'Risk Assessment'!$A$4:$F$10,MATCH(H65,'Risk Assessment'!$A$4:$F$4,0),FALSE)","v":{"$error":"#N/A"}}]
[{"$nulls":4},{"$f":"VLOOKUP(C66,'Risk Assessment'!$A$4:$F$10,MATCH(D66,'Risk Assessment'!$A$4:$F$4,0),FALSE)","v":{"$error":"#N/A"}},{"$nulls":3},{"$f":"VLOOKUP(G66,'Risk Assessment'!$A$4:$F$10,MATCH(H66,'Risk Assessment'!$A$4:$F$4,0),FALSE)","v":{"$error":"#N/A"}}]
[{"$nulls":4},{"$f":"VLOOKUP(C67,'Risk Assessment'!$A$4:$F$10,MATCH(D67,'Risk Assessment'!$A$4:$F$4,0),FALSE)","v":{"$error":"#N/A"}},{"$nulls":3},{"$f":"VLOOKUP(G67,'Risk Assessment'!$A$4:$F$10,MATCH(H67,'Risk Assessment'!$A$4:$F$4,0),FALSE)","v":{"$error":"#N/A"}}]
[{"$nulls":4},{"$f":"VLOOKUP(C68,'Risk Assessment'!$A$4:$F$10,MATCH(D68,'Risk Assessment'!$A$4:$F$4,0),FALSE)","v":{"$error":"#N/A"}},{"$nulls":3},{"$f":"VLOOKUP(G68,'Risk Assessment'!$A$4:$F$10,MATCH(H68,'Risk Assessment'!$A$4:$F$4,0),FALSE)","v":{"$error":"#N/A"}}]
[{"$nulls":4},{"$f":"VLOOKUP(C69,'Risk Assessment'!$A$4:$F$10,MATCH(D69,'Risk Assessment'!$A$4:$F$4,0),FALSE)","v":{"$error":"#N/A"}},{"$nulls":3},{"$f":"VLOOKUP(G69,'Risk Assessment'!$A$4:$F$10,MATCH(H69,'Risk Assessment'!$A$4:$F$4,0),FALSE)","v":{"$error":"#N/A"}}]
[{"$nulls":4},{"$f":"VLOOKUP(C70,'Risk Assessment'!$A$4:$F$10,MATCH(D70,'Risk Assessment'!$A$4:$F$4,0),FALSE)","v":{"$error":"#N/A"}},{"$nulls":3},{"$f":"VLOOKUP(G70,'Risk Assessment'!$A$4:$F$10,MATCH(H70,'Risk Assessment'!$A$4:$F$4,0),FALSE)","v":{"$error":"#N/A"}}]
[{"$nulls":4},{"$f":"VLOOKUP(C71,'Risk Assessment'!$A$4:$F$10,MATCH(D71,'Risk Assessment'!$A$4:$F$4,0),FALSE)","v":{"$error":"#N/A"}},{"$nulls":3},{"$f":"VLOOKUP(G71,'Risk Assessment'!$A$4:$F$10,MATCH(H71,'Risk Assessment'!$A$4:$F$4,0),FALSE)","v":{"$error":"#N/A"}}]
[{"$nulls":4},{"$f":"VLOOKUP(C72,'Risk Assessment'!$A$4:$F$10,MATCH(D72,'Risk Assessment'!$A$4:$F$4,0),FALSE)","v":{"$error":"#N/A"}},{"$nulls":3},{"$f":"VLOOKUP(G72,'Risk Assessment'!$A$4:$F$10,MATCH(H72,'Risk Assessment'!$A$4:$F$4,0),FALSE)","v":{"$error":"#N/A"}}]
[{"$nulls":4},{"$f":"VLOOKUP(C73,'Risk Assessment'!$A$4:$F$10,MATCH(D73,'Risk Assessment'!$A$4:$F$4,0),FALSE)","v":{"$error":"#N/A"}},{"$nulls":3},{"$f":"VLOOKUP(G73,'Risk Assessment'!$A$4:$F$10,MATCH(H73,'Risk Assessment'!$A$4:$F$4,0),FALSE)","v":{"$error":"#N/A"}}]
[{"$nulls":4},{"$f":"VLOOKUP(C74,'Risk Assessment'!$A$4:$F$10,MATCH(D74,'Risk Assessment'!$A$4:$F$4,0),FALSE)","v":{"$error":"#N/A"}},{"$nulls":3},{"$f":"VLOOKUP(G74,'Risk Assessment'!$A$4:$F$10,MATCH(H74,'Risk Assessment'!$A$4:$F$4,0),FALSE)","v":{"$error":"#N/A"}}]
[{"$nulls":4},{"$f":"VLOOKUP(C75,'Risk Assessment'!$A$4:$F$10,MATCH(D75,'Risk Assessment'!$A$4:$F$4,0),FALSE)","v":{"$error":"#N/A"}},{"$nulls":3},{"$f":"VLOOKUP(G75,'Risk Assessment'!$A$4:$F$10,MATCH(H75,'Risk Assessment'!$A$4:$F$4,0),FALSE)","v":{"$error":"#N/A"}}]
[{"$nulls":4},{"$f":"VLOOKUP(C76,'Risk Assessment'!$A$4:$F$10,MATCH(D76,'Risk Assessment'!$A$4:$F$4,0),FALSE)","v":{"$error":"#N/A"}},{"$nulls":3},{"$f":"VLOOKUP(G76,'Risk Assessment'!$A$4:$F$10,MATCH(H76,'Risk Assessment'!$A$4:$F$4,0),FALSE)","v":{"$error":"#N/A"}}]
[{"$nulls":4},{"$f":"VLOOKUP(C77,'Risk Assessment'!$A$4:$F$10,MATCH(D77,'Risk Assessment'!$A$4:$F$4,0),FALSE)","v":{"$error":"#N/A"}},{"$nulls":3},{"$f":"VLOOKUP(G77,'Risk Assessment'!$A$4:$F$10,MATCH(H77,'Risk Assessment'!$A$4:$F$4,0),FALSE)","v":{"$error":"#N/A"}}]

{"sheet":"Trampolines","index":18,"n_rows":77,"n_cols":9,"rows_kept":77}
{"$rows_empty":9}
[" HAZARD and RISK REGISTER ",null," WCC Practical Activities"]
["Refer to Hazard/Risk Management Procedure"]
[]
["Developed by: Matthew Smith Date: 25 May 2022."]
[" Approved by:  Cody Blackler   Date: 11 August 2022"]
["Reviewed by: Cody Blackler and Matthew Smith  Date: 11 August 2022"]
[]
["(1) Identify all hazards, then determine a risk rating."]
["(2) Eliminate the risk. If not reasonably practicable then"]
["(3) Minimise the risk as far as reasonably practicable."]
["(4) Reassess and determine the residual risk"]
[]
["Where or what task?","Hazard and Harm?","Likelihood \n(Choose from drop list in cell)","Consequence \n(Choose from drop list in cell)","Rating","Action required to Eliminate (E) or Minimise (M). \n (controls, administration controls, personal protective equipment.)","Revised Likelihood","Revised Consequence","Residual Rating"]
["Jumping","collisions with other jumpers ","Unlikely","Major",{"$f":"VLOOKUP(C23,'Risk Assessment'!$A$4:$F$10,MATCH(D23,'Risk Assessment'!$A$4:$F$4,0),FALSE)","v":8},"E: 1 jumper at a time","Highly unlikely (rare)","Major",{"$f":"VLOOKUP(G23,'Risk Assessment'!$A$4:$F$10,MATCH(H23,'Risk Assessment'!$A$4:$F$4,0),FALSE)","v":4}]
["Jumping","falling off trampoline ","Very likely","Extreme",{"$f":"VLOOKUP(C24,'Risk Assessment'!$A$4:$F$10,MATCH(D24,'Risk Assessment'!$A$4:$F$4,0),FALSE)","v":25},"M: springfree trampoline design includes safety net\nM: ensure safety net opening is closed while in use","Moderate","Insignificant",{"$f":"VLOOKUP(G24,'Risk Assessment'!$A$4:$F$10,MATCH(H24,'Risk Assessment'!$A$4:$F$4,0),FALSE)","v":3}]
["Jumping","injury from trying to flip","Moderate","Major",{"$f":"VLOOKUP(C25,'Risk Assessment'!$A$4:$F$10,MATCH(D25,'Risk Assessment'!$A$4:$F$4,0),FALSE)","v":12},"M: users advised not to do flips without proper experience and/or training","Highly unlikely (rare)","Major",{"$f":"VLOOKUP(G25,'Risk Assessment'!$A$4:$F$10,MATCH(H25,'Risk Assessment'!$A$4:$F$4,0),FALSE)","v":4}]
["Jumping, Spectating ","collisions with spectators","Unlikely","Significant",{"$f":"VLOOKUP(C26,'Risk Assessment'!$A$4:$F$10,MATCH(D26,'Risk Assessment'!$A$4:$F$4,0),FALSE)","v":6},"M: spectators advised to stand away from trampolines ","Highly unlikely (rare)","Significant",{"$f":"VLOOKUP(G26,'Risk Assessment'!$A$4:$F$10,MATCH(H26,'Risk Assessment'!$A$4:$F$4,0),FALSE)","v":3}]
[{"$nulls":4},{"$f":"VLOOKUP(C27,'Risk Assessment'!$A$4:$F$10,MATCH(D27,'Risk Assessment'!$A$4:$F$4,0),FALSE)","v":{"$error":"#N/A"}},{"$nulls":3},{"$f":"VLOOKUP(G27,'Risk Assessment'!$A$4:$F$10,MATCH(H27,'Risk Assessment'!$A$4:$F$4,0),FALSE)","v":{"$error":"#N/A"}}]
[{"$nulls":4},{"$f":"VLOOKUP(C28,'Risk Assessment'!$A$4:$F$10,MATCH(D28,'Risk Assessment'!$A$4:$F$4,0),FALSE)","v":{"$error":"#N/A"}},{"$nulls":3},{"$f":"VLOOKUP(G28,'Risk Assessment'!$A$4:$F$10,MATCH(H28,'Risk Assessment'!$A$4:$F$4,0),FALSE)","v":{"$error":"#N/A"}}]
[{"$nulls":4},{"$f":"VLOOKUP(C29,'Risk Assessment'!$A$4:$F$10,MATCH(D29,'Risk Assessment'!$A$4:$F$4,0),FALSE)","v":{"$error":"#N/A"}},{"$nulls":3},{"$f":"VLOOKUP(G29,'Risk Assessment'!$A$4:$F$10,MATCH(H29,'Risk Assessment'!$A$4:$F$4,0),FALSE)","v":{"$error":"#N/A"}}]
[{"$nulls":4},{"$f":"VLOOKUP(C30,'Risk Assessment'!$A$4:$F$10,MATCH(D30,'Risk Assessment'!$A$4:$F$4,0),FALSE)","v":{"$error":"#N/A"}},{"$nulls":3},{"$f":"VLOOKUP(G30,'Risk Assessment'!$A$4:$F$10,MATCH(H30,'Risk Assessment'!$A$4:$F$4,0),FALSE)","v":{"$error":"#N/A"}}]
[{"$nulls":4},{"$f":"VLOOKUP(C31,'Risk Assessment'!$A$4:$F$10,MATCH(D31,'Risk Assessment'!$A$4:$F$4,0),FALSE)","v":{"$error":"#N/A"}},{"$nulls":3},{"$f":"VLOOKUP(G31,'Risk Assessment'!$A$4:$F$10,MATCH(H31,'Risk Assessment'!$A$4:$F$4,0),FALSE)","v":{"$error":"#N/A"}}]
[{"$nulls":4},{"$f":"VLOOKUP(C32,'Risk Assessment'!$A$4:$F$10,MATCH(D32,'Risk Assessment'!$A$4:$F$4,0),FALSE)","v":{"$error":"#N/A"}},{"$nulls":3},{"$f":"VLOOKUP(G32,'Risk Assessment'!$A$4:$F$10,MATCH(H32,'Risk Assessment'!$A$4:$F$4,0),FALSE)","v":{"$error":"#N/A"}}]
[{"$nulls":4},{"$f":"VLOOKUP(C33,'Risk Assessment'!$A$4:$F$10,MATCH(D33,'Risk Assessment'!$A$4:$F$4,0),FALSE)","v":{"$error":"#N/A"}},{"$nulls":3},{"$f":"VLOOKUP(G33,'Risk Assessment'!$A$4:$F$10,MATCH(H33,'Risk Assessment'!$A$4:$F$4,0),FALSE)","v":{"$error":"#N/A"}}]
[{"$nulls":4},{"$f":"VLOOKUP(C34,'Risk Assessment'!$A$4:$F$10,MATCH(D34,'Risk Assessment'!$A$4:$F$4,0),FALSE)","v":{"$error":"#N/A"}},{"$nulls":3},{"$f":"VLOOKUP(G34,'Risk Assessment'!$A$4:$F$10,MATCH(H34,'Risk Assessment'!$A$4:$F$4,0),FALSE)","v":{"$error":"#N/A"}}]
[{"$nulls":4},{"$f":"VLOOKUP(C35,'Risk Assessment'!$A$4:$F$10,MATCH(D35,'Risk Assessment'!$A$4:$F$4,0),FALSE)","v":{"$error":"#N/A"}},{"$nulls":3},{"$f":"VLOOKUP(G35,'Risk Assessment'!$A$4:$F$10,MATCH(H35,'Risk Assessment'!$A$4:$F$4,0),FALSE)","v":{"$error":"#N/A"}}]
[{"$nulls":4},{"$f":"VLOOKUP(C36,'Risk Assessment'!$A$4:$F$10,MATCH(D36,'Risk Assessment'!$A$4:$F$4,0),FALSE)","v":{"$error":"#N/A"}},{"$nulls":3},{"$f":"VLOOKUP(G36,'Risk Assessment'!$A$4:$F$10,MATCH(H36,'Risk Assessment'!$A$4:$F$4,0),FALSE)","v":{"$error":"#N/A"}}]
[{"$nulls":4},{"$f":"VLOOKUP(C37,'Risk Assessment'!$A$4:$F$10,MATCH(D37,'Risk Assessment'!$A$4:$F$4,0),FALSE)","v":{"$error":"#N/A"}},{"$nulls":3},{"$f":"VLOOKUP(G37,'Risk Assessment'!$A$4:$F$10,MATCH(H37,'Risk Assessment'!$A$4:$F$4,0),FALSE)","v":{"$error":"#N/A"}}]
[{"$nulls":4},{"$f":"VLOOKUP(C38,'Risk Assessment'!$A$4:$F$10,MATCH(D38,'Risk Assessment'!$A$4:$F$4,0),FALSE)","v":{"$error":"#N/A"}},{"$nulls":3},{"$f":"VLOOKUP(G38,'Risk Assessment'!$A$4:$F$10,MATCH(H38,'Risk Assessment'!$A$4:$F$4,0),FALSE)","v":{"$error":"#N/A"}}]
[{"$nulls":4},{"$f":"VLOOKUP(C39,'Risk Assessment'!$A$4:$F$10,MATCH(D39,'Risk Assessment'!$A$4:$F$4,0),FALSE)","v":{"$error":"#N/A"}},{"$nulls":3},{"$f":"VLOOKUP(G39,'Risk Assessment'!$A$4:$F$10,MATCH(H39,'Risk Assessment'!$A$4:$F$4,0),FALSE)","v":{"$error":"#N/A"}}]
[{"$nulls":4},{"$f":"VLOOKUP(C40,'Risk Assessment'!$A$4:$F$10,MATCH(D40,'Risk Assessment'!$A$4:$F$4,0),FALSE)","v":{"$error":"#N/A"}},{"$nulls":3},{"$f":"VLOOKUP(G40,'Risk Assessment'!$A$4:$F$10,MATCH(H40,'Risk Assessment'!$A$4:$F$4,0),FALSE)","v":{"$error":"#N/A"}}]
[{"$nulls":4},{"$f":"VLOOKUP(C41,'Risk Assessment'!$A$4:$F$10,MATCH(D41,'Risk Assessment'!$A$4:$F$4,0),FALSE)","v":{"$error":"#N/A"}},{"$nulls":3},{"$f":"VLOOKUP(G41,'Risk Assessment'!$A$4:$F$10,MATCH(H41,'Risk Assessment'!$A$4:$F$4,0),FALSE)","v":{"$error":"#N/A"}}]
[{"$nulls":4},{"$f":"VLOOKUP(C42,'Risk Assessment'!$A$4:$F$10,MATCH(D42,'Risk Assessment'!$A$4:$F$4,0),FALSE)","v":{"$error":"#N/A"}},{"$nulls":3},{"$f":"VLOOKUP(G42,'Risk Assessment'!$A$4:$F$10,MATCH(H42,'Risk Assessment'!$A$4:$F$4,0),FALSE)","v":{"$error":"#N/A"}}]
[{"$nulls":4},{"$f":"VLOOKUP(C43,'Risk Assessment'!$A$4:$F$10,MATCH(D43,'Risk Assessment'!$A$4:$F$4,0),FALSE)","v":{"$error":"#N/A"}},{"$nulls":3},{"$f":"VLOOKUP(G43,'Risk Assessment'!$A$4:$F$10,MATCH(H43,'Risk Assessment'!$A$4:$F$4,0),FALSE)","v":{"$error":"#N/A"}}]
[{"$nulls":4},{"$f":"VLOOKUP(C44,'Risk Assessment'!$A$4:$F$10,MATCH(D44,'Risk Assessment'!$A$4:$F$4,0),FALSE)","v":{"$error":"#N/A"}},{"$nulls":3},{"$f":"VLOOKUP(G44,'Risk Assessment'!$A$4:$F$10,MATCH(H44,'Risk Assessment'!$A$4:$F$4,0),FALSE)","v":{"$error":"#N/A"}}]
[{"$nulls":4},{"$f":"VLOOKUP(C45,'Risk Assessment'!$A$4:$F$10,MATCH(D45,'Risk Assessment'!$A$4:$F$4,0),FALSE)","v":{"$error":"#N/A"}},{"$nulls":3},{"$f":"VLOOKUP(G45,'Risk Assessment'!$A$4:$F$10,MATCH(H45,'Risk Assessment'!$A$4:$F$4,0),FALSE)","v":{"$error":"#N/A"}}]
[{"$nulls":4},{"$f":"VLOOKUP(C46,'Risk Assessment'!$A$4:$F$10,MATCH(D46,'Risk Assessment'!$A$4:$F$4,0),FALSE)","v":{"$error":"#N/A"}},{"$nulls":3},{"$f":"VLOOKUP(G46,'Risk Assessment'!$A$4:$F$10,MATCH(H46,'Risk Assessment'!$A$4:$F$4,0),FALSE)","v":{"$error":"#N/A"}}]
[{"$nulls":4},{"$f":"VLOOKUP(C47,'Risk Assessment'!$A$4:$F$10,MATCH(D47,'Risk Assessment'!$A$4:$F$4,0),FALSE)","v":{"$error":"#N/A"}},{"$nulls":3},{"$f":"VLOOKUP(G47,'Risk Assessment'!$A$4:$F$10,MATCH(H47,'Risk Assessment'!$A$4:$F$4,0),FALSE)","v":{"$error":"#N/A"}}]
[{"$nulls":4},{"$f":"VLOOKUP(C48,'Risk Assessment'!$A$4:$F$10,MATCH(D48,'Risk Assessment'!$A$4:$F$4,0),FALSE)","v":{"$error":"#N/A"}},{"$nulls":3},{"$f":"VLOOKUP(G48,'Risk Assessment'!$A$4:$F$10,MATCH(H48,'Risk Assessment'!$A$4:$F$4,0),FALSE)","v":{"$error":"#N/A"}}]
[{"$nulls":4},{"$f":"VLOOKUP(C49,'Risk Assessment'!$A$4:$F$10,MATCH(D49,'Risk Assessment'!$A$4:$F$4,0),FALSE)","v":{"$error":"#N/A"}},{"$nulls":3},{"$f":"VLOOKUP(G49,'Risk Assessment'!$A$4:$F$10,MATCH(H49,'Risk Assessment'!$A$4:$F$4,0),FALSE)","v":{"$error":"#N/A"}}]
[{"$nulls":4},{"$f":"VLOOKUP(C50,'Risk Assessment'!$A$4:$F$10,MATCH(D50,'Risk Assessment'!$A$4:$F$4,0),FALSE)","v":{"$error":"#N/A"}},{"$nulls":3},{"$f":"VLOOKUP(G50,'Risk Assessment'!$A$4:$F$10,MATCH(H50,'Risk Assessment'!$A$4:$F$4,0),FALSE)","v":{"$error":"#N/A"}}]
[{"$nulls":4},{"$f":"VLOOKUP(C51,'Risk Assessment'!$A$4:$F$10,MATCH(D51,'Risk Assessment'!$A$4:$F$4,0),FALSE)","v":{"$error":"#N/A"}},{"$nulls":3},{"$f":"VLOOKUP(G51,'Risk Assessment'!$A$4:$F$10,MATCH(H51,'Risk Assessment'!$A$4:$F$4,0),FALSE)","v":{"$error":"#N/A"}}]
[{"$nulls":4},{"$f":"VLOOKUP(C52,'Risk Assessment'!$A$4:$F$10,MATCH(D52,'Risk Assessment'!$A$4:$F$4,0),FALSE)","v":{"$error":"#N/A"}},{"$nulls":3},{"$f":"VLOOKUP(G52,'Risk Assessment'!$A$4:$F$10,MATCH(H52,'Risk Assessment'!$A$4:$F$4,0),FALSE)","v":{"$error":"#N/A"}}]
[{"$nulls":4},{"$f":"VLOOKUP(C53,'Risk Assessment'!$A$4:$F$10,MATCH(D53,'Risk Assessment'!$A$4:$F$4,0),FALSE)","v":{"$error":"#N/A"}},{"$nulls":3},{"$f":"VLOOKUP(G53,'Risk Assessment'!$A$4:$F$10,MATCH(H53,'Risk Assessment'!$A$4:$F$4,0),FALSE)","v":{"$error":"#N/A"}}]
[{"$nulls":4},{"$f":"VLOOKUP(C54,'Risk Assessment'!$A$4:$F$10,MATCH(D54,'Risk Assessment'!$A$4:$F$4,0),FALSE)","v":{"$error":"#N/A"}},{"$nulls":3},{"$f":"VLOOKUP(G54,'Risk Assessment'!$A$4:$F$10,MATCH(H54,'Risk Assessment'!$A$4:$F$4,0),FALSE)","v":{"$error":"#N/A"}}]
[{"$nulls":4},{"$f":"VLOOKUP(C55,'Risk Assessment'!$A$4:$F$10,MATCH(D55,'Risk Assessment'!$A$4:$F$4,0),FALSE)","v":{"$error":"#N/A"}},{"$nulls":3},{"$f":"VLOOKUP(G55,'Risk Assessment'!$A$4:$F$10,MATCH(H55,'Risk Assessment'!$A$4:$F$4,0),FALSE)","v":{"$error":"#N/A"}}]
[{"$nulls":4},{"$f":"VLOOKUP(C56,'Risk Assessment'!$A$4:$F$10,MATCH(D56,'Risk Assessment'!$A$4:$F$4,0),FALSE)","v":{"$error":"#N/A"}},{"$nulls":3},{"$f":"VLOOKUP(G56,'Risk Assessment'!$A$4:$F$10,MATCH(H56,'Risk Assessment'!$A$4:$F$4,0),FALSE)","v":{"$error":"#N/A"}}]
[{"$nulls":4},{"$f":"VLOOKUP(C57,'Risk Assessment'!$A$4:$F$10,MATCH(D57,'Risk Assessment'!$A$4:$F$4,0),FALSE)","v":{"$error":"#N/A"}},{"$nulls":3},{"$f":"VLOOKUP(G57,'Risk Assessment'!$A$4:$F$10,MATCH(H57,'Risk Assessment'!$A$4:$F$4,0),FALSE)","v":{"$error":"#N/A"}}]
[{"$nulls":4},{"$f":"VLOOKUP(C58,'Risk Assessment'!$A$4:$F$10,MATCH(D58,'Risk Assessment'!$A$4:$F$4,0),FALSE)","v":{"$error":"#N/A"}},{"$nulls":3},{"$f":"VLOOKUP(G58,'Risk Assessment'!$A$4:$F$10,MATCH(H58,'Risk Assessment'!$A$4:$F$4,0),FALSE)","v":{"$error":"#N/A"}}]
[{"$nulls":4},{"$f":"VLOOKUP(C59,'Risk Assessment'!$A$4:$F$10,MATCH(D59,'Risk Assessment'!$A$4:$F$4,0),FALSE)","v":{"$error":"#N/A"}},{"$nulls":3},{"$f":"VLOOKUP(G59,'Risk Assessment'!$A$4:$F$10,MATCH(H59,'Risk Assessment'!$A$4:$F$4,0),FALSE)","v":{"$error":"#N/A"}}]
[{"$nulls":4},{"$f":"VLOOKUP(C60,'Risk Assessment'!$A$4:$F$10,MATCH(D60,'Risk Assessment'!$A$4:$F$4,0),FALSE)","v":{"$error":"#N/A"}},{"$nulls":3},{"$f":"VLOOKUP(G60,'Risk Assessment'!$A$4:$F$10,MATCH(H60,'Risk Assessment'!$A$4:$F$4,0),FALSE)","v":{"$error":"#N/A"}}]
[{"$nulls":4},{"$f":"VLOOKUP(C61,'Risk Assessment'!$A$4:$F$10,MATCH(D61,'Risk Assessment'!$A$4:$F$4,0),FALSE)","v":{"$error":"#N/A"}},{"$nulls":3},{"$f":"VLOOKUP(G61,'Risk Assessment'!$A$4:$F$10,MATCH(H61,'Risk Assessment'!$A$4:$F$4,0),FALSE)","v":{"$error":"#N/A"}}]
[{"$nulls":4},{"$f":"VLOOKUP(C62,'Risk Assessment'!$A$4:$F$10,MATCH(D62,'Risk Assessment'!$A$4:$F$4,0),FALSE)","v":{"$error":"#N/A"}},{"$nulls":3},{"$f":"VLOOKUP(G62,'Risk Assessment'!$A$4:$F$10,MATCH(H62,'Risk Assessment'!$A$4:$F$4,0),FALSE)","v":{"$error":"#N/A"}}]
[{"$nulls":4},{"$f":"VLOOKUP(C63,'Risk Assessment'!$A$4:$F$10,MATCH(D63,'Risk Assessment'!$A$4:$F$4,0),FALSE)","v":{"$error":"#N/A"}},{"$nulls":3},{"$f":"VLOOKUP(G63,'Risk Assessment'!$A$4:$F$10,MATCH(H63,'Risk Assessment'!$A$4:$F$4,0),FALSE)","v":{"$error":"#N/A"}}]
[{"$nulls":4},{"$f":"VLOOKUP(C64,'Risk Assessment'!$A$4:$F$10,MATCH(D64,'Risk Assessment'!$A$4:$F$4,0),FALSE)","v":{"$error":"#N/A"}},{"$nulls":3},{"$f":"VLOOKUP(G64,'Risk Assessment'!$A$4:$F$10,MATCH(H64,'Risk Assessment'!$A$4:$F$4,0),FALSE)","v":{"$error":"#N/A"}}]
[{"$nulls":4},{"$f":"VLOOKUP(C65,'Risk Assessment'!$A$4:$F$10,MATCH(D65,'Risk Assessment'!$A$4:$F$4,0),FALSE)","v":{"$error":"#N/A"}},{"$nulls":3},{"$f":"VLOOKUP(G65,'Risk Assessment'!$A$4:$F$10,MATCH(H65,'Risk Assessment'!$A$4:$F$4,0),FALSE)","v":{"$error":"#N/A"}}]
[{"$nulls":4},{"$f":"VLOOKUP(C66,'Risk Assessment'!$A$4:$F$10,MATCH(D66,'Risk Assessment'!$A$4:$F$4,0),FALSE)","v":{"$error":"#N/A"}},{"$nulls":3},{"$f":"VLOOKUP(G66,'Risk Assessment'!$A$4:$F$10,MATCH(H66,'Risk Assessment'!$A$4:$F$4,0),FALSE)","v":{"$error":"#N/A"}}]
[{"$nulls":4},{"$f":"VLOOKUP(C67,'Risk Assessment'!$A$4:$F$10,MATCH(D67,'Risk Assessment'!$A$4:$F$4,0),FALSE)","v":{"$error":"#N/A"}},{"$nulls":3},{"$f":"VLOOKUP(G67,'Risk Assessment'!$A$4:$F$10,MATCH(H67,'Risk Assessment'!$A$4:$F$4,0),FALSE)","v":{"$error":"#N/A"}}]
[{"$nulls":4},{"$f":"VLOOKUP(C68,'Risk Assessment'!$A$4:$F$10,MATCH(D68,'Risk Assessment'!$A$4:$F$4,0),FALSE)","v":{"$error":"#N/A"}},{"$nulls":3},{"$f":"VLOOKUP(G68,'Risk Assessment'!$A$4:$F$10,MATCH(H68,'Risk Assessment'!$A$4:$F$4,0),FALSE)","v":{"$error":"#N/A"}}]
[{"$nulls":4},{"$f":"VLOOKUP(C69,'Risk Assessment'!$A$4:$F$10,MATCH(D69,'Risk Assessment'!$A$4:$F$4,0),FALSE)","v":{"$error":"#N/A"}},{"$nulls":3},{"$f":"VLOOKUP(G69,'Risk Assessment'!$A$4:$F$10,MATCH(H69,'Risk Assessment'!$A$4:$F$4,0),FALSE)","v":{"$error":"#N/A"}}]
[{"$nulls":4},{"$f":"VLOOKUP(C70,'Risk Assessment'!$A$4:$F$10,MATCH(D70,'Risk Assessment'!$A$4:$F$4,0),FALSE)","v":{"$error":"#N/A"}},{"$nulls":3},{"$f":"VLOOKUP(G70,'Risk Assessment'!$A$4:$F$10,MATCH(H70,'Risk Assessment'!$A$4:$F$4,0),FALSE)","v":{"$error":"#N/A"}}]
[{"$nulls":4},{"$f":"VLOOKUP(C71,'Risk Assessment'!$A$4:$F$10,MATCH(D71,'Risk Assessment'!$A$4:$F$4,0),FALSE)","v":{"$error":"#N/A"}},{"$nulls":3},{"$f":"VLOOKUP(G71,'Risk Assessment'!$A$4:$F$10,MATCH(H71,'Risk Assessment'!$A$4:$F$4,0),FALSE)","v":{"$error":"#N/A"}}]
[{"$nulls":4},{"$f":"VLOOKUP(C72,'Risk Assessment'!$A$4:$F$10,MATCH(D72,'Risk Assessment'!$A$4:$F$4,0),FALSE)","v":{"$error":"#N/A"}},{"$nulls":3},{"$f":"VLOOKUP(G72,'Risk Assessment'!$A$4:$F$10,MATCH(H72,'Risk Assessment'!$A$4:$F$4,0),FALSE)","v":{"$error":"#N/A"}}]
[{"$nulls":4},{"$f":"VLOOKUP(C73,'Risk Assessment'!$A$4:$F$10,MATCH(D73,'Risk Assessment'!$A$4:$F$4,0),FALSE)","v":{"$error":"#N/A"}},{"$nulls":3},{"$f":"VLOOKUP(G73,'Risk Assessment'!$A$4:$F$10,MATCH(H73,'Risk Assessment'!$A$4:$F$4,0),FALSE)","v":{"$error":"#N/A"}}]
[{"$nulls":4},{"$f":"VLOOKUP(C74,'Risk Assessment'!$A$4:$F$10,MATCH(D74,'Risk Assessment'!$A$4:$F$4,0),FALSE)","v":{"$error":"#N/A"}},{"$nulls":3},{"$f":"VLOOKUP(G74,'Risk Assessment'!$A$4:$F$10,MATCH(H74,'Risk Assessment'!$A$4:$F$4,0),FALSE)","v":{"$error":"#N/A"}}]
[{"$nulls":4},{"$f":"VLOOKUP(C75,'Risk Assessment'!$A$4:$F$10,MATCH(D75,'Risk Assessment'!$A$4:$F$4,0),FALSE)","v":{"$error":"#N/A"}},{"$nulls":3},{"$f":"VLOOKUP(G75,'Risk Assessment'!$A$4:$F$10,MATCH(H75,'Risk Assessment'!$A$4:$F$4,0),FALSE)","v":{"$error":"#N/A"}}]
[{"$nulls":4},{"$f":"VLOOKUP(C76,'Risk Assessment'!$A$4:$F$10,MATCH(D76,'Risk Assessment'!$A$4:$F$4,0),FALSE)","v":{"$error":"#N/A"}},{"$nulls":3},{"$f":"VLOOKUP(G76,'Risk Assessment'!$A$4:$F$10,MATCH(H76,'Risk Assessment'!$A$4:$F$4,0),FALSE)","v":{"$error":"#N/A"}}]
[{"$nulls":4},{"$f":"VLOOKUP(C77,'Risk Assessment'!$A$4:$F$10,MATCH(D77,'Risk Assessment'!$A$4:$F$4,0),FALSE)","v":{"$error":"#N/A"}},{"$nulls":3},{"$f":"VLOOKUP(G77,'Risk Assessment'!$A$4:$F$10,MATCH(H77,'Risk Assessment'!$A$4:$F$4,0),FALSE)","v":{"$error":"#N/A"}}]

{"sheet":"Fire pit","index":19,"n_rows":77,"n_cols":9,"rows_kept":77}
{"$rows_empty":9}
[" HAZARD and RISK REGISTER ",null," WCC Practical Activities"]
["Refer to Hazard/Risk Management Procedure"]
[]
["Developed by: Matthew Smith Date: 25 May 2022."]
[" Approved by:  Cody Blackler Date: 11 August 2022 "]
["Reviewed by: Cody Blackler and Matthew Smith  Date: 11 August 2022"]
[]
["(1) Identify all hazards, then determine a risk rating."]
["(2) Eliminate the risk. If not reasonably practicable then"]
["(3) Minimise the risk as far as reasonably practicable."]
["(4) Reassess and determine the residual risk"]
[]
["Where or what task?","Hazard and Harm?","Likelihood \n(Choose from drop list in cell)","Consequence \n(Choose from drop list in cell)","Rating","Action required to Eliminate (E) or Minimise (M). \n (controls, administration controls, personal protective equipment.)","Revised Likelihood","Revised Consequence","Residual Rating"]
["All Tasks","Burns ","Unlikely","Extreme",{"$f":"VLOOKUP(C23,'Risk Assessment'!$A$4:$F$10,MATCH(D23,'Risk Assessment'!$A$4:$F$4,0),FALSE)","v":10},"M: 1:10 ratio (adult/leader:children)minimum\nM: All users are briefed about behavioural expectations and consequences.\nM: Loose clothing not to be worn around fire hair to be tied back ; Users advised to wear non flammable clothing ","Highly unlikely (rare)","Extreme",{"$f":"VLOOKUP(G23,'Risk Assessment'!$A$4:$F$10,MATCH(H23,'Risk Assessment'!$A$4:$F$4,0),FALSE)","v":5}]
["All Tasks","injury from sticks","Very likely","Significant",{"$f":"VLOOKUP(C24,'Risk Assessment'!$A$4:$F$10,MATCH(D24,'Risk Assessment'!$A$4:$F$4,0),FALSE)","v":15},"M: 1:10 ratio (adult/leader:children)minimum","Unlikely","Significant",{"$f":"VLOOKUP(G24,'Risk Assessment'!$A$4:$F$10,MATCH(H24,'Risk Assessment'!$A$4:$F$4,0),FALSE)","v":6}]
["All Tasks","out of control fire ","Moderate","Extreme",{"$f":"VLOOKUP(C25,'Risk Assessment'!$A$4:$F$10,MATCH(D25,'Risk Assessment'!$A$4:$F$4,0),FALSE)","v":15},"M: strategic planting and garden maintenance\nM: water source close by\nM: paved fire break around pit\nM: users briefed on whether it is suitable to use firepit at that time\nM: fire to be kept manageable by adults/leaders\n","Highly unlikely (rare)","Extreme",{"$f":"VLOOKUP(G25,'Risk Assessment'!$A$4:$F$10,MATCH(H25,'Risk Assessment'!$A$4:$F$4,0),FALSE)","v":5}]
["All Tasks","exposure","Likely","Extreme",{"$f":"VLOOKUP(C26,'Risk Assessment'!$A$4:$F$10,MATCH(D26,'Risk Assessment'!$A$4:$F$4,0),FALSE)","v":20},"M: Staff to recognise signs and symptoms of exposure illnesses (Heatstroke, Hypothermia, Hyperthermia and heat exhaustion)\nM: Advise clients of appropriate clothing for the activity and weather\nE: activity to be closed when exposure risk can not be effectivly managed (either through lack of appropriate client clothing or continually deteriorating weather. Note staff are expected to carry apropriate clothing for work in all conditions)","Highly unlikely (rare)","Extreme",{"$f":"VLOOKUP(G26,'Risk Assessment'!$A$4:$F$10,MATCH(H26,'Risk Assessment'!$A$4:$F$4,0),FALSE)","v":5}]
[{"$nulls":4},{"$f":"VLOOKUP(C27,'Risk Assessment'!$A$4:$F$10,MATCH(D27,'Risk Assessment'!$A$4:$F$4,0),FALSE)","v":{"$error":"#N/A"}},{"$nulls":3},{"$f":"VLOOKUP(G27,'Risk Assessment'!$A$4:$F$10,MATCH(H27,'Risk Assessment'!$A$4:$F$4,0),FALSE)","v":{"$error":"#N/A"}}]
[{"$nulls":4},{"$f":"VLOOKUP(C28,'Risk Assessment'!$A$4:$F$10,MATCH(D28,'Risk Assessment'!$A$4:$F$4,0),FALSE)","v":{"$error":"#N/A"}},{"$nulls":3},{"$f":"VLOOKUP(G28,'Risk Assessment'!$A$4:$F$10,MATCH(H28,'Risk Assessment'!$A$4:$F$4,0),FALSE)","v":{"$error":"#N/A"}}]
[{"$nulls":4},{"$f":"VLOOKUP(C29,'Risk Assessment'!$A$4:$F$10,MATCH(D29,'Risk Assessment'!$A$4:$F$4,0),FALSE)","v":{"$error":"#N/A"}},{"$nulls":3},{"$f":"VLOOKUP(G29,'Risk Assessment'!$A$4:$F$10,MATCH(H29,'Risk Assessment'!$A$4:$F$4,0),FALSE)","v":{"$error":"#N/A"}}]
[{"$nulls":4},{"$f":"VLOOKUP(C30,'Risk Assessment'!$A$4:$F$10,MATCH(D30,'Risk Assessment'!$A$4:$F$4,0),FALSE)","v":{"$error":"#N/A"}},{"$nulls":3},{"$f":"VLOOKUP(G30,'Risk Assessment'!$A$4:$F$10,MATCH(H30,'Risk Assessment'!$A$4:$F$4,0),FALSE)","v":{"$error":"#N/A"}}]
[{"$nulls":4},{"$f":"VLOOKUP(C31,'Risk Assessment'!$A$4:$F$10,MATCH(D31,'Risk Assessment'!$A$4:$F$4,0),FALSE)","v":{"$error":"#N/A"}},{"$nulls":3},{"$f":"VLOOKUP(G31,'Risk Assessment'!$A$4:$F$10,MATCH(H31,'Risk Assessment'!$A$4:$F$4,0),FALSE)","v":{"$error":"#N/A"}}]
[{"$nulls":4},{"$f":"VLOOKUP(C32,'Risk Assessment'!$A$4:$F$10,MATCH(D32,'Risk Assessment'!$A$4:$F$4,0),FALSE)","v":{"$error":"#N/A"}},{"$nulls":3},{"$f":"VLOOKUP(G32,'Risk Assessment'!$A$4:$F$10,MATCH(H32,'Risk Assessment'!$A$4:$F$4,0),FALSE)","v":{"$error":"#N/A"}}]
[{"$nulls":4},{"$f":"VLOOKUP(C33,'Risk Assessment'!$A$4:$F$10,MATCH(D33,'Risk Assessment'!$A$4:$F$4,0),FALSE)","v":{"$error":"#N/A"}},{"$nulls":3},{"$f":"VLOOKUP(G33,'Risk Assessment'!$A$4:$F$10,MATCH(H33,'Risk Assessment'!$A$4:$F$4,0),FALSE)","v":{"$error":"#N/A"}}]
[{"$nulls":4},{"$f":"VLOOKUP(C34,'Risk Assessment'!$A$4:$F$10,MATCH(D34,'Risk Assessment'!$A$4:$F$4,0),FALSE)","v":{"$error":"#N/A"}},{"$nulls":3},{"$f":"VLOOKUP(G34,'Risk Assessment'!$A$4:$F$10,MATCH(H34,'Risk Assessment'!$A$4:$F$4,0),FALSE)","v":{"$error":"#N/A"}}]
[{"$nulls":4},{"$f":"VLOOKUP(C35,'Risk Assessment'!$A$4:$F$10,MATCH(D35,'Risk Assessment'!$A$4:$F$4,0),FALSE)","v":{"$error":"#N/A"}},{"$nulls":3},{"$f":"VLOOKUP(G35,'Risk Assessment'!$A$4:$F$10,MATCH(H35,'Risk Assessment'!$A$4:$F$4,0),FALSE)","v":{"$error":"#N/A"}}]
[{"$nulls":4},{"$f":"VLOOKUP(C36,'Risk Assessment'!$A$4:$F$10,MATCH(D36,'Risk Assessment'!$A$4:$F$4,0),FALSE)","v":{"$error":"#N/A"}},{"$nulls":3},{"$f":"VLOOKUP(G36,'Risk Assessment'!$A$4:$F$10,MATCH(H36,'Risk Assessment'!$A$4:$F$4,0),FALSE)","v":{"$error":"#N/A"}}]
[{"$nulls":4},{"$f":"VLOOKUP(C37,'Risk Assessment'!$A$4:$F$10,MATCH(D37,'Risk Assessment'!$A$4:$F$4,0),FALSE)","v":{"$error":"#N/A"}},{"$nulls":3},{"$f":"VLOOKUP(G37,'Risk Assessment'!$A$4:$F$10,MATCH(H37,'Risk Assessment'!$A$4:$F$4,0),FALSE)","v":{"$error":"#N/A"}}]
[{"$nulls":4},{"$f":"VLOOKUP(C38,'Risk Assessment'!$A$4:$F$10,MATCH(D38,'Risk Assessment'!$A$4:$F$4,0),FALSE)","v":{"$error":"#N/A"}},{"$nulls":3},{"$f":"VLOOKUP(G38,'Risk Assessment'!$A$4:$F$10,MATCH(H38,'Risk Assessment'!$A$4:$F$4,0),FALSE)","v":{"$error":"#N/A"}}]
[{"$nulls":4},{"$f":"VLOOKUP(C39,'Risk Assessment'!$A$4:$F$10,MATCH(D39,'Risk Assessment'!$A$4:$F$4,0),FALSE)","v":{"$error":"#N/A"}},{"$nulls":3},{"$f":"VLOOKUP(G39,'Risk Assessment'!$A$4:$F$10,MATCH(H39,'Risk Assessment'!$A$4:$F$4,0),FALSE)","v":{"$error":"#N/A"}}]
[{"$nulls":4},{"$f":"VLOOKUP(C40,'Risk Assessment'!$A$4:$F$10,MATCH(D40,'Risk Assessment'!$A$4:$F$4,0),FALSE)","v":{"$error":"#N/A"}},{"$nulls":3},{"$f":"VLOOKUP(G40,'Risk Assessment'!$A$4:$F$10,MATCH(H40,'Risk Assessment'!$A$4:$F$4,0),FALSE)","v":{"$error":"#N/A"}}]
[{"$nulls":4},{"$f":"VLOOKUP(C41,'Risk Assessment'!$A$4:$F$10,MATCH(D41,'Risk Assessment'!$A$4:$F$4,0),FALSE)","v":{"$error":"#N/A"}},{"$nulls":3},{"$f":"VLOOKUP(G41,'Risk Assessment'!$A$4:$F$10,MATCH(H41,'Risk Assessment'!$A$4:$F$4,0),FALSE)","v":{"$error":"#N/A"}}]
[{"$nulls":4},{"$f":"VLOOKUP(C42,'Risk Assessment'!$A$4:$F$10,MATCH(D42,'Risk Assessment'!$A$4:$F$4,0),FALSE)","v":{"$error":"#N/A"}},{"$nulls":3},{"$f":"VLOOKUP(G42,'Risk Assessment'!$A$4:$F$10,MATCH(H42,'Risk Assessment'!$A$4:$F$4,0),FALSE)","v":{"$error":"#N/A"}}]
[{"$nulls":4},{"$f":"VLOOKUP(C43,'Risk Assessment'!$A$4:$F$10,MATCH(D43,'Risk Assessment'!$A$4:$F$4,0),FALSE)","v":{"$error":"#N/A"}},{"$nulls":3},{"$f":"VLOOKUP(G43,'Risk Assessment'!$A$4:$F$10,MATCH(H43,'Risk Assessment'!$A$4:$F$4,0),FALSE)","v":{"$error":"#N/A"}}]
[{"$nulls":4},{"$f":"VLOOKUP(C44,'Risk Assessment'!$A$4:$F$10,MATCH(D44,'Risk Assessment'!$A$4:$F$4,0),FALSE)","v":{"$error":"#N/A"}},{"$nulls":3},{"$f":"VLOOKUP(G44,'Risk Assessment'!$A$4:$F$10,MATCH(H44,'Risk Assessment'!$A$4:$F$4,0),FALSE)","v":{"$error":"#N/A"}}]
[{"$nulls":4},{"$f":"VLOOKUP(C45,'Risk Assessment'!$A$4:$F$10,MATCH(D45,'Risk Assessment'!$A$4:$F$4,0),FALSE)","v":{"$error":"#N/A"}},{"$nulls":3},{"$f":"VLOOKUP(G45,'Risk Assessment'!$A$4:$F$10,MATCH(H45,'Risk Assessment'!$A$4:$F$4,0),FALSE)","v":{"$error":"#N/A"}}]
[{"$nulls":4},{"$f":"VLOOKUP(C46,'Risk Assessment'!$A$4:$F$10,MATCH(D46,'Risk Assessment'!$A$4:$F$4,0),FALSE)","v":{"$error":"#N/A"}},{"$nulls":3},{"$f":"VLOOKUP(G46,'Risk Assessment'!$A$4:$F$10,MATCH(H46,'Risk Assessment'!$A$4:$F$4,0),FALSE)","v":{"$error":"#N/A"}}]
[{"$nulls":4},{"$f":"VLOOKUP(C47,'Risk Assessment'!$A$4:$F$10,MATCH(D47,'Risk Assessment'!$A$4:$F$4,0),FALSE)","v":{"$error":"#N/A"}},{"$nulls":3},{"$f":"VLOOKUP(G47,'Risk Assessment'!$A$4:$F$10,MATCH(H47,'Risk Assessment'!$A$4:$F$4,0),FALSE)","v":{"$error":"#N/A"}}]
[{"$nulls":4},{"$f":"VLOOKUP(C48,'Risk Assessment'!$A$4:$F$10,MATCH(D48,'Risk Assessment'!$A$4:$F$4,0),FALSE)","v":{"$error":"#N/A"}},{"$nulls":3},{"$f":"VLOOKUP(G48,'Risk Assessment'!$A$4:$F$10,MATCH(H48,'Risk Assessment'!$A$4:$F$4,0),FALSE)","v":{"$error":"#N/A"}}]
[{"$nulls":4},{"$f":"VLOOKUP(C49,'Risk Assessment'!$A$4:$F$10,MATCH(D49,'Risk Assessment'!$A$4:$F$4,0),FALSE)","v":{"$error":"#N/A"}},{"$nulls":3},{"$f":"VLOOKUP(G49,'Risk Assessment'!$A$4:$F$10,MATCH(H49,'Risk Assessment'!$A$4:$F$4,0),FALSE)","v":{"$error":"#N/A"}}]
[{"$nulls":4},{"$f":"VLOOKUP(C50,'Risk Assessment'!$A$4:$F$10,MATCH(D50,'Risk Assessment'!$A$4:$F$4,0),FALSE)","v":{"$error":"#N/A"}},{"$nulls":3},{"$f":"VLOOKUP(G50,'Risk Assessment'!$A$4:$F$10,MATCH(H50,'Risk Assessment'!$A$4:$F$4,0),FALSE)","v":{"$error":"#N/A"}}]
[{"$nulls":4},{"$f":"VLOOKUP(C51,'Risk Assessment'!$A$4:$F$10,MATCH(D51,'Risk Assessment'!$A$4:$F$4,0),FALSE)","v":{"$error":"#N/A"}},{"$nulls":3},{"$f":"VLOOKUP(G51,'Risk Assessment'!$A$4:$F$10,MATCH(H51,'Risk Assessment'!$A$4:$F$4,0),FALSE)","v":{"$error":"#N/A"}}]
[{"$nulls":4},{"$f":"VLOOKUP(C52,'Risk Assessment'!$A$4:$F$10,MATCH(D52,'Risk Assessment'!$A$4:$F$4,0),FALSE)","v":{"$error":"#N/A"}},{"$nulls":3},{"$f":"VLOOKUP(G52,'Risk Assessment'!$A$4:$F$10,MATCH(H52,'Risk Assessment'!$A$4:$F$4,0),FALSE)","v":{"$error":"#N/A"}}]
[{"$nulls":4},{"$f":"VLOOKUP(C53,'Risk Assessment'!$A$4:$F$10,MATCH(D53,'Risk Assessment'!$A$4:$F$4,0),FALSE)","v":{"$error":"#N/A"}},{"$nulls":3},{"$f":"VLOOKUP(G53,'Risk Assessment'!$A$4:$F$10,MATCH(H53,'Risk Assessment'!$A$4:$F$4,0),FALSE)","v":{"$error":"#N/A"}}]
[{"$nulls":4},{"$f":"VLOOKUP(C54,'Risk Assessment'!$A$4:$F$10,MATCH(D54,'Risk Assessment'!$A$4:$F$4,0),FALSE)","v":{"$error":"#N/A"}},{"$nulls":3},{"$f":"VLOOKUP(G54,'Risk Assessment'!$A$4:$F$10,MATCH(H54,'Risk Assessment'!$A$4:$F$4,0),FALSE)","v":{"$error":"#N/A"}}]
[{"$nulls":4},{"$f":"VLOOKUP(C55,'Risk Assessment'!$A$4:$F$10,MATCH(D55,'Risk Assessment'!$A$4:$F$4,0),FALSE)","v":{"$error":"#N/A"}},{"$nulls":3},{"$f":"VLOOKUP(G55,'Risk Assessment'!$A$4:$F$10,MATCH(H55,'Risk Assessment'!$A$4:$F$4,0),FALSE)","v":{"$error":"#N/A"}}]
[{"$nulls":4},{"$f":"VLOOKUP(C56,'Risk Assessment'!$A$4:$F$10,MATCH(D56,'Risk Assessment'!$A$4:$F$4,0),FALSE)","v":{"$error":"#N/A"}},{"$nulls":3},{"$f":"VLOOKUP(G56,'Risk Assessment'!$A$4:$F$10,MATCH(H56,'Risk Assessment'!$A$4:$F$4,0),FALSE)","v":{"$error":"#N/A"}}]
[{"$nulls":4},{"$f":"VLOOKUP(C57,'Risk Assessment'!$A$4:$F$10,MATCH(D57,'Risk Assessment'!$A$4:$F$4,0),FALSE)","v":{"$error":"#N/A"}},{"$nulls":3},{"$f":"VLOOKUP(G57,'Risk Assessment'!$A$4:$F$10,MATCH(H57,'Risk Assessment'!$A$4:$F$4,0),FALSE)","v":{"$error":"#N/A"}}]
[{"$nulls":4},{"$f":"VLOOKUP(C58,'Risk Assessment'!$A$4:$F$10,MATCH(D58,'Risk Assessment'!$A$4:$F$4,0),FALSE)","v":{"$error":"#N/A"}},{"$nulls":3},{"$f":"VLOOKUP(G58,'Risk Assessment'!$A$4:$F$10,MATCH(H58,'Risk Assessment'!$A$4:$F$4,0),FALSE)","v":{"$error":"#N/A"}}]
[{"$nulls":4},{"$f":"VLOOKUP(C59,'Risk Assessment'!$A$4:$F$10,MATCH(D59,'Risk Assessment'!$A$4:$F$4,0),FALSE)","v":{"$error":"#N/A"}},{"$nulls":3},{"$f":"VLOOKUP(G59,'Risk Assessment'!$A$4:$F$10,MATCH(H59,'Risk Assessment'!$A$4:$F$4,0),FALSE)","v":{"$error":"#N/A"}}]
[{"$nulls":4},{"$f":"VLOOKUP(C60,'Risk Assessment'!$A$4:$F$10,MATCH(D60,'Risk Assessment'!$A$4:$F$4,0),FALSE)","v":{"$error":"#N/A"}},{"$nulls":3},{"$f":"VLOOKUP(G60,'Risk Assessment'!$A$4:$F$10,MATCH(H60,'Risk Assessment'!$A$4:$F$4,0),FALSE)","v":{"$error":"#N/A"}}]
[{"$nulls":4},{"$f":"VLOOKUP(C61,'Risk Assessment'!$A$4:$F$10,MATCH(D61,'Risk Assessment'!$A$4:$F$4,0),FALSE)","v":{"$error":"#N/A"}},{"$nulls":3},{"$f":"VLOOKUP(G61,'Risk Assessment'!$A$4:$F$10,MATCH(H61,'Risk Assessment'!$A$4:$F$4,0),FALSE)","v":{"$error":"#N/A"}}]
[{"$nulls":4},{"$f":"VLOOKUP(C62,'Risk Assessment'!$A$4:$F$10,MATCH(D62,'Risk Assessment'!$A$4:$F$4,0),FALSE)","v":{"$error":"#N/A"}},{"$nulls":3},{"$f":"VLOOKUP(G62,'Risk Assessment'!$A$4:$F$10,MATCH(H62,'Risk Assessment'!$A$4:$F$4,0),FALSE)","v":{"$error":"#N/A"}}]
[{"$nulls":4},{"$f":"VLOOKUP(C63,'Risk Assessment'!$A$4:$F$10,MATCH(D63,'Risk Assessment'!$A$4:$F$4,0),FALSE)","v":{"$error":"#N/A"}},{"$nulls":3},{"$f":"VLOOKUP(G63,'Risk Assessment'!$A$4:$F$10,MATCH(H63,'Risk Assessment'!$A$4:$F$4,0),FALSE)","v":{"$error":"#N/A"}}]
[{"$nulls":4},{"$f":"VLOOKUP(C64,'Risk Assessment'!$A$4:$F$10,MATCH(D64,'Risk Assessment'!$A$4:$F$4,0),FALSE)","v":{"$error":"#N/A"}},{"$nulls":3},{"$f":"VLOOKUP(G64,'Risk Assessment'!$A$4:$F$10,MATCH(H64,'Risk Assessment'!$A$4:$F$4,0),FALSE)","v":{"$error":"#N/A"}}]
[{"$nulls":4},{"$f":"VLOOKUP(C65,'Risk Assessment'!$A$4:$F$10,MATCH(D65,'Risk Assessment'!$A$4:$F$4,0),FALSE)","v":{"$error":"#N/A"}},{"$nulls":3},{"$f":"VLOOKUP(G65,'Risk Assessment'!$A$4:$F$10,MATCH(H65,'Risk Assessment'!$A$4:$F$4,0),FALSE)","v":{"$error":"#N/A"}}]
[{"$nulls":4},{"$f":"VLOOKUP(C66,'Risk Assessment'!$A$4:$F$10,MATCH(D66,'Risk Assessment'!$A$4:$F$4,0),FALSE)","v":{"$error":"#N/A"}},{"$nulls":3},{"$f":"VLOOKUP(G66,'Risk Assessment'!$A$4:$F$10,MATCH(H66,'Risk Assessment'!$A$4:$F$4,0),FALSE)","v":{"$error":"#N/A"}}]
[{"$nulls":4},{"$f":"VLOOKUP(C67,'Risk Assessment'!$A$4:$F$10,MATCH(D67,'Risk Assessment'!$A$4:$F$4,0),FALSE)","v":{"$error":"#N/A"}},{"$nulls":3},{"$f":"VLOOKUP(G67,'Risk Assessment'!$A$4:$F$10,MATCH(H67,'Risk Assessment'!$A$4:$F$4,0),FALSE)","v":{"$error":"#N/A"}}]
[{"$nulls":4},{"$f":"VLOOKUP(C68,'Risk Assessment'!$A$4:$F$10,MATCH(D68,'Risk Assessment'!$A$4:$F$4,0),FALSE)","v":{"$error":"#N/A"}},{"$nulls":3},{"$f":"VLOOKUP(G68,'Risk Assessment'!$A$4:$F$10,MATCH(H68,'Risk Assessment'!$A$4:$F$4,0),FALSE)","v":{"$error":"#N/A"}}]
[{"$nulls":4},{"$f":"VLOOKUP(C69,'Risk Assessment'!$A$4:$F$10,MATCH(D69,'Risk Assessment'!$A$4:$F$4,0),FALSE)","v":{"$error":"#N/A"}},{"$nulls":3},{"$f":"VLOOKUP(G69,'Risk Assessment'!$A$4:$F$10,MATCH(H69,'Risk Assessment'!$A$4:$F$4,0),FALSE)","v":{"$error":"#N/A"}}]
[{"$nulls":4},{"$f":"VLOOKUP(C70,'Risk Assessment'!$A$4:$F$10,MATCH(D70,'Risk Assessment'!$A$4:$F$4,0),FALSE)","v":{"$error":"#N/A"}},{"$nulls":3},{"$f":"VLOOKUP(G70,'Risk Assessment'!$A$4:$F$10,MATCH(H70,'Risk Assessment'!$A$4:$F$4,0),FALSE)","v":{"$error":"#N/A"}}]
[{"$nulls":4},{"$f":"VLOOKUP(C71,'Risk Assessment'!$A$4:$F$10,MATCH(D71,'Risk Assessment'!$A$4:$F$4,0),FALSE)","v":{"$error":"#N/A"}},{"$nulls":3},{"$f":"VLOOKUP(G71,'Risk Assessment'!$A$4:$F$10,MATCH(H71,'Risk Assessment'!$A$4:$F$4,0),FALSE)","v":{"$error":"#N/A"}}]
[{"$nulls":4},{"$f":"VLOOKUP(C72,'Risk Assessment'!$A$4:$F$10,MATCH(D72,'Risk Assessment'!$A$4:$F$4,0),FALSE)","v":{"$error":"#N/A"}},{"$nulls":3},{"$f":"VLOOKUP(G72,'Risk Assessment'!$A$4:$F$10,MATCH(H72,'Risk Assessment'!$A$4:$F$4,0),FALSE)","v":{"$error":"#N/A"}}]
[{"$nulls":4},{"$f":"VLOOKUP(C73,'Risk Assessment'!$A$4:$F$10,MATCH(D73,'Risk Assessment'!$A$4:$F$4,0),FALSE)","v":{"$error":"#N/A"}},{"$nulls":3},{"$f":"VLOOKUP(G73,'Risk Assessment'!$A$4:$F$10,MATCH(H73,'Risk Assessment'!$A$4:$F$4,0),FALSE)","v":{"$error":"#N/A"}}]
[{"$nulls":4},{"$f":"VLOOKUP(C74,'Risk Assessment'!$A$4:$F$10,MATCH(D74,'Risk Assessment'!$A$4:$F$4,0),FALSE)","v":{"$error":"#N/A"}},{"$nulls":3},{"$f":"VLOOKUP(G74,'Risk Assessment'!$A$4:$F$10,MATCH(H74,'Risk Assessment'!$A$4:$F$4,0),FALSE)","v":{"$error":"#N/A"}}]
[{"$nulls":4},{"$f":"VLOOKUP(C75,'Risk Assessment'!$A$4:$F$10,MATCH(D75,'Risk Assessment'!$A$4:$F$4,0),FALSE)","v":{"$error":"#N/A"}},{"$nulls":3},{"$f":"VLOOKUP(G75,'Risk Assessment'!$A$4:$F$10,MATCH(H75,'Risk Assessment'!$A$4:$F$4,0),FALSE)","v":{"$error":"#N/A"}}]
[{"$nulls":4},{"$f":"VLOOKUP(C76,'Risk Assessment'!$A$4:$F$10,MATCH(D76,'Risk Assessment'!$A$4:$F$4,0),FALSE)","v":{"$error":"#N/A"}},{"$nulls":3},{"$f":"VLOOKUP(G76,'Risk Assessment'!$A$4:$F$10,MATCH(H76,'Risk Assessment'!$A$4:$F$4,0),FALSE)","v":{"$error":"#N/A"}}]
[{"$nulls":4},{"$f":"VLOOKUP(C77,'Risk Assessment'!$A$4:$F$10,MATCH(D77,'Risk Assessment'!$A$4:$F$4,0),FALSE)","v":{"$error":"#N/A"}},{"$nulls":3},{"$f":"VLOOKUP(G77,'Risk Assessment'!$A$4:$F$10,MATCH(H77,'Risk Assessment'!$A$4:$F$4,0),FALSE)","v":{"$error":"#N/A"}}]

{"sheet":"Gaga Dodgeball","index":20,"n_rows":77,"n_cols":9,"rows_kept":77}
{"$rows_empty":9}
[" HAZARD and RISK REGISTER ",null," WCC Practical Activities"]
["Refer to Hazard/Risk Management Procedure"]
[]
["Developed by: Matthew Smith Date: 25 May 2022."]
[" Approved by:  Cody Blackler   Date: 11 August 2022"]
["Reviewed by: Cody Blackler and Matthew Smith  Date: 11 August 2022"]
[]
["(1) Identify all hazards, then determine a risk rating."]
["(2) Eliminate the risk. If not reasonably practicable then"]
["(3) Minimise the risk as far as reasonably practicable."]
["(4) Reassess and determine the residual risk"]
[]
["Where or what task?","Hazard and Harm?","Likelihood \n(Choose from drop list in cell)","Consequence \n(Choose from drop list in cell)","Rating","Action required to Eliminate (E) or Minimise (M). \n (controls, administration controls, personal protective equipment.)","Revised Likelihood","Revised Consequence","Residual Rating"]
["Playing ","injury from colliding with other players","Likely","Moderate",{"$f":"VLOOKUP(C23,'Risk Assessment'!$A$4:$F$10,MATCH(D23,'Risk Assessment'!$A$4:$F$4,0),FALSE)","v":8},"M: users take care while playing","Moderate","Moderate",{"$f":"VLOOKUP(G23,'Risk Assessment'!$A$4:$F$10,MATCH(H23,'Risk Assessment'!$A$4:$F$4,0),FALSE)","v":6}]
["Playing ","injury from colliding with wall","Likely","Moderate",{"$f":"VLOOKUP(C24,'Risk Assessment'!$A$4:$F$10,MATCH(D24,'Risk Assessment'!$A$4:$F$4,0),FALSE)","v":8},"M: users take care while playing","Moderate","Moderate",{"$f":"VLOOKUP(G24,'Risk Assessment'!$A$4:$F$10,MATCH(H24,'Risk Assessment'!$A$4:$F$4,0),FALSE)","v":6}]
["Playing, Spectating ","sand in eyes","Very likely","Moderate",{"$f":"VLOOKUP(C25,'Risk Assessment'!$A$4:$F$10,MATCH(D25,'Risk Assessment'!$A$4:$F$4,0),FALSE)","v":10},"M: users advised to take care while participating","Moderate","Moderate",{"$f":"VLOOKUP(G25,'Risk Assessment'!$A$4:$F$10,MATCH(H25,'Risk Assessment'!$A$4:$F$4,0),FALSE)","v":6}]
["Playing, Spectating ","Dehydration","Moderate","Significant",{"$f":"VLOOKUP(C26,'Risk Assessment'!$A$4:$F$10,MATCH(D26,'Risk Assessment'!$A$4:$F$4,0),FALSE)","v":9},"M: users encouraged to stay hydrated in hot weather\nM: staff knowledgable in dehydration management","Unlikely","Significant",{"$f":"VLOOKUP(G26,'Risk Assessment'!$A$4:$F$10,MATCH(H26,'Risk Assessment'!$A$4:$F$4,0),FALSE)","v":6}]
["Playing, Spectating  ","Sunburn","Very likely","Moderate",{"$f":"VLOOKUP(C27,'Risk Assessment'!$A$4:$F$10,MATCH(D27,'Risk Assessment'!$A$4:$F$4,0),FALSE)","v":10},"M: Sunsmart principles applied.\nM: Advise clients to wear sunhats and apply sunblock","Unlikely","Moderate",{"$f":"VLOOKUP(G27,'Risk Assessment'!$A$4:$F$10,MATCH(H27,'Risk Assessment'!$A$4:$F$4,0),FALSE)","v":4}]
["Playing, Spectating ","Exposure","Unlikely","Extreme",{"$f":"VLOOKUP(C28,'Risk Assessment'!$A$4:$F$10,MATCH(D28,'Risk Assessment'!$A$4:$F$4,0),FALSE)","v":10},"M: Staff to recognise signs and symptoms of exposure illnesses (Heatstroke, Hypothermia, Hyperthermia and heat exhaustion)\nM: Advise clients of appropriate clothing for the activity and weather\nE: activity to be closed when exposure risk can not be effectivly managed (either through lack of appropriate client clothing or continually deteriorating weather. Note staff are expected to carry apropriate clothing for work in all conditions)","Highly unlikely (rare)","Extreme",{"$f":"VLOOKUP(G28,'Risk Assessment'!$A$4:$F$10,MATCH(H28,'Risk Assessment'!$A$4:$F$4,0),FALSE)","v":5}]
[{"$nulls":4},{"$f":"VLOOKUP(C29,'Risk Assessment'!$A$4:$F$10,MATCH(D29,'Risk Assessment'!$A$4:$F$4,0),FALSE)","v":{"$error":"#N/A"}},{"$nulls":3},{"$f":"VLOOKUP(G29,'Risk Assessment'!$A$4:$F$10,MATCH(H29,'Risk Assessment'!$A$4:$F$4,0),FALSE)","v":{"$error":"#N/A"}}]
[{"$nulls":4},{"$f":"VLOOKUP(C30,'Risk Assessment'!$A$4:$F$10,MATCH(D30,'Risk Assessment'!$A$4:$F$4,0),FALSE)","v":{"$error":"#N/A"}},{"$nulls":3},{"$f":"VLOOKUP(G30,'Risk Assessment'!$A$4:$F$10,MATCH(H30,'Risk Assessment'!$A$4:$F$4,0),FALSE)","v":{"$error":"#N/A"}}]
[{"$nulls":4},{"$f":"VLOOKUP(C31,'Risk Assessment'!$A$4:$F$10,MATCH(D31,'Risk Assessment'!$A$4:$F$4,0),FALSE)","v":{"$error":"#N/A"}},{"$nulls":3},{"$f":"VLOOKUP(G31,'Risk Assessment'!$A$4:$F$10,MATCH(H31,'Risk Assessment'!$A$4:$F$4,0),FALSE)","v":{"$error":"#N/A"}}]
[{"$nulls":4},{"$f":"VLOOKUP(C32,'Risk Assessment'!$A$4:$F$10,MATCH(D32,'Risk Assessment'!$A$4:$F$4,0),FALSE)","v":{"$error":"#N/A"}},{"$nulls":3},{"$f":"VLOOKUP(G32,'Risk Assessment'!$A$4:$F$10,MATCH(H32,'Risk Assessment'!$A$4:$F$4,0),FALSE)","v":{"$error":"#N/A"}}]
[{"$nulls":4},{"$f":"VLOOKUP(C33,'Risk Assessment'!$A$4:$F$10,MATCH(D33,'Risk Assessment'!$A$4:$F$4,0),FALSE)","v":{"$error":"#N/A"}},{"$nulls":3},{"$f":"VLOOKUP(G33,'Risk Assessment'!$A$4:$F$10,MATCH(H33,'Risk Assessment'!$A$4:$F$4,0),FALSE)","v":{"$error":"#N/A"}}]
[{"$nulls":4},{"$f":"VLOOKUP(C34,'Risk Assessment'!$A$4:$F$10,MATCH(D34,'Risk Assessment'!$A$4:$F$4,0),FALSE)","v":{"$error":"#N/A"}},{"$nulls":3},{"$f":"VLOOKUP(G34,'Risk Assessment'!$A$4:$F$10,MATCH(H34,'Risk Assessment'!$A$4:$F$4,0),FALSE)","v":{"$error":"#N/A"}}]
[{"$nulls":4},{"$f":"VLOOKUP(C35,'Risk Assessment'!$A$4:$F$10,MATCH(D35,'Risk Assessment'!$A$4:$F$4,0),FALSE)","v":{"$error":"#N/A"}},{"$nulls":3},{"$f":"VLOOKUP(G35,'Risk Assessment'!$A$4:$F$10,MATCH(H35,'Risk Assessment'!$A$4:$F$4,0),FALSE)","v":{"$error":"#N/A"}}]
[{"$nulls":4},{"$f":"VLOOKUP(C36,'Risk Assessment'!$A$4:$F$10,MATCH(D36,'Risk Assessment'!$A$4:$F$4,0),FALSE)","v":{"$error":"#N/A"}},{"$nulls":3},{"$f":"VLOOKUP(G36,'Risk Assessment'!$A$4:$F$10,MATCH(H36,'Risk Assessment'!$A$4:$F$4,0),FALSE)","v":{"$error":"#N/A"}}]
[{"$nulls":4},{"$f":"VLOOKUP(C37,'Risk Assessment'!$A$4:$F$10,MATCH(D37,'Risk Assessment'!$A$4:$F$4,0),FALSE)","v":{"$error":"#N/A"}},{"$nulls":3},{"$f":"VLOOKUP(G37,'Risk Assessment'!$A$4:$F$10,MATCH(H37,'Risk Assessment'!$A$4:$F$4,0),FALSE)","v":{"$error":"#N/A"}}]
[{"$nulls":4},{"$f":"VLOOKUP(C38,'Risk Assessment'!$A$4:$F$10,MATCH(D38,'Risk Assessment'!$A$4:$F$4,0),FALSE)","v":{"$error":"#N/A"}},{"$nulls":3},{"$f":"VLOOKUP(G38,'Risk Assessment'!$A$4:$F$10,MATCH(H38,'Risk Assessment'!$A$4:$F$4,0),FALSE)","v":{"$error":"#N/A"}}]
[{"$nulls":4},{"$f":"VLOOKUP(C39,'Risk Assessment'!$A$4:$F$10,MATCH(D39,'Risk Assessment'!$A$4:$F$4,0),FALSE)","v":{"$error":"#N/A"}},{"$nulls":3},{"$f":"VLOOKUP(G39,'Risk Assessment'!$A$4:$F$10,MATCH(H39,'Risk Assessment'!$A$4:$F$4,0),FALSE)","v":{"$error":"#N/A"}}]
[{"$nulls":4},{"$f":"VLOOKUP(C40,'Risk Assessment'!$A$4:$F$10,MATCH(D40,'Risk Assessment'!$A$4:$F$4,0),FALSE)","v":{"$error":"#N/A"}},{"$nulls":3},{"$f":"VLOOKUP(G40,'Risk Assessment'!$A$4:$F$10,MATCH(H40,'Risk Assessment'!$A$4:$F$4,0),FALSE)","v":{"$error":"#N/A"}}]
[{"$nulls":4},{"$f":"VLOOKUP(C41,'Risk Assessment'!$A$4:$F$10,MATCH(D41,'Risk Assessment'!$A$4:$F$4,0),FALSE)","v":{"$error":"#N/A"}},{"$nulls":3},{"$f":"VLOOKUP(G41,'Risk Assessment'!$A$4:$F$10,MATCH(H41,'Risk Assessment'!$A$4:$F$4,0),FALSE)","v":{"$error":"#N/A"}}]
[{"$nulls":4},{"$f":"VLOOKUP(C42,'Risk Assessment'!$A$4:$F$10,MATCH(D42,'Risk Assessment'!$A$4:$F$4,0),FALSE)","v":{"$error":"#N/A"}},{"$nulls":3},{"$f":"VLOOKUP(G42,'Risk Assessment'!$A$4:$F$10,MATCH(H42,'Risk Assessment'!$A$4:$F$4,0),FALSE)","v":{"$error":"#N/A"}}]
[{"$nulls":4},{"$f":"VLOOKUP(C43,'Risk Assessment'!$A$4:$F$10,MATCH(D43,'Risk Assessment'!$A$4:$F$4,0),FALSE)","v":{"$error":"#N/A"}},{"$nulls":3},{"$f":"VLOOKUP(G43,'Risk Assessment'!$A$4:$F$10,MATCH(H43,'Risk Assessment'!$A$4:$F$4,0),FALSE)","v":{"$error":"#N/A"}}]
[{"$nulls":4},{"$f":"VLOOKUP(C44,'Risk Assessment'!$A$4:$F$10,MATCH(D44,'Risk Assessment'!$A$4:$F$4,0),FALSE)","v":{"$error":"#N/A"}},{"$nulls":3},{"$f":"VLOOKUP(G44,'Risk Assessment'!$A$4:$F$10,MATCH(H44,'Risk Assessment'!$A$4:$F$4,0),FALSE)","v":{"$error":"#N/A"}}]
[{"$nulls":4},{"$f":"VLOOKUP(C45,'Risk Assessment'!$A$4:$F$10,MATCH(D45,'Risk Assessment'!$A$4:$F$4,0),FALSE)","v":{"$error":"#N/A"}},{"$nulls":3},{"$f":"VLOOKUP(G45,'Risk Assessment'!$A$4:$F$10,MATCH(H45,'Risk Assessment'!$A$4:$F$4,0),FALSE)","v":{"$error":"#N/A"}}]
[{"$nulls":4},{"$f":"VLOOKUP(C46,'Risk Assessment'!$A$4:$F$10,MATCH(D46,'Risk Assessment'!$A$4:$F$4,0),FALSE)","v":{"$error":"#N/A"}},{"$nulls":3},{"$f":"VLOOKUP(G46,'Risk Assessment'!$A$4:$F$10,MATCH(H46,'Risk Assessment'!$A$4:$F$4,0),FALSE)","v":{"$error":"#N/A"}}]
[{"$nulls":4},{"$f":"VLOOKUP(C47,'Risk Assessment'!$A$4:$F$10,MATCH(D47,'Risk Assessment'!$A$4:$F$4,0),FALSE)","v":{"$error":"#N/A"}},{"$nulls":3},{"$f":"VLOOKUP(G47,'Risk Assessment'!$A$4:$F$10,MATCH(H47,'Risk Assessment'!$A$4:$F$4,0),FALSE)","v":{"$error":"#N/A"}}]
[{"$nulls":4},{"$f":"VLOOKUP(C48,'Risk Assessment'!$A$4:$F$10,MATCH(D48,'Risk Assessment'!$A$4:$F$4,0),FALSE)","v":{"$error":"#N/A"}},{"$nulls":3},{"$f":"VLOOKUP(G48,'Risk Assessment'!$A$4:$F$10,MATCH(H48,'Risk Assessment'!$A$4:$F$4,0),FALSE)","v":{"$error":"#N/A"}}]
[{"$nulls":4},{"$f":"VLOOKUP(C49,'Risk Assessment'!$A$4:$F$10,MATCH(D49,'Risk Assessment'!$A$4:$F$4,0),FALSE)","v":{"$error":"#N/A"}},{"$nulls":3},{"$f":"VLOOKUP(G49,'Risk Assessment'!$A$4:$F$10,MATCH(H49,'Risk Assessment'!$A$4:$F$4,0),FALSE)","v":{"$error":"#N/A"}}]
[{"$nulls":4},{"$f":"VLOOKUP(C50,'Risk Assessment'!$A$4:$F$10,MATCH(D50,'Risk Assessment'!$A$4:$F$4,0),FALSE)","v":{"$error":"#N/A"}},{"$nulls":3},{"$f":"VLOOKUP(G50,'Risk Assessment'!$A$4:$F$10,MATCH(H50,'Risk Assessment'!$A$4:$F$4,0),FALSE)","v":{"$error":"#N/A"}}]
[{"$nulls":4},{"$f":"VLOOKUP(C51,'Risk Assessment'!$A$4:$F$10,MATCH(D51,'Risk Assessment'!$A$4:$F$4,0),FALSE)","v":{"$error":"#N/A"}},{"$nulls":3},{"$f":"VLOOKUP(G51,'Risk Assessment'!$A$4:$F$10,MATCH(H51,'Risk Assessment'!$A$4:$F$4,0),FALSE)","v":{"$error":"#N/A"}}]
[{"$nulls":4},{"$f":"VLOOKUP(C52,'Risk Assessment'!$A$4:$F$10,MATCH(D52,'Risk Assessment'!$A$4:$F$4,0),FALSE)","v":{"$error":"#N/A"}},{"$nulls":3},{"$f":"VLOOKUP(G52,'Risk Assessment'!$A$4:$F$10,MATCH(H52,'Risk Assessment'!$A$4:$F$4,0),FALSE)","v":{"$error":"#N/A"}}]
[{"$nulls":4},{"$f":"VLOOKUP(C53,'Risk Assessment'!$A$4:$F$10,MATCH(D53,'Risk Assessment'!$A$4:$F$4,0),FALSE)","v":{"$error":"#N/A"}},{"$nulls":3},{"$f":"VLOOKUP(G53,'Risk Assessment'!$A$4:$F$10,MATCH(H53,'Risk Assessment'!$A$4:$F$4,0),FALSE)","v":{"$error":"#N/A"}}]
[{"$nulls":4},{"$f":"VLOOKUP(C54,'Risk Assessment'!$A$4:$F$10,MATCH(D54,'Risk Assessment'!$A$4:$F$4,0),FALSE)","v":{"$error":"#N/A"}},{"$nulls":3},{"$f":"VLOOKUP(G54,'Risk Assessment'!$A$4:$F$10,MATCH(H54,'Risk Assessment'!$A$4:$F$4,0),FALSE)","v":{"$error":"#N/A"}}]
[{"$nulls":4},{"$f":"VLOOKUP(C55,'Risk Assessment'!$A$4:$F$10,MATCH(D55,'Risk Assessment'!$A$4:$F$4,0),FALSE)","v":{"$error":"#N/A"}},{"$nulls":3},{"$f":"VLOOKUP(G55,'Risk Assessment'!$A$4:$F$10,MATCH(H55,'Risk Assessment'!$A$4:$F$4,0),FALSE)","v":{"$error":"#N/A"}}]
[{"$nulls":4},{"$f":"VLOOKUP(C56,'Risk Assessment'!$A$4:$F$10,MATCH(D56,'Risk Assessment'!$A$4:$F$4,0),FALSE)","v":{"$error":"#N/A"}},{"$nulls":3},{"$f":"VLOOKUP(G56,'Risk Assessment'!$A$4:$F$10,MATCH(H56,'Risk Assessment'!$A$4:$F$4,0),FALSE)","v":{"$error":"#N/A"}}]
[{"$nulls":4},{"$f":"VLOOKUP(C57,'Risk Assessment'!$A$4:$F$10,MATCH(D57,'Risk Assessment'!$A$4:$F$4,0),FALSE)","v":{"$error":"#N/A"}},{"$nulls":3},{"$f":"VLOOKUP(G57,'Risk Assessment'!$A$4:$F$10,MATCH(H57,'Risk Assessment'!$A$4:$F$4,0),FALSE)","v":{"$error":"#N/A"}}]
[{"$nulls":4},{"$f":"VLOOKUP(C58,'Risk Assessment'!$A$4:$F$10,MATCH(D58,'Risk Assessment'!$A$4:$F$4,0),FALSE)","v":{"$error":"#N/A"}},{"$nulls":3},{"$f":"VLOOKUP(G58,'Risk Assessment'!$A$4:$F$10,MATCH(H58,'Risk Assessment'!$A$4:$F$4,0),FALSE)","v":{"$error":"#N/A"}}]
[{"$nulls":4},{"$f":"VLOOKUP(C59,'Risk Assessment'!$A$4:$F$10,MATCH(D59,'Risk Assessment'!$A$4:$F$4,0),FALSE)","v":{"$error":"#N/A"}},{"$nulls":3},{"$f":"VLOOKUP(G59,'Risk Assessment'!$A$4:$F$10,MATCH(H59,'Risk Assessment'!$A$4:$F$4,0),FALSE)","v":{"$error":"#N/A"}}]
[{"$nulls":4},{"$f":"VLOOKUP(C60,'Risk Assessment'!$A$4:$F$10,MATCH(D60,'Risk Assessment'!$A$4:$F$4,0),FALSE)","v":{"$error":"#N/A"}},{"$nulls":3},{"$f":"VLOOKUP(G60,'Risk Assessment'!$A$4:$F$10,MATCH(H60,'Risk Assessment'!$A$4:$F$4,0),FALSE)","v":{"$error":"#N/A"}}]
[{"$nulls":4},{"$f":"VLOOKUP(C61,'Risk Assessment'!$A$4:$F$10,MATCH(D61,'Risk Assessment'!$A$4:$F$4,0),FALSE)","v":{"$error":"#N/A"}},{"$nulls":3},{"$f":"VLOOKUP(G61,'Risk Assessment'!$A$4:$F$10,MATCH(H61,'Risk Assessment'!$A$4:$F$4,0),FALSE)","v":{"$error":"#N/A"}}]
[{"$nulls":4},{"$f":"VLOOKUP(C62,'Risk Assessment'!$A$4:$F$10,MATCH(D62,'Risk Assessment'!$A$4:$F$4,0),FALSE)","v":{"$error":"#N/A"}},{"$nulls":3},{"$f":"VLOOKUP(G62,'Risk Assessment'!$A$4:$F$10,MATCH(H62,'Risk Assessment'!$A$4:$F$4,0),FALSE)","v":{"$error":"#N/A"}}]
[{"$nulls":4},{"$f":"VLOOKUP(C63,'Risk Assessment'!$A$4:$F$10,MATCH(D63,'Risk Assessment'!$A$4:$F$4,0),FALSE)","v":{"$error":"#N/A"}},{"$nulls":3},{"$f":"VLOOKUP(G63,'Risk Assessment'!$A$4:$F$10,MATCH(H63,'Risk Assessment'!$A$4:$F$4,0),FALSE)","v":{"$error":"#N/A"}}]
[{"$nulls":4},{"$f":"VLOOKUP(C64,'Risk Assessment'!$A$4:$F$10,MATCH(D64,'Risk Assessment'!$A$4:$F$4,0),FALSE)","v":{"$error":"#N/A"}},{"$nulls":3},{"$f":"VLOOKUP(G64,'Risk Assessment'!$A$4:$F$10,MATCH(H64,'Risk Assessment'!$A$4:$F$4,0),FALSE)","v":{"$error":"#N/A"}}]
[{"$nulls":4},{"$f":"VLOOKUP(C65,'Risk Assessment'!$A$4:$F$10,MATCH(D65,'Risk Assessment'!$A$4:$F$4,0),FALSE)","v":{"$error":"#N/A"}},{"$nulls":3},{"$f":"VLOOKUP(G65,'Risk Assessment'!$A$4:$F$10,MATCH(H65,'Risk Assessment'!$A$4:$F$4,0),FALSE)","v":{"$error":"#N/A"}}]
[{"$nulls":4},{"$f":"VLOOKUP(C66,'Risk Assessment'!$A$4:$F$10,MATCH(D66,'Risk Assessment'!$A$4:$F$4,0),FALSE)","v":{"$error":"#N/A"}},{"$nulls":3},{"$f":"VLOOKUP(G66,'Risk Assessment'!$A$4:$F$10,MATCH(H66,'Risk Assessment'!$A$4:$F$4,0),FALSE)","v":{"$error":"#N/A"}}]
[{"$nulls":4},{"$f":"VLOOKUP(C67,'Risk Assessment'!$A$4:$F$10,MATCH(D67,'Risk Assessment'!$A$4:$F$4,0),FALSE)","v":{"$error":"#N/A"}},{"$nulls":3},{"$f":"VLOOKUP(G67,'Risk Assessment'!$A$4:$F$10,MATCH(H67,'Risk Assessment'!$A$4:$F$4,0),FALSE)","v":{"$error":"#N/A"}}]
[{"$nulls":4},{"$f":"VLOOKUP(C68,'Risk Assessment'!$A$4:$F$10,MATCH(D68,'Risk Assessment'!$A$4:$F$4,0),FALSE)","v":{"$error":"#N/A"}},{"$nulls":3},{"$f":"VLOOKUP(G68,'Risk Assessment'!$A$4:$F$10,MATCH(H68,'Risk Assessment'!$A$4:$F$4,0),FALSE)","v":{"$error":"#N/A"}}]
[{"$nulls":4},{"$f":"VLOOKUP(C69,'Risk Assessment'!$A$4:$F$10,MATCH(D69,'Risk Assessment'!$A$4:$F$4,0),FALSE)","v":{"$error":"#N/A"}},{"$nulls":3},{"$f":"VLOOKUP(G69,'Risk Assessment'!$A$4:$F$10,MATCH(H69,'Risk Assessment'!$A$4:$F$4,0),FALSE)","v":{"$error":"#N/A"}}]
[{"$nulls":4},{"$f":"VLOOKUP(C70,'Risk Assessment'!$A$4:$F$10,MATCH(D70,'Risk Assessment'!$A$4:$F$4,0),FALSE)","v":{"$error":"#N/A"}},{"$nulls":3},{"$f":"VLOOKUP(G70,'Risk Assessment'!$A$4:$F$10,MATCH(H70,'Risk Assessment'!$A$4:$F$4,0),FALSE)","v":{"$error":"#N/A"}}]
[{"$nulls":4},{"$f":"VLOOKUP(C71,'Risk Assessment'!$A$4:$F$10,MATCH(D71,'Risk Assessment'!$A$4:$F$4,0),FALSE)","v":{"$error":"#N/A"}},{"$nulls":3},{"$f":"VLOOKUP(G71,'Risk Assessment'!$A$4:$F$10,MATCH(H71,'Risk Assessment'!$A$4:$F$4,0),FALSE)","v":{"$error":"#N/A"}}]
[{"$nulls":4},{"$f":"VLOOKUP(C72,'Risk Assessment'!$A$4:$F$10,MATCH(D72,'Risk Assessment'!$A$4:$F$4,0),FALSE)","v":{"$error":"#N/A"}},{"$nulls":3},{"$f":"VLOOKUP(G72,'Risk Assessment'!$A$4:$F$10,MATCH(H72,'Risk Assessment'!$A$4:$F$4,0),FALSE)","v":{"$error":"#N/A"}}]
[{"$nulls":4},{"$f":"VLOOKUP(C73,'Risk Assessment'!$A$4:$F$10,MATCH(D73,'Risk Assessment'!$A$4:$F$4,0),FALSE)","v":{"$error":"#N/A"}},{"$nulls":3},{"$f":"VLOOKUP(G73,'Risk Assessment'!$A$4:$F$10,MATCH(H73,'Risk Assessment'!$A$4:$F$4,0),FALSE)","v":{"$error":"#N/A"}}]
[{"$nulls":4},{"$f":"VLOOKUP(C74,'Risk Assessment'!$A$4:$F$10,MATCH(D74,'Risk Assessment'!$A$4:$F$4,0),FALSE)","v":{"$error":"#N/A"}},{"$nulls":3},{"$f":"VLOOKUP(G74,'Risk Assessment'!$A$4:$F$10,MATCH(H74,'Risk Assessment'!$A$4:$F$4,0),FALSE)","v":{"$error":"#N/A"}}]
[{"$nulls":4},{"$f":"VLOOKUP(C75,'Risk Assessment'!$A$4:$F$10,MATCH(D75,'Risk Assessment'!$A$4:$F$4,0),FALSE)","v":{"$error":"#N/A"}},{"$nulls":3},{"$f":"VLOOKUP(G75,'Risk Assessment'!$A$4:$F$10,MATCH(H75,'Risk Assessment'!$A$4:$F$4,0),FALSE)","v":{"$error":"#N/A"}}]
[{"$nulls":4},{"$f":"VLOOKUP(C76,'Risk Assessment'!$A$4:$F$10,MATCH(D76,'Risk Assessment'!$A$4:$F$4,0),FALSE)","v":{"$error":"#N/A"}},{"$nulls":3},{"$f":"VLOOKUP(G76,'Risk Assessment'!$A$4:$F$10,MATCH(H76,'Risk Assessment'!$A$4:$F$4,0),FALSE)","v":{"$error":"#N/A"}}]
[{"$nulls":4},{"$f":"VLOOKUP(C77,'Risk Assessment'!$A$4:$F$10,MATCH(D77,'Risk Assessment'!$A$4:$F$4,0),FALSE)","v":{"$error":"#N/A"}},{"$nulls":3},{"$f":"VLOOKUP(G77,'Risk Assessment'!$A$4:$F$10,MATCH(H77,'Risk Assessment'!$A$4:$F$4,0),FALSE)","v":{"$error":"#N/A"}}]

{"sheet":"Maypole","index":21,"n_rows":77,"n_cols":9,"rows_kept":77}
{"$rows_empty":9}
[" HAZARD and RISK REGISTER ",null," WCC Practical Activities"]
["Refer to Hazard/Risk Management Procedure"]
[]
["Developed by: Matthew Smith Date: 25 May 2022."]
[" Approved by: Cody Blackler   Date: 11 August 2022"]
["Reviewed by: Cody Blackler and Matthew Smith  Date: 11 August 2022"]
[]
["(1) Identify all hazards, then determine a risk rating."]
["(2) Eliminate the risk. If not reasonably practicable then"]
["(3) Minimise the risk as far as reasonably practicable."]
["(4) Reassess and determine the residual risk"]
[]
["Where or what task?","Hazard and Harm?","Likelihood \n(Choose from drop list in cell)","Consequence \n(Choose from drop list in cell)","Rating","Action required to Eliminate (E) or Minimise (M). \n (controls, administration controls, personal protective equipment.)","Revised Likelihood","Revised Consequence","Residual Rating"]
["All tasks","hit by another handle ","Likely","Moderate",{"$f":"VLOOKUP(C23,'Risk Assessment'!$A$4:$F$10,MATCH(D23,'Risk Assessment'!$A$4:$F$4,0),FALSE)","v":8},"M: users advised to occupy all handles","Moderate","Moderate",{"$f":"VLOOKUP(G23,'Risk Assessment'!$A$4:$F$10,MATCH(H23,'Risk Assessment'!$A$4:$F$4,0),FALSE)","v":6}]
["All tasks","collision with other users ","Likely","Significant",{"$f":"VLOOKUP(C24,'Risk Assessment'!$A$4:$F$10,MATCH(D24,'Risk Assessment'!$A$4:$F$4,0),FALSE)","v":12},"M: users advised to run in same direction\nM: spectators advised to stand away from users","Unlikely","Significant",{"$f":"VLOOKUP(G24,'Risk Assessment'!$A$4:$F$10,MATCH(H24,'Risk Assessment'!$A$4:$F$4,0),FALSE)","v":6}]
["All tasks","sunburn ","Moderate","Extreme",{"$f":"VLOOKUP(C25,'Risk Assessment'!$A$4:$F$10,MATCH(D25,'Risk Assessment'!$A$4:$F$4,0),FALSE)","v":15},"M: Sunsmart principles applied.\nM: Advise clients to wear sunhats and apply sunblock","Unlikely","Moderate",{"$f":"VLOOKUP(G25,'Risk Assessment'!$A$4:$F$10,MATCH(H25,'Risk Assessment'!$A$4:$F$4,0),FALSE)","v":4}]
["All tasks","chain falling on user","Moderate","Major",{"$f":"VLOOKUP(C26,'Risk Assessment'!$A$4:$F$10,MATCH(D26,'Risk Assessment'!$A$4:$F$4,0),FALSE)","v":12},"M: 6 monthly inspection to check chain and attachments","Highly unlikely (rare)","Major",{"$f":"VLOOKUP(G26,'Risk Assessment'!$A$4:$F$10,MATCH(H26,'Risk Assessment'!$A$4:$F$4,0),FALSE)","v":4}]
["Inspection","fall from height","Very likely","Extreme",{"$f":"VLOOKUP(C27,'Risk Assessment'!$A$4:$F$10,MATCH(D27,'Risk Assessment'!$A$4:$F$4,0),FALSE)","v":25},"M: Use safe methods of attachment to stay safe at height \nM: Always have one point connected at all times and maintain 3 points of contact\nM: While the inspection may be carried out by one person there must always be another person on site and the two people must have reliable means of communication","Highly unlikely (rare)","Extreme",{"$f":"VLOOKUP(G27,'Risk Assessment'!$A$4:$F$10,MATCH(H27,'Risk Assessment'!$A$4:$F$4,0),FALSE)","v":5}]
[{"$nulls":4},{"$f":"VLOOKUP(C28,'Risk Assessment'!$A$4:$F$10,MATCH(D28,'Risk Assessment'!$A$4:$F$4,0),FALSE)","v":{"$error":"#N/A"}},{"$nulls":3},{"$f":"VLOOKUP(G28,'Risk Assessment'!$A$4:$F$10,MATCH(H28,'Risk Assessment'!$A$4:$F$4,0),FALSE)","v":{"$error":"#N/A"}}]
[{"$nulls":4},{"$f":"VLOOKUP(C29,'Risk Assessment'!$A$4:$F$10,MATCH(D29,'Risk Assessment'!$A$4:$F$4,0),FALSE)","v":{"$error":"#N/A"}},{"$nulls":3},{"$f":"VLOOKUP(G29,'Risk Assessment'!$A$4:$F$10,MATCH(H29,'Risk Assessment'!$A$4:$F$4,0),FALSE)","v":{"$error":"#N/A"}}]
[{"$nulls":4},{"$f":"VLOOKUP(C30,'Risk Assessment'!$A$4:$F$10,MATCH(D30,'Risk Assessment'!$A$4:$F$4,0),FALSE)","v":{"$error":"#N/A"}},{"$nulls":3},{"$f":"VLOOKUP(G30,'Risk Assessment'!$A$4:$F$10,MATCH(H30,'Risk Assessment'!$A$4:$F$4,0),FALSE)","v":{"$error":"#N/A"}}]
[{"$nulls":4},{"$f":"VLOOKUP(C31,'Risk Assessment'!$A$4:$F$10,MATCH(D31,'Risk Assessment'!$A$4:$F$4,0),FALSE)","v":{"$error":"#N/A"}},{"$nulls":3},{"$f":"VLOOKUP(G31,'Risk Assessment'!$A$4:$F$10,MATCH(H31,'Risk Assessment'!$A$4:$F$4,0),FALSE)","v":{"$error":"#N/A"}}]
[{"$nulls":4},{"$f":"VLOOKUP(C32,'Risk Assessment'!$A$4:$F$10,MATCH(D32,'Risk Assessment'!$A$4:$F$4,0),FALSE)","v":{"$error":"#N/A"}},{"$nulls":3},{"$f":"VLOOKUP(G32,'Risk Assessment'!$A$4:$F$10,MATCH(H32,'Risk Assessment'!$A$4:$F$4,0),FALSE)","v":{"$error":"#N/A"}}]
[{"$nulls":4},{"$f":"VLOOKUP(C33,'Risk Assessment'!$A$4:$F$10,MATCH(D33,'Risk Assessment'!$A$4:$F$4,0),FALSE)","v":{"$error":"#N/A"}},{"$nulls":3},{"$f":"VLOOKUP(G33,'Risk Assessment'!$A$4:$F$10,MATCH(H33,'Risk Assessment'!$A$4:$F$4,0),FALSE)","v":{"$error":"#N/A"}}]
[{"$nulls":4},{"$f":"VLOOKUP(C34,'Risk Assessment'!$A$4:$F$10,MATCH(D34,'Risk Assessment'!$A$4:$F$4,0),FALSE)","v":{"$error":"#N/A"}},{"$nulls":3},{"$f":"VLOOKUP(G34,'Risk Assessment'!$A$4:$F$10,MATCH(H34,'Risk Assessment'!$A$4:$F$4,0),FALSE)","v":{"$error":"#N/A"}}]
[{"$nulls":4},{"$f":"VLOOKUP(C35,'Risk Assessment'!$A$4:$F$10,MATCH(D35,'Risk Assessment'!$A$4:$F$4,0),FALSE)","v":{"$error":"#N/A"}},{"$nulls":3},{"$f":"VLOOKUP(G35,'Risk Assessment'!$A$4:$F$10,MATCH(H35,'Risk Assessment'!$A$4:$F$4,0),FALSE)","v":{"$error":"#N/A"}}]
[{"$nulls":4},{"$f":"VLOOKUP(C36,'Risk Assessment'!$A$4:$F$10,MATCH(D36,'Risk Assessment'!$A$4:$F$4,0),FALSE)","v":{"$error":"#N/A"}},{"$nulls":3},{"$f":"VLOOKUP(G36,'Risk Assessment'!$A$4:$F$10,MATCH(H36,'Risk Assessment'!$A$4:$F$4,0),FALSE)","v":{"$error":"#N/A"}}]
[{"$nulls":4},{"$f":"VLOOKUP(C37,'Risk Assessment'!$A$4:$F$10,MATCH(D37,'Risk Assessment'!$A$4:$F$4,0),FALSE)","v":{"$error":"#N/A"}},{"$nulls":3},{"$f":"VLOOKUP(G37,'Risk Assessment'!$A$4:$F$10,MATCH(H37,'Risk Assessment'!$A$4:$F$4,0),FALSE)","v":{"$error":"#N/A"}}]
[{"$nulls":4},{"$f":"VLOOKUP(C38,'Risk Assessment'!$A$4:$F$10,MATCH(D38,'Risk Assessment'!$A$4:$F$4,0),FALSE)","v":{"$error":"#N/A"}},{"$nulls":3},{"$f":"VLOOKUP(G38,'Risk Assessment'!$A$4:$F$10,MATCH(H38,'Risk Assessment'!$A$4:$F$4,0),FALSE)","v":{"$error":"#N/A"}}]
[{"$nulls":4},{"$f":"VLOOKUP(C39,'Risk Assessment'!$A$4:$F$10,MATCH(D39,'Risk Assessment'!$A$4:$F$4,0),FALSE)","v":{"$error":"#N/A"}},{"$nulls":3},{"$f":"VLOOKUP(G39,'Risk Assessment'!$A$4:$F$10,MATCH(H39,'Risk Assessment'!$A$4:$F$4,0),FALSE)","v":{"$error":"#N/A"}}]
[{"$nulls":4},{"$f":"VLOOKUP(C40,'Risk Assessment'!$A$4:$F$10,MATCH(D40,'Risk Assessment'!$A$4:$F$4,0),FALSE)","v":{"$error":"#N/A"}},{"$nulls":3},{"$f":"VLOOKUP(G40,'Risk Assessment'!$A$4:$F$10,MATCH(H40,'Risk Assessment'!$A$4:$F$4,0),FALSE)","v":{"$error":"#N/A"}}]
[{"$nulls":4},{"$f":"VLOOKUP(C41,'Risk Assessment'!$A$4:$F$10,MATCH(D41,'Risk Assessment'!$A$4:$F$4,0),FALSE)","v":{"$error":"#N/A"}},{"$nulls":3},{"$f":"VLOOKUP(G41,'Risk Assessment'!$A$4:$F$10,MATCH(H41,'Risk Assessment'!$A$4:$F$4,0),FALSE)","v":{"$error":"#N/A"}}]
[{"$nulls":4},{"$f":"VLOOKUP(C42,'Risk Assessment'!$A$4:$F$10,MATCH(D42,'Risk Assessment'!$A$4:$F$4,0),FALSE)","v":{"$error":"#N/A"}},{"$nulls":3},{"$f":"VLOOKUP(G42,'Risk Assessment'!$A$4:$F$10,MATCH(H42,'Risk Assessment'!$A$4:$F$4,0),FALSE)","v":{"$error":"#N/A"}}]
[{"$nulls":4},{"$f":"VLOOKUP(C43,'Risk Assessment'!$A$4:$F$10,MATCH(D43,'Risk Assessment'!$A$4:$F$4,0),FALSE)","v":{"$error":"#N/A"}},{"$nulls":3},{"$f":"VLOOKUP(G43,'Risk Assessment'!$A$4:$F$10,MATCH(H43,'Risk Assessment'!$A$4:$F$4,0),FALSE)","v":{"$error":"#N/A"}}]
[{"$nulls":4},{"$f":"VLOOKUP(C44,'Risk Assessment'!$A$4:$F$10,MATCH(D44,'Risk Assessment'!$A$4:$F$4,0),FALSE)","v":{"$error":"#N/A"}},{"$nulls":3},{"$f":"VLOOKUP(G44,'Risk Assessment'!$A$4:$F$10,MATCH(H44,'Risk Assessment'!$A$4:$F$4,0),FALSE)","v":{"$error":"#N/A"}}]
[{"$nulls":4},{"$f":"VLOOKUP(C45,'Risk Assessment'!$A$4:$F$10,MATCH(D45,'Risk Assessment'!$A$4:$F$4,0),FALSE)","v":{"$error":"#N/A"}},{"$nulls":3},{"$f":"VLOOKUP(G45,'Risk Assessment'!$A$4:$F$10,MATCH(H45,'Risk Assessment'!$A$4:$F$4,0),FALSE)","v":{"$error":"#N/A"}}]
[{"$nulls":4},{"$f":"VLOOKUP(C46,'Risk Assessment'!$A$4:$F$10,MATCH(D46,'Risk Assessment'!$A$4:$F$4,0),FALSE)","v":{"$error":"#N/A"}},{"$nulls":3},{"$f":"VLOOKUP(G46,'Risk Assessment'!$A$4:$F$10,MATCH(H46,'Risk Assessment'!$A$4:$F$4,0),FALSE)","v":{"$error":"#N/A"}}]
[{"$nulls":4},{"$f":"VLOOKUP(C47,'Risk Assessment'!$A$4:$F$10,MATCH(D47,'Risk Assessment'!$A$4:$F$4,0),FALSE)","v":{"$error":"#N/A"}},{"$nulls":3},{"$f":"VLOOKUP(G47,'Risk Assessment'!$A$4:$F$10,MATCH(H47,'Risk Assessment'!$A$4:$F$4,0),FALSE)","v":{"$error":"#N/A"}}]
[{"$nulls":4},{"$f":"VLOOKUP(C48,'Risk Assessment'!$A$4:$F$10,MATCH(D48,'Risk Assessment'!$A$4:$F$4,0),FALSE)","v":{"$error":"#N/A"}},{"$nulls":3},{"$f":"VLOOKUP(G48,'Risk Assessment'!$A$4:$F$10,MATCH(H48,'Risk Assessment'!$A$4:$F$4,0),FALSE)","v":{"$error":"#N/A"}}]
[{"$nulls":4},{"$f":"VLOOKUP(C49,'Risk Assessment'!$A$4:$F$10,MATCH(D49,'Risk Assessment'!$A$4:$F$4,0),FALSE)","v":{"$error":"#N/A"}},{"$nulls":3},{"$f":"VLOOKUP(G49,'Risk Assessment'!$A$4:$F$10,MATCH(H49,'Risk Assessment'!$A$4:$F$4,0),FALSE)","v":{"$error":"#N/A"}}]
[{"$nulls":4},{"$f":"VLOOKUP(C50,'Risk Assessment'!$A$4:$F$10,MATCH(D50,'Risk Assessment'!$A$4:$F$4,0),FALSE)","v":{"$error":"#N/A"}},{"$nulls":3},{"$f":"VLOOKUP(G50,'Risk Assessment'!$A$4:$F$10,MATCH(H50,'Risk Assessment'!$A$4:$F$4,0),FALSE)","v":{"$error":"#N/A"}}]
[{"$nulls":4},{"$f":"VLOOKUP(C51,'Risk Assessment'!$A$4:$F$10,MATCH(D51,'Risk Assessment'!$A$4:$F$4,0),FALSE)","v":{"$error":"#N/A"}},{"$nulls":3},{"$f":"VLOOKUP(G51,'Risk Assessment'!$A$4:$F$10,MATCH(H51,'Risk Assessment'!$A$4:$F$4,0),FALSE)","v":{"$error":"#N/A"}}]
[{"$nulls":4},{"$f":"VLOOKUP(C52,'Risk Assessment'!$A$4:$F$10,MATCH(D52,'Risk Assessment'!$A$4:$F$4,0),FALSE)","v":{"$error":"#N/A"}},{"$nulls":3},{"$f":"VLOOKUP(G52,'Risk Assessment'!$A$4:$F$10,MATCH(H52,'Risk Assessment'!$A$4:$F$4,0),FALSE)","v":{"$error":"#N/A"}}]
[{"$nulls":4},{"$f":"VLOOKUP(C53,'Risk Assessment'!$A$4:$F$10,MATCH(D53,'Risk Assessment'!$A$4:$F$4,0),FALSE)","v":{"$error":"#N/A"}},{"$nulls":3},{"$f":"VLOOKUP(G53,'Risk Assessment'!$A$4:$F$10,MATCH(H53,'Risk Assessment'!$A$4:$F$4,0),FALSE)","v":{"$error":"#N/A"}}]
[{"$nulls":4},{"$f":"VLOOKUP(C54,'Risk Assessment'!$A$4:$F$10,MATCH(D54,'Risk Assessment'!$A$4:$F$4,0),FALSE)","v":{"$error":"#N/A"}},{"$nulls":3},{"$f":"VLOOKUP(G54,'Risk Assessment'!$A$4:$F$10,MATCH(H54,'Risk Assessment'!$A$4:$F$4,0),FALSE)","v":{"$error":"#N/A"}}]
[{"$nulls":4},{"$f":"VLOOKUP(C55,'Risk Assessment'!$A$4:$F$10,MATCH(D55,'Risk Assessment'!$A$4:$F$4,0),FALSE)","v":{"$error":"#N/A"}},{"$nulls":3},{"$f":"VLOOKUP(G55,'Risk Assessment'!$A$4:$F$10,MATCH(H55,'Risk Assessment'!$A$4:$F$4,0),FALSE)","v":{"$error":"#N/A"}}]
[{"$nulls":4},{"$f":"VLOOKUP(C56,'Risk Assessment'!$A$4:$F$10,MATCH(D56,'Risk Assessment'!$A$4:$F$4,0),FALSE)","v":{"$error":"#N/A"}},{"$nulls":3},{"$f":"VLOOKUP(G56,'Risk Assessment'!$A$4:$F$10,MATCH(H56,'Risk Assessment'!$A$4:$F$4,0),FALSE)","v":{"$error":"#N/A"}}]
[{"$nulls":4},{"$f":"VLOOKUP(C57,'Risk Assessment'!$A$4:$F$10,MATCH(D57,'Risk Assessment'!$A$4:$F$4,0),FALSE)","v":{"$error":"#N/A"}},{"$nulls":3},{"$f":"VLOOKUP(G57,'Risk Assessment'!$A$4:$F$10,MATCH(H57,'Risk Assessment'!$A$4:$F$4,0),FALSE)","v":{"$error":"#N/A"}}]
[{"$nulls":4},{"$f":"VLOOKUP(C58,'Risk Assessment'!$A$4:$F$10,MATCH(D58,'Risk Assessment'!$A$4:$F$4,0),FALSE)","v":{"$error":"#N/A"}},{"$nulls":3},{"$f":"VLOOKUP(G58,'Risk Assessment'!$A$4:$F$10,MATCH(H58,'Risk Assessment'!$A$4:$F$4,0),FALSE)","v":{"$error":"#N/A"}}]
[{"$nulls":4},{"$f":"VLOOKUP(C59,'Risk Assessment'!$A$4:$F$10,MATCH(D59,'Risk Assessment'!$A$4:$F$4,0),FALSE)","v":{"$error":"#N/A"}},{"$nulls":3},{"$f":"VLOOKUP(G59,'Risk Assessment'!$A$4:$F$10,MATCH(H59,'Risk Assessment'!$A$4:$F$4,0),FALSE)","v":{"$error":"#N/A"}}]
[{"$nulls":4},{"$f":"VLOOKUP(C60,'Risk Assessment'!$A$4:$F$10,MATCH(D60,'Risk Assessment'!$A$4:$F$4,0),FALSE)","v":{"$error":"#N/A"}},{"$nulls":3},{"$f":"VLOOKUP(G60,'Risk Assessment'!$A$4:$F$10,MATCH(H60,'Risk Assessment'!$A$4:$F$4,0),FALSE)","v":{"$error":"#N/A"}}]
[{"$nulls":4},{"$f":"VLOOKUP(C61,'Risk Assessment'!$A$4:$F$10,MATCH(D61,'Risk Assessment'!$A$4:$F$4,0),FALSE)","v":{"$error":"#N/A"}},{"$nulls":3},{"$f":"VLOOKUP(G61,'Risk Assessment'!$A$4:$F$10,MATCH(H61,'Risk Assessment'!$A$4:$F$4,0),FALSE)","v":{"$error":"#N/A"}}]
[{"$nulls":4},{"$f":"VLOOKUP(C62,'Risk Assessment'!$A$4:$F$10,MATCH(D62,'Risk Assessment'!$A$4:$F$4,0),FALSE)","v":{"$error":"#N/A"}},{"$nulls":3},{"$f":"VLOOKUP(G62,'Risk Assessment'!$A$4:$F$10,MATCH(H62,'Risk Assessment'!$A$4:$F$4,0),FALSE)","v":{"$error":"#N/A"}}]
[{"$nulls":4},{"$f":"VLOOKUP(C63,'Risk Assessment'!$A$4:$F$10,MATCH(D63,'Risk Assessment'!$A$4:$F$4,0),FALSE)","v":{"$error":"#N/A"}},{"$nulls":3},{"$f":"VLOOKUP(G63,'Risk Assessment'!$A$4:$F$10,MATCH(H63,'Risk Assessment'!$A$4:$F$4,0),FALSE)","v":{"$error":"#N/A"}}]
[{"$nulls":4},{"$f":"VLOOKUP(C64,'Risk Assessment'!$A$4:$F$10,MATCH(D64,'Risk Assessment'!$A$4:$F$4,0),FALSE)","v":{"$error":"#N/A"}},{"$nulls":3},{"$f":"VLOOKUP(G64,'Risk Assessment'!$A$4:$F$10,MATCH(H64,'Risk Assessment'!$A$4:$F$4,0),FALSE)","v":{"$error":"#N/A"}}]
[{"$nulls":4},{"$f":"VLOOKUP(C65,'Risk Assessment'!$A$4:$F$10,MATCH(D65,'Risk Assessment'!$A$4:$F$4,0),FALSE)","v":{"$error":"#N/A"}},{"$nulls":3},{"$f":"VLOOKUP(G65,'Risk Assessment'!$A$4:$F$10,MATCH(H65,'Risk Assessment'!$A$4:$F$4,0),FALSE)","v":{"$error":"#N/A"}}]
[{"$nulls":4},{"$f":"VLOOKUP(C66,'Risk Assessment'!$A$4:$F$10,MATCH(D66,'Risk Assessment'!$A$4:$F$4,0),FALSE)","v":{"$error":"#N/A"}},{"$nulls":3},{"$f":"VLOOKUP(G66,'Risk Assessment'!$A$4:$F$10,MATCH(H66,'Risk Assessment'!$A$4:$F$4,0),FALSE)","v":{"$error":"#N/A"}}]
[{"$nulls":4},{"$f":"VLOOKUP(C67,'Risk Assessment'!$A$4:$F$10,MATCH(D67,'Risk Assessment'!$A$4:$F$4,0),FALSE)","v":{"$error":"#N/A"}},{"$nulls":3},{"$f":"VLOOKUP(G67,'Risk Assessment'!$A$4:$F$10,MATCH(H67,'Risk Assessment'!$A$4:$F$4,0),FALSE)","v":{"$error":"#N/A"}}]
[{"$nulls":4},{"$f":"VLOOKUP(C68,'Risk Assessment'!$A$4:$F$10,MATCH(D68,'Risk Assessment'!$A$4:$F$4,0),FALSE)","v":{"$error":"#N/A"}},{"$nulls":3},{"$f":"VLOOKUP(G68,'Risk Assessment'!$A$4:$F$10,MATCH(H68,'Risk Assessment'!$A$4:$F$4,0),FALSE)","v":{"$error":"#N/A"}}]
[{"$nulls":4},{"$f":"VLOOKUP(C69,'Risk Assessment'!$A$4:$F$10,MATCH(D69,'Risk Assessment'!$A$4:$F$4,0),FALSE)","v":{"$error":"#N/A"}},{"$nulls":3},{"$f":"VLOOKUP(G69,'Risk Assessment'!$A$4:$F$10,MATCH(H69,'Risk Assessment'!$A$4:$F$4,0),FALSE)","v":{"$error":"#N/A"}}]
[{"$nulls":4},{"$f":"VLOOKUP(C70,'Risk Assessment'!$A$4:$F$10,MATCH(D70,'Risk Assessment'!$A$4:$F$4,0),FALSE)","v":{"$error":"#N/A"}},{"$nulls":3},{"$f":"VLOOKUP(G70,'Risk Assessment'!$A$4:$F$10,MATCH(H70,'Risk Assessment'!$A$4:$F$4,0),FALSE)","v":{"$error":"#N/A"}}]
[{"$nulls":4},{"$f":"VLOOKUP(C71,'Risk Assessment'!$A$4:$F$10,MATCH(D71,'Risk Assessment'!$A$4:$F$4,0),FALSE)","v":{"$error":"#N/A"}},{"$nulls":3},{"$f":"VLOOKUP(G71,'Risk Assessment'!$A$4:$F$10,MATCH(H71,'Risk Assessment'!$A$4:$F$4,0),FALSE)","v":{"$error":"#N/A"}}]
[{"$nulls":4},{"$f":"VLOOKUP(C72,'Risk Assessment'!$A$4:$F$10,MATCH(D72,'Risk Assessment'!$A$4:$F$4,0),FALSE)","v":{"$error":"#N/A"}},{"$nulls":3},{"$f":"VLOOKUP(G72,'Risk Assessment'!$A$4:$F$10,MATCH(H72,'Risk Assessment'!$A$4:$F$4,0),FALSE)","v":{"$error":"#N/A"}}]
[{"$nulls":4},{"$f":"VLOOKUP(C73,'Risk Assessment'!$A$4:$F$10,MATCH(D73,'Risk Assessment'!$A$4:$F$4,0),FALSE)","v":{"$error":"#N/A"}},{"$nulls":3},{"$f":"VLOOKUP(G73,'Risk Assessment'!$A$4:$F$10,MATCH(H73,'Risk Assessment'!$A$4:$F$4,0),FALSE)","v":{"$error":"#N/A"}}]
[{"$nulls":4},{"$f":"VLOOKUP(C74,'Risk Assessment'!$A$4:$F$10,MATCH(D74,'Risk Assessment'!$A$4:$F$4,0),FALSE)","v":{"$error":"#N/A"}},{"$nulls":3},{"$f":"VLOOKUP(G74,'Risk Assessment'!$A$4:$F$10,MATCH(H74,'Risk Assessment'!$A$4:$F$4,0),FALSE)","v":{"$error":"#N/A"}}]
[{"$nulls":4},{"$f":"VLOOKUP(C75,'Risk Assessment'!$A$4:$F$10,MATCH(D75,'Risk Assessment'!$A$4:$F$4,0),FALSE)","v":{"$error":"#N/A"}},{"$nulls":3},{"$f":"VLOOKUP(G75,'Risk Assessment'!$A$4:$F$10,MATCH(H75,'Risk Assessment'!$A$4:$F$4,0),FALSE)","v":{"$error":"#N/A"}}]
[{"$nulls":4},{"$f":"VLOOKUP(C76,'Risk Assessment'!$A$4:$F$10,MATCH(D76,'Risk Assessment'!$A$4:$F$4,0),FALSE)","v":{"$error":"#N/A"}},{"$nulls":3},{"$f":"VLOOKUP(G76,'Risk Assessment'!$A$4:$F$10,MATCH(H76,'Risk Assessment'!$A$4:$F$4,0),FALSE)","v":{"$error":"#N/A"}}]
[{"$nulls":4},{"$f":"VLOOKUP(C77,'Risk Assessment'!$A$4:$F$10,MATCH(D77,'Risk Assessment'!$A$4:$F$4,0),FALSE)","v":{"$error":"#N/A"}},{"$nulls":3},{"$f":"VLOOKUP(G77,'Risk Assessment'!$A$4:$F$10,MATCH(H77,'Risk Assessment'!$A$4:$F$4,0),FALSE)","v":{"$error":"#N/A"}}]

{"sheet":"Playground","index":22,"n_rows":77,"n_cols":9,"rows_kept":77}
{"$rows_empty":9}
[" HAZARD and RISK REGISTER ",null," WCC Practical Activities"]
["Refer to Hazard/Risk Management Procedure"]
[]
["Developed by: Matthew Smith Date: 25 May 2022."]
[" Approved by: Cody Blackler   Date: 11 August 2022"]
["Reviewed by: Cody Blackler and Matthew Smith  Date: 11 August 2022"]
[]
["(1) Identify all hazards, then determine a risk rating."]
["(2) Eliminate the risk. If not reasonably practicable then"]
["(3) Minimise the risk as far as reasonably practicable."]
["(4) Reassess and determine the residual risk"]
[]
["Where or what task?","Hazard and Harm?","Likelihood \n(Choose from drop list in cell)","Consequence \n(Choose from drop list in cell)","Rating","Action required to Eliminate (E) or Minimise (M). \n (controls, administration controls, personal protective equipment.)","Revised Likelihood","Revised Consequence","Residual Rating"]
["All tasks","Fall from equipment ","Likely","Major",{"$f":"VLOOKUP(C23,'Risk Assessment'!$A$4:$F$10,MATCH(D23,'Risk Assessment'!$A$4:$F$4,0),FALSE)","v":16},"M: advise users to be careful\nM: sufficient bark covering ","Unlikely","Significant",{"$f":"VLOOKUP(G23,'Risk Assessment'!$A$4:$F$10,MATCH(H23,'Risk Assessment'!$A$4:$F$4,0),FALSE)","v":6}]
["All tasks","colliding with other users","Very likely","Significant",{"$f":"VLOOKUP(C24,'Risk Assessment'!$A$4:$F$10,MATCH(D24,'Risk Assessment'!$A$4:$F$4,0),FALSE)","v":15},"M: advise users to give each other space ","Unlikely","Significant",{"$f":"VLOOKUP(G24,'Risk Assessment'!$A$4:$F$10,MATCH(H24,'Risk Assessment'!$A$4:$F$4,0),FALSE)","v":6}]
["All tasks","sunburn","Very likely","Moderate",{"$f":"VLOOKUP(C25,'Risk Assessment'!$A$4:$F$10,MATCH(D25,'Risk Assessment'!$A$4:$F$4,0),FALSE)","v":10},"M: Sunsmart principles applied.\nM: Advise clients to wear sunhats and apply sunblock","Unlikely","Moderate",{"$f":"VLOOKUP(G25,'Risk Assessment'!$A$4:$F$10,MATCH(H25,'Risk Assessment'!$A$4:$F$4,0),FALSE)","v":4}]
[{"$nulls":4},{"$f":"VLOOKUP(C26,'Risk Assessment'!$A$4:$F$10,MATCH(D26,'Risk Assessment'!$A$4:$F$4,0),FALSE)","v":{"$error":"#N/A"}},{"$nulls":3},{"$f":"VLOOKUP(G26,'Risk Assessment'!$A$4:$F$10,MATCH(H26,'Risk Assessment'!$A$4:$F$4,0),FALSE)","v":{"$error":"#N/A"}}]
[{"$nulls":4},{"$f":"VLOOKUP(C27,'Risk Assessment'!$A$4:$F$10,MATCH(D27,'Risk Assessment'!$A$4:$F$4,0),FALSE)","v":{"$error":"#N/A"}},{"$nulls":3},{"$f":"VLOOKUP(G27,'Risk Assessment'!$A$4:$F$10,MATCH(H27,'Risk Assessment'!$A$4:$F$4,0),FALSE)","v":{"$error":"#N/A"}}]
[{"$nulls":4},{"$f":"VLOOKUP(C28,'Risk Assessment'!$A$4:$F$10,MATCH(D28,'Risk Assessment'!$A$4:$F$4,0),FALSE)","v":{"$error":"#N/A"}},{"$nulls":3},{"$f":"VLOOKUP(G28,'Risk Assessment'!$A$4:$F$10,MATCH(H28,'Risk Assessment'!$A$4:$F$4,0),FALSE)","v":{"$error":"#N/A"}}]
[{"$nulls":4},{"$f":"VLOOKUP(C29,'Risk Assessment'!$A$4:$F$10,MATCH(D29,'Risk Assessment'!$A$4:$F$4,0),FALSE)","v":{"$error":"#N/A"}},{"$nulls":3},{"$f":"VLOOKUP(G29,'Risk Assessment'!$A$4:$F$10,MATCH(H29,'Risk Assessment'!$A$4:$F$4,0),FALSE)","v":{"$error":"#N/A"}}]
[{"$nulls":4},{"$f":"VLOOKUP(C30,'Risk Assessment'!$A$4:$F$10,MATCH(D30,'Risk Assessment'!$A$4:$F$4,0),FALSE)","v":{"$error":"#N/A"}},{"$nulls":3},{"$f":"VLOOKUP(G30,'Risk Assessment'!$A$4:$F$10,MATCH(H30,'Risk Assessment'!$A$4:$F$4,0),FALSE)","v":{"$error":"#N/A"}}]
[{"$nulls":4},{"$f":"VLOOKUP(C31,'Risk Assessment'!$A$4:$F$10,MATCH(D31,'Risk Assessment'!$A$4:$F$4,0),FALSE)","v":{"$error":"#N/A"}},{"$nulls":3},{"$f":"VLOOKUP(G31,'Risk Assessment'!$A$4:$F$10,MATCH(H31,'Risk Assessment'!$A$4:$F$4,0),FALSE)","v":{"$error":"#N/A"}}]
[{"$nulls":4},{"$f":"VLOOKUP(C32,'Risk Assessment'!$A$4:$F$10,MATCH(D32,'Risk Assessment'!$A$4:$F$4,0),FALSE)","v":{"$error":"#N/A"}},{"$nulls":3},{"$f":"VLOOKUP(G32,'Risk Assessment'!$A$4:$F$10,MATCH(H32,'Risk Assessment'!$A$4:$F$4,0),FALSE)","v":{"$error":"#N/A"}}]
[{"$nulls":4},{"$f":"VLOOKUP(C33,'Risk Assessment'!$A$4:$F$10,MATCH(D33,'Risk Assessment'!$A$4:$F$4,0),FALSE)","v":{"$error":"#N/A"}},{"$nulls":3},{"$f":"VLOOKUP(G33,'Risk Assessment'!$A$4:$F$10,MATCH(H33,'Risk Assessment'!$A$4:$F$4,0),FALSE)","v":{"$error":"#N/A"}}]
[{"$nulls":4},{"$f":"VLOOKUP(C34,'Risk Assessment'!$A$4:$F$10,MATCH(D34,'Risk Assessment'!$A$4:$F$4,0),FALSE)","v":{"$error":"#N/A"}},{"$nulls":3},{"$f":"VLOOKUP(G34,'Risk Assessment'!$A$4:$F$10,MATCH(H34,'Risk Assessment'!$A$4:$F$4,0),FALSE)","v":{"$error":"#N/A"}}]
[{"$nulls":4},{"$f":"VLOOKUP(C35,'Risk Assessment'!$A$4:$F$10,MATCH(D35,'Risk Assessment'!$A$4:$F$4,0),FALSE)","v":{"$error":"#N/A"}},{"$nulls":3},{"$f":"VLOOKUP(G35,'Risk Assessment'!$A$4:$F$10,MATCH(H35,'Risk Assessment'!$A$4:$F$4,0),FALSE)","v":{"$error":"#N/A"}}]
[{"$nulls":4},{"$f":"VLOOKUP(C36,'Risk Assessment'!$A$4:$F$10,MATCH(D36,'Risk Assessment'!$A$4:$F$4,0),FALSE)","v":{"$error":"#N/A"}},{"$nulls":3},{"$f":"VLOOKUP(G36,'Risk Assessment'!$A$4:$F$10,MATCH(H36,'Risk Assessment'!$A$4:$F$4,0),FALSE)","v":{"$error":"#N/A"}}]
[{"$nulls":4},{"$f":"VLOOKUP(C37,'Risk Assessment'!$A$4:$F$10,MATCH(D37,'Risk Assessment'!$A$4:$F$4,0),FALSE)","v":{"$error":"#N/A"}},{"$nulls":3},{"$f":"VLOOKUP(G37,'Risk Assessment'!$A$4:$F$10,MATCH(H37,'Risk Assessment'!$A$4:$F$4,0),FALSE)","v":{"$error":"#N/A"}}]
[{"$nulls":4},{"$f":"VLOOKUP(C38,'Risk Assessment'!$A$4:$F$10,MATCH(D38,'Risk Assessment'!$A$4:$F$4,0),FALSE)","v":{"$error":"#N/A"}},{"$nulls":3},{"$f":"VLOOKUP(G38,'Risk Assessment'!$A$4:$F$10,MATCH(H38,'Risk Assessment'!$A$4:$F$4,0),FALSE)","v":{"$error":"#N/A"}}]
[{"$nulls":4},{"$f":"VLOOKUP(C39,'Risk Assessment'!$A$4:$F$10,MATCH(D39,'Risk Assessment'!$A$4:$F$4,0),FALSE)","v":{"$error":"#N/A"}},{"$nulls":3},{"$f":"VLOOKUP(G39,'Risk Assessment'!$A$4:$F$10,MATCH(H39,'Risk Assessment'!$A$4:$F$4,0),FALSE)","v":{"$error":"#N/A"}}]
[{"$nulls":4},{"$f":"VLOOKUP(C40,'Risk Assessment'!$A$4:$F$10,MATCH(D40,'Risk Assessment'!$A$4:$F$4,0),FALSE)","v":{"$error":"#N/A"}},{"$nulls":3},{"$f":"VLOOKUP(G40,'Risk Assessment'!$A$4:$F$10,MATCH(H40,'Risk Assessment'!$A$4:$F$4,0),FALSE)","v":{"$error":"#N/A"}}]
[{"$nulls":4},{"$f":"VLOOKUP(C41,'Risk Assessment'!$A$4:$F$10,MATCH(D41,'Risk Assessment'!$A$4:$F$4,0),FALSE)","v":{"$error":"#N/A"}},{"$nulls":3},{"$f":"VLOOKUP(G41,'Risk Assessment'!$A$4:$F$10,MATCH(H41,'Risk Assessment'!$A$4:$F$4,0),FALSE)","v":{"$error":"#N/A"}}]
[{"$nulls":4},{"$f":"VLOOKUP(C42,'Risk Assessment'!$A$4:$F$10,MATCH(D42,'Risk Assessment'!$A$4:$F$4,0),FALSE)","v":{"$error":"#N/A"}},{"$nulls":3},{"$f":"VLOOKUP(G42,'Risk Assessment'!$A$4:$F$10,MATCH(H42,'Risk Assessment'!$A$4:$F$4,0),FALSE)","v":{"$error":"#N/A"}}]
[{"$nulls":4},{"$f":"VLOOKUP(C43,'Risk Assessment'!$A$4:$F$10,MATCH(D43,'Risk Assessment'!$A$4:$F$4,0),FALSE)","v":{"$error":"#N/A"}},{"$nulls":3},{"$f":"VLOOKUP(G43,'Risk Assessment'!$A$4:$F$10,MATCH(H43,'Risk Assessment'!$A$4:$F$4,0),FALSE)","v":{"$error":"#N/A"}}]
[{"$nulls":4},{"$f":"VLOOKUP(C44,'Risk Assessment'!$A$4:$F$10,MATCH(D44,'Risk Assessment'!$A$4:$F$4,0),FALSE)","v":{"$error":"#N/A"}},{"$nulls":3},{"$f":"VLOOKUP(G44,'Risk Assessment'!$A$4:$F$10,MATCH(H44,'Risk Assessment'!$A$4:$F$4,0),FALSE)","v":{"$error":"#N/A"}}]
[{"$nulls":4},{"$f":"VLOOKUP(C45,'Risk Assessment'!$A$4:$F$10,MATCH(D45,'Risk Assessment'!$A$4:$F$4,0),FALSE)","v":{"$error":"#N/A"}},{"$nulls":3},{"$f":"VLOOKUP(G45,'Risk Assessment'!$A$4:$F$10,MATCH(H45,'Risk Assessment'!$A$4:$F$4,0),FALSE)","v":{"$error":"#N/A"}}]
[{"$nulls":4},{"$f":"VLOOKUP(C46,'Risk Assessment'!$A$4:$F$10,MATCH(D46,'Risk Assessment'!$A$4:$F$4,0),FALSE)","v":{"$error":"#N/A"}},{"$nulls":3},{"$f":"VLOOKUP(G46,'Risk Assessment'!$A$4:$F$10,MATCH(H46,'Risk Assessment'!$A$4:$F$4,0),FALSE)","v":{"$error":"#N/A"}}]
[{"$nulls":4},{"$f":"VLOOKUP(C47,'Risk Assessment'!$A$4:$F$10,MATCH(D47,'Risk Assessment'!$A$4:$F$4,0),FALSE)","v":{"$error":"#N/A"}},{"$nulls":3},{"$f":"VLOOKUP(G47,'Risk Assessment'!$A$4:$F$10,MATCH(H47,'Risk Assessment'!$A$4:$F$4,0),FALSE)","v":{"$error":"#N/A"}}]
[{"$nulls":4},{"$f":"VLOOKUP(C48,'Risk Assessment'!$A$4:$F$10,MATCH(D48,'Risk Assessment'!$A$4:$F$4,0),FALSE)","v":{"$error":"#N/A"}},{"$nulls":3},{"$f":"VLOOKUP(G48,'Risk Assessment'!$A$4:$F$10,MATCH(H48,'Risk Assessment'!$A$4:$F$4,0),FALSE)","v":{"$error":"#N/A"}}]
[{"$nulls":4},{"$f":"VLOOKUP(C49,'Risk Assessment'!$A$4:$F$10,MATCH(D49,'Risk Assessment'!$A$4:$F$4,0),FALSE)","v":{"$error":"#N/A"}},{"$nulls":3},{"$f":"VLOOKUP(G49,'Risk Assessment'!$A$4:$F$10,MATCH(H49,'Risk Assessment'!$A$4:$F$4,0),FALSE)","v":{"$error":"#N/A"}}]
[{"$nulls":4},{"$f":"VLOOKUP(C50,'Risk Assessment'!$A$4:$F$10,MATCH(D50,'Risk Assessment'!$A$4:$F$4,0),FALSE)","v":{"$error":"#N/A"}},{"$nulls":3},{"$f":"VLOOKUP(G50,'Risk Assessment'!$A$4:$F$10,MATCH(H50,'Risk Assessment'!$A$4:$F$4,0),FALSE)","v":{"$error":"#N/A"}}]
[{"$nulls":4},{"$f":"VLOOKUP(C51,'Risk Assessment'!$A$4:$F$10,MATCH(D51,'Risk Assessment'!$A$4:$F$4,0),FALSE)","v":{"$error":"#N/A"}},{"$nulls":3},{"$f":"VLOOKUP(G51,'Risk Assessment'!$A$4:$F$10,MATCH(H51,'Risk Assessment'!$A$4:$F$4,0),FALSE)","v":{"$error":"#N/A"}}]
[{"$nulls":4},{"$f":"VLOOKUP(C52,'Risk Assessment'!$A$4:$F$10,MATCH(D52,'Risk Assessment'!$A$4:$F$4,0),FALSE)","v":{"$error":"#N/A"}},{"$nulls":3},{"$f":"VLOOKUP(G52,'Risk Assessment'!$A$4:$F$10,MATCH(H52,'Risk Assessment'!$A$4:$F$4,0),FALSE)","v":{"$error":"#N/A"}}]
[{"$nulls":4},{"$f":"VLOOKUP(C53,'Risk Assessment'!$A$4:$F$10,MATCH(D53,'Risk Assessment'!$A$4:$F$4,0),FALSE)","v":{"$error":"#N/A"}},{"$nulls":3},{"$f":"VLOOKUP(G53,'Risk Assessment'!$A$4:$F$10,MATCH(H53,'Risk Assessment'!$A$4:$F$4,0),FALSE)","v":{"$error":"#N/A"}}]
[{"$nulls":4},{"$f":"VLOOKUP(C54,'Risk Assessment'!$A$4:$F$10,MATCH(D54,'Risk Assessment'!$A$4:$F$4,0),FALSE)","v":{"$error":"#N/A"}},{"$nulls":3},{"$f":"VLOOKUP(G54,'Risk Assessment'!$A$4:$F$10,MATCH(H54,'Risk Assessment'!$A$4:$F$4,0),FALSE)","v":{"$error":"#N/A"}}]
[{"$nulls":4},{"$f":"VLOOKUP(C55,'Risk Assessment'!$A$4:$F$10,MATCH(D55,'Risk Assessment'!$A$4:$F$4,0),FALSE)","v":{"$error":"#N/A"}},{"$nulls":3},{"$f":"VLOOKUP(G55,'Risk Assessment'!$A$4:$F$10,MATCH(H55,'Risk Assessment'!$A$4:$F$4,0),FALSE)","v":{"$error":"#N/A"}}]
[{"$nulls":4},{"$f":"VLOOKUP(C56,'Risk Assessment'!$A$4:$F$10,MATCH(D56,'Risk Assessment'!$A$4:$F$4,0),FALSE)","v":{"$error":"#N/A"}},{"$nulls":3},{"$f":"VLOOKUP(G56,'Risk Assessment'!$A$4:$F$10,MATCH(H56,'Risk Assessment'!$A$4:$F$4,0),FALSE)","v":{"$error":"#N/A"}}]
[{"$nulls":4},{"$f":"VLOOKUP(C57,'Risk Assessment'!$A$4:$F$10,MATCH(D57,'Risk Assessment'!$A$4:$F$4,0),FALSE)","v":{"$error":"#N/A"}},{"$nulls":3},{"$f":"VLOOKUP(G57,'Risk Assessment'!$A$4:$F$10,MATCH(H57,'Risk Assessment'!$A$4:$F$4,0),FALSE)","v":{"$error":"#N/A"}}]
[{"$nulls":4},{"$f":"VLOOKUP(C58,'Risk Assessment'!$A$4:$F$10,MATCH(D58,'Risk Assessment'!$A$4:$F$4,0),FALSE)","v":{"$error":"#N/A"}},{"$nulls":3},{"$f":"VLOOKUP(G58,'Risk Assessment'!$A$4:$F$10,MATCH(H58,'Risk Assessment'!$A$4:$F$4,0),FALSE)","v":{"$error":"#N/A"}}]
[{"$nulls":4},{"$f":"VLOOKUP(C59,'Risk Assessment'!$A$4:$F$10,MATCH(D59,'Risk Assessment'!$A$4:$F$4,0),FALSE)","v":{"$error":"#N/A"}},{"$nulls":3},{"$f":"VLOOKUP(G59,'Risk Assessment'!$A$4:$F$10,MATCH(H59,'Risk Assessment'!$A$4:$F$4,0),FALSE)","v":{"$error":"#N/A"}}]
[{"$nulls":4},{"$f":"VLOOKUP(C60,'Risk Assessment'!$A$4:$F$10,MATCH(D60,'Risk Assessment'!$A$4:$F$4,0),FALSE)","v":{"$error":"#N/A"}},{"$nulls":3},{"$f":"VLOOKUP(G60,'Risk Assessment'!$A$4:$F$10,MATCH(H60,'Risk Assessment'!$A$4:$F$4,0),FALSE)","v":{"$error":"#N/A"}}]
[{"$nulls":4},{"$f":"VLOOKUP(C61,'Risk Assessment'!$A$4:$F$10,MATCH(D61,'Risk Assessment'!$A$4:$F$4,0),FALSE)","v":{"$error":"#N/A"}},{"$nulls":3},{"$f":"VLOOKUP(G61,'Risk Assessment'!$A$4:$F$10,MATCH(H61,'Risk Assessment'!$A$4:$F$4,0),FALSE)","v":{"$error":"#N/A"}}]
[{"$nulls":4},{"$f":"VLOOKUP(C62,'Risk Assessment'!$A$4:$F$10,MATCH(D62,'Risk Assessment'!$A$4:$F$4,0),FALSE)","v":{"$error":"#N/A"}},{"$nulls":3},{"$f":"VLOOKUP(G62,'Risk Assessment'!$A$4:$F$10,MATCH(H62,'Risk Assessment'!$A$4:$F$4,0),FALSE)","v":{"$error":"#N/A"}}]
[{"$nulls":4},{"$f":"VLOOKUP(C63,'Risk Assessment'!$A$4:$F$10,MATCH(D63,'Risk Assessment'!$A$4:$F$4,0),FALSE)","v":{"$error":"#N/A"}},{"$nulls":3},{"$f":"VLOOKUP(G63,'Risk Assessment'!$A$4:$F$10,MATCH(H63,'Risk Assessment'!$A$4:$F$4,0),FALSE)","v":{"$error":"#N/A"}}]
[{"$nulls":4},{"$f":"VLOOKUP(C64,'Risk Assessment'!$A$4:$F$10,MATCH(D64,'Risk Assessment'!$A$4:$F$4,0),FALSE)","v":{"$error":"#N/A"}},{"$nulls":3},{"$f":"VLOOKUP(G64,'Risk Assessment'!$A$4:$F$10,MATCH(H64,'Risk Assessment'!$A$4:$F$4,0),FALSE)","v":{"$error":"#N/A"}}]
[{"$nulls":4},{"$f":"VLOOKUP(C65,'Risk Assessment'!$A$4:$F$10,MATCH(D65,'Risk Assessment'!$A$4:$F$4,0),FALSE)","v":{"$error":"#N/A"}},{"$nulls":3},{"$f":"VLOOKUP(G65,'Risk Assessment'!$A$4:$F$10,MATCH(H65,'Risk Assessment'!$A$4:$F$4,0),FALSE)","v":{"$error":"#N/A"}}]
[{"$nulls":4},{"$f":"VLOOKUP(C66,'Risk Assessment'!$A$4:$F$10,MATCH(D66,'Risk Assessment'!$A$4:$F$4,0),FALSE)","v":{"$error":"#N/A"}},{"$nulls":3},{"$f":"VLOOKUP(G66,'Risk Assessment'!$A$4:$F$10,MATCH(H66,'Risk Assessment'!$A$4:$F$4,0),FALSE)","v":{"$error":"#N/A"}}]
[{"$nulls":4},{"$f":"VLOOKUP(C67,'Risk Assessment'!$A$4:$F$10,MATCH(D67,'Risk Assessment'!$A$4:$F$4,0),FALSE)","v":{"$error":"#N/A"}},{"$nulls":3},{"$f":"VLOOKUP(G67,'Risk Assessment'!$A$4:$F$10,MATCH(H67,'Risk Assessment'!$A$4:$F$4,0),FALSE)","v":{"$error":"#N/A"}}]
[{"$nulls":4},{"$f":"VLOOKUP(C68,'Risk Assessment'!$A$4:$F$10,MATCH(D68,'Risk Assessment'!$A$4:$F$4,0),FALSE)","v":{"$error":"#N/A"}},{"$nulls":3},{"$f":"VLOOKUP(G68,'Risk Assessment'!$A$4:$F$10,MATCH(H68,'Risk Assessment'!$A$4:$F$4,0),FALSE)","v":{"$error":"#N/A"}}]
[{"$nulls":4},{"$f":"VLOOKUP(C69,'Risk Assessment'!$A$4:$F$10,MATCH(D69,'Risk Assessment'!$A$4:$F$4,0),FALSE)","v":{"$error":"#N/A"}},{"$nulls":3},{"$f":"VLOOKUP(G69,'Risk Assessment'!$A$4:$F$10,MATCH(H69,'Risk Assessment'!$A$4:$F$4,0),FALSE)","v":{"$error":"#N/A"}}]
[{"$nulls":4},{"$f":"VLOOKUP(C70,'Risk Assessment'!$A$4:$F$10,MATCH(D70,'Risk Assessment'!$A$4:$F$4,0),FALSE)","v":{"$error":"#N/A"}},{"$nulls":3},{"$f":"VLOOKUP(G70,'Risk Assessment'!$A$4:$F$10,MATCH(H70,'Risk Assessment'!$A$4:$F$4,0),FALSE)","v":{"$error":"#N/A"}}]
[{"$nulls":4},{"$f":"VLOOKUP(C71,'Risk Assessment'!$A$4:$F$10,MATCH(D71,'Risk Assessment'!$A$4:$F$4,0),FALSE)","v":{"$error":"#N/A"}},{"$nulls":3},{"$f":"VLOOKUP(G71,'Risk Assessment'!$A$4:$F$10,MATCH(H71,'Risk Assessment'!$A$4:$F$4,0),FALSE)","v":{"$error":"#N/A"}}]
[{"$nulls":4},{"$f":"VLOOKUP(C72,'Risk Assessment'!$A$4:$F$10,MATCH(D72,'Risk Assessment'!$A$4:$F$4,0),FALSE)","v":{"$error":"#N/A"}},{"$nulls":3},{"$f":"VLOOKUP(G72,'Risk Assessment'!$A$4:$F$10,MATCH(H72,'Risk Assessment'!$A$4:$F$4,0),FALSE)","v":{"$error":"#N/A"}}]
[{"$nulls":4},{"$f":"VLOOKUP(C73,'Risk Assessment'!$A$4:$F$10,MATCH(D73,'Risk Assessment'!$A$4:$F$4,0),FALSE)","v":{"$error":"#N/A"}},{"$nulls":3},{"$f":"VLOOKUP(G73,'Risk Assessment'!$A$4:$F$10,MATCH(H73,'Risk Assessment'!$A$4:$F$4,0),FALSE)","v":{"$error":"#N/A"}}]
[{"$nulls":4},{"$f":"VLOOKUP(C74,'Risk Assessment'!$A$4:$F$10,MATCH(D74,'Risk Assessment'!$A$4:$F$4,0),FALSE)","v":{"$error":"#N/A"}},{"$nulls":3},{"$f":"VLOOKUP(G74,'Risk Assessment'!$A$4:$F$10,MATCH(H74,'Risk Assessment'!$A$4:$F$4,0),FALSE)","v":{"$error":"#N/A"}}]
[{"$nulls":4},{"$f":"VLOOKUP(C75,'Risk Assessment'!$A$4:$F$10,MATCH(D75,'Risk Assessment'!$A$4:$F$4,0),FALSE)","v":{"$error":"#N/A"}},{"$nulls":3},{"$f":"VLOOKUP(G75,'Risk Assessment'!$A$4:$F$10,MATCH(H75,'Risk Assessment'!$A$4:$F$4,0),FALSE)","v":{"$error":"#N/A"}}]
[{"$nulls":4},{"$f":"VLOOKUP(C76,'Risk Assessment'!$A$4:$F$10,MATCH(D76,'Risk Assessment'!$A$4:$F$4,0),FALSE)","v":{"$error":"#N/A"}},{"$nulls":3},{"$f":"VLOOKUP(G76,'Risk Assessment'!$A$4:$F$10,MATCH(H76,'Risk Assessment'!$A$4:$F$4,0),FALSE)","v":{"$error":"#N/A"}}]
[{"$nulls":4},{"$f":"VLOOKUP(C77,'Risk Assessment'!$A$4:$F$10,MATCH(D77,'Risk Assessment'!$A$4:$F$4,0),FALSE)","v":{"$error":"#N/A"}},{"$nulls":3},{"$f":"VLOOKUP(G77,'Risk Assessment'!$A$4:$F$10,MATCH(H77,'Risk Assessment'!$A$4:$F$4,0),FALSE)","v":{"$error":"#N/A"}}]

{"sheet":"Outdoor Games","index":23,"n_rows":77,"n_cols":9,"rows_kept":77}
{"$rows_empty":9}
[" HAZARD and RISK REGISTER ",null," WCC Practical Activities"]
["Refer to Hazard/Risk Management Procedure"]
[]
["Developed by: Matthew Smith Date: 25 May 2022."]
[" Approved by: Cody Blackler  Date:  11 August 2022"]
["Reviewed by: Cody Blackler and Matthew Smith  Date: 11 August 2022"]
[]
["(1) Identify all hazards, then determine a risk rating."]
["(2) Eliminate the risk. If not reasonably practicable then"]
["(3) Minimise the risk as far as reasonably practicable."]
["(4) Reassess and determine the residual risk"]
[]
["Where or what task?","Hazard and Harm?","Likelihood \n(Choose from drop list in cell)","Consequence \n(Choose from drop list in cell)","Rating","Action required to Eliminate (E) or Minimise (M). \n (controls, administration controls, personal protective equipment.)","Revised Likelihood","Revised Consequence","Residual Rating"]
["Basketball poles,gaga pit","walking in to structures","Likely","Significant",{"$f":"VLOOKUP(C23,'Risk Assessment'!$A$4:$F$10,MATCH(D23,'Risk Assessment'!$A$4:$F$4,0),FALSE)","v":12},"M: advise users to be careful\nM: reflective tape on basketball poles","Unlikely","Significant",{"$f":"VLOOKUP(G23,'Risk Assessment'!$A$4:$F$10,MATCH(H23,'Risk Assessment'!$A$4:$F$4,0),FALSE)","v":6}]
["volleyball court","sand in eyes","Likely","Moderate",{"$f":"VLOOKUP(C24,'Risk Assessment'!$A$4:$F$10,MATCH(D24,'Risk Assessment'!$A$4:$F$4,0),FALSE)","v":8},"M: users advised to take care while participating","Unlikely","Moderate",{"$f":"VLOOKUP(G24,'Risk Assessment'!$A$4:$F$10,MATCH(H24,'Risk Assessment'!$A$4:$F$4,0),FALSE)","v":4}]
["All tasks","trips, slips, falls","Likely","Moderate",{"$f":"VLOOKUP(C25,'Risk Assessment'!$A$4:$F$10,MATCH(D25,'Risk Assessment'!$A$4:$F$4,0),FALSE)","v":8},"M: advise users to be careful","Unlikely","Moderate",{"$f":"VLOOKUP(G25,'Risk Assessment'!$A$4:$F$10,MATCH(H25,'Risk Assessment'!$A$4:$F$4,0),FALSE)","v":4}]
[{"$nulls":4},{"$f":"VLOOKUP(C26,'Risk Assessment'!$A$4:$F$10,MATCH(D26,'Risk Assessment'!$A$4:$F$4,0),FALSE)","v":{"$error":"#N/A"}},{"$nulls":3},{"$f":"VLOOKUP(G26,'Risk Assessment'!$A$4:$F$10,MATCH(H26,'Risk Assessment'!$A$4:$F$4,0),FALSE)","v":{"$error":"#N/A"}}]
[{"$nulls":4},{"$f":"VLOOKUP(C27,'Risk Assessment'!$A$4:$F$10,MATCH(D27,'Risk Assessment'!$A$4:$F$4,0),FALSE)","v":{"$error":"#N/A"}},{"$nulls":3},{"$f":"VLOOKUP(G27,'Risk Assessment'!$A$4:$F$10,MATCH(H27,'Risk Assessment'!$A$4:$F$4,0),FALSE)","v":{"$error":"#N/A"}}]
[{"$nulls":4},{"$f":"VLOOKUP(C28,'Risk Assessment'!$A$4:$F$10,MATCH(D28,'Risk Assessment'!$A$4:$F$4,0),FALSE)","v":{"$error":"#N/A"}},{"$nulls":3},{"$f":"VLOOKUP(G28,'Risk Assessment'!$A$4:$F$10,MATCH(H28,'Risk Assessment'!$A$4:$F$4,0),FALSE)","v":{"$error":"#N/A"}}]
[{"$nulls":4},{"$f":"VLOOKUP(C29,'Risk Assessment'!$A$4:$F$10,MATCH(D29,'Risk Assessment'!$A$4:$F$4,0),FALSE)","v":{"$error":"#N/A"}},{"$nulls":3},{"$f":"VLOOKUP(G29,'Risk Assessment'!$A$4:$F$10,MATCH(H29,'Risk Assessment'!$A$4:$F$4,0),FALSE)","v":{"$error":"#N/A"}}]
[{"$nulls":4},{"$f":"VLOOKUP(C30,'Risk Assessment'!$A$4:$F$10,MATCH(D30,'Risk Assessment'!$A$4:$F$4,0),FALSE)","v":{"$error":"#N/A"}},{"$nulls":3},{"$f":"VLOOKUP(G30,'Risk Assessment'!$A$4:$F$10,MATCH(H30,'Risk Assessment'!$A$4:$F$4,0),FALSE)","v":{"$error":"#N/A"}}]
[{"$nulls":4},{"$f":"VLOOKUP(C31,'Risk Assessment'!$A$4:$F$10,MATCH(D31,'Risk Assessment'!$A$4:$F$4,0),FALSE)","v":{"$error":"#N/A"}},{"$nulls":3},{"$f":"VLOOKUP(G31,'Risk Assessment'!$A$4:$F$10,MATCH(H31,'Risk Assessment'!$A$4:$F$4,0),FALSE)","v":{"$error":"#N/A"}}]
[{"$nulls":4},{"$f":"VLOOKUP(C32,'Risk Assessment'!$A$4:$F$10,MATCH(D32,'Risk Assessment'!$A$4:$F$4,0),FALSE)","v":{"$error":"#N/A"}},{"$nulls":3},{"$f":"VLOOKUP(G32,'Risk Assessment'!$A$4:$F$10,MATCH(H32,'Risk Assessment'!$A$4:$F$4,0),FALSE)","v":{"$error":"#N/A"}}]
[{"$nulls":4},{"$f":"VLOOKUP(C33,'Risk Assessment'!$A$4:$F$10,MATCH(D33,'Risk Assessment'!$A$4:$F$4,0),FALSE)","v":{"$error":"#N/A"}},{"$nulls":3},{"$f":"VLOOKUP(G33,'Risk Assessment'!$A$4:$F$10,MATCH(H33,'Risk Assessment'!$A$4:$F$4,0),FALSE)","v":{"$error":"#N/A"}}]
[{"$nulls":4},{"$f":"VLOOKUP(C34,'Risk Assessment'!$A$4:$F$10,MATCH(D34,'Risk Assessment'!$A$4:$F$4,0),FALSE)","v":{"$error":"#N/A"}},{"$nulls":3},{"$f":"VLOOKUP(G34,'Risk Assessment'!$A$4:$F$10,MATCH(H34,'Risk Assessment'!$A$4:$F$4,0),FALSE)","v":{"$error":"#N/A"}}]
[{"$nulls":4},{"$f":"VLOOKUP(C35,'Risk Assessment'!$A$4:$F$10,MATCH(D35,'Risk Assessment'!$A$4:$F$4,0),FALSE)","v":{"$error":"#N/A"}},{"$nulls":3},{"$f":"VLOOKUP(G35,'Risk Assessment'!$A$4:$F$10,MATCH(H35,'Risk Assessment'!$A$4:$F$4,0),FALSE)","v":{"$error":"#N/A"}}]
[{"$nulls":4},{"$f":"VLOOKUP(C36,'Risk Assessment'!$A$4:$F$10,MATCH(D36,'Risk Assessment'!$A$4:$F$4,0),FALSE)","v":{"$error":"#N/A"}},{"$nulls":3},{"$f":"VLOOKUP(G36,'Risk Assessment'!$A$4:$F$10,MATCH(H36,'Risk Assessment'!$A$4:$F$4,0),FALSE)","v":{"$error":"#N/A"}}]
[{"$nulls":4},{"$f":"VLOOKUP(C37,'Risk Assessment'!$A$4:$F$10,MATCH(D37,'Risk Assessment'!$A$4:$F$4,0),FALSE)","v":{"$error":"#N/A"}},{"$nulls":3},{"$f":"VLOOKUP(G37,'Risk Assessment'!$A$4:$F$10,MATCH(H37,'Risk Assessment'!$A$4:$F$4,0),FALSE)","v":{"$error":"#N/A"}}]
[{"$nulls":4},{"$f":"VLOOKUP(C38,'Risk Assessment'!$A$4:$F$10,MATCH(D38,'Risk Assessment'!$A$4:$F$4,0),FALSE)","v":{"$error":"#N/A"}},{"$nulls":3},{"$f":"VLOOKUP(G38,'Risk Assessment'!$A$4:$F$10,MATCH(H38,'Risk Assessment'!$A$4:$F$4,0),FALSE)","v":{"$error":"#N/A"}}]
[{"$nulls":4},{"$f":"VLOOKUP(C39,'Risk Assessment'!$A$4:$F$10,MATCH(D39,'Risk Assessment'!$A$4:$F$4,0),FALSE)","v":{"$error":"#N/A"}},{"$nulls":3},{"$f":"VLOOKUP(G39,'Risk Assessment'!$A$4:$F$10,MATCH(H39,'Risk Assessment'!$A$4:$F$4,0),FALSE)","v":{"$error":"#N/A"}}]
[{"$nulls":4},{"$f":"VLOOKUP(C40,'Risk Assessment'!$A$4:$F$10,MATCH(D40,'Risk Assessment'!$A$4:$F$4,0),FALSE)","v":{"$error":"#N/A"}},{"$nulls":3},{"$f":"VLOOKUP(G40,'Risk Assessment'!$A$4:$F$10,MATCH(H40,'Risk Assessment'!$A$4:$F$4,0),FALSE)","v":{"$error":"#N/A"}}]
[{"$nulls":4},{"$f":"VLOOKUP(C41,'Risk Assessment'!$A$4:$F$10,MATCH(D41,'Risk Assessment'!$A$4:$F$4,0),FALSE)","v":{"$error":"#N/A"}},{"$nulls":3},{"$f":"VLOOKUP(G41,'Risk Assessment'!$A$4:$F$10,MATCH(H41,'Risk Assessment'!$A$4:$F$4,0),FALSE)","v":{"$error":"#N/A"}}]
[{"$nulls":4},{"$f":"VLOOKUP(C42,'Risk Assessment'!$A$4:$F$10,MATCH(D42,'Risk Assessment'!$A$4:$F$4,0),FALSE)","v":{"$error":"#N/A"}},{"$nulls":3},{"$f":"VLOOKUP(G42,'Risk Assessment'!$A$4:$F$10,MATCH(H42,'Risk Assessment'!$A$4:$F$4,0),FALSE)","v":{"$error":"#N/A"}}]
[{"$nulls":4},{"$f":"VLOOKUP(C43,'Risk Assessment'!$A$4:$F$10,MATCH(D43,'Risk Assessment'!$A$4:$F$4,0),FALSE)","v":{"$error":"#N/A"}},{"$nulls":3},{"$f":"VLOOKUP(G43,'Risk Assessment'!$A$4:$F$10,MATCH(H43,'Risk Assessment'!$A$4:$F$4,0),FALSE)","v":{"$error":"#N/A"}}]
[{"$nulls":4},{"$f":"VLOOKUP(C44,'Risk Assessment'!$A$4:$F$10,MATCH(D44,'Risk Assessment'!$A$4:$F$4,0),FALSE)","v":{"$error":"#N/A"}},{"$nulls":3},{"$f":"VLOOKUP(G44,'Risk Assessment'!$A$4:$F$10,MATCH(H44,'Risk Assessment'!$A$4:$F$4,0),FALSE)","v":{"$error":"#N/A"}}]
[{"$nulls":4},{"$f":"VLOOKUP(C45,'Risk Assessment'!$A$4:$F$10,MATCH(D45,'Risk Assessment'!$A$4:$F$4,0),FALSE)","v":{"$error":"#N/A"}},{"$nulls":3},{"$f":"VLOOKUP(G45,'Risk Assessment'!$A$4:$F$10,MATCH(H45,'Risk Assessment'!$A$4:$F$4,0),FALSE)","v":{"$error":"#N/A"}}]
[{"$nulls":4},{"$f":"VLOOKUP(C46,'Risk Assessment'!$A$4:$F$10,MATCH(D46,'Risk Assessment'!$A$4:$F$4,0),FALSE)","v":{"$error":"#N/A"}},{"$nulls":3},{"$f":"VLOOKUP(G46,'Risk Assessment'!$A$4:$F$10,MATCH(H46,'Risk Assessment'!$A$4:$F$4,0),FALSE)","v":{"$error":"#N/A"}}]
[{"$nulls":4},{"$f":"VLOOKUP(C47,'Risk Assessment'!$A$4:$F$10,MATCH(D47,'Risk Assessment'!$A$4:$F$4,0),FALSE)","v":{"$error":"#N/A"}},{"$nulls":3},{"$f":"VLOOKUP(G47,'Risk Assessment'!$A$4:$F$10,MATCH(H47,'Risk Assessment'!$A$4:$F$4,0),FALSE)","v":{"$error":"#N/A"}}]
[{"$nulls":4},{"$f":"VLOOKUP(C48,'Risk Assessment'!$A$4:$F$10,MATCH(D48,'Risk Assessment'!$A$4:$F$4,0),FALSE)","v":{"$error":"#N/A"}},{"$nulls":3},{"$f":"VLOOKUP(G48,'Risk Assessment'!$A$4:$F$10,MATCH(H48,'Risk Assessment'!$A$4:$F$4,0),FALSE)","v":{"$error":"#N/A"}}]
[{"$nulls":4},{"$f":"VLOOKUP(C49,'Risk Assessment'!$A$4:$F$10,MATCH(D49,'Risk Assessment'!$A$4:$F$4,0),FALSE)","v":{"$error":"#N/A"}},{"$nulls":3},{"$f":"VLOOKUP(G49,'Risk Assessment'!$A$4:$F$10,MATCH(H49,'Risk Assessment'!$A$4:$F$4,0),FALSE)","v":{"$error":"#N/A"}}]
[{"$nulls":4},{"$f":"VLOOKUP(C50,'Risk Assessment'!$A$4:$F$10,MATCH(D50,'Risk Assessment'!$A$4:$F$4,0),FALSE)","v":{"$error":"#N/A"}},{"$nulls":3},{"$f":"VLOOKUP(G50,'Risk Assessment'!$A$4:$F$10,MATCH(H50,'Risk Assessment'!$A$4:$F$4,0),FALSE)","v":{"$error":"#N/A"}}]
[{"$nulls":4},{"$f":"VLOOKUP(C51,'Risk Assessment'!$A$4:$F$10,MATCH(D51,'Risk Assessment'!$A$4:$F$4,0),FALSE)","v":{"$error":"#N/A"}},{"$nulls":3},{"$f":"VLOOKUP(G51,'Risk Assessment'!$A$4:$F$10,MATCH(H51,'Risk Assessment'!$A$4:$F$4,0),FALSE)","v":{"$error":"#N/A"}}]
[{"$nulls":4},{"$f":"VLOOKUP(C52,'Risk Assessment'!$A$4:$F$10,MATCH(D52,'Risk Assessment'!$A$4:$F$4,0),FALSE)","v":{"$error":"#N/A"}},{"$nulls":3},{"$f":"VLOOKUP(G52,'Risk Assessment'!$A$4:$F$10,MATCH(H52,'Risk Assessment'!$A$4:$F$4,0),FALSE)","v":{"$error":"#N/A"}}]
[{"$nulls":4},{"$f":"VLOOKUP(C53,'Risk Assessment'!$A$4:$F$10,MATCH(D53,'Risk Assessment'!$A$4:$F$4,0),FALSE)","v":{"$error":"#N/A"}},{"$nulls":3},{"$f":"VLOOKUP(G53,'Risk Assessment'!$A$4:$F$10,MATCH(H53,'Risk Assessment'!$A$4:$F$4,0),FALSE)","v":{"$error":"#N/A"}}]
[{"$nulls":4},{"$f":"VLOOKUP(C54,'Risk Assessment'!$A$4:$F$10,MATCH(D54,'Risk Assessment'!$A$4:$F$4,0),FALSE)","v":{"$error":"#N/A"}},{"$nulls":3},{"$f":"VLOOKUP(G54,'Risk Assessment'!$A$4:$F$10,MATCH(H54,'Risk Assessment'!$A$4:$F$4,0),FALSE)","v":{"$error":"#N/A"}}]
[{"$nulls":4},{"$f":"VLOOKUP(C55,'Risk Assessment'!$A$4:$F$10,MATCH(D55,'Risk Assessment'!$A$4:$F$4,0),FALSE)","v":{"$error":"#N/A"}},{"$nulls":3},{"$f":"VLOOKUP(G55,'Risk Assessment'!$A$4:$F$10,MATCH(H55,'Risk Assessment'!$A$4:$F$4,0),FALSE)","v":{"$error":"#N/A"}}]
[{"$nulls":4},{"$f":"VLOOKUP(C56,'Risk Assessment'!$A$4:$F$10,MATCH(D56,'Risk Assessment'!$A$4:$F$4,0),FALSE)","v":{"$error":"#N/A"}},{"$nulls":3},{"$f":"VLOOKUP(G56,'Risk Assessment'!$A$4:$F$10,MATCH(H56,'Risk Assessment'!$A$4:$F$4,0),FALSE)","v":{"$error":"#N/A"}}]
[{"$nulls":4},{"$f":"VLOOKUP(C57,'Risk Assessment'!$A$4:$F$10,MATCH(D57,'Risk Assessment'!$A$4:$F$4,0),FALSE)","v":{"$error":"#N/A"}},{"$nulls":3},{"$f":"VLOOKUP(G57,'Risk Assessment'!$A$4:$F$10,MATCH(H57,'Risk Assessment'!$A$4:$F$4,0),FALSE)","v":{"$error":"#N/A"}}]
[{"$nulls":4},{"$f":"VLOOKUP(C58,'Risk Assessment'!$A$4:$F$10,MATCH(D58,'Risk Assessment'!$A$4:$F$4,0),FALSE)","v":{"$error":"#N/A"}},{"$nulls":3},{"$f":"VLOOKUP(G58,'Risk Assessment'!$A$4:$F$10,MATCH(H58,'Risk Assessment'!$A$4:$F$4,0),FALSE)","v":{"$error":"#N/A"}}]
[{"$nulls":4},{"$f":"VLOOKUP(C59,'Risk Assessment'!$A$4:$F$10,MATCH(D59,'Risk Assessment'!$A$4:$F$4,0),FALSE)","v":{"$error":"#N/A"}},{"$nulls":3},{"$f":"VLOOKUP(G59,'Risk Assessment'!$A$4:$F$10,MATCH(H59,'Risk Assessment'!$A$4:$F$4,0),FALSE)","v":{"$error":"#N/A"}}]
[{"$nulls":4},{"$f":"VLOOKUP(C60,'Risk Assessment'!$A$4:$F$10,MATCH(D60,'Risk Assessment'!$A$4:$F$4,0),FALSE)","v":{"$error":"#N/A"}},{"$nulls":3},{"$f":"VLOOKUP(G60,'Risk Assessment'!$A$4:$F$10,MATCH(H60,'Risk Assessment'!$A$4:$F$4,0),FALSE)","v":{"$error":"#N/A"}}]
[{"$nulls":4},{"$f":"VLOOKUP(C61,'Risk Assessment'!$A$4:$F$10,MATCH(D61,'Risk Assessment'!$A$4:$F$4,0),FALSE)","v":{"$error":"#N/A"}},{"$nulls":3},{"$f":"VLOOKUP(G61,'Risk Assessment'!$A$4:$F$10,MATCH(H61,'Risk Assessment'!$A$4:$F$4,0),FALSE)","v":{"$error":"#N/A"}}]
[{"$nulls":4},{"$f":"VLOOKUP(C62,'Risk Assessment'!$A$4:$F$10,MATCH(D62,'Risk Assessment'!$A$4:$F$4,0),FALSE)","v":{"$error":"#N/A"}},{"$nulls":3},{"$f":"VLOOKUP(G62,'Risk Assessment'!$A$4:$F$10,MATCH(H62,'Risk Assessment'!$A$4:$F$4,0),FALSE)","v":{"$error":"#N/A"}}]
[{"$nulls":4},{"$f":"VLOOKUP(C63,'Risk Assessment'!$A$4:$F$10,MATCH(D63,'Risk Assessment'!$A$4:$F$4,0),FALSE)","v":{"$error":"#N/A"}},{"$nulls":3},{"$f":"VLOOKUP(G63,'Risk Assessment'!$A$4:$F$10,MATCH(H63,'Risk Assessment'!$A$4:$F$4,0),FALSE)","v":{"$error":"#N/A"}}]
[{"$nulls":4},{"$f":"VLOOKUP(C64,'Risk Assessment'!$A$4:$F$10,MATCH(D64,'Risk Assessment'!$A$4:$F$4,0),FALSE)","v":{"$error":"#N/A"}},{"$nulls":3},{"$f":"VLOOKUP(G64,'Risk Assessment'!$A$4:$F$10,MATCH(H64,'Risk Assessment'!$A$4:$F$4,0),FALSE)","v":{"$error":"#N/A"}}]
[{"$nulls":4},{"$f":"VLOOKUP(C65,'Risk Assessment'!$A$4:$F$10,MATCH(D65,'Risk Assessment'!$A$4:$F$4,0),FALSE)","v":{"$error":"#N/A"}},{"$nulls":3},{"$f":"VLOOKUP(G65,'Risk Assessment'!$A$4:$F$10,MATCH(H65,'Risk Assessment'!$A$4:$F$4,0),FALSE)","v":{"$error":"#N/A"}}]
[{"$nulls":4},{"$f":"VLOOKUP(C66,'Risk Assessment'!$A$4:$F$10,MATCH(D66,'Risk Assessment'!$A$4:$F$4,0),FALSE)","v":{"$error":"#N/A"}},{"$nulls":3},{"$f":"VLOOKUP(G66,'Risk Assessment'!$A$4:$F$10,MATCH(H66,'Risk Assessment'!$A$4:$F$4,0),FALSE)","v":{"$error":"#N/A"}}]
[{"$nulls":4},{"$f":"VLOOKUP(C67,'Risk Assessment'!$A$4:$F$10,MATCH(D67,'Risk Assessment'!$A$4:$F$4,0),FALSE)","v":{"$error":"#N/A"}},{"$nulls":3},{"$f":"VLOOKUP(G67,'Risk Assessment'!$A$4:$F$10,MATCH(H67,'Risk Assessment'!$A$4:$F$4,0),FALSE)","v":{"$error":"#N/A"}}]
[{"$nulls":4},{"$f":"VLOOKUP(C68,'Risk Assessment'!$A$4:$F$10,MATCH(D68,'Risk Assessment'!$A$4:$F$4,0),FALSE)","v":{"$error":"#N/A"}},{"$nulls":3},{"$f":"VLOOKUP(G68,'Risk Assessment'!$A$4:$F$10,MATCH(H68,'Risk Assessment'!$A$4:$F$4,0),FALSE)","v":{"$error":"#N/A"}}]
[{"$nulls":4},{"$f":"VLOOKUP(C69,'Risk Assessment'!$A$4:$F$10,MATCH(D69,'Risk Assessment'!$A$4:$F$4,0),FALSE)","v":{"$error":"#N/A"}},{"$nulls":3},{"$f":"VLOOKUP(G69,'Risk Assessment'!$A$4:$F$10,MATCH(H69,'Risk Assessment'!$A$4:$F$4,0),FALSE)","v":{"$error":"#N/A"}}]
[{"$nulls":4},{"$f":"VLOOKUP(C70,'Risk Assessment'!$A$4:$F$10,MATCH(D70,'Risk Assessment'!$A$4:$F$4,0),FALSE)","v":{"$error":"#N/A"}},{"$nulls":3},{"$f":"VLOOKUP(G70,'Risk Assessment'!$A$4:$F$10,MATCH(H70,'Risk Assessment'!$A$4:$F$4,0),FALSE)","v":{"$error":"#N/A"}}]
[{"$nulls":4},{"$f":"VLOOKUP(C71,'Risk Assessment'!$A$4:$F$10,MATCH(D71,'Risk Assessment'!$A$4:$F$4,0),FALSE)","v":{"$error":"#N/A"}},{"$nulls":3},{"$f":"VLOOKUP(G71,'Risk Assessment'!$A$4:$F$10,MATCH(H71,'Risk Assessment'!$A$4:$F$4,0),FALSE)","v":{"$error":"#N/A"}}]
[{"$nulls":4},{"$f":"VLOOKUP(C72,'Risk Assessment'!$A$4:$F$10,MATCH(D72,'Risk Assessment'!$A$4:$F$4,0),FALSE)","v":{"$error":"#N/A"}},{"$nulls":3},{"$f":"VLOOKUP(G72,'Risk Assessment'!$A$4:$F$10,MATCH(H72,'Risk Assessment'!$A$4:$F$4,0),FALSE)","v":{"$error":"#N/A"}}]
[{"$nulls":4},{"$f":"VLOOKUP(C73,'Risk Assessment'!$A$4:$F$10,MATCH(D73,'Risk Assessment'!$A$4:$F$4,0),FALSE)","v":{"$error":"#N/A"}},{"$nulls":3},{"$f":"VLOOKUP(G73,'Risk Assessment'!$A$4:$F$10,MATCH(H73,'Risk Assessment'!$A$4:$F$4,0),FALSE)","v":{"$error":"#N/A"}}]
[{"$nulls":4},{"$f":"VLOOKUP(C74,'Risk Assessment'!$A$4:$F$10,MATCH(D74,'Risk Assessment'!$A$4:$F$4,0),FALSE)","v":{"$error":"#N/A"}},{"$nulls":3},{"$f":"VLOOKUP(G74,'Risk Assessment'!$A$4:$F$10,MATCH(H74,'Risk Assessment'!$A$4:$F$4,0),FALSE)","v":{"$error":"#N/A"}}]
[{"$nulls":4},{"$f":"VLOOKUP(C75,'Risk Assessment'!$A$4:$F$10,MATCH(D75,'Risk Assessment'!$A$4:$F$4,0),FALSE)","v":{"$error":"#N/A"}},{"$nulls":3},{"$f":"VLOOKUP(G75,'Risk Assessment'!$A$4:$F$10,MATCH(H75,'Risk Assessment'!$A$4:$F$4,0),FALSE)","v":{"$error":"#N/A"}}]
[{"$nulls":4},{"$f":"VLOOKUP(C76,'Risk Assessment'!$A$4:$F$10,MATCH(D76,'Risk Assessment'!$A$4:$F$4,0),FALSE)","v":{"$error":"#N/A"}},{"$nulls":3},{"$f":"VLOOKUP(G76,'Risk Assessment'!$A$4:$F$10,MATCH(H76,'Risk Assessment'!$A$4:$F$4,0),FALSE)","v":{"$error":"#N/A"}}]
[{"$nulls":4},{"$f":"VLOOKUP(C77,'Risk Assessment'!$A$4:$F$10,MATCH(D77,'Risk Assessment'!$A$4:$F$4,0),FALSE)","v":{"$error":"#N/A"}},{"$nulls":3},{"$f":"VLOOKUP(G77,'Risk Assessment'!$A$4:$F$10,MATCH(H77,'Risk Assessment'!$A$4:$F$4,0),FALSE)","v":{"$error":"#N/A"}}]

{"sheet":"Indoor Games Room","index":24,"n_rows":77,"n_cols":9,"rows_kept":77}
{"$rows_empty":9}
[" HAZARD and RISK REGISTER ",null," WCC Practical Activities"]
["Refer to Hazard/Risk Management Procedure"]
[]
["Developed by: Matthew Smith Date: 25 May 2022."]
[" Approved by: Cody Blackler   Date: 11 August 2022"]
["Reviewed by: Cody Blackler and Matthew Smith  Date: 11 August 2022"]
[]
["(1) Identify all hazards, then determine a risk rating."]
["(2) Eliminate the risk. If not reasonably practicable then"]
["(3) Minimise the risk as far as reasonably practicable."]
["(4) Reassess and determine the residual risk"]
[]
["Where or what task?","Hazard and Harm?","Likelihood \n(Choose from drop list in cell)","Consequence \n(Choose from drop list in cell)","Rating","Action required to Eliminate (E) or Minimise (M). \n (controls, administration controls, personal protective equipment.)","Revised Likelihood","Revised Consequence","Residual Rating"]
["All tasks","hit by equipment","Likely","Moderate",{"$f":"VLOOKUP(C23,'Risk Assessment'!$A$4:$F$10,MATCH(D23,'Risk Assessment'!$A$4:$F$4,0),FALSE)","v":8},"M: 1:6 adult/leader:children ratio for games room\nM: users advised to be careful","Unlikely","Moderate",{"$f":"VLOOKUP(G23,'Risk Assessment'!$A$4:$F$10,MATCH(H23,'Risk Assessment'!$A$4:$F$4,0),FALSE)","v":4}]
["All tasks","collisions","Likely","Moderate",{"$f":"VLOOKUP(C24,'Risk Assessment'!$A$4:$F$10,MATCH(D24,'Risk Assessment'!$A$4:$F$4,0),FALSE)","v":8},"M: 1:6 adult/leader:children ratio for games room\nM: users advised to be careful","Unlikely","Moderate",{"$f":"VLOOKUP(G24,'Risk Assessment'!$A$4:$F$10,MATCH(H24,'Risk Assessment'!$A$4:$F$4,0),FALSE)","v":4}]
[{"$nulls":4},{"$f":"VLOOKUP(C25,'Risk Assessment'!$A$4:$F$10,MATCH(D25,'Risk Assessment'!$A$4:$F$4,0),FALSE)","v":{"$error":"#N/A"}},{"$nulls":3},{"$f":"VLOOKUP(G25,'Risk Assessment'!$A$4:$F$10,MATCH(H25,'Risk Assessment'!$A$4:$F$4,0),FALSE)","v":{"$error":"#N/A"}}]
[{"$nulls":4},{"$f":"VLOOKUP(C26,'Risk Assessment'!$A$4:$F$10,MATCH(D26,'Risk Assessment'!$A$4:$F$4,0),FALSE)","v":{"$error":"#N/A"}},{"$nulls":3},{"$f":"VLOOKUP(G26,'Risk Assessment'!$A$4:$F$10,MATCH(H26,'Risk Assessment'!$A$4:$F$4,0),FALSE)","v":{"$error":"#N/A"}}]
[{"$nulls":4},{"$f":"VLOOKUP(C27,'Risk Assessment'!$A$4:$F$10,MATCH(D27,'Risk Assessment'!$A$4:$F$4,0),FALSE)","v":{"$error":"#N/A"}},{"$nulls":3},{"$f":"VLOOKUP(G27,'Risk Assessment'!$A$4:$F$10,MATCH(H27,'Risk Assessment'!$A$4:$F$4,0),FALSE)","v":{"$error":"#N/A"}}]
[{"$nulls":4},{"$f":"VLOOKUP(C28,'Risk Assessment'!$A$4:$F$10,MATCH(D28,'Risk Assessment'!$A$4:$F$4,0),FALSE)","v":{"$error":"#N/A"}},{"$nulls":3},{"$f":"VLOOKUP(G28,'Risk Assessment'!$A$4:$F$10,MATCH(H28,'Risk Assessment'!$A$4:$F$4,0),FALSE)","v":{"$error":"#N/A"}}]
[{"$nulls":4},{"$f":"VLOOKUP(C29,'Risk Assessment'!$A$4:$F$10,MATCH(D29,'Risk Assessment'!$A$4:$F$4,0),FALSE)","v":{"$error":"#N/A"}},{"$nulls":3},{"$f":"VLOOKUP(G29,'Risk Assessment'!$A$4:$F$10,MATCH(H29,'Risk Assessment'!$A$4:$F$4,0),FALSE)","v":{"$error":"#N/A"}}]
[{"$nulls":4},{"$f":"VLOOKUP(C30,'Risk Assessment'!$A$4:$F$10,MATCH(D30,'Risk Assessment'!$A$4:$F$4,0),FALSE)","v":{"$error":"#N/A"}},{"$nulls":3},{"$f":"VLOOKUP(G30,'Risk Assessment'!$A$4:$F$10,MATCH(H30,'Risk Assessment'!$A$4:$F$4,0),FALSE)","v":{"$error":"#N/A"}}]
[{"$nulls":4},{"$f":"VLOOKUP(C31,'Risk Assessment'!$A$4:$F$10,MATCH(D31,'Risk Assessment'!$A$4:$F$4,0),FALSE)","v":{"$error":"#N/A"}},{"$nulls":3},{"$f":"VLOOKUP(G31,'Risk Assessment'!$A$4:$F$10,MATCH(H31,'Risk Assessment'!$A$4:$F$4,0),FALSE)","v":{"$error":"#N/A"}}]
[{"$nulls":4},{"$f":"VLOOKUP(C32,'Risk Assessment'!$A$4:$F$10,MATCH(D32,'Risk Assessment'!$A$4:$F$4,0),FALSE)","v":{"$error":"#N/A"}},{"$nulls":3},{"$f":"VLOOKUP(G32,'Risk Assessment'!$A$4:$F$10,MATCH(H32,'Risk Assessment'!$A$4:$F$4,0),FALSE)","v":{"$error":"#N/A"}}]
[{"$nulls":4},{"$f":"VLOOKUP(C33,'Risk Assessment'!$A$4:$F$10,MATCH(D33,'Risk Assessment'!$A$4:$F$4,0),FALSE)","v":{"$error":"#N/A"}},{"$nulls":3},{"$f":"VLOOKUP(G33,'Risk Assessment'!$A$4:$F$10,MATCH(H33,'Risk Assessment'!$A$4:$F$4,0),FALSE)","v":{"$error":"#N/A"}}]
[{"$nulls":4},{"$f":"VLOOKUP(C34,'Risk Assessment'!$A$4:$F$10,MATCH(D34,'Risk Assessment'!$A$4:$F$4,0),FALSE)","v":{"$error":"#N/A"}},{"$nulls":3},{"$f":"VLOOKUP(G34,'Risk Assessment'!$A$4:$F$10,MATCH(H34,'Risk Assessment'!$A$4:$F$4,0),FALSE)","v":{"$error":"#N/A"}}]
[{"$nulls":4},{"$f":"VLOOKUP(C35,'Risk Assessment'!$A$4:$F$10,MATCH(D35,'Risk Assessment'!$A$4:$F$4,0),FALSE)","v":{"$error":"#N/A"}},{"$nulls":3},{"$f":"VLOOKUP(G35,'Risk Assessment'!$A$4:$F$10,MATCH(H35,'Risk Assessment'!$A$4:$F$4,0),FALSE)","v":{"$error":"#N/A"}}]
[{"$nulls":4},{"$f":"VLOOKUP(C36,'Risk Assessment'!$A$4:$F$10,MATCH(D36,'Risk Assessment'!$A$4:$F$4,0),FALSE)","v":{"$error":"#N/A"}},{"$nulls":3},{"$f":"VLOOKUP(G36,'Risk Assessment'!$A$4:$F$10,MATCH(H36,'Risk Assessment'!$A$4:$F$4,0),FALSE)","v":{"$error":"#N/A"}}]
[{"$nulls":4},{"$f":"VLOOKUP(C37,'Risk Assessment'!$A$4:$F$10,MATCH(D37,'Risk Assessment'!$A$4:$F$4,0),FALSE)","v":{"$error":"#N/A"}},{"$nulls":3},{"$f":"VLOOKUP(G37,'Risk Assessment'!$A$4:$F$10,MATCH(H37,'Risk Assessment'!$A$4:$F$4,0),FALSE)","v":{"$error":"#N/A"}}]
[{"$nulls":4},{"$f":"VLOOKUP(C38,'Risk Assessment'!$A$4:$F$10,MATCH(D38,'Risk Assessment'!$A$4:$F$4,0),FALSE)","v":{"$error":"#N/A"}},{"$nulls":3},{"$f":"VLOOKUP(G38,'Risk Assessment'!$A$4:$F$10,MATCH(H38,'Risk Assessment'!$A$4:$F$4,0),FALSE)","v":{"$error":"#N/A"}}]
[{"$nulls":4},{"$f":"VLOOKUP(C39,'Risk Assessment'!$A$4:$F$10,MATCH(D39,'Risk Assessment'!$A$4:$F$4,0),FALSE)","v":{"$error":"#N/A"}},{"$nulls":3},{"$f":"VLOOKUP(G39,'Risk Assessment'!$A$4:$F$10,MATCH(H39,'Risk Assessment'!$A$4:$F$4,0),FALSE)","v":{"$error":"#N/A"}}]
[{"$nulls":4},{"$f":"VLOOKUP(C40,'Risk Assessment'!$A$4:$F$10,MATCH(D40,'Risk Assessment'!$A$4:$F$4,0),FALSE)","v":{"$error":"#N/A"}},{"$nulls":3},{"$f":"VLOOKUP(G40,'Risk Assessment'!$A$4:$F$10,MATCH(H40,'Risk Assessment'!$A$4:$F$4,0),FALSE)","v":{"$error":"#N/A"}}]
[{"$nulls":4},{"$f":"VLOOKUP(C41,'Risk Assessment'!$A$4:$F$10,MATCH(D41,'Risk Assessment'!$A$4:$F$4,0),FALSE)","v":{"$error":"#N/A"}},{"$nulls":3},{"$f":"VLOOKUP(G41,'Risk Assessment'!$A$4:$F$10,MATCH(H41,'Risk Assessment'!$A$4:$F$4,0),FALSE)","v":{"$error":"#N/A"}}]
[{"$nulls":4},{"$f":"VLOOKUP(C42,'Risk Assessment'!$A$4:$F$10,MATCH(D42,'Risk Assessment'!$A$4:$F$4,0),FALSE)","v":{"$error":"#N/A"}},{"$nulls":3},{"$f":"VLOOKUP(G42,'Risk Assessment'!$A$4:$F$10,MATCH(H42,'Risk Assessment'!$A$4:$F$4,0),FALSE)","v":{"$error":"#N/A"}}]
[{"$nulls":4},{"$f":"VLOOKUP(C43,'Risk Assessment'!$A$4:$F$10,MATCH(D43,'Risk Assessment'!$A$4:$F$4,0),FALSE)","v":{"$error":"#N/A"}},{"$nulls":3},{"$f":"VLOOKUP(G43,'Risk Assessment'!$A$4:$F$10,MATCH(H43,'Risk Assessment'!$A$4:$F$4,0),FALSE)","v":{"$error":"#N/A"}}]
[{"$nulls":4},{"$f":"VLOOKUP(C44,'Risk Assessment'!$A$4:$F$10,MATCH(D44,'Risk Assessment'!$A$4:$F$4,0),FALSE)","v":{"$error":"#N/A"}},{"$nulls":3},{"$f":"VLOOKUP(G44,'Risk Assessment'!$A$4:$F$10,MATCH(H44,'Risk Assessment'!$A$4:$F$4,0),FALSE)","v":{"$error":"#N/A"}}]
[{"$nulls":4},{"$f":"VLOOKUP(C45,'Risk Assessment'!$A$4:$F$10,MATCH(D45,'Risk Assessment'!$A$4:$F$4,0),FALSE)","v":{"$error":"#N/A"}},{"$nulls":3},{"$f":"VLOOKUP(G45,'Risk Assessment'!$A$4:$F$10,MATCH(H45,'Risk Assessment'!$A$4:$F$4,0),FALSE)","v":{"$error":"#N/A"}}]
[{"$nulls":4},{"$f":"VLOOKUP(C46,'Risk Assessment'!$A$4:$F$10,MATCH(D46,'Risk Assessment'!$A$4:$F$4,0),FALSE)","v":{"$error":"#N/A"}},{"$nulls":3},{"$f":"VLOOKUP(G46,'Risk Assessment'!$A$4:$F$10,MATCH(H46,'Risk Assessment'!$A$4:$F$4,0),FALSE)","v":{"$error":"#N/A"}}]
[{"$nulls":4},{"$f":"VLOOKUP(C47,'Risk Assessment'!$A$4:$F$10,MATCH(D47,'Risk Assessment'!$A$4:$F$4,0),FALSE)","v":{"$error":"#N/A"}},{"$nulls":3},{"$f":"VLOOKUP(G47,'Risk Assessment'!$A$4:$F$10,MATCH(H47,'Risk Assessment'!$A$4:$F$4,0),FALSE)","v":{"$error":"#N/A"}}]
[{"$nulls":4},{"$f":"VLOOKUP(C48,'Risk Assessment'!$A$4:$F$10,MATCH(D48,'Risk Assessment'!$A$4:$F$4,0),FALSE)","v":{"$error":"#N/A"}},{"$nulls":3},{"$f":"VLOOKUP(G48,'Risk Assessment'!$A$4:$F$10,MATCH(H48,'Risk Assessment'!$A$4:$F$4,0),FALSE)","v":{"$error":"#N/A"}}]
[{"$nulls":4},{"$f":"VLOOKUP(C49,'Risk Assessment'!$A$4:$F$10,MATCH(D49,'Risk Assessment'!$A$4:$F$4,0),FALSE)","v":{"$error":"#N/A"}},{"$nulls":3},{"$f":"VLOOKUP(G49,'Risk Assessment'!$A$4:$F$10,MATCH(H49,'Risk Assessment'!$A$4:$F$4,0),FALSE)","v":{"$error":"#N/A"}}]
[{"$nulls":4},{"$f":"VLOOKUP(C50,'Risk Assessment'!$A$4:$F$10,MATCH(D50,'Risk Assessment'!$A$4:$F$4,0),FALSE)","v":{"$error":"#N/A"}},{"$nulls":3},{"$f":"VLOOKUP(G50,'Risk Assessment'!$A$4:$F$10,MATCH(H50,'Risk Assessment'!$A$4:$F$4,0),FALSE)","v":{"$error":"#N/A"}}]
[{"$nulls":4},{"$f":"VLOOKUP(C51,'Risk Assessment'!$A$4:$F$10,MATCH(D51,'Risk Assessment'!$A$4:$F$4,0),FALSE)","v":{"$error":"#N/A"}},{"$nulls":3},{"$f":"VLOOKUP(G51,'Risk Assessment'!$A$4:$F$10,MATCH(H51,'Risk Assessment'!$A$4:$F$4,0),FALSE)","v":{"$error":"#N/A"}}]
[{"$nulls":4},{"$f":"VLOOKUP(C52,'Risk Assessment'!$A$4:$F$10,MATCH(D52,'Risk Assessment'!$A$4:$F$4,0),FALSE)","v":{"$error":"#N/A"}},{"$nulls":3},{"$f":"VLOOKUP(G52,'Risk Assessment'!$A$4:$F$10,MATCH(H52,'Risk Assessment'!$A$4:$F$4,0),FALSE)","v":{"$error":"#N/A"}}]
[{"$nulls":4},{"$f":"VLOOKUP(C53,'Risk Assessment'!$A$4:$F$10,MATCH(D53,'Risk Assessment'!$A$4:$F$4,0),FALSE)","v":{"$error":"#N/A"}},{"$nulls":3},{"$f":"VLOOKUP(G53,'Risk Assessment'!$A$4:$F$10,MATCH(H53,'Risk Assessment'!$A$4:$F$4,0),FALSE)","v":{"$error":"#N/A"}}]
[{"$nulls":4},{"$f":"VLOOKUP(C54,'Risk Assessment'!$A$4:$F$10,MATCH(D54,'Risk Assessment'!$A$4:$F$4,0),FALSE)","v":{"$error":"#N/A"}},{"$nulls":3},{"$f":"VLOOKUP(G54,'Risk Assessment'!$A$4:$F$10,MATCH(H54,'Risk Assessment'!$A$4:$F$4,0),FALSE)","v":{"$error":"#N/A"}}]
[{"$nulls":4},{"$f":"VLOOKUP(C55,'Risk Assessment'!$A$4:$F$10,MATCH(D55,'Risk Assessment'!$A$4:$F$4,0),FALSE)","v":{"$error":"#N/A"}},{"$nulls":3},{"$f":"VLOOKUP(G55,'Risk Assessment'!$A$4:$F$10,MATCH(H55,'Risk Assessment'!$A$4:$F$4,0),FALSE)","v":{"$error":"#N/A"}}]
[{"$nulls":4},{"$f":"VLOOKUP(C56,'Risk Assessment'!$A$4:$F$10,MATCH(D56,'Risk Assessment'!$A$4:$F$4,0),FALSE)","v":{"$error":"#N/A"}},{"$nulls":3},{"$f":"VLOOKUP(G56,'Risk Assessment'!$A$4:$F$10,MATCH(H56,'Risk Assessment'!$A$4:$F$4,0),FALSE)","v":{"$error":"#N/A"}}]
[{"$nulls":4},{"$f":"VLOOKUP(C57,'Risk Assessment'!$A$4:$F$10,MATCH(D57,'Risk Assessment'!$A$4:$F$4,0),FALSE)","v":{"$error":"#N/A"}},{"$nulls":3},{"$f":"VLOOKUP(G57,'Risk Assessment'!$A$4:$F$10,MATCH(H57,'Risk Assessment'!$A$4:$F$4,0),FALSE)","v":{"$error":"#N/A"}}]
[{"$nulls":4},{"$f":"VLOOKUP(C58,'Risk Assessment'!$A$4:$F$10,MATCH(D58,'Risk Assessment'!$A$4:$F$4,0),FALSE)","v":{"$error":"#N/A"}},{"$nulls":3},{"$f":"VLOOKUP(G58,'Risk Assessment'!$A$4:$F$10,MATCH(H58,'Risk Assessment'!$A$4:$F$4,0),FALSE)","v":{"$error":"#N/A"}}]
[{"$nulls":4},{"$f":"VLOOKUP(C59,'Risk Assessment'!$A$4:$F$10,MATCH(D59,'Risk Assessment'!$A$4:$F$4,0),FALSE)","v":{"$error":"#N/A"}},{"$nulls":3},{"$f":"VLOOKUP(G59,'Risk Assessment'!$A$4:$F$10,MATCH(H59,'Risk Assessment'!$A$4:$F$4,0),FALSE)","v":{"$error":"#N/A"}}]
[{"$nulls":4},{"$f":"VLOOKUP(C60,'Risk Assessment'!$A$4:$F$10,MATCH(D60,'Risk Assessment'!$A$4:$F$4,0),FALSE)","v":{"$error":"#N/A"}},{"$nulls":3},{"$f":"VLOOKUP(G60,'Risk Assessment'!$A$4:$F$10,MATCH(H60,'Risk Assessment'!$A$4:$F$4,0),FALSE)","v":{"$error":"#N/A"}}]
[{"$nulls":4},{"$f":"VLOOKUP(C61,'Risk Assessment'!$A$4:$F$10,MATCH(D61,'Risk Assessment'!$A$4:$F$4,0),FALSE)","v":{"$error":"#N/A"}},{"$nulls":3},{"$f":"VLOOKUP(G61,'Risk Assessment'!$A$4:$F$10,MATCH(H61,'Risk Assessment'!$A$4:$F$4,0),FALSE)","v":{"$error":"#N/A"}}]
[{"$nulls":4},{"$f":"VLOOKUP(C62,'Risk Assessment'!$A$4:$F$10,MATCH(D62,'Risk Assessment'!$A$4:$F$4,0),FALSE)","v":{"$error":"#N/A"}},{"$nulls":3},{"$f":"VLOOKUP(G62,'Risk Assessment'!$A$4:$F$10,MATCH(H62,'Risk Assessment'!$A$4:$F$4,0),FALSE)","v":{"$error":"#N/A"}}]
[{"$nulls":4},{"$f":"VLOOKUP(C63,'Risk Assessment'!$A$4:$F$10,MATCH(D63,'Risk Assessment'!$A$4:$F$4,0),FALSE)","v":{"$error":"#N/A"}},{"$nulls":3},{"$f":"VLOOKUP(G63,'Risk Assessment'!$A$4:$F$10,MATCH(H63,'Risk Assessment'!$A$4:$F$4,0),FALSE)","v":{"$error":"#N/A"}}]
[{"$nulls":4},{"$f":"VLOOKUP(C64,'Risk Assessment'!$A$4:$F$10,MATCH(D64,'Risk Assessment'!$A$4:$F$4,0),FALSE)","v":{"$error":"#N/A"}},{"$nulls":3},{"$f":"VLOOKUP(G64,'Risk Assessment'!$A$4:$F$10,MATCH(H64,'Risk Assessment'!$A$4:$F$4,0),FALSE)","v":{"$error":"#N/A"}}]
[{"$nulls":4},{"$f":"VLOOKUP(C65,'Risk Assessment'!$A$4:$F$10,MATCH(D65,'Risk Assessment'!$A$4:$F$4,0),FALSE)","v":{"$error":"#N/A"}},{"$nulls":3},{"$f":"VLOOKUP(G65,'Risk Assessment'!$A$4:$F$10,MATCH(H65,'Risk Assessment'!$A$4:$F$4,0),FALSE)","v":{"$error":"#N/A"}}]
[{"$nulls":4},{"$f":"VLOOKUP(C66,'Risk Assessment'!$A$4:$F$10,MATCH(D66,'Risk Assessment'!$A$4:$F$4,0),FALSE)","v":{"$error":"#N/A"}},{"$nulls":3},{"$f":"VLOOKUP(G66,'Risk Assessment'!$A$4:$F$10,MATCH(H66,'Risk Assessment'!$A$4:$F$4,0),FALSE)","v":{"$error":"#N/A"}}]
[{"$nulls":4},{"$f":"VLOOKUP(C67,'Risk Assessment'!$A$4:$F$10,MATCH(D67,'Risk Assessment'!$A$4:$F$4,0),FALSE)","v":{"$error":"#N/A"}},{"$nulls":3},{"$f":"VLOOKUP(G67,'Risk Assessment'!$A$4:$F$10,MATCH(H67,'Risk Assessment'!$A$4:$F$4,0),FALSE)","v":{"$error":"#N/A"}}]
[{"$nulls":4},{"$f":"VLOOKUP(C68,'Risk Assessment'!$A$4:$F$10,MATCH(D68,'Risk Assessment'!$A$4:$F$4,0),FALSE)","v":{"$error":"#N/A"}},{"$nulls":3},{"$f":"VLOOKUP(G68,'Risk Assessment'!$A$4:$F$10,MATCH(H68,'Risk Assessment'!$A$4:$F$4,0),FALSE)","v":{"$error":"#N/A"}}]
[{"$nulls":4},{"$f":"VLOOKUP(C69,'Risk Assessment'!$A$4:$F$10,MATCH(D69,'Risk Assessment'!$A$4:$F$4,0),FALSE)","v":{"$error":"#N/A"}},{"$nulls":3},{"$f":"VLOOKUP(G69,'Risk Assessment'!$A$4:$F$10,MATCH(H69,'Risk Assessment'!$A$4:$F$4,0),FALSE)","v":{"$error":"#N/A"}}]
[{"$nulls":4},{"$f":"VLOOKUP(C70,'Risk Assessment'!$A$4:$F$10,MATCH(D70,'Risk Assessment'!$A$4:$F$4,0),FALSE)","v":{"$error":"#N/A"}},{"$nulls":3},{"$f":"VLOOKUP(G70,'Risk Assessment'!$A$4:$F$10,MATCH(H70,'Risk Assessment'!$A$4:$F$4,0),FALSE)","v":{"$error":"#N/A"}}]
[{"$nulls":4},{"$f":"VLOOKUP(C71,'Risk Assessment'!$A$4:$F$10,MATCH(D71,'Risk Assessment'!$A$4:$F$4,0),FALSE)","v":{"$error":"#N/A"}},{"$nulls":3},{"$f":"VLOOKUP(G71,'Risk Assessment'!$A$4:$F$10,MATCH(H71,'Risk Assessment'!$A$4:$F$4,0),FALSE)","v":{"$error":"#N/A"}}]
[{"$nulls":4},{"$f":"VLOOKUP(C72,'Risk Assessment'!$A$4:$F$10,MATCH(D72,'Risk Assessment'!$A$4:$F$4,0),FALSE)","v":{"$error":"#N/A"}},{"$nulls":3},{"$f":"VLOOKUP(G72,'Risk Assessment'!$A$4:$F$10,MATCH(H72,'Risk Assessment'!$A$4:$F$4,0),FALSE)","v":{"$error":"#N/A"}}]
[{"$nulls":4},{"$f":"VLOOKUP(C73,'Risk Assessment'!$A$4:$F$10,MATCH(D73,'Risk Assessment'!$A$4:$F$4,0),FALSE)","v":{"$error":"#N/A"}},{"$nulls":3},{"$f":"VLOOKUP(G73,'Risk Assessment'!$A$4:$F$10,MATCH(H73,'Risk Assessment'!$A$4:$F$4,0),FALSE)","v":{"$error":"#N/A"}}]
[{"$nulls":4},{"$f":"VLOOKUP(C74,'Risk Assessment'!$A$4:$F$10,MATCH(D74,'Risk Assessment'!$A$4:$F$4,0),FALSE)","v":{"$error":"#N/A"}},{"$nulls":3},{"$f":"VLOOKUP(G74,'Risk Assessment'!$A$4:$F$10,MATCH(H74,'Risk Assessment'!$A$4:$F$4,0),FALSE)","v":{"$error":"#N/A"}}]
[{"$nulls":4},{"$f":"VLOOKUP(C75,'Risk Assessment'!$A$4:$F$10,MATCH(D75,'Risk Assessment'!$A$4:$F$4,0),FALSE)","v":{"$error":"#N/A"}},{"$nulls":3},{"$f":"VLOOKUP(G75,'Risk Assessment'!$A$4:$F$10,MATCH(H75,'Risk Assessment'!$A$4:$F$4,0),FALSE)","v":{"$error":"#N/A"}}]
[{"$nulls":4},{"$f":"VLOOKUP(C76,'Risk Assessment'!$A$4:$F$10,MATCH(D76,'Risk Assessment'!$A$4:$F$4,0),FALSE)","v":{"$error":"#N/A"}},{"$nulls":3},{"$f":"VLOOKUP(G76,'Risk Assessment'!$A$4:$F$10,MATCH(H76,'Risk Assessment'!$A$4:$F$4,0),FALSE)","v":{"$error":"#N/A"}}]
[{"$nulls":4},{"$f":"VLOOKUP(C77,'Risk Assessment'!$A$4:$F$10,MATCH(D77,'Risk Assessment'!$A$4:$F$4,0),FALSE)","v":{"$error":"#N/A"}},{"$nulls":3},{"$f":"VLOOKUP(G77,'Risk Assessment'!$A$4:$F$10,MATCH(H77,'Risk Assessment'!$A$4:$F$4,0),FALSE)","v":{"$error":"#N/A"}}]

{"sheet":"Disk-Golf","index":25,"n_rows":76,"n_cols":9,"rows_kept":76}
{"$rows_empty":9}
[" HAZARD and RISK REGISTER ",null," WCC Practical Activities"]
["Refer to Hazard/Risk Management Procedure"]
[]
["Developed by: Matthew Smith Date: 19 January 2023."]
[" Approved by:  Cody Blackler  Date: 24 January 2023"]
["Reviewed by:  Cody Blackler  and Matthew Smith  Date: 24 January 2023"]
[]
["(1) Identify all hazards, then determine a risk rating."]
["(2) Eliminate the risk. If not reasonably practicable then"]
["(3) Minimise the risk as far as reasonably practicable."]
["(4) Reassess and determine the residual risk"]
[]
["Where or what task?","Hazard and Harm?","Likelihood \n(Choose from drop list in cell)","Consequence \n(Choose from drop list in cell)","Rating","Action required to Eliminate (E) or Minimise (M). \n (controls, administration controls, personal protective equipment.)","Revised Likelihood","Revised Consequence","Residual Rating"]
["All tasks","hit with Flying Disk","Moderate","Major",{"$f":"VLOOKUP(C23,'Risk Assessment'!$A$4:$F$10,MATCH(D23,'Risk Assessment'!$A$4:$F$4,0),FALSE)","v":12},"M: Users are breifed not to throw towards any people\nM: Users are breifed to alert others to flying disks should one end up heading towards others\nM: adult/leader supervision required at a ratio of 1:10 (adult/leader:children)","Highly unlikely (rare)","Major",{"$f":"VLOOKUP(G23,'Risk Assessment'!$A$4:$F$10,MATCH(H23,'Risk Assessment'!$A$4:$F$4,0),FALSE)","v":4}]
["All tasks","sunburn","Very likely","Moderate",{"$f":"VLOOKUP(C24,'Risk Assessment'!$A$4:$F$10,MATCH(D24,'Risk Assessment'!$A$4:$F$4,0),FALSE)","v":10},"M: Sunsmart principles applied.\nM: Advise clients to wear sunhats and apply sunblock","Unlikely","Moderate",{"$f":"VLOOKUP(G24,'Risk Assessment'!$A$4:$F$10,MATCH(H24,'Risk Assessment'!$A$4:$F$4,0),FALSE)","v":4}]
["All tasks","exposure","Unlikely","Extreme",{"$f":"VLOOKUP(C25,'Risk Assessment'!$A$4:$F$10,MATCH(D25,'Risk Assessment'!$A$4:$F$4,0),FALSE)","v":10},"M: Staff to recognise signs and symptoms of exposure illnesses (Heatstroke, Hypothermia, Hyperthermia and heat exhaustion)\nM: Advise clients of appropriate clothing for the activity and weather\nE: activity to be closed when exposure risk can not be effectivly managed (either through lack of appropriate client clothing or continually deteriorating weather. Note staff are expected to carry apropriate clothing for work in all conditions)","Highly unlikely (rare)","Extreme",{"$f":"VLOOKUP(G25,'Risk Assessment'!$A$4:$F$10,MATCH(H25,'Risk Assessment'!$A$4:$F$4,0),FALSE)","v":5}]
["All tasks","trips, slips and falls ","Likely","Moderate",{"$f":"VLOOKUP(C26,'Risk Assessment'!$A$4:$F$10,MATCH(D26,'Risk Assessment'!$A$4:$F$4,0),FALSE)","v":8},"M: 6 monthly Disk golf inspection\nM: Disk Golf to be set up in suitalbe locations where trip hazards are manageable","Highly unlikely (rare)","Moderate",{"$f":"VLOOKUP(G26,'Risk Assessment'!$A$4:$F$10,MATCH(H26,'Risk Assessment'!$A$4:$F$4,0),FALSE)","v":2}]
[{"$nulls":4},{"$f":"VLOOKUP(C27,'Risk Assessment'!$A$4:$F$10,MATCH(D27,'Risk Assessment'!$A$4:$F$4,0),FALSE)","v":{"$error":"#N/A"}},{"$nulls":3},{"$f":"VLOOKUP(G27,'Risk Assessment'!$A$4:$F$10,MATCH(H27,'Risk Assessment'!$A$4:$F$4,0),FALSE)","v":{"$error":"#N/A"}}]
[{"$nulls":4},{"$f":"VLOOKUP(C28,'Risk Assessment'!$A$4:$F$10,MATCH(D28,'Risk Assessment'!$A$4:$F$4,0),FALSE)","v":{"$error":"#N/A"}},{"$nulls":3},{"$f":"VLOOKUP(G28,'Risk Assessment'!$A$4:$F$10,MATCH(H28,'Risk Assessment'!$A$4:$F$4,0),FALSE)","v":{"$error":"#N/A"}}]
[{"$nulls":4},{"$f":"VLOOKUP(C29,'Risk Assessment'!$A$4:$F$10,MATCH(D29,'Risk Assessment'!$A$4:$F$4,0),FALSE)","v":{"$error":"#N/A"}},{"$nulls":3},{"$f":"VLOOKUP(G29,'Risk Assessment'!$A$4:$F$10,MATCH(H29,'Risk Assessment'!$A$4:$F$4,0),FALSE)","v":{"$error":"#N/A"}}]
[{"$nulls":4},{"$f":"VLOOKUP(C30,'Risk Assessment'!$A$4:$F$10,MATCH(D30,'Risk Assessment'!$A$4:$F$4,0),FALSE)","v":{"$error":"#N/A"}},{"$nulls":3},{"$f":"VLOOKUP(G30,'Risk Assessment'!$A$4:$F$10,MATCH(H30,'Risk Assessment'!$A$4:$F$4,0),FALSE)","v":{"$error":"#N/A"}}]
[{"$nulls":4},{"$f":"VLOOKUP(C31,'Risk Assessment'!$A$4:$F$10,MATCH(D31,'Risk Assessment'!$A$4:$F$4,0),FALSE)","v":{"$error":"#N/A"}},{"$nulls":3},{"$f":"VLOOKUP(G31,'Risk Assessment'!$A$4:$F$10,MATCH(H31,'Risk Assessment'!$A$4:$F$4,0),FALSE)","v":{"$error":"#N/A"}}]
[{"$nulls":4},{"$f":"VLOOKUP(C32,'Risk Assessment'!$A$4:$F$10,MATCH(D32,'Risk Assessment'!$A$4:$F$4,0),FALSE)","v":{"$error":"#N/A"}},{"$nulls":3},{"$f":"VLOOKUP(G32,'Risk Assessment'!$A$4:$F$10,MATCH(H32,'Risk Assessment'!$A$4:$F$4,0),FALSE)","v":{"$error":"#N/A"}}]
[{"$nulls":4},{"$f":"VLOOKUP(C33,'Risk Assessment'!$A$4:$F$10,MATCH(D33,'Risk Assessment'!$A$4:$F$4,0),FALSE)","v":{"$error":"#N/A"}},{"$nulls":3},{"$f":"VLOOKUP(G33,'Risk Assessment'!$A$4:$F$10,MATCH(H33,'Risk Assessment'!$A$4:$F$4,0),FALSE)","v":{"$error":"#N/A"}}]
[{"$nulls":4},{"$f":"VLOOKUP(C34,'Risk Assessment'!$A$4:$F$10,MATCH(D34,'Risk Assessment'!$A$4:$F$4,0),FALSE)","v":{"$error":"#N/A"}},{"$nulls":3},{"$f":"VLOOKUP(G34,'Risk Assessment'!$A$4:$F$10,MATCH(H34,'Risk Assessment'!$A$4:$F$4,0),FALSE)","v":{"$error":"#N/A"}}]
[{"$nulls":4},{"$f":"VLOOKUP(C35,'Risk Assessment'!$A$4:$F$10,MATCH(D35,'Risk Assessment'!$A$4:$F$4,0),FALSE)","v":{"$error":"#N/A"}},{"$nulls":3},{"$f":"VLOOKUP(G35,'Risk Assessment'!$A$4:$F$10,MATCH(H35,'Risk Assessment'!$A$4:$F$4,0),FALSE)","v":{"$error":"#N/A"}}]
[{"$nulls":4},{"$f":"VLOOKUP(C36,'Risk Assessment'!$A$4:$F$10,MATCH(D36,'Risk Assessment'!$A$4:$F$4,0),FALSE)","v":{"$error":"#N/A"}},{"$nulls":3},{"$f":"VLOOKUP(G36,'Risk Assessment'!$A$4:$F$10,MATCH(H36,'Risk Assessment'!$A$4:$F$4,0),FALSE)","v":{"$error":"#N/A"}}]
[{"$nulls":4},{"$f":"VLOOKUP(C37,'Risk Assessment'!$A$4:$F$10,MATCH(D37,'Risk Assessment'!$A$4:$F$4,0),FALSE)","v":{"$error":"#N/A"}},{"$nulls":3},{"$f":"VLOOKUP(G37,'Risk Assessment'!$A$4:$F$10,MATCH(H37,'Risk Assessment'!$A$4:$F$4,0),FALSE)","v":{"$error":"#N/A"}}]
[{"$nulls":4},{"$f":"VLOOKUP(C38,'Risk Assessment'!$A$4:$F$10,MATCH(D38,'Risk Assessment'!$A$4:$F$4,0),FALSE)","v":{"$error":"#N/A"}},{"$nulls":3},{"$f":"VLOOKUP(G38,'Risk Assessment'!$A$4:$F$10,MATCH(H38,'Risk Assessment'!$A$4:$F$4,0),FALSE)","v":{"$error":"#N/A"}}]
[{"$nulls":4},{"$f":"VLOOKUP(C39,'Risk Assessment'!$A$4:$F$10,MATCH(D39,'Risk Assessment'!$A$4:$F$4,0),FALSE)","v":{"$error":"#N/A"}},{"$nulls":3},{"$f":"VLOOKUP(G39,'Risk Assessment'!$A$4:$F$10,MATCH(H39,'Risk Assessment'!$A$4:$F$4,0),FALSE)","v":{"$error":"#N/A"}}]
[{"$nulls":4},{"$f":"VLOOKUP(C40,'Risk Assessment'!$A$4:$F$10,MATCH(D40,'Risk Assessment'!$A$4:$F$4,0),FALSE)","v":{"$error":"#N/A"}},{"$nulls":3},{"$f":"VLOOKUP(G40,'Risk Assessment'!$A$4:$F$10,MATCH(H40,'Risk Assessment'!$A$4:$F$4,0),FALSE)","v":{"$error":"#N/A"}}]
[{"$nulls":4},{"$f":"VLOOKUP(C41,'Risk Assessment'!$A$4:$F$10,MATCH(D41,'Risk Assessment'!$A$4:$F$4,0),FALSE)","v":{"$error":"#N/A"}},{"$nulls":3},{"$f":"VLOOKUP(G41,'Risk Assessment'!$A$4:$F$10,MATCH(H41,'Risk Assessment'!$A$4:$F$4,0),FALSE)","v":{"$error":"#N/A"}}]
[{"$nulls":4},{"$f":"VLOOKUP(C42,'Risk Assessment'!$A$4:$F$10,MATCH(D42,'Risk Assessment'!$A$4:$F$4,0),FALSE)","v":{"$error":"#N/A"}},{"$nulls":3},{"$f":"VLOOKUP(G42,'Risk Assessment'!$A$4:$F$10,MATCH(H42,'Risk Assessment'!$A$4:$F$4,0),FALSE)","v":{"$error":"#N/A"}}]
[{"$nulls":4},{"$f":"VLOOKUP(C43,'Risk Assessment'!$A$4:$F$10,MATCH(D43,'Risk Assessment'!$A$4:$F$4,0),FALSE)","v":{"$error":"#N/A"}},{"$nulls":3},{"$f":"VLOOKUP(G43,'Risk Assessment'!$A$4:$F$10,MATCH(H43,'Risk Assessment'!$A$4:$F$4,0),FALSE)","v":{"$error":"#N/A"}}]
[{"$nulls":4},{"$f":"VLOOKUP(C44,'Risk Assessment'!$A$4:$F$10,MATCH(D44,'Risk Assessment'!$A$4:$F$4,0),FALSE)","v":{"$error":"#N/A"}},{"$nulls":3},{"$f":"VLOOKUP(G44,'Risk Assessment'!$A$4:$F$10,MATCH(H44,'Risk Assessment'!$A$4:$F$4,0),FALSE)","v":{"$error":"#N/A"}}]
[{"$nulls":4},{"$f":"VLOOKUP(C45,'Risk Assessment'!$A$4:$F$10,MATCH(D45,'Risk Assessment'!$A$4:$F$4,0),FALSE)","v":{"$error":"#N/A"}},{"$nulls":3},{"$f":"VLOOKUP(G45,'Risk Assessment'!$A$4:$F$10,MATCH(H45,'Risk Assessment'!$A$4:$F$4,0),FALSE)","v":{"$error":"#N/A"}}]
[{"$nulls":4},{"$f":"VLOOKUP(C46,'Risk Assessment'!$A$4:$F$10,MATCH(D46,'Risk Assessment'!$A$4:$F$4,0),FALSE)","v":{"$error":"#N/A"}},{"$nulls":3},{"$f":"VLOOKUP(G46,'Risk Assessment'!$A$4:$F$10,MATCH(H46,'Risk Assessment'!$A$4:$F$4,0),FALSE)","v":{"$error":"#N/A"}}]
[{"$nulls":4},{"$f":"VLOOKUP(C47,'Risk Assessment'!$A$4:$F$10,MATCH(D47,'Risk Assessment'!$A$4:$F$4,0),FALSE)","v":{"$error":"#N/A"}},{"$nulls":3},{"$f":"VLOOKUP(G47,'Risk Assessment'!$A$4:$F$10,MATCH(H47,'Risk Assessment'!$A$4:$F$4,0),FALSE)","v":{"$error":"#N/A"}}]
[{"$nulls":4},{"$f":"VLOOKUP(C48,'Risk Assessment'!$A$4:$F$10,MATCH(D48,'Risk Assessment'!$A$4:$F$4,0),FALSE)","v":{"$error":"#N/A"}},{"$nulls":3},{"$f":"VLOOKUP(G48,'Risk Assessment'!$A$4:$F$10,MATCH(H48,'Risk Assessment'!$A$4:$F$4,0),FALSE)","v":{"$error":"#N/A"}}]
[{"$nulls":4},{"$f":"VLOOKUP(C49,'Risk Assessment'!$A$4:$F$10,MATCH(D49,'Risk Assessment'!$A$4:$F$4,0),FALSE)","v":{"$error":"#N/A"}},{"$nulls":3},{"$f":"VLOOKUP(G49,'Risk Assessment'!$A$4:$F$10,MATCH(H49,'Risk Assessment'!$A$4:$F$4,0),FALSE)","v":{"$error":"#N/A"}}]
[{"$nulls":4},{"$f":"VLOOKUP(C50,'Risk Assessment'!$A$4:$F$10,MATCH(D50,'Risk Assessment'!$A$4:$F$4,0),FALSE)","v":{"$error":"#N/A"}},{"$nulls":3},{"$f":"VLOOKUP(G50,'Risk Assessment'!$A$4:$F$10,MATCH(H50,'Risk Assessment'!$A$4:$F$4,0),FALSE)","v":{"$error":"#N/A"}}]
[{"$nulls":4},{"$f":"VLOOKUP(C51,'Risk Assessment'!$A$4:$F$10,MATCH(D51,'Risk Assessment'!$A$4:$F$4,0),FALSE)","v":{"$error":"#N/A"}},{"$nulls":3},{"$f":"VLOOKUP(G51,'Risk Assessment'!$A$4:$F$10,MATCH(H51,'Risk Assessment'!$A$4:$F$4,0),FALSE)","v":{"$error":"#N/A"}}]
[{"$nulls":4},{"$f":"VLOOKUP(C52,'Risk Assessment'!$A$4:$F$10,MATCH(D52,'Risk Assessment'!$A$4:$F$4,0),FALSE)","v":{"$error":"#N/A"}},{"$nulls":3},{"$f":"VLOOKUP(G52,'Risk Assessment'!$A$4:$F$10,MATCH(H52,'Risk Assessment'!$A$4:$F$4,0),FALSE)","v":{"$error":"#N/A"}}]
[{"$nulls":4},{"$f":"VLOOKUP(C53,'Risk Assessment'!$A$4:$F$10,MATCH(D53,'Risk Assessment'!$A$4:$F$4,0),FALSE)","v":{"$error":"#N/A"}},{"$nulls":3},{"$f":"VLOOKUP(G53,'Risk Assessment'!$A$4:$F$10,MATCH(H53,'Risk Assessment'!$A$4:$F$4,0),FALSE)","v":{"$error":"#N/A"}}]
[{"$nulls":4},{"$f":"VLOOKUP(C54,'Risk Assessment'!$A$4:$F$10,MATCH(D54,'Risk Assessment'!$A$4:$F$4,0),FALSE)","v":{"$error":"#N/A"}},{"$nulls":3},{"$f":"VLOOKUP(G54,'Risk Assessment'!$A$4:$F$10,MATCH(H54,'Risk Assessment'!$A$4:$F$4,0),FALSE)","v":{"$error":"#N/A"}}]
[{"$nulls":4},{"$f":"VLOOKUP(C55,'Risk Assessment'!$A$4:$F$10,MATCH(D55,'Risk Assessment'!$A$4:$F$4,0),FALSE)","v":{"$error":"#N/A"}},{"$nulls":3},{"$f":"VLOOKUP(G55,'Risk Assessment'!$A$4:$F$10,MATCH(H55,'Risk Assessment'!$A$4:$F$4,0),FALSE)","v":{"$error":"#N/A"}}]
[{"$nulls":4},{"$f":"VLOOKUP(C56,'Risk Assessment'!$A$4:$F$10,MATCH(D56,'Risk Assessment'!$A$4:$F$4,0),FALSE)","v":{"$error":"#N/A"}},{"$nulls":3},{"$f":"VLOOKUP(G56,'Risk Assessment'!$A$4:$F$10,MATCH(H56,'Risk Assessment'!$A$4:$F$4,0),FALSE)","v":{"$error":"#N/A"}}]
[{"$nulls":4},{"$f":"VLOOKUP(C57,'Risk Assessment'!$A$4:$F$10,MATCH(D57,'Risk Assessment'!$A$4:$F$4,0),FALSE)","v":{"$error":"#N/A"}},{"$nulls":3},{"$f":"VLOOKUP(G57,'Risk Assessment'!$A$4:$F$10,MATCH(H57,'Risk Assessment'!$A$4:$F$4,0),FALSE)","v":{"$error":"#N/A"}}]
[{"$nulls":4},{"$f":"VLOOKUP(C58,'Risk Assessment'!$A$4:$F$10,MATCH(D58,'Risk Assessment'!$A$4:$F$4,0),FALSE)","v":{"$error":"#N/A"}},{"$nulls":3},{"$f":"VLOOKUP(G58,'Risk Assessment'!$A$4:$F$10,MATCH(H58,'Risk Assessment'!$A$4:$F$4,0),FALSE)","v":{"$error":"#N/A"}}]
[{"$nulls":4},{"$f":"VLOOKUP(C59,'Risk Assessment'!$A$4:$F$10,MATCH(D59,'Risk Assessment'!$A$4:$F$4,0),FALSE)","v":{"$error":"#N/A"}},{"$nulls":3},{"$f":"VLOOKUP(G59,'Risk Assessment'!$A$4:$F$10,MATCH(H59,'Risk Assessment'!$A$4:$F$4,0),FALSE)","v":{"$error":"#N/A"}}]
[{"$nulls":4},{"$f":"VLOOKUP(C60,'Risk Assessment'!$A$4:$F$10,MATCH(D60,'Risk Assessment'!$A$4:$F$4,0),FALSE)","v":{"$error":"#N/A"}},{"$nulls":3},{"$f":"VLOOKUP(G60,'Risk Assessment'!$A$4:$F$10,MATCH(H60,'Risk Assessment'!$A$4:$F$4,0),FALSE)","v":{"$error":"#N/A"}}]
[{"$nulls":4},{"$f":"VLOOKUP(C61,'Risk Assessment'!$A$4:$F$10,MATCH(D61,'Risk Assessment'!$A$4:$F$4,0),FALSE)","v":{"$error":"#N/A"}},{"$nulls":3},{"$f":"VLOOKUP(G61,'Risk Assessment'!$A$4:$F$10,MATCH(H61,'Risk Assessment'!$A$4:$F$4,0),FALSE)","v":{"$error":"#N/A"}}]
[{"$nulls":4},{"$f":"VLOOKUP(C62,'Risk Assessment'!$A$4:$F$10,MATCH(D62,'Risk Assessment'!$A$4:$F$4,0),FALSE)","v":{"$error":"#N/A"}},{"$nulls":3},{"$f":"VLOOKUP(G62,'Risk Assessment'!$A$4:$F$10,MATCH(H62,'Risk Assessment'!$A$4:$F$4,0),FALSE)","v":{"$error":"#N/A"}}]
[{"$nulls":4},{"$f":"VLOOKUP(C63,'Risk Assessment'!$A$4:$F$10,MATCH(D63,'Risk Assessment'!$A$4:$F$4,0),FALSE)","v":{"$error":"#N/A"}},{"$nulls":3},{"$f":"VLOOKUP(G63,'Risk Assessment'!$A$4:$F$10,MATCH(H63,'Risk Assessment'!$A$4:$F$4,0),FALSE)","v":{"$error":"#N/A"}}]
[{"$nulls":4},{"$f":"VLOOKUP(C64,'Risk Assessment'!$A$4:$F$10,MATCH(D64,'Risk Assessment'!$A$4:$F$4,0),FALSE)","v":{"$error":"#N/A"}},{"$nulls":3},{"$f":"VLOOKUP(G64,'Risk Assessment'!$A$4:$F$10,MATCH(H64,'Risk Assessment'!$A$4:$F$4,0),FALSE)","v":{"$error":"#N/A"}}]
[{"$nulls":4},{"$f":"VLOOKUP(C65,'Risk Assessment'!$A$4:$F$10,MATCH(D65,'Risk Assessment'!$A$4:$F$4,0),FALSE)","v":{"$error":"#N/A"}},{"$nulls":3},{"$f":"VLOOKUP(G65,'Risk Assessment'!$A$4:$F$10,MATCH(H65,'Risk Assessment'!$A$4:$F$4,0),FALSE)","v":{"$error":"#N/A"}}]
[{"$nulls":4},{"$f":"VLOOKUP(C66,'Risk Assessment'!$A$4:$F$10,MATCH(D66,'Risk Assessment'!$A$4:$F$4,0),FALSE)","v":{"$error":"#N/A"}},{"$nulls":3},{"$f":"VLOOKUP(G66,'Risk Assessment'!$A$4:$F$10,MATCH(H66,'Risk Assessment'!$A$4:$F$4,0),FALSE)","v":{"$error":"#N/A"}}]
[{"$nulls":4},{"$f":"VLOOKUP(C67,'Risk Assessment'!$A$4:$F$10,MATCH(D67,'Risk Assessment'!$A$4:$F$4,0),FALSE)","v":{"$error":"#N/A"}},{"$nulls":3},{"$f":"VLOOKUP(G67,'Risk Assessment'!$A$4:$F$10,MATCH(H67,'Risk Assessment'!$A$4:$F$4,0),FALSE)","v":{"$error":"#N/A"}}]
[{"$nulls":4},{"$f":"VLOOKUP(C68,'Risk Assessment'!$A$4:$F$10,MATCH(D68,'Risk Assessment'!$A$4:$F$4,0),FALSE)","v":{"$error":"#N/A"}},{"$nulls":3},{"$f":"VLOOKUP(G68,'Risk Assessment'!$A$4:$F$10,MATCH(H68,'Risk Assessment'!$A$4:$F$4,0),FALSE)","v":{"$error":"#N/A"}}]
[{"$nulls":4},{"$f":"VLOOKUP(C69,'Risk Assessment'!$A$4:$F$10,MATCH(D69,'Risk Assessment'!$A$4:$F$4,0),FALSE)","v":{"$error":"#N/A"}},{"$nulls":3},{"$f":"VLOOKUP(G69,'Risk Assessment'!$A$4:$F$10,MATCH(H69,'Risk Assessment'!$A$4:$F$4,0),FALSE)","v":{"$error":"#N/A"}}]
[{"$nulls":4},{"$f":"VLOOKUP(C70,'Risk Assessment'!$A$4:$F$10,MATCH(D70,'Risk Assessment'!$A$4:$F$4,0),FALSE)","v":{"$error":"#N/A"}},{"$nulls":3},{"$f":"VLOOKUP(G70,'Risk Assessment'!$A$4:$F$10,MATCH(H70,'Risk Assessment'!$A$4:$F$4,0),FALSE)","v":{"$error":"#N/A"}}]
[{"$nulls":4},{"$f":"VLOOKUP(C71,'Risk Assessment'!$A$4:$F$10,MATCH(D71,'Risk Assessment'!$A$4:$F$4,0),FALSE)","v":{"$error":"#N/A"}},{"$nulls":3},{"$f":"VLOOKUP(G71,'Risk Assessment'!$A$4:$F$10,MATCH(H71,'Risk Assessment'!$A$4:$F$4,0),FALSE)","v":{"$error":"#N/A"}}]
[{"$nulls":4},{"$f":"VLOOKUP(C72,'Risk Assessment'!$A$4:$F$10,MATCH(D72,'Risk Assessment'!$A$4:$F$4,0),FALSE)","v":{"$error":"#N/A"}},{"$nulls":3},{"$f":"VLOOKUP(G72,'Risk Assessment'!$A$4:$F$10,MATCH(H72,'Risk Assessment'!$A$4:$F$4,0),FALSE)","v":{"$error":"#N/A"}}]
[{"$nulls":4},{"$f":"VLOOKUP(C73,'Risk Assessment'!$A$4:$F$10,MATCH(D73,'Risk Assessment'!$A$4:$F$4,0),FALSE)","v":{"$error":"#N/A"}},{"$nulls":3},{"$f":"VLOOKUP(G73,'Risk Assessment'!$A$4:$F$10,MATCH(H73,'Risk Assessment'!$A$4:$F$4,0),FALSE)","v":{"$error":"#N/A"}}]
[{"$nulls":4},{"$f":"VLOOKUP(C74,'Risk Assessment'!$A$4:$F$10,MATCH(D74,'Risk Assessment'!$A$4:$F$4,0),FALSE)","v":{"$error":"#N/A"}},{"$nulls":3},{"$f":"VLOOKUP(G74,'Risk Assessment'!$A$4:$F$10,MATCH(H74,'Risk Assessment'!$A$4:$F$4,0),FALSE)","v":{"$error":"#N/A"}}]
[{"$nulls":4},{"$f":"VLOOKUP(C75,'Risk Assessment'!$A$4:$F$10,MATCH(D75,'Risk Assessment'!$A$4:$F$4,0),FALSE)","v":{"$error":"#N/A"}},{"$nulls":3},{"$f":"VLOOKUP(G75,'Risk Assessment'!$A$4:$F$10,MATCH(H75,'Risk Assessment'!$A$4:$F$4,0),FALSE)","v":{"$error":"#N/A"}}]
[{"$nulls":4},{"$f":"VLOOKUP(C76,'Risk Assessment'!$A$4:$F$10,MATCH(D76,'Risk Assessment'!$A$4:$F$4,0),FALSE)","v":{"$error":"#N/A"}},{"$nulls":3},{"$f":"VLOOKUP(G76,'Risk Assessment'!$A$4:$F$10,MATCH(H76,'Risk Assessment'!$A$4:$F$4,0),FALSE)","v":{"$error":"#N/A"}}]

{"sheet":"SlackLine","index":26,"n_rows":77,"n_cols":9,"rows_kept":77}
{"$rows_empty":9}
[" HAZARD and RISK REGISTER ",null," WCC Practical Activities"]
["Refer to Hazard/Risk Management Procedure"]
[]
["Developed by: Matthew Smith Date: 19 January 2023."]
[" Approved by: Cody Blackler    Date: 24 January 2023"]
["Reviewed by: Cody Blackler  and Matthew Smith  Date: 24 January 2023"]
[]
["(1) Identify all hazards, then determine a risk rating."]
["(2) Eliminate the risk. If not reasonably practicable then"]
["(3) Minimise the risk as far as reasonably practicable."]
["(4) Reassess and determine the residual risk"]
[]
["Where or what task?","Hazard and Harm?","Likelihood \n(Choose from drop list in cell)","Consequence \n(Choose from drop list in cell)","Rating","Action required to Eliminate (E) or Minimise (M). \n (controls, administration controls, personal protective equipment.)","Revised Likelihood","Revised Consequence","Residual Rating"]
["All tasks","Falling from slackline","Very likely","Major",{"$f":"VLOOKUP(C23,'Risk Assessment'!$A$4:$F$10,MATCH(D23,'Risk Assessment'!$A$4:$F$4,0),FALSE)","v":20},"M: Slackline to be set no higher than the users knee \nM: overhead support line to be set above slackline for people of lesser confidence or ability\nM: Slackline to be set over level and suitable ground\nM: Slackline to be adiquitley tensioned to reduce wobble and sway for user\nM: one person on the slackline at a time","Very likely","Insignificant",{"$f":"VLOOKUP(G23,'Risk Assessment'!$A$4:$F$10,MATCH(H23,'Risk Assessment'!$A$4:$F$4,0),FALSE)","v":5}]
["Night activity users","tripping/running into slackline","Moderate","Moderate",{"$f":"VLOOKUP(C24,'Risk Assessment'!$A$4:$F$10,MATCH(D24,'Risk Assessment'!$A$4:$F$4,0),FALSE)","v":6},"M: Slackline to be set off of main paths\nM: Night activity users to be breifed on where the slackline is and to stay clear ","Highly unlikely (rare)","Moderate",{"$f":"VLOOKUP(G24,'Risk Assessment'!$A$4:$F$10,MATCH(H24,'Risk Assessment'!$A$4:$F$4,0),FALSE)","v":2}]
["All tasks","sunburn","Very likely","Moderate",{"$f":"VLOOKUP(C25,'Risk Assessment'!$A$4:$F$10,MATCH(D25,'Risk Assessment'!$A$4:$F$4,0),FALSE)","v":10},"M: Sunsmart principles applied.\nM: Advise clients to wear sunhats and apply sunblock","Unlikely","Moderate",{"$f":"VLOOKUP(G25,'Risk Assessment'!$A$4:$F$10,MATCH(H25,'Risk Assessment'!$A$4:$F$4,0),FALSE)","v":4}]
["All tasks","exposure","Unlikely","Extreme",{"$f":"VLOOKUP(C26,'Risk Assessment'!$A$4:$F$10,MATCH(D26,'Risk Assessment'!$A$4:$F$4,0),FALSE)","v":10},"M: Staff to recognise signs and symptoms of exposure illnesses (Heatstroke, Hypothermia, Hyperthermia and heat exhaustion)\nM: Advise clients of appropriate clothing for the activity and weather\nE: activity to be closed when exposure risk can not be effectivly managed (either through lack of appropriate client clothing or continually deteriorating weather. Note staff are expected to carry apropriate clothing for work in all conditions)","Highly unlikely (rare)","Extreme",{"$f":"VLOOKUP(G26,'Risk Assessment'!$A$4:$F$10,MATCH(H26,'Risk Assessment'!$A$4:$F$4,0),FALSE)","v":5}]
["All tasks","trips, slips and falls ","Likely","Moderate",{"$f":"VLOOKUP(C27,'Risk Assessment'!$A$4:$F$10,MATCH(D27,'Risk Assessment'!$A$4:$F$4,0),FALSE)","v":8},"M: 6 monthly Slackline inspection\nM: Slackline to be set up in suitalbe locations where trip hazards are manageable","Highly unlikely (rare)","Moderate",{"$f":"VLOOKUP(G27,'Risk Assessment'!$A$4:$F$10,MATCH(H27,'Risk Assessment'!$A$4:$F$4,0),FALSE)","v":2}]
["All tasks","Injured by ratchet ","Very likely","Significant",{"$f":"VLOOKUP(C28,'Risk Assessment'!$A$4:$F$10,MATCH(D28,'Risk Assessment'!$A$4:$F$4,0),FALSE)","v":15},"M: Ratchet to be wrapped in padded material \nM: Ratchet to only be opperated by Staff or competent adult","Highly unlikely (rare)","Moderate",{"$f":"VLOOKUP(G28,'Risk Assessment'!$A$4:$F$10,MATCH(H28,'Risk Assessment'!$A$4:$F$4,0),FALSE)","v":2}]
[{"$nulls":4},{"$f":"VLOOKUP(C29,'Risk Assessment'!$A$4:$F$10,MATCH(D29,'Risk Assessment'!$A$4:$F$4,0),FALSE)","v":{"$error":"#N/A"}},{"$nulls":3},{"$f":"VLOOKUP(G29,'Risk Assessment'!$A$4:$F$10,MATCH(H29,'Risk Assessment'!$A$4:$F$4,0),FALSE)","v":{"$error":"#N/A"}}]
[{"$nulls":4},{"$f":"VLOOKUP(C30,'Risk Assessment'!$A$4:$F$10,MATCH(D30,'Risk Assessment'!$A$4:$F$4,0),FALSE)","v":{"$error":"#N/A"}},{"$nulls":3},{"$f":"VLOOKUP(G30,'Risk Assessment'!$A$4:$F$10,MATCH(H30,'Risk Assessment'!$A$4:$F$4,0),FALSE)","v":{"$error":"#N/A"}}]
[{"$nulls":4},{"$f":"VLOOKUP(C31,'Risk Assessment'!$A$4:$F$10,MATCH(D31,'Risk Assessment'!$A$4:$F$4,0),FALSE)","v":{"$error":"#N/A"}},{"$nulls":3},{"$f":"VLOOKUP(G31,'Risk Assessment'!$A$4:$F$10,MATCH(H31,'Risk Assessment'!$A$4:$F$4,0),FALSE)","v":{"$error":"#N/A"}}]
[{"$nulls":4},{"$f":"VLOOKUP(C32,'Risk Assessment'!$A$4:$F$10,MATCH(D32,'Risk Assessment'!$A$4:$F$4,0),FALSE)","v":{"$error":"#N/A"}},{"$nulls":3},{"$f":"VLOOKUP(G32,'Risk Assessment'!$A$4:$F$10,MATCH(H32,'Risk Assessment'!$A$4:$F$4,0),FALSE)","v":{"$error":"#N/A"}}]
[{"$nulls":4},{"$f":"VLOOKUP(C33,'Risk Assessment'!$A$4:$F$10,MATCH(D33,'Risk Assessment'!$A$4:$F$4,0),FALSE)","v":{"$error":"#N/A"}},{"$nulls":3},{"$f":"VLOOKUP(G33,'Risk Assessment'!$A$4:$F$10,MATCH(H33,'Risk Assessment'!$A$4:$F$4,0),FALSE)","v":{"$error":"#N/A"}}]
[{"$nulls":4},{"$f":"VLOOKUP(C34,'Risk Assessment'!$A$4:$F$10,MATCH(D34,'Risk Assessment'!$A$4:$F$4,0),FALSE)","v":{"$error":"#N/A"}},{"$nulls":3},{"$f":"VLOOKUP(G34,'Risk Assessment'!$A$4:$F$10,MATCH(H34,'Risk Assessment'!$A$4:$F$4,0),FALSE)","v":{"$error":"#N/A"}}]
[{"$nulls":4},{"$f":"VLOOKUP(C35,'Risk Assessment'!$A$4:$F$10,MATCH(D35,'Risk Assessment'!$A$4:$F$4,0),FALSE)","v":{"$error":"#N/A"}},{"$nulls":3},{"$f":"VLOOKUP(G35,'Risk Assessment'!$A$4:$F$10,MATCH(H35,'Risk Assessment'!$A$4:$F$4,0),FALSE)","v":{"$error":"#N/A"}}]
[{"$nulls":4},{"$f":"VLOOKUP(C36,'Risk Assessment'!$A$4:$F$10,MATCH(D36,'Risk Assessment'!$A$4:$F$4,0),FALSE)","v":{"$error":"#N/A"}},{"$nulls":3},{"$f":"VLOOKUP(G36,'Risk Assessment'!$A$4:$F$10,MATCH(H36,'Risk Assessment'!$A$4:$F$4,0),FALSE)","v":{"$error":"#N/A"}}]
[{"$nulls":4},{"$f":"VLOOKUP(C37,'Risk Assessment'!$A$4:$F$10,MATCH(D37,'Risk Assessment'!$A$4:$F$4,0),FALSE)","v":{"$error":"#N/A"}},{"$nulls":3},{"$f":"VLOOKUP(G37,'Risk Assessment'!$A$4:$F$10,MATCH(H37,'Risk Assessment'!$A$4:$F$4,0),FALSE)","v":{"$error":"#N/A"}}]
[{"$nulls":4},{"$f":"VLOOKUP(C38,'Risk Assessment'!$A$4:$F$10,MATCH(D38,'Risk Assessment'!$A$4:$F$4,0),FALSE)","v":{"$error":"#N/A"}},{"$nulls":3},{"$f":"VLOOKUP(G38,'Risk Assessment'!$A$4:$F$10,MATCH(H38,'Risk Assessment'!$A$4:$F$4,0),FALSE)","v":{"$error":"#N/A"}}]
[{"$nulls":4},{"$f":"VLOOKUP(C39,'Risk Assessment'!$A$4:$F$10,MATCH(D39,'Risk Assessment'!$A$4:$F$4,0),FALSE)","v":{"$error":"#N/A"}},{"$nulls":3},{"$f":"VLOOKUP(G39,'Risk Assessment'!$A$4:$F$10,MATCH(H39,'Risk Assessment'!$A$4:$F$4,0),FALSE)","v":{"$error":"#N/A"}}]
[{"$nulls":4},{"$f":"VLOOKUP(C40,'Risk Assessment'!$A$4:$F$10,MATCH(D40,'Risk Assessment'!$A$4:$F$4,0),FALSE)","v":{"$error":"#N/A"}},{"$nulls":3},{"$f":"VLOOKUP(G40,'Risk Assessment'!$A$4:$F$10,MATCH(H40,'Risk Assessment'!$A$4:$F$4,0),FALSE)","v":{"$error":"#N/A"}}]
[{"$nulls":4},{"$f":"VLOOKUP(C41,'Risk Assessment'!$A$4:$F$10,MATCH(D41,'Risk Assessment'!$A$4:$F$4,0),FALSE)","v":{"$error":"#N/A"}},{"$nulls":3},{"$f":"VLOOKUP(G41,'Risk Assessment'!$A$4:$F$10,MATCH(H41,'Risk Assessment'!$A$4:$F$4,0),FALSE)","v":{"$error":"#N/A"}}]
[{"$nulls":4},{"$f":"VLOOKUP(C42,'Risk Assessment'!$A$4:$F$10,MATCH(D42,'Risk Assessment'!$A$4:$F$4,0),FALSE)","v":{"$error":"#N/A"}},{"$nulls":3},{"$f":"VLOOKUP(G42,'Risk Assessment'!$A$4:$F$10,MATCH(H42,'Risk Assessment'!$A$4:$F$4,0),FALSE)","v":{"$error":"#N/A"}}]
[{"$nulls":4},{"$f":"VLOOKUP(C43,'Risk Assessment'!$A$4:$F$10,MATCH(D43,'Risk Assessment'!$A$4:$F$4,0),FALSE)","v":{"$error":"#N/A"}},{"$nulls":3},{"$f":"VLOOKUP(G43,'Risk Assessment'!$A$4:$F$10,MATCH(H43,'Risk Assessment'!$A$4:$F$4,0),FALSE)","v":{"$error":"#N/A"}}]
[{"$nulls":4},{"$f":"VLOOKUP(C44,'Risk Assessment'!$A$4:$F$10,MATCH(D44,'Risk Assessment'!$A$4:$F$4,0),FALSE)","v":{"$error":"#N/A"}},{"$nulls":3},{"$f":"VLOOKUP(G44,'Risk Assessment'!$A$4:$F$10,MATCH(H44,'Risk Assessment'!$A$4:$F$4,0),FALSE)","v":{"$error":"#N/A"}}]
[{"$nulls":4},{"$f":"VLOOKUP(C45,'Risk Assessment'!$A$4:$F$10,MATCH(D45,'Risk Assessment'!$A$4:$F$4,0),FALSE)","v":{"$error":"#N/A"}},{"$nulls":3},{"$f":"VLOOKUP(G45,'Risk Assessment'!$A$4:$F$10,MATCH(H45,'Risk Assessment'!$A$4:$F$4,0),FALSE)","v":{"$error":"#N/A"}}]
[{"$nulls":4},{"$f":"VLOOKUP(C46,'Risk Assessment'!$A$4:$F$10,MATCH(D46,'Risk Assessment'!$A$4:$F$4,0),FALSE)","v":{"$error":"#N/A"}},{"$nulls":3},{"$f":"VLOOKUP(G46,'Risk Assessment'!$A$4:$F$10,MATCH(H46,'Risk Assessment'!$A$4:$F$4,0),FALSE)","v":{"$error":"#N/A"}}]
[{"$nulls":4},{"$f":"VLOOKUP(C47,'Risk Assessment'!$A$4:$F$10,MATCH(D47,'Risk Assessment'!$A$4:$F$4,0),FALSE)","v":{"$error":"#N/A"}},{"$nulls":3},{"$f":"VLOOKUP(G47,'Risk Assessment'!$A$4:$F$10,MATCH(H47,'Risk Assessment'!$A$4:$F$4,0),FALSE)","v":{"$error":"#N/A"}}]
[{"$nulls":4},{"$f":"VLOOKUP(C48,'Risk Assessment'!$A$4:$F$10,MATCH(D48,'Risk Assessment'!$A$4:$F$4,0),FALSE)","v":{"$error":"#N/A"}},{"$nulls":3},{"$f":"VLOOKUP(G48,'Risk Assessment'!$A$4:$F$10,MATCH(H48,'Risk Assessment'!$A$4:$F$4,0),FALSE)","v":{"$error":"#N/A"}}]
[{"$nulls":4},{"$f":"VLOOKUP(C49,'Risk Assessment'!$A$4:$F$10,MATCH(D49,'Risk Assessment'!$A$4:$F$4,0),FALSE)","v":{"$error":"#N/A"}},{"$nulls":3},{"$f":"VLOOKUP(G49,'Risk Assessment'!$A$4:$F$10,MATCH(H49,'Risk Assessment'!$A$4:$F$4,0),FALSE)","v":{"$error":"#N/A"}}]
[{"$nulls":4},{"$f":"VLOOKUP(C50,'Risk Assessment'!$A$4:$F$10,MATCH(D50,'Risk Assessment'!$A$4:$F$4,0),FALSE)","v":{"$error":"#N/A"}},{"$nulls":3},{"$f":"VLOOKUP(G50,'Risk Assessment'!$A$4:$F$10,MATCH(H50,'Risk Assessment'!$A$4:$F$4,0),FALSE)","v":{"$error":"#N/A"}}]
[{"$nulls":4},{"$f":"VLOOKUP(C51,'Risk Assessment'!$A$4:$F$10,MATCH(D51,'Risk Assessment'!$A$4:$F$4,0),FALSE)","v":{"$error":"#N/A"}},{"$nulls":3},{"$f":"VLOOKUP(G51,'Risk Assessment'!$A$4:$F$10,MATCH(H51,'Risk Assessment'!$A$4:$F$4,0),FALSE)","v":{"$error":"#N/A"}}]
[{"$nulls":4},{"$f":"VLOOKUP(C52,'Risk Assessment'!$A$4:$F$10,MATCH(D52,'Risk Assessment'!$A$4:$F$4,0),FALSE)","v":{"$error":"#N/A"}},{"$nulls":3},{"$f":"VLOOKUP(G52,'Risk Assessment'!$A$4:$F$10,MATCH(H52,'Risk Assessment'!$A$4:$F$4,0),FALSE)","v":{"$error":"#N/A"}}]
[{"$nulls":4},{"$f":"VLOOKUP(C53,'Risk Assessment'!$A$4:$F$10,MATCH(D53,'Risk Assessment'!$A$4:$F$4,0),FALSE)","v":{"$error":"#N/A"}},{"$nulls":3},{"$f":"VLOOKUP(G53,'Risk Assessment'!$A$4:$F$10,MATCH(H53,'Risk Assessment'!$A$4:$F$4,0),FALSE)","v":{"$error":"#N/A"}}]
[{"$nulls":4},{"$f":"VLOOKUP(C54,'Risk Assessment'!$A$4:$F$10,MATCH(D54,'Risk Assessment'!$A$4:$F$4,0),FALSE)","v":{"$error":"#N/A"}},{"$nulls":3},{"$f":"VLOOKUP(G54,'Risk Assessment'!$A$4:$F$10,MATCH(H54,'Risk Assessment'!$A$4:$F$4,0),FALSE)","v":{"$error":"#N/A"}}]
[{"$nulls":4},{"$f":"VLOOKUP(C55,'Risk Assessment'!$A$4:$F$10,MATCH(D55,'Risk Assessment'!$A$4:$F$4,0),FALSE)","v":{"$error":"#N/A"}},{"$nulls":3},{"$f":"VLOOKUP(G55,'Risk Assessment'!$A$4:$F$10,MATCH(H55,'Risk Assessment'!$A$4:$F$4,0),FALSE)","v":{"$error":"#N/A"}}]
[{"$nulls":4},{"$f":"VLOOKUP(C56,'Risk Assessment'!$A$4:$F$10,MATCH(D56,'Risk Assessment'!$A$4:$F$4,0),FALSE)","v":{"$error":"#N/A"}},{"$nulls":3},{"$f":"VLOOKUP(G56,'Risk Assessment'!$A$4:$F$10,MATCH(H56,'Risk Assessment'!$A$4:$F$4,0),FALSE)","v":{"$error":"#N/A"}}]
[{"$nulls":4},{"$f":"VLOOKUP(C57,'Risk Assessment'!$A$4:$F$10,MATCH(D57,'Risk Assessment'!$A$4:$F$4,0),FALSE)","v":{"$error":"#N/A"}},{"$nulls":3},{"$f":"VLOOKUP(G57,'Risk Assessment'!$A$4:$F$10,MATCH(H57,'Risk Assessment'!$A$4:$F$4,0),FALSE)","v":{"$error":"#N/A"}}]
[{"$nulls":4},{"$f":"VLOOKUP(C58,'Risk Assessment'!$A$4:$F$10,MATCH(D58,'Risk Assessment'!$A$4:$F$4,0),FALSE)","v":{"$error":"#N/A"}},{"$nulls":3},{"$f":"VLOOKUP(G58,'Risk Assessment'!$A$4:$F$10,MATCH(H58,'Risk Assessment'!$A$4:$F$4,0),FALSE)","v":{"$error":"#N/A"}}]
[{"$nulls":4},{"$f":"VLOOKUP(C59,'Risk Assessment'!$A$4:$F$10,MATCH(D59,'Risk Assessment'!$A$4:$F$4,0),FALSE)","v":{"$error":"#N/A"}},{"$nulls":3},{"$f":"VLOOKUP(G59,'Risk Assessment'!$A$4:$F$10,MATCH(H59,'Risk Assessment'!$A$4:$F$4,0),FALSE)","v":{"$error":"#N/A"}}]
[{"$nulls":4},{"$f":"VLOOKUP(C60,'Risk Assessment'!$A$4:$F$10,MATCH(D60,'Risk Assessment'!$A$4:$F$4,0),FALSE)","v":{"$error":"#N/A"}},{"$nulls":3},{"$f":"VLOOKUP(G60,'Risk Assessment'!$A$4:$F$10,MATCH(H60,'Risk Assessment'!$A$4:$F$4,0),FALSE)","v":{"$error":"#N/A"}}]
[{"$nulls":4},{"$f":"VLOOKUP(C61,'Risk Assessment'!$A$4:$F$10,MATCH(D61,'Risk Assessment'!$A$4:$F$4,0),FALSE)","v":{"$error":"#N/A"}},{"$nulls":3},{"$f":"VLOOKUP(G61,'Risk Assessment'!$A$4:$F$10,MATCH(H61,'Risk Assessment'!$A$4:$F$4,0),FALSE)","v":{"$error":"#N/A"}}]
[{"$nulls":4},{"$f":"VLOOKUP(C62,'Risk Assessment'!$A$4:$F$10,MATCH(D62,'Risk Assessment'!$A$4:$F$4,0),FALSE)","v":{"$error":"#N/A"}},{"$nulls":3},{"$f":"VLOOKUP(G62,'Risk Assessment'!$A$4:$F$10,MATCH(H62,'Risk Assessment'!$A$4:$F$4,0),FALSE)","v":{"$error":"#N/A"}}]
[{"$nulls":4},{"$f":"VLOOKUP(C63,'Risk Assessment'!$A$4:$F$10,MATCH(D63,'Risk Assessment'!$A$4:$F$4,0),FALSE)","v":{"$error":"#N/A"}},{"$nulls":3},{"$f":"VLOOKUP(G63,'Risk Assessment'!$A$4:$F$10,MATCH(H63,'Risk Assessment'!$A$4:$F$4,0),FALSE)","v":{"$error":"#N/A"}}]
[{"$nulls":4},{"$f":"VLOOKUP(C64,'Risk Assessment'!$A$4:$F$10,MATCH(D64,'Risk Assessment'!$A$4:$F$4,0),FALSE)","v":{"$error":"#N/A"}},{"$nulls":3},{"$f":"VLOOKUP(G64,'Risk Assessment'!$A$4:$F$10,MATCH(H64,'Risk Assessment'!$A$4:$F$4,0),FALSE)","v":{"$error":"#N/A"}}]
[{"$nulls":4},{"$f":"VLOOKUP(C65,'Risk Assessment'!$A$4:$F$10,MATCH(D65,'Risk Assessment'!$A$4:$F$4,0),FALSE)","v":{"$error":"#N/A"}},{"$nulls":3},{"$f":"VLOOKUP(G65,'Risk Assessment'!$A$4:$F$10,MATCH(H65,'Risk Assessment'!$A$4:$F$4,0),FALSE)","v":{"$error":"#N/A"}}]
[{"$nulls":4},{"$f":"VLOOKUP(C66,'Risk Assessment'!$A$4:$F$10,MATCH(D66,'Risk Assessment'!$A$4:$F$4,0),FALSE)","v":{"$error":"#N/A"}},{"$nulls":3},{"$f":"VLOOKUP(G66,'Risk Assessment'!$A$4:$F$10,MATCH(H66,'Risk Assessment'!$A$4:$F$4,0),FALSE)","v":{"$error":"#N/A"}}]
[{"$nulls":4},{"$f":"VLOOKUP(C67,'Risk Assessment'!$A$4:$F$10,MATCH(D67,'Risk Assessment'!$A$4:$F$4,0),FALSE)","v":{"$error":"#N/A"}},{"$nulls":3},{"$f":"VLOOKUP(G67,'Risk Assessment'!$A$4:$F$10,MATCH(H67,'Risk Assessment'!$A$4:$F$4,0),FALSE)","v":{"$error":"#N/A"}}]
[{"$nulls":4},{"$f":"VLOOKUP(C68,'Risk Assessment'!$A$4:$F$10,MATCH(D68,'Risk Assessment'!$A$4:$F$4,0),FALSE)","v":{"$error":"#N/A"}},{"$nulls":3},{"$f":"VLOOKUP(G68,'Risk Assessment'!$A$4:$F$10,MATCH(H68,'Risk Assessment'!$A$4:$F$4,0),FALSE)","v":{"$error":"#N/A"}}]
[{"$nulls":4},{"$f":"VLOOKUP(C69,'Risk Assessment'!$A$4:$F$10,MATCH(D69,'Risk Assessment'!$A$4:$F$4,0),FALSE)","v":{"$error":"#N/A"}},{"$nulls":3},{"$f":"VLOOKUP(G69,'Risk Assessment'!$A$4:$F$10,MATCH(H69,'Risk Assessment'!$A$4:$F$4,0),FALSE)","v":{"$error":"#N/A"}}]
[{"$nulls":4},{"$f":"VLOOKUP(C70,'Risk Assessment'!$A$4:$F$10,MATCH(D70,'Risk Assessment'!$A$4:$F$4,0),FALSE)","v":{"$error":"#N/A"}},{"$nulls":3},{"$f":"VLOOKUP(G70,'Risk Assessment'!$A$4:$F$10,MATCH(H70,'Risk Assessment'!$A$4:$F$4,0),FALSE)","v":{"$error":"#N/A"}}]
[{"$nulls":4},{"$f":"VLOOKUP(C71,'Risk Assessment'!$A$4:$F$10,MATCH(D71,'Risk Assessment'!$A$4:$F$4,0),FALSE)","v":{"$error":"#N/A"}},{"$nulls":3},{"$f":"VLOOKUP(G71,'Risk Assessment'!$A$4:$F$10,MATCH(H71,'Risk Assessment'!$A$4:$F$4,0),FALSE)","v":{"$error":"#N/A"}}]
[{"$nulls":4},{"$f":"VLOOKUP(C72,'Risk Assessment'!$A$4:$F$10,MATCH(D72,'Risk Assessment'!$A$4:$F$4,0),FALSE)","v":{"$error":"#N/A"}},{"$nulls":3},{"$f":"VLOOKUP(G72,'Risk Assessment'!$A$4:$F$10,MATCH(H72,'Risk Assessment'!$A$4:$F$4,0),FALSE)","v":{"$error":"#N/A"}}]
[{"$nulls":4},{"$f":"VLOOKUP(C73,'Risk Assessment'!$A$4:$F$10,MATCH(D73,'Risk Assessment'!$A$4:$F$4,0),FALSE)","v":{"$error":"#N/A"}},{"$nulls":3},{"$f":"VLOOKUP(G73,'Risk Assessment'!$A$4:$F$10,MATCH(H73,'Risk Assessment'!$A$4:$F$4,0),FALSE)","v":{"$error":"#N/A"}}]
[{"$nulls":4},{"$f":"VLOOKUP(C74,'Risk Assessment'!$A$4:$F$10,MATCH(D74,'Risk Assessment'!$A$4:$F$4,0),FALSE)","v":{"$error":"#N/A"}},{"$nulls":3},{"$f":"VLOOKUP(G74,'Risk Assessment'!$A$4:$F$10,MATCH(H74,'Risk Assessment'!$A$4:$F$4,0),FALSE)","v":{"$error":"#N/A"}}]
[{"$nulls":4},{"$f":"VLOOKUP(C75,'Risk Assessment'!$A$4:$F$10,MATCH(D75,'Risk Assessment'!$A$4:$F$4,0),FALSE)","v":{"$error":"#N/A"}},{"$nulls":3},{"$f":"VLOOKUP(G75,'Risk Assessment'!$A$4:$F$10,MATCH(H75,'Risk Assessment'!$A$4:$F$4,0),FALSE)","v":{"$error":"#N/A"}}]
[{"$nulls":4},{"$f":"VLOOKUP(C76,'Risk Assessment'!$A$4:$F$10,MATCH(D76,'Risk Assessment'!$A$4:$F$4,0),FALSE)","v":{"$error":"#N/A"}},{"$nulls":3},{"$f":"VLOOKUP(G76,'Risk Assessment'!$A$4:$F$10,MATCH(H76,'Risk Assessment'!$A$4:$F$4,0),FALSE)","v":{"$error":"#N/A"}}]
[{"$nulls":4},{"$f":"VLOOKUP(C77,'Risk Assessment'!$A$4:$F$10,MATCH(D77,'Risk Assessment'!$A$4:$F$4,0),FALSE)","v":{"$error":"#N/A"}},{"$nulls":3},{"$f":"VLOOKUP(G77,'Risk Assessment'!$A$4:$F$10,MATCH(H77,'Risk Assessment'!$A$4:$F$4,0),FALSE)","v":{"$error":"#N/A"}}]

{"sheet":"Drop Box Lists","index":27,"n_rows":6,"n_cols":3,"rows_kept":6,"hidden":true}
["Likelihood","Consequence","Rating"]
["Very likely","Insignificant","?"]
["Likely","Moderate"]
["Moderate","Major"]
["Unlikely","Catastrophic"]
["Highly unlikely (rare)"]

{"sheet":"Sheet1","index":28,"n_rows":0,"n_cols":0,"rows_kept":0,"hidden":true}